Workbook

Sheet Overview
A1: Overview
A2: How to use: double-click on article count to see articles
A3: Chemical | B3: chemuid | C3: LinkName | D3: CAS RN | E3: DSSToxID | F3: dsstoxid | G3: PMID Ct | H3: Seizures | I3: Nervous System Diseases | J3: Peripheral Nervous System Diseases | K3: Brain Diseases | L3: Muscular Diseases | M3: Basal Ganglia Diseases | N3: Parkinson Disease, Secondary | O3: Coma | P3: Hallucinations | Q3: Tremor | R3: Memory Disorders | S3: Central Nervous System Diseases | T3: Delirium | U3: Cerebral Hemorrhage | V3: Paresthesia | W3: Dystonia | X3: Myoclonus | Y3: Ataxia | Z3: Epilepsy | AA3: Hearing Loss | AB3: Paralysis | AC3: Confusion | AD3: Status Epilepticus | AE3: Sleep Wake Disorders | AF3: Hyperalgesia | AG3: Epilepsy, Tonic-Clonic | AH3: Sleep Initiation and Maintenance Disorders | AI3: Hearing Disorders | AJ3: Stroke | AK3: Blindness | AL3: Hearing Loss, Sensorineural | AM3: Polyneuropathies | AN3: Movement Disorders | AO3: Syncope | AP3: Hepatic Encephalopathy | AQ3: Brain Edema | AR3: Hypotension, Orthostatic | AS3: Parkinsonian Disorders | AT3: Inappropriate ADH Syndrome | AU3: Deafness | AV3: Intracranial Hemorrhages | AW3: Amnesia | AX3: Neuromuscular Diseases | AY3: Optic Neuritis | AZ3: Alzheimer Disease | BA3: Hyperprolactinemia | BB3: Demyelinating Diseases | BC3: Spasm | BD3: Learning Disorders | BE3: Hyperkinesis | BF3: Neural Tube Defects | BG3: Optic Nerve Diseases | BH3: Cerebrovascular Disorders | BI3: Catalepsy | BJ3: Muscle Rigidity | BK3: Spinal Cord Diseases | BL3: Cerebellar Diseases | BM3: MPTP Poisoning | BN3: Tinnitus | BO3: Muscle Weakness | BP3: Psychomotor Disorders | BQ3: Nystagmus, Pathologic | BR3: Disorders of Excessive Somnolence | BS3: Chorea | BT3: Unconsciousness | BU3: Neuralgia | BV3: Neurodegenerative Diseases | BW3: Meningitis, Aseptic | BX3: Dementia | BY3: Brain Damage, Chronic | BZ3: Consciousness Disorders | CA3: Brain Ischemia | CB3: Reye Syndrome | CC3: Sensation Disorders | CD3: Pseudotumor Cerebri | CE3: Catatonia | CF3: Brain Neoplasms | CG3: Cerebral Infarction | CH3: Cerebellar Ataxia | CI3: Myositis | CJ3: Encephalitis | CK3: Autonomic Nervous System Diseases | CL3: Taste Disorders | CM3: Papilledema | CN3: Eye Burns | CO3: Meningitis | CP3: Migraine Disorders | CQ3: Quadriplegia | CR3: Muscular Atrophy | CS3: Diplopia | CT3: Leukoencephalopathies | CU3: Muscle Hypotonia | CV3: Color Vision Defects | CW3: Speech Disorders | CX3: Muscle Cramp | CY3: Myelitis | CZ3: Optic Atrophy | DA3: Dysarthria | DB3: Fasciculation | DC3: Epilepsies, Myoclonic | DD3: Leukoencephalopathy, Progressive Multifocal | DE3: Posterior Leukoencephalopathy Syndrome | DF3: Myasthenia Gravis | DG3: Ophthalmoplegia | DH3: Paraplegia | DI3: Subarachnoid Hemorrhage | DJ3: Epilepsy, Temporal Lobe | DK3: Arachnoiditis | DL3: Olfaction Disorders | DM3: Hypesthesia | DN3: Restless Legs Syndrome | DO3: Hearing Loss, Bilateral | DP3: Scotoma | DQ3: Epilepsies, Partial | DR3: Ischemic Attack, Transient | DS3: Intellectual Disability | DT3: Hydrocephalus | DU3: Athetosis | DV3: Gait Disorders, Neurologic | DW3: Hemiplegia | DX3: Ocular Motility Disorders | DY3: Hearing Loss, High-Frequency | DZ3: Perceptual Disorders | EA3: Neuritis | EB3: Hematoma, Subdural | EC3: Pituitary Neoplasms | ED3: Microcephaly | EE3: Miosis | EF3: Paresis | EG3: Respiratory Paralysis | EH3: Somnambulism | EI3: Huntington Disease | EJ3: Epilepsy, Absence | EK3: Facial Paralysis | EL3: Hypoxia, Brain | EM3: Epilepsy, Generalized | EN3: Optic Neuropathy, Ischemic | EO3: Cranial Nerve Diseases | EP3: Aphasia | EQ3: Tetany | ER3: Dermatomyositis | ES3: Polyradiculoneuropathy | ET3: Trismus | EU3: Intracranial Embolism and Thrombosis | EV3: Brain Diseases, Metabolic | EW3: Mitochondrial Myopathies | EX3: Torticollis | EY3: Amyotrophic Lateral Sclerosis | EZ3: Dysgeusia | FA3: Reflex, Abnormal | FB3: Muscle Spasticity | FC3: Lethargy | FD3: Spinal Dysraphism | FE3: Tic Disorders | FF3: Tourette Syndrome | FG3: Myalgia | FH3: Eye Injuries | FI3: Polyradiculopathy | FJ3: Stuttering | FK3: Intracranial Hypertension | FL3: Sleep Apnea Syndromes | FM3: Ageusia | FN3: Multiple Sclerosis | FO3: Amblyopia | FP3: Encephalocele | FQ3: Hearing Loss, Sudden | FR3: Hematoma, Epidural, Cranial | FS3: Motor Neuron Disease | FT3: Tics | FU3: Reflex Sympathetic Dystrophy | FV3: Anisocoria | FW3: Myotonia | FX3: Acrodynia | FY3: Sinus Thrombosis, Intracranial | FZ3: Anencephaly | GA3: Horner Syndrome | GB3: Hypokinesia | GC3: Dystonic Disorders | GD3: Hyperesthesia | GE3: Intracranial Thrombosis | GF3: Nervous System Malformations | GG3: Amnesia, Retrograde | GH3: Hemianopsia | GI3: Language Development Disorders | GJ3: Meningoencephalitis | GK3: Spina Bifida Occulta | GL3: Muscle Hypertonia | GM3: Carpal Tunnel Syndrome | GN3: Carotid Artery Diseases | GO3: Gait Ataxia | GP3: Language Disorders | GQ3: Blindness, Cortical | GR3: Spinal Cord Compression | GS3: Strabismus | GT3: Radiculopathy | GU3: Apraxias | GV3: Guillain-Barre Syndrome | GW3: Pituitary Diseases | GX3: Polymyositis | GY3: Pupil Disorders | GZ3: Carotid Artery Thrombosis | HA3: Encephalomalacia | HB3: Epilepsy, Complex Partial | HC3: Hoarseness | HD3: Meningioma | HE3: Nerve Compression Syndromes | HF3: Cerebral Palsy | HG3: Headache Disorders | HH3: Hypertensive Encephalopathy | HI3: Peripheral Nervous System Neoplasms | HJ3: Prolactinoma | HK3: Spinal Cord Injuries | HL3: Stupor | HM3: Akinetic Mutism | HN3: Amnesia, Anterograde | HO3: Creutzfeldt-Jakob Syndrome | HP3: Diabetic Neuropathies | HQ3: Esotropia | HR3: Mutism | HS3: Myelinolysis, Central Pontine | HT3: Nervous System Neoplasms | HU3: Brain Infarction | HV3: Meningeal Neoplasms | HW3: Narcolepsy | HX3: REM Sleep Behavior Disorder | HY3: Sleep Deprivation | HZ3: Cluster Headache | IA3: Dementia, Vascular | IB3: Encephalomyelitis | IC3: Holoprosencephaly | ID3: Intracranial Embolism | IE3: Meningomyelocele | IF3: Myelitis, Transverse | IG3: Photophobia | IH3: Sleep Apnea, Central | II3: Somatosensory Disorders | IJ3: Spinal Cord Neoplasms | IK3: Trigeminal Neuralgia | IL3: Auditory Perceptual Disorders | IM3: Cerebral Arterial Diseases | IN3: Central Nervous System Neoplasms | IO3: Cerebrospinal Fluid Rhinorrhea | IP3: Encephalomyelitis, Autoimmune, Experimental | IQ3: Fatigue Syndrome, Chronic | IR3: Hearing Loss, Noise-Induced | IS3: Hepatolenticular Degeneration | IT3: Seizures, Febrile | IU3: Sleep Bruxism | IV3: Syncope, Vasovagal | IW3: Abducens Nerve Diseases | IX3: Chronobiology Disorders | IY3: Decerebrate State | IZ3: Essential Tremor | JA3: Hearing Loss, Functional | JB3: Kernicterus | JC3: Neurogenic Inflammation | JD3: Paraparesis | JE3: Amnesia, Transient Global | JF3: Aphasia, Broca | JG3: Giant Cell Arteritis | JH3: Infarction, Middle Cerebral Artery | JI3: Meige Syndrome | JJ3: Sciatic Neuropathy | JK3: Urinary Bladder, Neurogenic | JL3: Cataplexy | JM3: Intracranial Hemorrhage, Traumatic | JN3: Leukomalacia, Periventricular | JO3: Meningocele | JP3: Sleep Apnea, Obstructive | JQ3: Spasms, Infantile | JR3: Down Syndrome | JS3: Dyssomnias | JT3: Headache Disorders, Secondary | JU3: Hearing Loss, Central | JV3: Hearing Loss, Conductive | JW3: Hypokalemic Periodic Paralysis | JX3: Meningism | JY3: Parasomnias | JZ3: Tardive Dyskinesia | KA3: Alcohol-Induced Disorders, Nervous System | KB3: Bulbar Palsy, Progressive | KC3: Facial Injuries | KD3: Facial Nerve Diseases | KE3: Fibromyalgia | KF3: Hypopituitarism | KG3: Migraine without Aura | KH3: Oculomotor Nerve Diseases | KI3: Pituitary Apoplexy | KJ3: Subacute Combined Degeneration | KK3: Aphonia | KL3: Muscular Atrophy, Spinal | KM3: Nocturnal Myoclonus Syndrome | KN3: Peripheral Nerve Injuries | KO3: Persistent Vegetative State | KP3: Agnosia | KQ3: Carotid Artery, Internal, Dissection | KR3: Dystonia Musculorum Deformans | KS3: Hypoxia-Ischemia, Brain | KT3: Migraine with Aura | KU3: Night Terrors | KV3: Putaminal Hemorrhage | KW3: Sleep Disorders, Circadian Rhythm | KX3: Alcohol Withdrawal Seizures | KY3: Brain Stem Infarctions | KZ3: Causalgia | LA3: Emergence Delirium | LB3: Exotropia | LC3: Hematoma, Subdural, Acute | LD3: Hypothalamic Diseases | LE3: Meningitis, Cryptococcal | LF3: Mitochondrial Encephalomyopathies | LG3: Muscular Dystrophies | LH3: Myotonic Dystrophy | LI3: Striatonigral Degeneration | LJ3: Arnold-Chiari Malformation | LK3: Carotid Stenosis | LL3: Charcot-Marie-Tooth Disease | LM3: Corneal Injuries | LN3: Corneal Perforation | LO3: Dysautonomia, Familial | LP3: Eosinophilia-Myalgia Syndrome | LQ3: Epilepsy, Reflex | LR3: Femoral Neuropathy | LS3: Insulin Coma | LT3: Intracranial Aneurysm | LU3: Intracranial Hemorrhage, Hypertensive | LV3: Intracranial Hypotension | LW3: Mononeuropathies | LX3: Multiple System Atrophy | LY3: Neurologic Manifestations | LZ3: Rett Syndrome | MA3: Spina Bifida Cystica | MB3: Tauopathies | MC3: Thalamic Diseases | MD3: Uveomeningoencephalitic Syndrome | ME3: Articulation Disorders | MF3: Bell Palsy | MG3: Brain Abscess | MH3: Facial Nerve Injuries | MI3: Headache Disorders, Primary | MJ3: Hyperglycinemia, Nonketotic | MK3: Intracranial Arteriosclerosis | ML3: Mandibular Fractures | MM3: Median Neuropathy | MN3: Mobius Syndrome | MO3: Paralyses, Familial Periodic | MP3: Sagittal Sinus Thrombosis | MQ3: Sarcopenia | MR3: Supranuclear Palsy, Progressive | MS3: Syringomyelia | MT3: Trigeminal Nerve Diseases | MU3: Acute Febrile Encephalopathy | MV3: Alcoholic Neuropathy | MW3: Amaurosis Fugax | MX3: Anomia | MY3: Autoimmune Diseases of the Nervous System | MZ3: Brachial Plexus Neuritis | NA3: Cranial Nerve Injuries | NB3: Cranial Nerve Neoplasms | NC3: Dandy-Walker Syndrome | ND3: Duane Retraction Syndrome | NE3: Empty Sella Syndrome | NF3: Encephalitis, Herpes Simplex | NG3: Encephalomyelitis, Acute Disseminated | NH3: Epilepsy, Frontal Lobe | NI3: Hearing Loss, Unilateral | NJ3: Hematoma, Subdural, Intracranial | NK3: Homocystinuria | NL3: Hydrocephalus, Normal Pressure | NM3: Leigh Disease | NN3: Leukoencephalitis, Acute Hemorrhagic | NO3: Myokymia | NP3: Neurofibroma | NQ3: Neuromyelitis Optica | NR3: Optic Atrophy, Hereditary, Leber | NS3: Paraparesis, Spastic | NT3: Paraparesis, Tropical Spastic | NU3: Paroxysmal Hemicrania | NV3: Phantom Limb | NW3: Presbycusis | NX3: Sciatica | NY3: Spinal Cord Ischemia | NZ3: Spinocerebellar Degenerations | OA3: Vagus Nerve Diseases | OB3: AIDS Dementia Complex | OC3: Alcohol Amnestic Disorder | OD3: Auditory Diseases, Central | OE3: Basal Ganglia Cerebrovascular Disease | OF3: Basal Ganglia Hemorrhage | OG3: Brachial Plexus Neuropathies | OH3: Deaf-Blind Disorders | OI3: Diffuse Cerebral Sclerosis of Schilder | OJ3: Dysphonia | OK3: Echolalia | OL3: Encephalitis, Viral | OM3: Epilepsy, Partial, Motor | ON3: Facial Neuralgia | OO3: Galactosemias | OP3: Hematoma, Subdural, Chronic | OQ3: Hydranencephaly | OR3: Hyperacusis | OS3: Lesch-Nyhan Syndrome | OT3: Malformations of Cortical Development | OU3: Myoclonic Epilepsy, Juvenile | OV3: Orbital Myositis | OW3: Polyradiculoneuropathy, Chronic Inflammatory Demyelinating | OX3: Spinal Cord Vascular Diseases | OY3: Subdural Effusion | OZ3: Trauma, Nervous System | PA3: Ulnar Neuropathies | PB3: Agraphia | PC3: Alcohol Withdrawal Delirium | PD3: Alice in Wonderland Syndrome | PE3: Anterior Spinal Artery Syndrome | PF3: Apraxia, Ideomotor | PG3: Arachnoid Cysts | PH3: Botulism | PI3: Canavan Disease | PJ3: Cavernous Sinus Thrombosis | PK3: Central Nervous System Protozoal Infections | PL3: Cerebellar Neoplasms | PM3: Cerebrospinal Fluid Otorrhea | PN3: Dyskinesia, Drug-Induced | PO3: Encephalitis, Varicella Zoster | PP3: Epilepsy, Rolandic | PQ3: Eye Injuries, Penetrating | PR3: High Pressure Neurological Syndrome | PS3: Illusions | PT3: Infarction, Anterior Cerebral Artery | PU3: Infectious Encephalitis | PV3: Isaacs Syndrome | PW3: Kearns-Sayre Syndrome | PX3: Korsakoff Syndrome | PY3: Lambert-Eaton Myasthenic Syndrome | PZ3: Meningitis, Bacterial | QA3: Meningitis, Meningococcal | QB3: Microscopic Polyangiitis | QC3: Multiple Sclerosis, Relapsing-Remitting | QD3: Myasthenic Syndromes, Congenital | QE3: Myotonic Disorders | QF3: Neuralgia, Postherpetic | QG3: Neuroma, Acoustic | QH3: Nystagmus, Congenital | QI3: Opsoclonus-Myoclonus Syndrome | QJ3: Optic Nerve Injuries | QK3: Orthostatic Intolerance | QL3: Paraneoplastic Polyneuropathy | QM3: Peroneal Neuropathies | QN3: Pituitary ACTH Hypersecretion | QO3: Primary Dysautonomias | QP3: Prion Diseases | QQ3: Sleep Arousal Disorders | QR3: SUNCT Syndrome | QS3: Tension-Type Headache | QT3: Tibial Neuropathy | QU3: Tuberculosis, Meningeal | QV3: Acromegaly | QW3: Alexander Disease | QX3: Alexia, Pure | QY3: Anti-N-Methyl-D-Aspartate Receptor Encephalitis | QZ3: Aphasia, Wernicke | RA3: Bilateral Vestibulopathy | RB3: Brown-Sequard Syndrome | RC3: Carotid Artery Injuries | RD3: Central Nervous System Cysts | RE3: Central Nervous System Infections | RF3: Central Nervous System Vascular Malformations | RG3: Cerebral Amyloid Angiopathy | RH3: Cerebrospinal Fluid Leak | RI3: Cogan Syndrome | RJ3: Communication Disorders | RK3: Complex Regional Pain Syndromes | RL3: Dyslexia | RM3: Epidural Neoplasms | RN3: Epilepsia Partialis Continua | RO3: Epilepsy, Benign Neonatal | RP3: Esthesioneuroblastoma, Olfactory | RQ3: Fabry Disease | RR3: Facial Hemiatrophy | RS3: Gangliosidoses | RT3: Gerstmann Syndrome | RU3: Hemangioma, Cavernous, Central Nervous System | RV3: Hemifacial Spasm | RW3: Hereditary Sensory and Autonomic Neuropathies | RX3: Hereditary Sensory and Motor Neuropathy | RY3: Heredodegenerative Disorders, Nervous System | RZ3: Intracranial Arterial Diseases | SA3: Intracranial Arteriovenous Malformations | SB3: Kluver-Bucy Syndrome | SC3: Lateral Medullary Syndrome | SD3: Lennox Gastaut Syndrome | SE3: Lewy Body Disease | SF3: Limbic Encephalitis | SG3: Megalencephaly | SH3: MELAS Syndrome | SI3: Meningeal Carcinomatosis | SJ3: Meningitis, Pneumococcal | SK3: Menkes Kinky Hair Syndrome | SL3: Mevalonate Kinase Deficiency | SM3: Miller Fisher Syndrome | SN3: Muscular Disorders, Atrophic | SO3: Muscular Dystrophy, Facioscapulohumeral | SP3: Myoclonic Cerebellar Dyssynergia | SQ3: Myopathies, Nemaline | SR3: Myositis, Inclusion Body | SS3: Myotonia Congenita | ST3: Nerve Sheath Neoplasms | SU3: Neuroaspergillosis | SV3: Neurofibromatosis 1 | SW3: Neuromuscular Junction Diseases | SX3: Niemann-Pick Diseases | SY3: Olivopontocerebellar Atrophies | SZ3: Ophthalmoplegia, Chronic Progressive External | TA3: Optic Atrophies, Hereditary | TB3: Optic Disk Drusen | TC3: Paralysis, Hyperkalemic Periodic | TD3: Phenylketonurias | TE3: Piriformis Muscle Syndrome | TF3: Postural Orthostatic Tachycardia Syndrome | TG3: Prosopagnosia | TH3: Pseudobulbar Palsy | TI3: Pudendal Neuralgia | TJ3: Pyomyositis | TK3: Radial Neuropathy | TL3: REM Sleep Parasomnias | TM3: Sleep-Wake Transition Disorders | TN3: Small Fiber Neuropathy | TO3: Sphingolipidoses | TP3: Spinocerebellar Ataxias | TQ3: Stiff-Person Syndrome | TR3: Subacute Sclerosing Panencephalitis | TS3: Subarachnoid Hemorrhage, Traumatic | TT3: Subclavian Steal Syndrome | TU3: Sweating, Gustatory | TV3: Tuberculosis, Central Nervous System | TW3: Tuberous Sclerosis | TX3: Ulnar Nerve Compression Syndromes | TY3: Demyelinating Autoimmune Diseases, CNS | TZ3: Vascular Headaches | UA3: Vasculitis, Central Nervous System | UB3: Vasospasm, Intracranial | UC3: Vertebral Artery Dissection | UD3: Vertebrobasilar Insufficiency | UE3: Vertigo | UF3: Vestibular Neuronitis | UG3: Vestibulocochlear Nerve Diseases | UH3: Vestibulocochlear Nerve Injuries | UI3: Vision Disorders | UJ3: Vision, Low | UK3: Vocal Cord Paralysis | UL3: Voice Disorders | UM3: Waterhouse-Friderichsen Syndrome | UN3: Wernicke Encephalopathy | UO3: Williams Syndrome
A4: =HYPERLINK("https://meshb.nlm.nih.gov/record/ui?ui=" & B4,C4) -> Cisplatin | B4: D002945 | C4: Cisplatin | D4: 15663-27-1 | E4: =HYPERLINK("https://comptox.epa.gov/dashboard/dsstoxdb/results?utf8=%E2%9C%93&search=" & F4,F4) -> DTXSID4024983 | F4: DTXSID4024983 | G4: =SUM(H4:UO4) -> 1032 | H4: 20 | I4: 47 | J4: 140 | K4: 13 | L4: 0 | M4: 4 | N4: 1 | O4: 1 | P4: 0 | Q4: 1 | R4: 2 | S4: 4 | T4: 0 | U4: 0 | V4: 18 | W4: 1 | X4: 0 | Y4: 1 | Z4: 1 | AA4: 231 | AB4: 3 | AC4: 1 | AD4: 2 | AE4: 1 | AF4: 15 | AG4: 2 | AH4: 0 | AI4: 77 | AJ4: 5 | AK4: 14 | AL4: 106 | AM4: 7 | AN4: 1 | AO4: 0 | AP4: 0 | AQ4: 1 | AR4: 2 | AS4: 0 | AT4: 17 | AU4: 29 | AV4: 0 | AW4: 1 | AX4: 2 | AY4: 6 | AZ4: 0 | BA4: 1 | BB4: 3 | BC4: 1 | BD4: 0 | BE4: 0 | BF4: 0 | BG4: 3 | BH4: 5 | BI4: 0 | BJ4: 0 | BK4: 6 | BL4: 0 | BM4: 0 | BN4: 33 | BO4: 0 | BP4: 0 | BQ4: 3 | BR4: 0 | BS4: 0 | BT4: 1 | BU4: 8 | BV4: 0 | BW4: 0 | BX4: 0 | BY4: 0 | BZ4: 0 | CA4: 3 | CB4: 0 | CC4: 7 | CD4: 0 | CE4: 0 | CF4: 0 | CG4: 10 | CH4: 0 | CI4: 0 | CJ4: 1 | CK4: 4 | CL4: 0 | CM4: 2 | CN4: 0 | CO4: 0 | CP4: 0 | CQ4: 1 | CR4: 3 | CS4: 0 | CT4: 0 | CU4: 0 | CV4: 1 | CW4: 0 | CX4: 1 | CY4: 0 | CZ4: 1 | DA4: 0 | DB4: 0 | DC4: 0 | DD4: 3 | DE4: 3 | DF4: 1 | DG4: 1 | DH4: 0 | DI4: 0 | DJ4: 0 | DK4: 0 | DL4: 3 | DM4: 2 | DN4: 0 | DO4: 27 | DP4: 0 | DQ4: 2 | DR4: 2 | DS4: 0 | DT4: 1 | DU4: 0 | DV4: 0 | DW4: 0 | DX4: 1 | DY4: 44 | DZ4: 0 | EA4: 1 | EB4: 0 | EC4: 0 | ED4: 0 | EE4: 0 | EF4: 2 | EG4: 0 | EH4: 0 | EI4: 0 | EJ4: 1 | EK4: 1 | EL4: 0 | EM4: 1 | EN4: 0 | EO4: 2 | EP4: 1 | EQ4: 4 | ER4: 0 | ES4: 1 | ET4: 1 | EU4: 1 | EV4: 0 | EW4: 0 | EX4: 0 | EY4: 0 | EZ4: 0 | FA4: 0 | FB4: 0 | FC4: 0 | FD4: 0 | FE4: 0 | FF4: 0 | FG4: 0 | FH4: 0 | FI4: 1 | FJ4: 0 | FK4: 0 | FL4: 0 | FM4: 0 | FN4: 0 | FO4: 0 | FP4: 1 | FQ4: 2 | FR4: 0 | FS4: 1 | FT4: 0 | FU4: 0 | FV4: 0 | FW4: 0 | FX4: 0 | FY4: 2 | FZ4: 0 | GA4: 0 | GB4: 0 | GC4: 0 | GD4: 0 | GE4: 0 | GF4: 0 | GG4: 0 | GH4: 1 | GI4: 0 | GJ4: 0 | GK4: 0 | GL4: 0 | GM4: 0 | GN4: 1 | GO4: 0 | GP4: 1 | GQ4: 2 | GR4: 0 | GS4: 0 | GT4: 2 | GU4: 0 | GV4: 0 | GW4: 1 | GX4: 0 | GY4: 1 | GZ4: 2 | HA4: 0 | HB4: 1 | HC4: 0 | HD4: 0 | HE4: 0 | HF4: 0 | HG4: 0 | HH4: 1 | HI4: 0 | HJ4: 0 | HK4: 0 | HL4: 0 | HM4: 0 | HN4: 0 | HO4: 0 | HP4: 0 | HQ4: 0 | HR4: 0 | HS4: 0 | HT4: 0 | HU4: 1 | HV4: 0 | HW4: 0 | HX4: 0 | HY4: 0 | HZ4: 0 | IA4: 0 | IB4: 0 | IC4: 0 | ID4: 0 | IE4: 0 | IF4: 0 | IG4: 0 | IH4: 0 | II4: 0 | IJ4: 0 | IK4: 0 | IL4: 0 | IM4: 0 | IN4: 0 | IO4: 0 | IP4: 0 | IQ4: 0 | IR4: 2 | IS4: 0 | IT4: 0 | IU4: 0 | IV4: 0 | IW4: 0 | IX4: 0 | IY4: 0 | IZ4: 0 | JA4: 5 | JB4: 0 | JC4: 0 | JD4: 0 | JE4: 0 | JF4: 0 | JG4: 0 | JH4: 1 | JI4: 0 | JJ4: 0 | JK4: 0 | JL4: 0 | JM4: 0 | JN4: 0 | JO4: 0 | JP4: 0 | JQ4: 0 | JR4: 0 | JS4: 0 | JT4: 0 | JU4: 2 | JV4: 3 | JW4: 1 | JX4: 0 | JY4: 0 | JZ4: 0 | KA4: 0 | KB4: 0 | KC4: 0 | KD4: 0 | KE4: 0 | KF4: 0 | KG4: 0 | KH4: 1 | KI4: 0 | KJ4: 0 | KK4: 0 | KL4: 0 | KM4: 0 | KN4: 0 | KO4: 0 | KP4: 1 | KQ4: 1 | KR4: 0 | KS4: 0 | KT4: 0 | KU4: 0 | KV4: 0 | KW4: 0 | KX4: 0 | KY4: 0 | KZ4: 0 | LA4: 0 | LB4: 0 | LC4: 0 | LD4: 0 | LE4: 0 | LF4: 0 | LG4: 0 | LH4: 0 | LI4: 0 | LJ4: 0 | LK4: 1 | LL4: 1 | LM4: 0 | LN4: 0 | LO4: 0 | LP4: 0 | LQ4: 0 | LR4: 0 | LS4: 0 | LT4: 0 | LU4: 0 | LV4: 0 | LW4: 1 | LX4: 0 | LY4: 0 | LZ4: 0 | MA4: 0 | MB4: 0 | MC4: 0 | MD4: 0 | ME4: 0 | MF4: 0 | MG4: 0 | MH4: 0 | MI4: 0 | MJ4: 0 | MK4: 0 | ML4: 0 | MM4: 0 | MN4: 0 | MO4: 0 | MP4: 0 | MQ4: 0 | MR4: 0 | MS4: 0 | MT4: 0 | MU4: 0 | MV4: 0 | MW4: 0 | MX4: 0 | MY4: 0 | MZ4: 0 | NA4: 0 | NB4: 0 | NC4: 0 | ND4: 0 | NE4: 0 | NF4: 0 | NG4: 0 | NH4: 0 | NI4: 0 | NJ4: 0 | NK4: 0 | NL4: 0 | NM4: 0 | NN4: 0 | NO4: 0 | NP4: 0 | NQ4: 0 | NR4: 0 | NS4: 0 | NT4: 0 | NU4: 0 | NV4: 0 | NW4: 0 | NX4: 0 | NY4: 0 | NZ4: 0 | OA4: 0 | OB4: 0 | OC4: 0 | OD4: 0 | OE4: 0 | OF4: 0 | OG4: 1 | OH4: 0 | OI4: 0 | OJ4: 0 | OK4: 0 | OL4: 0 | OM4: 0 | ON4: 0 | OO4: 0 | OP4: 0 | OQ4: 0 | OR4: 0 | OS4: 0 | OT4: 0 | OU4: 0 | OV4: 0 | OW4: 0 | OX4: 0 | OY4: 0 | OZ4: 0 | PA4: 0 | PB4: 0 | PC4: 0 | PD4: 0 | PE4: 0 | PF4: 0 | PG4: 0 | PH4: 0 | PI4: 0 | PJ4: 0 | PK4: 0 | PL4: 0 | PM4: 0 | PN4: 0 | PO4: 0 | PP4: 0 | PQ4: 0 | PR4: 0 | PS4: 0 | PT4: 0 | PU4: 0 | PV4: 0 | PW4: 0 | PX4: 0 | PY4: 0 | PZ4: 0 | QA4: 0 | QB4: 0 | QC4: 0 | QD4: 0 | QE4: 0 | QF4: 0 | QG4: 0 | QH4: 0 | QI4: 0 | QJ4: 0 | QK4: 0 | QL4: 0 | QM4: 0 | QN4: 0 | QO4: 0 | QP4: 0 | QQ4: 0 | QR4: 0 | QS4: 0 | QT4: 0 | QU4: 0 | QV4: 0 | QW4: 0 | QX4: 0 | QY4: 0 | QZ4: 0 | RA4: 0 | RB4: 0 | RC4: 0 | RD4: 0 | RE4: 0 | RF4: 0 | RG4: 0 | RH4: 0 | RI4: 0 | RJ4: 0 | RK4: 0 | RL4: 0 | RM4: 0 | RN4: 0 | RO4: 0 | RP4: 0 | RQ4: 0 | RR4: 0 | RS4: 0 | RT4: 0 | RU4: 0 | RV4: 0 | RW4: 0 | RX4: 0 | RY4: 0 | RZ4: 0 | SA4: 0 | SB4: 0 | SC4: 0 | SD4: 0 | SE4: 0 | SF4: 0 | SG4: 0 | SH4: 0 | SI4: 0 | SJ4: 0 | SK4: 0 | SL4: 0 | SM4: 0 | SN4: 0 | SO4: 0 | SP4: 0 | SQ4: 0 | SR4: 0 | SS4: 0 | ST4: 0 | SU4: 0 | SV4: 0 | SW4: 0 | SX4: 0 | SY4: 0 | SZ4: 0 | TA4: 0 | TB4: 0 | TC4: 0 | TD4: 0 | TE4: 0 | TF4: 0 | TG4: 0 | TH4: 0 | TI4: 0 | TJ4: 0 | TK4: 0 | TL4: 0 | TM4: 0 | TN4: 0 | TO4: 0 | TP4: 0 | TQ4: 0 | TR4: 0 | TS4: 0 | TT4: 0 | TU4: 1 | TV4: 0 | TW4: 0 | TX4: 0 | TY4: 0 | TZ4: 0 | UA4: 0 | UB4: 0 | UC4: 0 | UD4: 0 | UE4: 0 | UF4: 0 | UG4: 0 | UH4: 0 | UI4: 7 | UJ4: 0 | UK4: 1 | UL4: 0 | UM4: 0 | UN4: 0 | UO4: 0
A5: =HYPERLINK("https://meshb.nlm.nih.gov/record/ui?ui=" & B5,C5) -> Ethanol | B5: D000431 | C5: Ethanol | D5: 64-17-5 | E5: =HYPERLINK("https://comptox.epa.gov/dashboard/dsstoxdb/results?utf8=%E2%9C%93&search=" & F5,F5) -> DTXSID9020584 | F5: DTXSID9020584 | G5: =SUM(H5:UO5) -> 768 | H5: 100 | I5: 23 | J5: 11 | K5: 18 | L5: 26 | M5: 1 | N5: 3 | O5: 20 | P5: 6 | Q5: 17 | R5: 54 | S5: 2 | T5: 6 | U5: 4 | V5: 2 | W5: 2 | X5: 2 | Y5: 44 | Z5: 12 | AA5: 3 | AB5: 2 | AC5: 5 | AD5: 1 | AE5: 10 | AF5: 5 | AG5: 3 | AH5: 1 | AI5: 2 | AJ5: 6 | AK5: 3 | AL5: 1 | AM5: 1 | AN5: 3 | AO5: 3 | AP5: 4 | AQ5: 5 | AR5: 3 | AS5: 1 | AT5: 0 | AU5: 1 | AV5: 0 | AW5: 14 | AX5: 1 | AY5: 4 | AZ5: 2 | BA5: 3 | BB5: 1 | BC5: 3 | BD5: 18 | BE5: 17 | BF5: 11 | BG5: 7 | BH5: 8 | BI5: 2 | BJ5: 1 | BK5: 1 | BL5: 6 | BM5: 0 | BN5: 0 | BO5: 2 | BP5: 8 | BQ5: 5 | BR5: 1 | BS5: 0 | BT5: 5 | BU5: 4 | BV5: 15 | BW5: 0 | BX5: 9 | BY5: 12 | BZ5: 4 | CA5: 2 | CB5: 0 | CC5: 2 | CD5: 0 | CE5: 3 | CF5: 1 | CG5: 2 | CH5: 4 | CI5: 0 | CJ5: 7 | CK5: 5 | CL5: 1 | CM5: 0 | CN5: 1 | CO5: 0 | CP5: 3 | CQ5: 1 | CR5: 2 | CS5: 0 | CT5: 0 | CU5: 1 | CV5: 0 | CW5: 1 | CX5: 1 | CY5: 0 | CZ5: 0 | DA5: 1 | DB5: 0 | DC5: 0 | DD5: 0 | DE5: 0 | DF5: 0 | DG5: 3 | DH5: 0 | DI5: 3 | DJ5: 1 | DK5: 0 | DL5: 0 | DM5: 0 | DN5: 0 | DO5: 0 | DP5: 1 | DQ5: 0 | DR5: 4 | DS5: 4 | DT5: 0 | DU5: 0 | DV5: 2 | DW5: 0 | DX5: 1 | DY5: 0 | DZ5: 1 | EA5: 0 | EB5: 0 | EC5: 2 | ED5: 8 | EE5: 1 | EF5: 0 | EG5: 0 | EH5: 2 | EI5: 0 | EJ5: 0 | EK5: 4 | EL5: 1 | EM5: 0 | EN5: 0 | EO5: 0 | EP5: 0 | EQ5: 0 | ER5: 0 | ES5: 0 | ET5: 2 | EU5: 1 | EV5: 2 | EW5: 0 | EX5: 0 | EY5: 0 | EZ5: 0 | FA5: 0 | FB5: 0 | FC5: 0 | FD5: 1 | FE5: 0 | FF5: 2 | FG5: 0 | FH5: 1 | FI5: 1 | FJ5: 0 | FK5: 0 | FL5: 6 | FM5: 0 | FN5: 0 | FO5: 1 | FP5: 0 | FQ5: 0 | FR5: 0 | FS5: 1 | FT5: 0 | FU5: 0 | FV5: 0 | FW5: 0 | FX5: 1 | FY5: 0 | FZ5: 1 | GA5: 1 | GB5: 0 | GC5: 0 | GD5: 0 | GE5: 0 | GF5: 3 | GG5: 2 | GH5: 0 | GI5: 2 | GJ5: 0 | GK5: 0 | GL5: 0 | GM5: 0 | GN5: 0 | GO5: 3 | GP5: 0 | GQ5: 0 | GR5: 0 | GS5: 0 | GT5: 0 | GU5: 1 | GV5: 0 | GW5: 2 | GX5: 0 | GY5: 0 | GZ5: 0 | HA5: 0 | HB5: 1 | HC5: 0 | HD5: 0 | HE5: 0 | HF5: 0 | HG5: 0 | HH5: 0 | HI5: 0 | HJ5: 3 | HK5: 0 | HL5: 2 | HM5: 0 | HN5: 1 | HO5: 0 | HP5: 0 | HQ5: 0 | HR5: 0 | HS5: 1 | HT5: 0 | HU5: 0 | HV5: 0 | HW5: 0 | HX5: 0 | HY5: 2 | HZ5: 1 | IA5: 0 | IB5: 0 | IC5: 7 | ID5: 0 | IE5: 0 | IF5: 0 | IG5: 0 | IH5: 0 | II5: 0 | IJ5: 0 | IK5: 0 | IL5: 0 | IM5: 0 | IN5: 0 | IO5: 1 | IP5: 0 | IQ5: 0 | IR5: 0 | IS5: 0 | IT5: 0 | IU5: 0 | IV5: 0 | IW5: 0 | IX5: 4 | IY5: 0 | IZ5: 2 | JA5: 0 | JB5: 0 | JC5: 0 | JD5: 0 | JE5: 0 | JF5: 0 | JG5: 0 | JH5: 0 | JI5: 0 | JJ5: 0 | JK5: 0 | JL5: 0 | JM5: 0 | JN5: 0 | JO5: 0 | JP5: 0 | JQ5: 0 | JR5: 0 | JS5: 1 | JT5: 0 | JU5: 0 | JV5: 0 | JW5: 0 | JX5: 0 | JY5: 1 | JZ5: 0 | KA5: 9 | KB5: 0 | KC5: 0 | KD5: 1 | KE5: 0 | KF5: 0 | KG5: 0 | KH5: 0 | KI5: 0 | KJ5: 0 | KK5: 1 | KL5: 0 | KM5: 0 | KN5: 0 | KO5: 0 | KP5: 0 | KQ5: 0 | KR5: 0 | KS5: 0 | KT5: 0 | KU5: 0 | KV5: 0 | KW5: 0 | KX5: 7 | KY5: 0 | KZ5: 0 | LA5: 0 | LB5: 1 | LC5: 0 | LD5: 1 | LE5: 0 | LF5: 1 | LG5: 0 | LH5: 0 | LI5: 0 | LJ5: 0 | LK5: 0 | LL5: 0 | LM5: 0 | LN5: 0 | LO5: 0 | LP5: 0 | LQ5: 2 | LR5: 0 | LS5: 0 | LT5: 0 | LU5: 0 | LV5: 0 | LW5: 0 | LX5: 0 | LY5: 0 | LZ5: 0 | MA5: 0 | MB5: 0 | MC5: 1 | MD5: 0 | ME5: 0 | MF5: 0 | MG5: 0 | MH5: 1 | MI5: 0 | MJ5: 0 | MK5: 0 | ML5: 0 | MM5: 0 | MN5: 0 | MO5: 0 | MP5: 0 | MQ5: 0 | MR5: 0 | MS5: 0 | MT5: 0 | MU5: 0 | MV5: 3 | MW5: 0 | MX5: 0 | MY5: 0 | MZ5: 0 | NA5: 0 | NB5: 0 | NC5: 0 | ND5: 0 | NE5: 0 | NF5: 0 | NG5: 0 | NH5: 0 | NI5: 0 | NJ5: 0 | NK5: 1 | NL5: 0 | NM5: 0 | NN5: 0 | NO5: 0 | NP5: 0 | NQ5: 0 | NR5: 1 | NS5: 0 | NT5: 0 | NU5: 0 | NV5: 0 | NW5: 0 | NX5: 0 | NY5: 0 | NZ5: 0 | OA5: 0 | OB5: 0 | OC5: 1 | OD5: 0 | OE5: 0 | OF5: 0 | OG5: 0 | OH5: 0 | OI5: 0 | OJ5: 0 | OK5: 0 | OL5: 0 | OM5: 0 | ON5: 0 | OO5: 0 | OP5: 0 | OQ5: 0 | OR5: 0 | OS5: 0 | OT5: 0 | OU5: 0 | OV5: 0 | OW5: 0 | OX5: 0 | OY5: 0 | OZ5: 1 | PA5: 0 | PB5: 0 | PC5: 1 | PD5: 0 | PE5: 0 | PF5: 0 | PG5: 0 | PH5: 0 | PI5: 0 | PJ5: 0 | PK5: 0 | PL5: 0 | PM5: 0 | PN5: 0 | PO5: 0 | PP5: 0 | PQ5: 0 | PR5: 0 | PS5: 0 | PT5: 0 | PU5: 0 | PV5: 0 | PW5: 0 | PX5: 2 | PY5: 0 | PZ5: 0 | QA5: 0 | QB5: 0 | QC5: 0 | QD5: 0 | QE5: 0 | QF5: 0 | QG5: 0 | QH5: 0 | QI5: 0 | QJ5: 0 | QK5: 0 | QL5: 0 | QM5: 0 | QN5: 0 | QO5: 0 | QP5: 0 | QQ5: 0 | QR5: 0 | QS5: 0 | QT5: 0 | QU5: 0 | QV5: 0 | QW5: 0 | QX5: 0 | QY5: 0 | QZ5: 0 | RA5: 0 | RB5: 1 | RC5: 0 | RD5: 0 | RE5: 0 | RF5: 0 | RG5: 0 | RH5: 0 | RI5: 0 | RJ5: 0 | RK5: 0 | RL5: 0 | RM5: 0 | RN5: 0 | RO5: 0 | RP5: 0 | RQ5: 0 | RR5: 0 | RS5: 0 | RT5: 0 | RU5: 0 | RV5: 0 | RW5: 0 | RX5: 0 | RY5: 0 | RZ5: 0 | SA5: 0 | SB5: 0 | SC5: 0 | SD5: 0 | SE5: 0 | SF5: 0 | SG5: 0 | SH5: 0 | SI5: 0 | SJ5: 0 | SK5: 0 | SL5: 0 | SM5: 0 | SN5: 0 | SO5: 0 | SP5: 0 | SQ5: 0 | SR5: 0 | SS5: 0 | ST5: 0 | SU5: 0 | SV5: 0 | SW5: 0 | SX5: 0 | SY5: 0 | SZ5: 0 | TA5: 0 | TB5: 0 | TC5: 0 | TD5: 0 | TE5: 0 | TF5: 0 | TG5: 0 | TH5: 0 | TI5: 0 | TJ5: 0 | TK5: 0 | TL5: 0 | TM5: 0 | TN5: 0 | TO5: 0 | TP5: 0 | TQ5: 0 | TR5: 0 | TS5: 0 | TT5: 0 | TU5: 0 | TV5: 0 | TW5: 0 | TX5: 0 | TY5: 0 | TZ5: 0 | UA5: 0 | UB5: 0 | UC5: 0 | UD5: 0 | UE5: 2 | UF5: 0 | UG5: 0 | UH5: 0 | UI5: 6 | UJ5: 0 | UK5: 0 | UL5: 2 | UM5: 0 | UN5: 5 | UO5: 0
A6: =HYPERLINK("https://meshb.nlm.nih.gov/record/ui?ui=" & B6,C6) -> Lead | B6: D007854 | C6: Lead | D6: 7439-92-1 | E6: =HYPERLINK("https://comptox.epa.gov/dashboard/dsstoxdb/results?utf8=%E2%9C%93&search=" & F6,F6) -> DTXSID2024161 | F6: DTXSID2024161 | G6: =SUM(H6:UO6) -> 740 | H6: 28 | I6: 107 | J6: 68 | K6: 102 | L6: 4 | M6: 2 | N6: 2 | O6: 1 | P6: 3 | Q6: 4 | R6: 19 | S6: 30 | T6: 2 | U6: 6 | V6: 2 | W6: 0 | X6: 1 | Y6: 6 | Z6: 2 | AA6: 4 | AB6: 8 | AC6: 2 | AD6: 0 | AE6: 0 | AF6: 0 | AG6: 2 | AH6: 1 | AI6: 4 | AJ6: 0 | AK6: 6 | AL6: 4 | AM6: 13 | AN6: 2 | AO6: 0 | AP6: 0 | AQ6: 14 | AR6: 0 | AS6: 1 | AT6: 0 | AU6: 1 | AV6: 0 | AW6: 0 | AX6: 12 | AY6: 4 | AZ6: 7 | BA6: 0 | BB6: 9 | BC6: 0 | BD6: 37 | BE6: 20 | BF6: 3 | BG6: 2 | BH6: 5 | BI6: 0 | BJ6: 0 | BK6: 2 | BL6: 7 | BM6: 0 | BN6: 0 | BO6: 0 | BP6: 9 | BQ6: 1 | BR6: 1 | BS6: 1 | BT6: 1 | BU6: 0 | BV6: 5 | BW6: 0 | BX6: 6 | BY6: 6 | BZ6: 0 | CA6: 0 | CB6: 0 | CC6: 1 | CD6: 0 | CE6: 1 | CF6: 8 | CG6: 0 | CH6: 0 | CI6: 0 | CJ6: 6 | CK6: 4 | CL6: 1 | CM6: 1 | CN6: 1 | CO6: 3 | CP6: 0 | CQ6: 1 | CR6: 0 | CS6: 0 | CT6: 0 | CU6: 1 | CV6: 1 | CW6: 1 | CX6: 0 | CY6: 0 | CZ6: 1 | DA6: 0 | DB6: 1 | DC6: 1 | DD6: 0 | DE6: 0 | DF6: 0 | DG6: 1 | DH6: 0 | DI6: 0 | DJ6: 0 | DK6: 0 | DL6: 2 | DM6: 1 | DN6: 0 | DO6: 1 | DP6: 0 | DQ6: 0 | DR6: 0 | DS6: 42 | DT6: 1 | DU6: 1 | DV6: 0 | DW6: 0 | DX6: 1 | DY6: 0 | DZ6: 2 | EA6: 1 | EB6: 0 | EC6: 0 | ED6: 0 | EE6: 0 | EF6: 0 | EG6: 1 | EH6: 0 | EI6: 0 | EJ6: 1 | EK6: 0 | EL6: 0 | EM6: 0 | EN6: 0 | EO6: 0 | EP6: 0 | EQ6: 0 | ER6: 0 | ES6: 0 | ET6: 0 | EU6: 0 | EV6: 0 | EW6: 0 | EX6: 0 | EY6: 13 | EZ6: 0 | FA6: 1 | FB6: 0 | FC6: 0 | FD6: 0 | FE6: 0 | FF6: 0 | FG6: 0 | FH6: 0 | FI6: 0 | FJ6: 0 | FK6: 1 | FL6: 0 | FM6: 0 | FN6: 4 | FO6: 1 | FP6: 1 | FQ6: 0 | FR6: 0 | FS6: 3 | FT6: 0 | FU6: 0 | FV6: 0 | FW6: 0 | FX6: 1 | FY6: 1 | FZ6: 0 | GA6: 0 | GB6: 0 | GC6: 0 | GD6: 0 | GE6: 0 | GF6: 0 | GG6: 0 | GH6: 0 | GI6: 5 | GJ6: 1 | GK6: 0 | GL6: 0 | GM6: 0 | GN6: 0 | GO6: 0 | GP6: 1 | GQ6: 0 | GR6: 0 | GS6: 1 | GT6: 0 | GU6: 0 | GV6: 0 | GW6: 1 | GX6: 0 | GY6: 0 | GZ6: 0 | HA6: 0 | HB6: 0 | HC6: 0 | HD6: 2 | HE6: 1 | HF6: 0 | HG6: 0 | HH6: 0 | HI6: 0 | HJ6: 0 | HK6: 0 | HL6: 0 | HM6: 0 | HN6: 0 | HO6: 0 | HP6: 0 | HQ6: 0 | HR6: 0 | HS6: 0 | HT6: 0 | HU6: 0 | HV6: 0 | HW6: 0 | HX6: 0 | HY6: 0 | HZ6: 0 | IA6: 0 | IB6: 1 | IC6: 0 | ID6: 0 | IE6: 0 | IF6: 0 | IG6: 0 | IH6: 0 | II6: 0 | IJ6: 0 | IK6: 0 | IL6: 2 | IM6: 0 | IN6: 0 | IO6: 0 | IP6: 0 | IQ6: 0 | IR6: 1 | IS6: 2 | IT6: 0 | IU6: 0 | IV6: 0 | IW6: 0 | IX6: 0 | IY6: 0 | IZ6: 2 | JA6: 0 | JB6: 0 | JC6: 0 | JD6: 0 | JE6: 0 | JF6: 0 | JG6: 0 | JH6: 0 | JI6: 0 | JJ6: 0 | JK6: 0 | JL6: 0 | JM6: 0 | JN6: 0 | JO6: 0 | JP6: 0 | JQ6: 0 | JR6: 0 | JS6: 0 | JT6: 0 | JU6: 0 | JV6: 0 | JW6: 0 | JX6: 0 | JY6: 0 | JZ6: 0 | KA6: 0 | KB6: 1 | KC6: 0 | KD6: 0 | KE6: 0 | KF6: 0 | KG6: 0 | KH6: 0 | KI6: 0 | KJ6: 0 | KK6: 0 | KL6: 1 | KM6: 0 | KN6: 0 | KO6: 0 | KP6: 0 | KQ6: 0 | KR6: 0 | KS6: 0 | KT6: 0 | KU6: 0 | KV6: 0 | KW6: 0 | KX6: 0 | KY6: 0 | KZ6: 0 | LA6: 0 | LB6: 0 | LC6: 0 | LD6: 0 | LE6: 0 | LF6: 0 | LG6: 0 | LH6: 0 | LI6: 0 | LJ6: 0 | LK6: 0 | LL6: 0 | LM6: 0 | LN6: 0 | LO6: 0 | LP6: 0 | LQ6: 0 | LR6: 0 | LS6: 0 | LT6: 0 | LU6: 0 | LV6: 0 | LW6: 0 | LX6: 0 | LY6: 0 | LZ6: 0 | MA6: 0 | MB6: 0 | MC6: 0 | MD6: 0 | ME6: 0 | MF6: 0 | MG6: 0 | MH6: 0 | MI6: 0 | MJ6: 0 | MK6: 0 | ML6: 0 | MM6: 1 | MN6: 0 | MO6: 0 | MP6: 0 | MQ6: 0 | MR6: 1 | MS6: 0 | MT6: 0 | MU6: 0 | MV6: 0 | MW6: 0 | MX6: 0 | MY6: 0 | MZ6: 0 | NA6: 0 | NB6: 0 | NC6: 0 | ND6: 0 | NE6: 0 | NF6: 0 | NG6: 0 | NH6: 0 | NI6: 0 | NJ6: 0 | NK6: 0 | NL6: 0 | NM6: 0 | NN6: 1 | NO6: 0 | NP6: 0 | NQ6: 0 | NR6: 0 | NS6: 0 | NT6: 0 | NU6: 0 | NV6: 0 | NW6: 0 | NX6: 0 | NY6: 0 | NZ6: 0 | OA6: 0 | OB6: 0 | OC6: 0 | OD6: 0 | OE6: 0 | OF6: 0 | OG6: 0 | OH6: 0 | OI6: 0 | OJ6: 0 | OK6: 0 | OL6: 0 | OM6: 0 | ON6: 0 | OO6: 0 | OP6: 0 | OQ6: 0 | OR6: 0 | OS6: 0 | OT6: 0 | OU6: 0 | OV6: 0 | OW6: 0 | OX6: 0 | OY6: 1 | OZ6: 0 | PA6: 1 | PB6: 0 | PC6: 0 | PD6: 0 | PE6: 0 | PF6: 0 | PG6: 0 | PH6: 0 | PI6: 0 | PJ6: 0 | PK6: 0 | PL6: 0 | PM6: 0 | PN6: 0 | PO6: 0 | PP6: 0 | PQ6: 0 | PR6: 0 | PS6: 0 | PT6: 0 | PU6: 0 | PV6: 0 | PW6: 0 | PX6: 0 | PY6: 0 | PZ6: 0 | QA6: 0 | QB6: 0 | QC6: 0 | QD6: 0 | QE6: 0 | QF6: 0 | QG6: 0 | QH6: 0 | QI6: 0 | QJ6: 0 | QK6: 0 | QL6: 0 | QM6: 1 | QN6: 0 | QO6: 0 | QP6: 0 | QQ6: 0 | QR6: 0 | QS6: 0 | QT6: 0 | QU6: 0 | QV6: 0 | QW6: 0 | QX6: 0 | QY6: 0 | QZ6: 0 | RA6: 0 | RB6: 0 | RC6: 0 | RD6: 0 | RE6: 0 | RF6: 0 | RG6: 0 | RH6: 0 | RI6: 0 | RJ6: 0 | RK6: 0 | RL6: 1 | RM6: 0 | RN6: 0 | RO6: 0 | RP6: 0 | RQ6: 0 | RR6: 0 | RS6: 0 | RT6: 0 | RU6: 0 | RV6: 0 | RW6: 0 | RX6: 0 | RY6: 0 | RZ6: 0 | SA6: 0 | SB6: 0 | SC6: 0 | SD6: 0 | SE6: 0 | SF6: 0 | SG6: 0 | SH6: 0 | SI6: 0 | SJ6: 0 | SK6: 0 | SL6: 0 | SM6: 0 | SN6: 0 | SO6: 0 | SP6: 0 | SQ6: 0 | SR6: 0 | SS6: 0 | ST6: 0 | SU6: 0 | SV6: 0 | SW6: 0 | SX6: 0 | SY6: 0 | SZ6: 0 | TA6: 0 | TB6: 0 | TC6: 0 | TD6: 0 | TE6: 0 | TF6: 0 | TG6: 0 | TH6: 0 | TI6: 0 | TJ6: 0 | TK6: 0 | TL6: 0 | TM6: 0 | TN6: 0 | TO6: 0 | TP6: 0 | TQ6: 0 | TR6: 0 | TS6: 0 | TT6: 0 | TU6: 0 | TV6: 0 | TW6: 0 | TX6: 0 | TY6: 0 | TZ6: 0 | UA6: 0 | UB6: 0 | UC6: 0 | UD6: 0 | UE6: 2 | UF6: 0 | UG6: 0 | UH6: 0 | UI6: 6 | UJ6: 0 | UK6: 0 | UL6: 0 | UM6: 0 | UN6: 0 | UO6: 0
A7: =HYPERLINK("https://meshb.nlm.nih.gov/record/ui?ui=" & B7,C7) -> Lithium | B7: D008094 | C7: Lithium | D7: 7439-93-2 | E7: =HYPERLINK("https://comptox.epa.gov/dashboard/dsstoxdb/results?utf8=%E2%9C%93&search=" & F7,F7) -> DTXSID5036761 | F7: DTXSID5036761 | G7: =SUM(H7:UO7) -> 689 | H7: 30 | I7: 50 | J7: 9 | K7: 22 | L7: 5 | M7: 36 | N7: 13 | O7: 25 | P7: 6 | Q7: 93 | R7: 12 | S7: 15 | T7: 23 | U7: 0 | V7: 1 | W7: 3 | X7: 14 | Y7: 16 | Z7: 10 | AA7: 1 | AB7: 3 | AC7: 22 | AD7: 15 | AE7: 6 | AF7: 0 | AG7: 5 | AH7: 1 | AI7: 0 | AJ7: 0 | AK7: 0 | AL7: 0 | AM7: 1 | AN7: 15 | AO7: 2 | AP7: 0 | AQ7: 0 | AR7: 1 | AS7: 1 | AT7: 1 | AU7: 0 | AV7: 0 | AW7: 6 | AX7: 11 | AY7: 1 | AZ7: 0 | BA7: 0 | BB7: 1 | BC7: 1 | BD7: 0 | BE7: 4 | BF7: 2 | BG7: 0 | BH7: 0 | BI7: 0 | BJ7: 5 | BK7: 0 | BL7: 21 | BM7: 0 | BN7: 0 | BO7: 2 | BP7: 4 | BQ7: 17 | BR7: 1 | BS7: 9 | BT7: 1 | BU7: 0 | BV7: 1 | BW7: 0 | BX7: 1 | BY7: 5 | BZ7: 2 | CA7: 0 | CB7: 0 | CC7: 0 | CD7: 7 | CE7: 0 | CF7: 0 | CG7: 0 | CH7: 11 | CI7: 0 | CJ7: 1 | CK7: 0 | CL7: 3 | CM7: 6 | CN7: 0 | CO7: 0 | CP7: 1 | CQ7: 1 | CR7: 1 | CS7: 2 | CT7: 0 | CU7: 6 | CV7: 0 | CW7: 8 | CX7: 3 | CY7: 0 | CZ7: 1 | DA7: 9 | DB7: 0 | DC7: 1 | DD7: 0 | DE7: 0 | DF7: 3 | DG7: 2 | DH7: 0 | DI7: 0 | DJ7: 3 | DK7: 0 | DL7: 0 | DM7: 0 | DN7: 2 | DO7: 0 | DP7: 0 | DQ7: 4 | DR7: 0 | DS7: 1 | DT7: 0 | DU7: 7 | DV7: 0 | DW7: 0 | DX7: 0 | DY7: 0 | DZ7: 1 | EA7: 0 | EB7: 0 | EC7: 0 | ED7: 0 | EE7: 0 | EF7: 0 | EG7: 0 | EH7: 3 | EI7: 0 | EJ7: 2 | EK7: 1 | EL7: 0 | EM7: 1 | EN7: 0 | EO7: 2 | EP7: 6 | EQ7: 0 | ER7: 0 | ES7: 1 | ET7: 0 | EU7: 0 | EV7: 1 | EW7: 0 | EX7: 0 | EY7: 0 | EZ7: 0 | FA7: 1 | FB7: 0 | FC7: 0 | FD7: 0 | FE7: 0 | FF7: 0 | FG7: 0 | FH7: 0 | FI7: 0 | FJ7: 1 | FK7: 0 | FL7: 0 | FM7: 0 | FN7: 0 | FO7: 0 | FP7: 0 | FQ7: 0 | FR7: 0 | FS7: 0 | FT7: 0 | FU7: 0 | FV7: 0 | FW7: 0 | FX7: 0 | FY7: 0 | FZ7: 0 | GA7: 0 | GB7: 0 | GC7: 0 | GD7: 0 | GE7: 0 | GF7: 0 | GG7: 0 | GH7: 0 | GI7: 0 | GJ7: 0 | GK7: 0 | GL7: 1 | GM7: 2 | GN7: 0 | GO7: 0 | GP7: 0 | GQ7: 0 | GR7: 0 | GS7: 0 | GT7: 0 | GU7: 3 | GV7: 0 | GW7: 0 | GX7: 0 | GY7: 0 | GZ7: 0 | HA7: 0 | HB7: 0 | HC7: 0 | HD7: 0 | HE7: 0 | HF7: 0 | HG7: 0 | HH7: 0 | HI7: 0 | HJ7: 0 | HK7: 0 | HL7: 0 | HM7: 0 | HN7: 0 | HO7: 10 | HP7: 0 | HQ7: 0 | HR7: 0 | HS7: 1 | HT7: 0 | HU7: 0 | HV7: 0 | HW7: 0 | HX7: 0 | HY7: 0 | HZ7: 1 | IA7: 0 | IB7: 0 | IC7: 0 | ID7: 0 | IE7: 0 | IF7: 0 | IG7: 0 | IH7: 0 | II7: 0 | IJ7: 0 | IK7: 0 | IL7: 0 | IM7: 0 | IN7: 0 | IO7: 0 | IP7: 0 | IQ7: 0 | IR7: 0 | IS7: 0 | IT7: 0 | IU7: 0 | IV7: 0 | IW7: 0 | IX7: 0 | IY7: 0 | IZ7: 0 | JA7: 0 | JB7: 0 | JC7: 0 | JD7: 0 | JE7: 0 | JF7: 0 | JG7: 0 | JH7: 0 | JI7: 0 | JJ7: 0 | JK7: 0 | JL7: 0 | JM7: 0 | JN7: 0 | JO7: 0 | JP7: 0 | JQ7: 0 | JR7: 2 | JS7: 0 | JT7: 0 | JU7: 0 | JV7: 0 | JW7: 0 | JX7: 0 | JY7: 0 | JZ7: 0 | KA7: 0 | KB7: 0 | KC7: 0 | KD7: 0 | KE7: 0 | KF7: 0 | KG7: 0 | KH7: 0 | KI7: 0 | KJ7: 0 | KK7: 0 | KL7: 0 | KM7: 0 | KN7: 0 | KO7: 0 | KP7: 0 | KQ7: 0 | KR7: 0 | KS7: 0 | KT7: 0 | KU7: 0 | KV7: 0 | KW7: 0 | KX7: 0 | KY7: 0 | KZ7: 0 | LA7: 0 | LB7: 0 | LC7: 0 | LD7: 0 | LE7: 0 | LF7: 0 | LG7: 0 | LH7: 0 | LI7: 0 | LJ7: 0 | LK7: 0 | LL7: 0 | LM7: 0 | LN7: 0 | LO7: 0 | LP7: 0 | LQ7: 0 | LR7: 0 | LS7: 0 | LT7: 0 | LU7: 0 | LV7: 0 | LW7: 0 | LX7: 1 | LY7: 0 | LZ7: 0 | MA7: 0 | MB7: 0 | MC7: 0 | MD7: 0 | ME7: 0 | MF7: 0 | MG7: 0 | MH7: 0 | MI7: 0 | MJ7: 0 | MK7: 0 | ML7: 0 | MM7: 0 | MN7: 0 | MO7: 0 | MP7: 1 | MQ7: 0 | MR7: 0 | MS7: 0 | MT7: 0 | MU7: 0 | MV7: 0 | MW7: 0 | MX7: 1 | MY7: 0 | MZ7: 0 | NA7: 0 | NB7: 0 | NC7: 0 | ND7: 0 | NE7: 0 | NF7: 0 | NG7: 0 | NH7: 0 | NI7: 0 | NJ7: 0 | NK7: 0 | NL7: 0 | NM7: 0 | NN7: 0 | NO7: 0 | NP7: 0 | NQ7: 0 | NR7: 0 | NS7: 0 | NT7: 0 | NU7: 0 | NV7: 0 | NW7: 0 | NX7: 0 | NY7: 0 | NZ7: 0 | OA7: 0 | OB7: 0 | OC7: 0 | OD7: 0 | OE7: 0 | OF7: 0 | OG7: 0 | OH7: 0 | OI7: 0 | OJ7: 0 | OK7: 0 | OL7: 0 | OM7: 0 | ON7: 0 | OO7: 0 | OP7: 0 | OQ7: 0 | OR7: 0 | OS7: 0 | OT7: 0 | OU7: 0 | OV7: 0 | OW7: 0 | OX7: 0 | OY7: 0 | OZ7: 0 | PA7: 0 | PB7: 0 | PC7: 0 | PD7: 0 | PE7: 0 | PF7: 0 | PG7: 0 | PH7: 0 | PI7: 0 | PJ7: 0 | PK7: 0 | PL7: 0 | PM7: 0 | PN7: 0 | PO7: 0 | PP7: 0 | PQ7: 0 | PR7: 0 | PS7: 0 | PT7: 0 | PU7: 0 | PV7: 0 | PW7: 0 | PX7: 0 | PY7: 0 | PZ7: 0 | QA7: 0 | QB7: 0 | QC7: 0 | QD7: 0 | QE7: 0 | QF7: 0 | QG7: 0 | QH7: 0 | QI7: 0 | QJ7: 0 | QK7: 0 | QL7: 0 | QM7: 0 | QN7: 0 | QO7: 0 | QP7: 0 | QQ7: 0 | QR7: 0 | QS7: 0 | QT7: 0 | QU7: 0 | QV7: 0 | QW7: 0 | QX7: 0 | QY7: 0 | QZ7: 0 | RA7: 0 | RB7: 0 | RC7: 0 | RD7: 0 | RE7: 0 | RF7: 0 | RG7: 0 | RH7: 0 | RI7: 0 | RJ7: 0 | RK7: 0 | RL7: 0 | RM7: 0 | RN7: 0 | RO7: 0 | RP7: 0 | RQ7: 0 | RR7: 0 | RS7: 0 | RT7: 0 | RU7: 0 | RV7: 0 | RW7: 0 | RX7: 0 | RY7: 0 | RZ7: 0 | SA7: 0 | SB7: 0 | SC7: 0 | SD7: 0 | SE7: 0 | SF7: 0 | SG7: 0 | SH7: 0 | SI7: 0 | SJ7: 0 | SK7: 0 | SL7: 0 | SM7: 0 | SN7: 0 | SO7: 0 | SP7: 0 | SQ7: 0 | SR7: 0 | SS7: 0 | ST7: 0 | SU7: 0 | SV7: 0 | SW7: 0 | SX7: 0 | SY7: 0 | SZ7: 0 | TA7: 0 | TB7: 0 | TC7: 0 | TD7: 0 | TE7: 0 | TF7: 0 | TG7: 0 | TH7: 0 | TI7: 0 | TJ7: 0 | TK7: 0 | TL7: 0 | TM7: 0 | TN7: 0 | TO7: 0 | TP7: 0 | TQ7: 0 | TR7: 0 | TS7: 0 | TT7: 0 | TU7: 0 | TV7: 0 | TW7: 0 | TX7: 0 | TY7: 0 | TZ7: 1 | UA7: 0 | UB7: 0 | UC7: 0 | UD7: 0 | UE7: 7 | UF7: 0 | UG7: 0 | UH7: 0 | UI7: 2 | UJ7: 0 | UK7: 0 | UL7: 0 | UM7: 0 | UN7: 1 | UO7: 0
A8: =HYPERLINK("https://meshb.nlm.nih.gov/record/ui?ui=" & B8,C8) -> Valproic Acid | B8: D014635 | C8: Valproic Acid | D8: 76584-70-8 | E8: =HYPERLINK("https://comptox.epa.gov/dashboard/dsstoxdb/results?utf8=%E2%9C%93&search=" & F8,F8) -> DTXSID70227388 | F8: DTXSID70227388 | G8: =SUM(H8:UO8) -> 666 | H8: 32 | I8: 10 | J8: 3 | K8: 65 | L8: 6 | M8: 10 | N8: 18 | O8: 45 | P8: 5 | Q8: 18 | R8: 4 | S8: 2 | T8: 10 | U8: 2 | V8: 0 | W8: 1 | X8: 3 | Y8: 8 | Z8: 8 | AA8: 3 | AB8: 0 | AC8: 12 | AD8: 10 | AE8: 5 | AF8: 0 | AG8: 1 | AH8: 3 | AI8: 0 | AJ8: 0 | AK8: 0 | AL8: 2 | AM8: 0 | AN8: 5 | AO8: 0 | AP8: 30 | AQ8: 14 | AR8: 1 | AS8: 14 | AT8: 6 | AU8: 0 | AV8: 3 | AW8: 0 | AX8: 0 | AY8: 0 | AZ8: 1 | BA8: 0 | BB8: 0 | BC8: 0 | BD8: 4 | BE8: 2 | BF8: 82 | BG8: 0 | BH8: 0 | BI8: 0 | BJ8: 0 | BK8: 1 | BL8: 1 | BM8: 0 | BN8: 2 | BO8: 1 | BP8: 2 | BQ8: 1 | BR8: 4 | BS8: 5 | BT8: 10 | BU8: 0 | BV8: 0 | BW8: 0 | BX8: 9 | BY8: 0 | BZ8: 9 | CA8: 2 | CB8: 13 | CC8: 0 | CD8: 2 | CE8: 1 | CF8: 0 | CG8: 0 | CH8: 2 | CI8: 0 | CJ8: 2 | CK8: 0 | CL8: 0 | CM8: 0 | CN8: 0 | CO8: 0 | CP8: 1 | CQ8: 0 | CR8: 0 | CS8: 1 | CT8: 0 | CU8: 1 | CV8: 1 | CW8: 1 | CX8: 0 | CY8: 0 | CZ8: 0 | DA8: 1 | DB8: 0 | DC8: 3 | DD8: 0 | DE8: 0 | DF8: 0 | DG8: 0 | DH8: 0 | DI8: 0 | DJ8: 0 | DK8: 0 | DL8: 1 | DM8: 1 | DN8: 0 | DO8: 0 | DP8: 0 | DQ8: 2 | DR8: 0 | DS8: 6 | DT8: 2 | DU8: 0 | DV8: 3 | DW8: 0 | DX8: 1 | DY8: 0 | DZ8: 0 | EA8: 0 | EB8: 0 | EC8: 0 | ED8: 1 | EE8: 0 | EF8: 0 | EG8: 1 | EH8: 0 | EI8: 0 | EJ8: 5 | EK8: 0 | EL8: 0 | EM8: 3 | EN8: 0 | EO8: 1 | EP8: 0 | EQ8: 0 | ER8: 0 | ES8: 0 | ET8: 0 | EU8: 0 | EV8: 18 | EW8: 0 | EX8: 2 | EY8: 0 | EZ8: 0 | FA8: 0 | FB8: 0 | FC8: 2 | FD8: 10 | FE8: 0 | FF8: 0 | FG8: 0 | FH8: 0 | FI8: 0 | FJ8: 1 | FK8: 1 | FL8: 0 | FM8: 0 | FN8: 0 | FO8: 0 | FP8: 2 | FQ8: 0 | FR8: 0 | FS8: 0 | FT8: 0 | FU8: 0 | FV8: 0 | FW8: 0 | FX8: 0 | FY8: 0 | FZ8: 1 | GA8: 0 | GB8: 2 | GC8: 0 | GD8: 0 | GE8: 0 | GF8: 2 | GG8: 0 | GH8: 0 | GI8: 1 | GJ8: 0 | GK8: 23 | GL8: 0 | GM8: 0 | GN8: 1 | GO8: 0 | GP8: 1 | GQ8: 0 | GR8: 1 | GS8: 1 | GT8: 0 | GU8: 0 | GV8: 0 | GW8: 0 | GX8: 0 | GY8: 0 | GZ8: 0 | HA8: 0 | HB8: 0 | HC8: 0 | HD8: 0 | HE8: 0 | HF8: 0 | HG8: 1 | HH8: 0 | HI8: 0 | HJ8: 0 | HK8: 0 | HL8: 2 | HM8: 0 | HN8: 0 | HO8: 0 | HP8: 0 | HQ8: 1 | HR8: 0 | HS8: 1 | HT8: 0 | HU8: 0 | HV8: 0 | HW8: 0 | HX8: 0 | HY8: 0 | HZ8: 0 | IA8: 0 | IB8: 0 | IC8: 0 | ID8: 0 | IE8: 8 | IF8: 0 | IG8: 0 | IH8: 0 | II8: 0 | IJ8: 0 | IK8: 0 | IL8: 0 | IM8: 0 | IN8: 0 | IO8: 0 | IP8: 0 | IQ8: 0 | IR8: 0 | IS8: 0 | IT8: 0 | IU8: 0 | IV8: 0 | IW8: 0 | IX8: 0 | IY8: 0 | IZ8: 0 | JA8: 0 | JB8: 0 | JC8: 0 | JD8: 0 | JE8: 0 | JF8: 0 | JG8: 0 | JH8: 0 | JI8: 0 | JJ8: 0 | JK8: 0 | JL8: 0 | JM8: 0 | JN8: 0 | JO8: 3 | JP8: 0 | JQ8: 0 | JR8: 0 | JS8: 0 | JT8: 0 | JU8: 0 | JV8: 1 | JW8: 0 | JX8: 0 | JY8: 0 | JZ8: 0 | KA8: 0 | KB8: 0 | KC8: 0 | KD8: 0 | KE8: 0 | KF8: 0 | KG8: 0 | KH8: 0 | KI8: 0 | KJ8: 0 | KK8: 0 | KL8: 0 | KM8: 0 | KN8: 0 | KO8: 0 | KP8: 0 | KQ8: 0 | KR8: 0 | KS8: 0 | KT8: 0 | KU8: 0 | KV8: 0 | KW8: 0 | KX8: 0 | KY8: 0 | KZ8: 0 | LA8: 0 | LB8: 0 | LC8: 0 | LD8: 0 | LE8: 0 | LF8: 0 | LG8: 0 | LH8: 0 | LI8: 0 | LJ8: 1 | LK8: 1 | LL8: 0 | LM8: 0 | LN8: 0 | LO8: 0 | LP8: 0 | LQ8: 0 | LR8: 0 | LS8: 0 | LT8: 0 | LU8: 0 | LV8: 0 | LW8: 1 | LX8: 2 | LY8: 0 | LZ8: 6 | MA8: 5 | MB8: 0 | MC8: 0 | MD8: 0 | ME8: 0 | MF8: 0 | MG8: 0 | MH8: 0 | MI8: 0 | MJ8: 2 | MK8: 1 | ML8: 0 | MM8: 0 | MN8: 0 | MO8: 0 | MP8: 0 | MQ8: 0 | MR8: 0 | MS8: 0 | MT8: 0 | MU8: 0 | MV8: 0 | MW8: 0 | MX8: 0 | MY8: 0 | MZ8: 0 | NA8: 0 | NB8: 0 | NC8: 0 | ND8: 0 | NE8: 0 | NF8: 0 | NG8: 0 | NH8: 0 | NI8: 0 | NJ8: 0 | NK8: 0 | NL8: 0 | NM8: 0 | NN8: 0 | NO8: 0 | NP8: 0 | NQ8: 0 | NR8: 0 | NS8: 0 | NT8: 0 | NU8: 0 | NV8: 0 | NW8: 0 | NX8: 0 | NY8: 0 | NZ8: 0 | OA8: 0 | OB8: 0 | OC8: 0 | OD8: 0 | OE8: 0 | OF8: 0 | OG8: 0 | OH8: 0 | OI8: 1 | OJ8: 0 | OK8: 0 | OL8: 0 | OM8: 0 | ON8: 0 | OO8: 0 | OP8: 0 | OQ8: 0 | OR8: 0 | OS8: 0 | OT8: 0 | OU8: 0 | OV8: 0 | OW8: 0 | OX8: 0 | OY8: 0 | OZ8: 0 | PA8: 0 | PB8: 0 | PC8: 0 | PD8: 0 | PE8: 0 | PF8: 0 | PG8: 0 | PH8: 0 | PI8: 0 | PJ8: 0 | PK8: 0 | PL8: 0 | PM8: 0 | PN8: 0 | PO8: 0 | PP8: 0 | PQ8: 0 | PR8: 0 | PS8: 0 | PT8: 0 | PU8: 0 | PV8: 0 | PW8: 0 | PX8: 0 | PY8: 0 | PZ8: 0 | QA8: 0 | QB8: 0 | QC8: 0 | QD8: 0 | QE8: 0 | QF8: 0 | QG8: 0 | QH8: 0 | QI8: 0 | QJ8: 0 | QK8: 0 | QL8: 0 | QM8: 0 | QN8: 0 | QO8: 0 | QP8: 0 | QQ8: 0 | QR8: 0 | QS8: 0 | QT8: 0 | QU8: 0 | QV8: 0 | QW8: 1 | QX8: 0 | QY8: 0 | QZ8: 0 | RA8: 0 | RB8: 0 | RC8: 0 | RD8: 0 | RE8: 0 | RF8: 0 | RG8: 0 | RH8: 0 | RI8: 0 | RJ8: 0 | RK8: 0 | RL8: 0 | RM8: 0 | RN8: 0 | RO8: 0 | RP8: 0 | RQ8: 0 | RR8: 0 | RS8: 0 | RT8: 0 | RU8: 0 | RV8: 0 | RW8: 0 | RX8: 0 | RY8: 0 | RZ8: 0 | SA8: 0 | SB8: 0 | SC8: 0 | SD8: 0 | SE8: 0 | SF8: 0 | SG8: 1 | SH8: 1 | SI8: 0 | SJ8: 0 | SK8: 1 | SL8: 0 | SM8: 0 | SN8: 0 | SO8: 0 | SP8: 0 | SQ8: 0 | SR8: 0 | SS8: 0 | ST8: 0 | SU8: 0 | SV8: 0 | SW8: 0 | SX8: 0 | SY8: 0 | SZ8: 0 | TA8: 0 | TB8: 0 | TC8: 0 | TD8: 0 | TE8: 0 | TF8: 0 | TG8: 0 | TH8: 0 | TI8: 0 | TJ8: 0 | TK8: 0 | TL8: 0 | TM8: 0 | TN8: 0 | TO8: 0 | TP8: 0 | TQ8: 0 | TR8: 0 | TS8: 0 | TT8: 0 | TU8: 0 | TV8: 0 | TW8: 0 | TX8: 0 | TY8: 0 | TZ8: 0 | UA8: 0 | UB8: 0 | UC8: 0 | UD8: 0 | UE8: 0 | UF8: 0 | UG8: 0 | UH8: 0 | UI8: 4 | UJ8: 0 | UK8: 0 | UL8: 1 | UM8: 0 | UN8: 0 | UO8: 0
A9: =HYPERLINK("https://meshb.nlm.nih.gov/record/ui?ui=" & B9,C9) -> 1-Methyl-4-phenyl-1,2,3,6-tetrahydropyridine | B9: D015632 | C9: 1-Methyl-4-phenyl-1,2,3,6-tetrahydropyridine | D9: 28289-54-5 | E9: =HYPERLINK("https://comptox.epa.gov/dashboard/dsstoxdb/results?utf8=%E2%9C%93&search=" & F9,F9) -> DTXSID8040933 | F9: DTXSID8040933 | G9: =SUM(H9:UO9) -> 638 | H9: 1 | I9: 24 | J9: 0 | K9: 11 | L9: 0 | M9: 6 | N9: 289 | O9: 0 | P9: 0 | Q9: 5 | R9: 0 | S9: 1 | T9: 0 | U9: 0 | V9: 0 | W9: 4 | X9: 0 | Y9: 1 | Z9: 3 | AA9: 0 | AB9: 0 | AC9: 0 | AD9: 1 | AE9: 1 | AF9: 0 | AG9: 0 | AH9: 0 | AI9: 0 | AJ9: 0 | AK9: 0 | AL9: 0 | AM9: 0 | AN9: 3 | AO9: 0 | AP9: 0 | AQ9: 0 | AR9: 0 | AS9: 33 | AT9: 0 | AU9: 0 | AV9: 0 | AW9: 0 | AX9: 1 | AY9: 0 | AZ9: 2 | BA9: 0 | BB9: 0 | BC9: 0 | BD9: 0 | BE9: 4 | BF9: 0 | BG9: 0 | BH9: 0 | BI9: 5 | BJ9: 1 | BK9: 1 | BL9: 0 | BM9: 214 | BN9: 0 | BO9: 0 | BP9: 0 | BQ9: 0 | BR9: 0 | BS9: 2 | BT9: 0 | BU9: 0 | BV9: 4 | BW9: 0 | BX9: 1 | BY9: 1 | BZ9: 0 | CA9: 0 | CB9: 0 | CC9: 0 | CD9: 0 | CE9: 1 | CF9: 0 | CG9: 0 | CH9: 0 | CI9: 0 | CJ9: 1 | CK9: 0 | CL9: 0 | CM9: 0 | CN9: 0 | CO9: 0 | CP9: 0 | CQ9: 0 | CR9: 0 | CS9: 0 | CT9: 0 | CU9: 0 | CV9: 0 | CW9: 0 | CX9: 0 | CY9: 0 | CZ9: 0 | DA9: 0 | DB9: 0 | DC9: 0 | DD9: 0 | DE9: 0 | DF9: 0 | DG9: 0 | DH9: 0 | DI9: 0 | DJ9: 0 | DK9: 0 | DL9: 1 | DM9: 0 | DN9: 0 | DO9: 0 | DP9: 0 | DQ9: 0 | DR9: 0 | DS9: 0 | DT9: 0 | DU9: 0 | DV9: 2 | DW9: 0 | DX9: 0 | DY9: 0 | DZ9: 0 | EA9: 0 | EB9: 0 | EC9: 0 | ED9: 0 | EE9: 0 | EF9: 0 | EG9: 0 | EH9: 0 | EI9: 1 | EJ9: 0 | EK9: 0 | EL9: 0 | EM9: 0 | EN9: 0 | EO9: 0 | EP9: 0 | EQ9: 0 | ER9: 0 | ES9: 0 | ET9: 0 | EU9: 0 | EV9: 0 | EW9: 0 | EX9: 0 | EY9: 1 | EZ9: 0 | FA9: 0 | FB9: 0 | FC9: 0 | FD9: 0 | FE9: 0 | FF9: 0 | FG9: 0 | FH9: 0 | FI9: 0 | FJ9: 0 | FK9: 0 | FL9: 0 | FM9: 0 | FN9: 0 | FO9: 0 | FP9: 0 | FQ9: 0 | FR9: 0 | FS9: 0 | FT9: 0 | FU9: 0 | FV9: 0 | FW9: 0 | FX9: 0 | FY9: 0 | FZ9: 0 | GA9: 0 | GB9: 4 | GC9: 0 | GD9: 0 | GE9: 0 | GF9: 0 | GG9: 0 | GH9: 0 | GI9: 0 | GJ9: 0 | GK9: 0 | GL9: 0 | GM9: 0 | GN9: 0 | GO9: 0 | GP9: 0 | GQ9: 0 | GR9: 0 | GS9: 0 | GT9: 0 | GU9: 0 | GV9: 0 | GW9: 0 | GX9: 0 | GY9: 0 | GZ9: 0 | HA9: 0 | HB9: 0 | HC9: 0 | HD9: 0 | HE9: 0 | HF9: 0 | HG9: 0 | HH9: 0 | HI9: 0 | HJ9: 0 | HK9: 0 | HL9: 0 | HM9: 0 | HN9: 0 | HO9: 0 | HP9: 0 | HQ9: 0 | HR9: 0 | HS9: 0 | HT9: 0 | HU9: 0 | HV9: 0 | HW9: 0 | HX9: 0 | HY9: 0 | HZ9: 0 | IA9: 0 | IB9: 0 | IC9: 0 | ID9: 0 | IE9: 0 | IF9: 0 | IG9: 0 | IH9: 0 | II9: 0 | IJ9: 0 | IK9: 0 | IL9: 0 | IM9: 0 | IN9: 0 | IO9: 0 | IP9: 0 | IQ9: 0 | IR9: 0 | IS9: 0 | IT9: 0 | IU9: 0 | IV9: 0 | IW9: 0 | IX9: 1 | IY9: 0 | IZ9: 0 | JA9: 0 | JB9: 0 | JC9: 0 | JD9: 0 | JE9: 0 | JF9: 0 | JG9: 0 | JH9: 0 | JI9: 0 | JJ9: 0 | JK9: 0 | JL9: 0 | JM9: 0 | JN9: 0 | JO9: 0 | JP9: 0 | JQ9: 0 | JR9: 0 | JS9: 0 | JT9: 0 | JU9: 0 | JV9: 0 | JW9: 0 | JX9: 0 | JY9: 0 | JZ9: 0 | KA9: 0 | KB9: 0 | KC9: 0 | KD9: 0 | KE9: 0 | KF9: 0 | KG9: 0 | KH9: 0 | KI9: 0 | KJ9: 0 | KK9: 0 | KL9: 0 | KM9: 0 | KN9: 0 | KO9: 0 | KP9: 0 | KQ9: 0 | KR9: 0 | KS9: 0 | KT9: 0 | KU9: 0 | KV9: 0 | KW9: 0 | KX9: 0 | KY9: 0 | KZ9: 0 | LA9: 0 | LB9: 0 | LC9: 0 | LD9: 1 | LE9: 0 | LF9: 0 | LG9: 0 | LH9: 0 | LI9: 3 | LJ9: 0 | LK9: 0 | LL9: 0 | LM9: 0 | LN9: 0 | LO9: 0 | LP9: 0 | LQ9: 0 | LR9: 0 | LS9: 0 | LT9: 0 | LU9: 0 | LV9: 0 | LW9: 0 | LX9: 1 | LY9: 0 | LZ9: 0 | MA9: 0 | MB9: 0 | MC9: 0 | MD9: 0 | ME9: 0 | MF9: 0 | MG9: 0 | MH9: 0 | MI9: 0 | MJ9: 0 | MK9: 0 | ML9: 0 | MM9: 0 | MN9: 0 | MO9: 0 | MP9: 0 | MQ9: 0 | MR9: 0 | MS9: 0 | MT9: 0 | MU9: 0 | MV9: 0 | MW9: 0 | MX9: 0 | MY9: 0 | MZ9: 0 | NA9: 0 | NB9: 0 | NC9: 0 | ND9: 0 | NE9: 0 | NF9: 0 | NG9: 0 | NH9: 0 | NI9: 0 | NJ9: 0 | NK9: 0 | NL9: 0 | NM9: 2 | NN9: 0 | NO9: 0 | NP9: 0 | NQ9: 0 | NR9: 0 | NS9: 0 | NT9: 0 | NU9: 0 | NV9: 0 | NW9: 0 | NX9: 0 | NY9: 0 | NZ9: 0 | OA9: 0 | OB9: 0 | OC9: 0 | OD9: 0 | OE9: 0 | OF9: 0 | OG9: 0 | OH9: 0 | OI9: 0 | OJ9: 0 | OK9: 0 | OL9: 0 | OM9: 0 | ON9: 0 | OO9: 0 | OP9: 0 | OQ9: 0 | OR9: 0 | OS9: 0 | OT9: 0 | OU9: 0 | OV9: 0 | OW9: 0 | OX9: 0 | OY9: 0 | OZ9: 0 | PA9: 0 | PB9: 0 | PC9: 0 | PD9: 0 | PE9: 0 | PF9: 0 | PG9: 0 | PH9: 0 | PI9: 0 | PJ9: 0 | PK9: 0 | PL9: 0 | PM9: 0 | PN9: 0 | PO9: 0 | PP9: 0 | PQ9: 0 | PR9: 0 | PS9: 0 | PT9: 0 | PU9: 0 | PV9: 0 | PW9: 0 | PX9: 0 | PY9: 0 | PZ9: 0 | QA9: 0 | QB9: 0 | QC9: 0 | QD9: 0 | QE9: 0 | QF9: 0 | QG9: 0 | QH9: 0 | QI9: 0 | QJ9: 0 | QK9: 0 | QL9: 0 | QM9: 0 | QN9: 0 | QO9: 0 | QP9: 0 | QQ9: 0 | QR9: 0 | QS9: 0 | QT9: 0 | QU9: 0 | QV9: 0 | QW9: 0 | QX9: 0 | QY9: 0 | QZ9: 0 | RA9: 0 | RB9: 0 | RC9: 0 | RD9: 0 | RE9: 0 | RF9: 0 | RG9: 0 | RH9: 0 | RI9: 0 | RJ9: 0 | RK9: 0 | RL9: 0 | RM9: 0 | RN9: 0 | RO9: 0 | RP9: 0 | RQ9: 0 | RR9: 0 | RS9: 0 | RT9: 0 | RU9: 0 | RV9: 0 | RW9: 0 | RX9: 0 | RY9: 0 | RZ9: 0 | SA9: 0 | SB9: 0 | SC9: 0 | SD9: 0 | SE9: 0 | SF9: 0 | SG9: 0 | SH9: 0 | SI9: 0 | SJ9: 0 | SK9: 0 | SL9: 0 | SM9: 0 | SN9: 0 | SO9: 0 | SP9: 0 | SQ9: 0 | SR9: 0 | SS9: 0 | ST9: 0 | SU9: 0 | SV9: 0 | SW9: 0 | SX9: 0 | SY9: 0 | SZ9: 0 | TA9: 0 | TB9: 0 | TC9: 0 | TD9: 0 | TE9: 0 | TF9: 0 | TG9: 0 | TH9: 0 | TI9: 0 | TJ9: 0 | TK9: 0 | TL9: 0 | TM9: 0 | TN9: 0 | TO9: 0 | TP9: 0 | TQ9: 0 | TR9: 0 | TS9: 0 | TT9: 0 | TU9: 0 | TV9: 0 | TW9: 0 | TX9: 0 | TY9: 0 | TZ9: 0 | UA9: 0 | UB9: 0 | UC9: 0 | UD9: 0 | UE9: 0 | UF9: 0 | UG9: 0 | UH9: 0 | UI9: 0 | UJ9: 0 | UK9: 0 | UL9: 0 | UM9: 0 | UN9: 0 | UO9: 0
A10: =HYPERLINK("https://meshb.nlm.nih.gov/record/ui?ui=" & B10,C10) -> Vincristine | B10: D014750 | C10: Vincristine | D10: 2068-78-2 | E10: =HYPERLINK("https://comptox.epa.gov/dashboard/dsstoxdb/results?utf8=%E2%9C%93&search=" & F10,F10) -> DTXSID8044331 | F10: DTXSID8044331 | G10: =SUM(H10:UO10) -> 567 | H10: 17 | I10: 59 | J10: 125 | K10: 15 | L10: 5 | M10: 1 | N10: 1 | O10: 5 | P10: 3 | Q10: 2 | R10: 1 | S10: 8 | T10: 0 | U10: 0 | V10: 25 | W10: 0 | X10: 0 | Y10: 2 | Z10: 3 | AA10: 0 | AB10: 17 | AC10: 1 | AD10: 0 | AE10: 0 | AF10: 21 | AG10: 5 | AH10: 0 | AI10: 0 | AJ10: 0 | AK10: 4 | AL10: 4 | AM10: 22 | AN10: 4 | AO10: 0 | AP10: 1 | AQ10: 0 | AR10: 5 | AS10: 0 | AT10: 14 | AU10: 2 | AV10: 0 | AW10: 0 | AX10: 7 | AY10: 0 | AZ10: 0 | BA10: 0 | BB10: 6 | BC10: 0 | BD10: 0 | BE10: 0 | BF10: 1 | BG10: 5 | BH10: 0 | BI10: 1 | BJ10: 0 | BK10: 1 | BL10: 1 | BM10: 0 | BN10: 0 | BO10: 5 | BP10: 0 | BQ10: 0 | BR10: 0 | BS10: 0 | BT10: 2 | BU10: 29 | BV10: 0 | BW10: 0 | BX10: 0 | BY10: 0 | BZ10: 0 | CA10: 0 | CB10: 0 | CC10: 3 | CD10: 0 | CE10: 0 | CF10: 0 | CG10: 1 | CH10: 0 | CI10: 1 | CJ10: 0 | CK10: 3 | CL10: 0 | CM10: 0 | CN10: 0 | CO10: 0 | CP10: 0 | CQ10: 13 | CR10: 2 | CS10: 1 | CT10: 0 | CU10: 1 | CV10: 0 | CW10: 0 | CX10: 1 | CY10: 1 | CZ10: 4 | DA10: 0 | DB10: 0 | DC10: 0 | DD10: 0 | DE10: 1 | DF10: 0 | DG10: 5 | DH10: 5 | DI10: 0 | DJ10: 0 | DK10: 0 | DL10: 0 | DM10: 0 | DN10: 0 | DO10: 2 | DP10: 0 | DQ10: 1 | DR10: 0 | DS10: 0 | DT10: 0 | DU10: 1 | DV10: 4 | DW10: 0 | DX10: 0 | DY10: 0 | DZ10: 0 | EA10: 2 | EB10: 0 | EC10: 0 | ED10: 0 | EE10: 0 | EF10: 1 | EG10: 2 | EH10: 0 | EI10: 0 | EJ10: 0 | EK10: 3 | EL10: 0 | EM10: 0 | EN10: 0 | EO10: 9 | EP10: 0 | EQ10: 0 | ER10: 0 | ES10: 1 | ET10: 0 | EU10: 1 | EV10: 0 | EW10: 0 | EX10: 0 | EY10: 0 | EZ10: 0 | FA10: 2 | FB10: 0 | FC10: 0 | FD10: 0 | FE10: 0 | FF10: 0 | FG10: 0 | FH10: 0 | FI10: 0 | FJ10: 0 | FK10: 0 | FL10: 0 | FM10: 0 | FN10: 0 | FO10: 0 | FP10: 0 | FQ10: 0 | FR10: 0 | FS10: 0 | FT10: 0 | FU10: 0 | FV10: 0 | FW10: 0 | FX10: 0 | FY10: 0 | FZ10: 0 | GA10: 0 | GB10: 0 | GC10: 0 | GD10: 1 | GE10: 0 | GF10: 0 | GG10: 0 | GH10: 0 | GI10: 0 | GJ10: 1 | GK10: 0 | GL10: 0 | GM10: 0 | GN10: 0 | GO10: 0 | GP10: 0 | GQ10: 1 | GR10: 0 | GS10: 0 | GT10: 0 | GU10: 0 | GV10: 2 | GW10: 0 | GX10: 0 | GY10: 0 | GZ10: 0 | HA10: 1 | HB10: 0 | HC10: 1 | HD10: 0 | HE10: 0 | HF10: 1 | HG10: 0 | HH10: 0 | HI10: 0 | HJ10: 0 | HK10: 0 | HL10: 0 | HM10: 0 | HN10: 0 | HO10: 0 | HP10: 2 | HQ10: 2 | HR10: 0 | HS10: 0 | HT10: 0 | HU10: 0 | HV10: 0 | HW10: 0 | HX10: 0 | HY10: 0 | HZ10: 0 | IA10: 0 | IB10: 3 | IC10: 0 | ID10: 0 | IE10: 0 | IF10: 0 | IG10: 0 | IH10: 0 | II10: 0 | IJ10: 0 | IK10: 0 | IL10: 0 | IM10: 0 | IN10: 0 | IO10: 0 | IP10: 0 | IQ10: 0 | IR10: 0 | IS10: 0 | IT10: 0 | IU10: 0 | IV10: 0 | IW10: 3 | IX10: 0 | IY10: 0 | IZ10: 0 | JA10: 0 | JB10: 0 | JC10: 0 | JD10: 2 | JE10: 0 | JF10: 0 | JG10: 0 | JH10: 0 | JI10: 0 | JJ10: 2 | JK10: 5 | JL10: 0 | JM10: 0 | JN10: 0 | JO10: 0 | JP10: 0 | JQ10: 0 | JR10: 0 | JS10: 0 | JT10: 0 | JU10: 0 | JV10: 0 | JW10: 0 | JX10: 0 | JY10: 0 | JZ10: 0 | KA10: 0 | KB10: 1 | KC10: 0 | KD10: 0 | KE10: 0 | KF10: 0 | KG10: 0 | KH10: 1 | KI10: 0 | KJ10: 0 | KK10: 0 | KL10: 0 | KM10: 0 | KN10: 0 | KO10: 0 | KP10: 0 | KQ10: 0 | KR10: 0 | KS10: 0 | KT10: 0 | KU10: 0 | KV10: 0 | KW10: 0 | KX10: 0 | KY10: 0 | KZ10: 0 | LA10: 0 | LB10: 0 | LC10: 0 | LD10: 0 | LE10: 0 | LF10: 0 | LG10: 0 | LH10: 1 | LI10: 0 | LJ10: 0 | LK10: 0 | LL10: 4 | LM10: 0 | LN10: 0 | LO10: 0 | LP10: 0 | LQ10: 0 | LR10: 0 | LS10: 0 | LT10: 0 | LU10: 0 | LV10: 0 | LW10: 0 | LX10: 0 | LY10: 1 | LZ10: 0 | MA10: 0 | MB10: 0 | MC10: 0 | MD10: 0 | ME10: 0 | MF10: 0 | MG10: 0 | MH10: 0 | MI10: 0 | MJ10: 0 | MK10: 0 | ML10: 0 | MM10: 0 | MN10: 0 | MO10: 0 | MP10: 0 | MQ10: 0 | MR10: 0 | MS10: 0 | MT10: 1 | MU10: 0 | MV10: 0 | MW10: 0 | MX10: 0 | MY10: 0 | MZ10: 1 | NA10: 0 | NB10: 0 | NC10: 0 | ND10: 0 | NE10: 0 | NF10: 0 | NG10: 0 | NH10: 0 | NI10: 0 | NJ10: 0 | NK10: 0 | NL10: 0 | NM10: 0 | NN10: 0 | NO10: 0 | NP10: 0 | NQ10: 0 | NR10: 0 | NS10: 0 | NT10: 0 | NU10: 0 | NV10: 0 | NW10: 0 | NX10: 0 | NY10: 0 | NZ10: 0 | OA10: 0 | OB10: 0 | OC10: 0 | OD10: 0 | OE10: 0 | OF10: 0 | OG10: 0 | OH10: 0 | OI10: 0 | OJ10: 0 | OK10: 0 | OL10: 0 | OM10: 0 | ON10: 0 | OO10: 0 | OP10: 0 | OQ10: 0 | OR10: 0 | OS10: 0 | OT10: 0 | OU10: 0 | OV10: 0 | OW10: 0 | OX10: 0 | OY10: 0 | OZ10: 0 | PA10: 0 | PB10: 0 | PC10: 0 | PD10: 0 | PE10: 0 | PF10: 0 | PG10: 0 | PH10: 0 | PI10: 0 | PJ10: 0 | PK10: 0 | PL10: 0 | PM10: 0 | PN10: 0 | PO10: 0 | PP10: 0 | PQ10: 0 | PR10: 0 | PS10: 0 | PT10: 0 | PU10: 0 | PV10: 0 | PW10: 0 | PX10: 0 | PY10: 0 | PZ10: 0 | QA10: 0 | QB10: 0 | QC10: 0 | QD10: 0 | QE10: 0 | QF10: 0 | QG10: 0 | QH10: 0 | QI10: 0 | QJ10: 0 | QK10: 0 | QL10: 0 | QM10: 0 | QN10: 0 | QO10: 0 | QP10: 0 | QQ10: 0 | QR10: 0 | QS10: 0 | QT10: 0 | QU10: 0 | QV10: 0 | QW10: 0 | QX10: 0 | QY10: 0 | QZ10: 0 | RA10: 0 | RB10: 0 | RC10: 0 | RD10: 0 | RE10: 0 | RF10: 0 | RG10: 0 | RH10: 0 | RI10: 0 | RJ10: 0 | RK10: 0 | RL10: 0 | RM10: 0 | RN10: 0 | RO10: 0 | RP10: 0 | RQ10: 0 | RR10: 0 | RS10: 0 | RT10: 0 | RU10: 0 | RV10: 0 | RW10: 0 | RX10: 1 | RY10: 0 | RZ10: 0 | SA10: 0 | SB10: 0 | SC10: 0 | SD10: 0 | SE10: 0 | SF10: 0 | SG10: 0 | SH10: 0 | SI10: 0 | SJ10: 0 | SK10: 0 | SL10: 0 | SM10: 0 | SN10: 0 | SO10: 0 | SP10: 0 | SQ10: 0 | SR10: 0 | SS10: 0 | ST10: 0 | SU10: 0 | SV10: 0 | SW10: 0 | SX10: 0 | SY10: 0 | SZ10: 0 | TA10: 0 | TB10: 0 | TC10: 0 | TD10: 0 | TE10: 0 | TF10: 0 | TG10: 0 | TH10: 0 | TI10: 0 | TJ10: 0 | TK10: 0 | TL10: 0 | TM10: 0 | TN10: 0 | TO10: 0 | TP10: 0 | TQ10: 0 | TR10: 0 | TS10: 0 | TT10: 0 | TU10: 0 | TV10: 0 | TW10: 0 | TX10: 0 | TY10: 0 | TZ10: 0 | UA10: 0 | UB10: 0 | UC10: 0 | UD10: 0 | UE10: 0 | UF10: 0 | UG10: 1 | UH10: 0 | UI10: 2 | UJ10: 0 | UK10: 23 | UL10: 2 | UM10: 0 | UN10: 0 | UO10: 0
A11: =HYPERLINK("https://meshb.nlm.nih.gov/record/ui?ui=" & B11,C11) -> Phenytoin | B11: D010672 | C11: Phenytoin | D11: 57-41-0 | E11: =HYPERLINK("https://comptox.epa.gov/dashboard/dsstoxdb/results?utf8=%E2%9C%93&search=" & F11,F11) -> DTXSID8020541 | F11: DTXSID8020541 | G11: =SUM(H11:UO11) -> 560 | H11: 37 | I11: 24 | J11: 25 | K11: 16 | L11: 9 | M11: 3 | N11: 1 | O11: 9 | P11: 3 | Q11: 8 | R11: 4 | S11: 6 | T11: 3 | U11: 2 | V11: 1 | W11: 4 | X11: 7 | Y11: 45 | Z11: 7 | AA11: 0 | AB11: 2 | AC11: 3 | AD11: 9 | AE11: 0 | AF11: 0 | AG11: 3 | AH11: 0 | AI11: 1 | AJ11: 0 | AK11: 1 | AL11: 0 | AM11: 3 | AN11: 10 | AO11: 1 | AP11: 4 | AQ11: 1 | AR11: 0 | AS11: 3 | AT11: 2 | AU11: 0 | AV11: 0 | AW11: 0 | AX11: 3 | AY11: 0 | AZ11: 0 | BA11: 0 | BB11: 1 | BC11: 1 | BD11: 4 | BE11: 6 | BF11: 2 | BG11: 1 | BH11: 0 | BI11: 0 | BJ11: 0 | BK11: 0 | BL11: 37 | BM11: 0 | BN11: 0 | BO11: 2 | BP11: 6 | BQ11: 45 | BR11: 0 | BS11: 25 | BT11: 2 | BU11: 0 | BV11: 0 | BW11: 0 | BX11: 1 | BY11: 1 | BZ11: 1 | CA11: 1 | CB11: 0 | CC11: 0 | CD11: 1 | CE11: 0 | CF11: 2 | CG11: 1 | CH11: 28 | CI11: 3 | CJ11: 3 | CK11: 1 | CL11: 0 | CM11: 1 | CN11: 0 | CO11: 0 | CP11: 0 | CQ11: 0 | CR11: 2 | CS11: 6 | CT11: 1 | CU11: 0 | CV11: 2 | CW11: 7 | CX11: 0 | CY11: 0 | CZ11: 0 | DA11: 3 | DB11: 0 | DC11: 0 | DD11: 0 | DE11: 0 | DF11: 4 | DG11: 10 | DH11: 0 | DI11: 0 | DJ11: 1 | DK11: 0 | DL11: 0 | DM11: 0 | DN11: 0 | DO11: 0 | DP11: 0 | DQ11: 2 | DR11: 0 | DS11: 5 | DT11: 1 | DU11: 23 | DV11: 0 | DW11: 4 | DX11: 1 | DY11: 0 | DZ11: 0 | EA11: 1 | EB11: 0 | EC11: 0 | ED11: 2 | EE11: 0 | EF11: 1 | EG11: 0 | EH11: 0 | EI11: 0 | EJ11: 3 | EK11: 0 | EL11: 0 | EM11: 0 | EN11: 0 | EO11: 0 | EP11: 2 | EQ11: 1 | ER11: 1 | ES11: 0 | ET11: 0 | EU11: 2 | EV11: 0 | EW11: 0 | EX11: 0 | EY11: 0 | EZ11: 0 | FA11: 2 | FB11: 1 | FC11: 0 | FD11: 1 | FE11: 0 | FF11: 0 | FG11: 0 | FH11: 0 | FI11: 0 | FJ11: 1 | FK11: 0 | FL11: 0 | FM11: 2 | FN11: 0 | FO11: 0 | FP11: 0 | FQ11: 0 | FR11: 0 | FS11: 0 | FT11: 0 | FU11: 0 | FV11: 0 | FW11: 0 | FX11: 0 | FY11: 0 | FZ11: 1 | GA11: 0 | GB11: 0 | GC11: 0 | GD11: 0 | GE11: 0 | GF11: 0 | GG11: 0 | GH11: 0 | GI11: 1 | GJ11: 0 | GK11: 0 | GL11: 0 | GM11: 0 | GN11: 0 | GO11: 1 | GP11: 0 | GQ11: 0 | GR11: 0 | GS11: 1 | GT11: 0 | GU11: 0 | GV11: 0 | GW11: 0 | GX11: 0 | GY11: 0 | GZ11: 0 | HA11: 0 | HB11: 2 | HC11: 0 | HD11: 0 | HE11: 0 | HF11: 0 | HG11: 0 | HH11: 0 | HI11: 0 | HJ11: 0 | HK11: 0 | HL11: 0 | HM11: 1 | HN11: 0 | HO11: 0 | HP11: 0 | HQ11: 0 | HR11: 1 | HS11: 1 | HT11: 1 | HU11: 0 | HV11: 0 | HW11: 0 | HX11: 0 | HY11: 0 | HZ11: 0 | IA11: 0 | IB11: 0 | IC11: 1 | ID11: 0 | IE11: 0 | IF11: 0 | IG11: 0 | IH11: 0 | II11: 0 | IJ11: 0 | IK11: 1 | IL11: 0 | IM11: 0 | IN11: 0 | IO11: 0 | IP11: 1 | IQ11: 1 | IR11: 0 | IS11: 0 | IT11: 0 | IU11: 0 | IV11: 0 | IW11: 0 | IX11: 0 | IY11: 1 | IZ11: 0 | JA11: 0 | JB11: 0 | JC11: 0 | JD11: 0 | JE11: 0 | JF11: 0 | JG11: 0 | JH11: 0 | JI11: 0 | JJ11: 0 | JK11: 0 | JL11: 0 | JM11: 0 | JN11: 0 | JO11: 0 | JP11: 0 | JQ11: 0 | JR11: 0 | JS11: 0 | JT11: 0 | JU11: 0 | JV11: 0 | JW11: 0 | JX11: 0 | JY11: 0 | JZ11: 0 | KA11: 0 | KB11: 0 | KC11: 0 | KD11: 0 | KE11: 0 | KF11: 0 | KG11: 0 | KH11: 0 | KI11: 0 | KJ11: 0 | KK11: 0 | KL11: 0 | KM11: 0 | KN11: 0 | KO11: 0 | KP11: 0 | KQ11: 0 | KR11: 0 | KS11: 0 | KT11: 0 | KU11: 0 | KV11: 0 | KW11: 0 | KX11: 0 | KY11: 0 | KZ11: 0 | LA11: 0 | LB11: 0 | LC11: 0 | LD11: 0 | LE11: 0 | LF11: 0 | LG11: 0 | LH11: 0 | LI11: 0 | LJ11: 1 | LK11: 0 | LL11: 0 | LM11: 0 | LN11: 0 | LO11: 0 | LP11: 0 | LQ11: 0 | LR11: 0 | LS11: 0 | LT11: 0 | LU11: 0 | LV11: 0 | LW11: 0 | LX11: 0 | LY11: 1 | LZ11: 0 | MA11: 0 | MB11: 0 | MC11: 1 | MD11: 0 | ME11: 0 | MF11: 0 | MG11: 0 | MH11: 0 | MI11: 0 | MJ11: 0 | MK11: 0 | ML11: 0 | MM11: 0 | MN11: 0 | MO11: 0 | MP11: 0 | MQ11: 0 | MR11: 0 | MS11: 0 | MT11: 0 | MU11: 0 | MV11: 0 | MW11: 0 | MX11: 0 | MY11: 0 | MZ11: 0 | NA11: 0 | NB11: 0 | NC11: 0 | ND11: 0 | NE11: 0 | NF11: 0 | NG11: 0 | NH11: 0 | NI11: 0 | NJ11: 0 | NK11: 0 | NL11: 0 | NM11: 0 | NN11: 0 | NO11: 0 | NP11: 0 | NQ11: 0 | NR11: 0 | NS11: 0 | NT11: 0 | NU11: 0 | NV11: 0 | NW11: 0 | NX11: 0 | NY11: 0 | NZ11: 2 | OA11: 0 | OB11: 0 | OC11: 0 | OD11: 0 | OE11: 0 | OF11: 0 | OG11: 0 | OH11: 0 | OI11: 0 | OJ11: 0 | OK11: 0 | OL11: 0 | OM11: 0 | ON11: 0 | OO11: 0 | OP11: 0 | OQ11: 0 | OR11: 0 | OS11: 0 | OT11: 0 | OU11: 0 | OV11: 0 | OW11: 0 | OX11: 0 | OY11: 0 | OZ11: 0 | PA11: 0 | PB11: 0 | PC11: 0 | PD11: 0 | PE11: 0 | PF11: 0 | PG11: 0 | PH11: 0 | PI11: 0 | PJ11: 0 | PK11: 0 | PL11: 0 | PM11: 0 | PN11: 0 | PO11: 0 | PP11: 0 | PQ11: 0 | PR11: 0 | PS11: 0 | PT11: 0 | PU11: 0 | PV11: 0 | PW11: 0 | PX11: 0 | PY11: 0 | PZ11: 0 | QA11: 0 | QB11: 0 | QC11: 0 | QD11: 0 | QE11: 0 | QF11: 0 | QG11: 0 | QH11: 0 | QI11: 0 | QJ11: 0 | QK11: 0 | QL11: 0 | QM11: 0 | QN11: 0 | QO11: 0 | QP11: 0 | QQ11: 0 | QR11: 0 | QS11: 0 | QT11: 0 | QU11: 0 | QV11: 0 | QW11: 0 | QX11: 0 | QY11: 0 | QZ11: 0 | RA11: 0 | RB11: 0 | RC11: 0 | RD11: 0 | RE11: 0 | RF11: 0 | RG11: 0 | RH11: 0 | RI11: 0 | RJ11: 0 | RK11: 0 | RL11: 0 | RM11: 0 | RN11: 0 | RO11: 0 | RP11: 0 | RQ11: 0 | RR11: 0 | RS11: 0 | RT11: 0 | RU11: 0 | RV11: 0 | RW11: 0 | RX11: 0 | RY11: 0 | RZ11: 0 | SA11: 0 | SB11: 0 | SC11: 0 | SD11: 0 | SE11: 0 | SF11: 0 | SG11: 0 | SH11: 0 | SI11: 0 | SJ11: 0 | SK11: 0 | SL11: 0 | SM11: 0 | SN11: 0 | SO11: 0 | SP11: 0 | SQ11: 0 | SR11: 0 | SS11: 0 | ST11: 0 | SU11: 0 | SV11: 0 | SW11: 0 | SX11: 0 | SY11: 0 | SZ11: 0 | TA11: 0 | TB11: 0 | TC11: 0 | TD11: 0 | TE11: 0 | TF11: 0 | TG11: 0 | TH11: 0 | TI11: 0 | TJ11: 0 | TK11: 0 | TL11: 0 | TM11: 0 | TN11: 0 | TO11: 0 | TP11: 0 | TQ11: 0 | TR11: 0 | TS11: 0 | TT11: 0 | TU11: 0 | TV11: 0 | TW11: 0 | TX11: 0 | TY11: 0 | TZ11: 0 | UA11: 0 | UB11: 0 | UC11: 0 | UD11: 0 | UE11: 6 | UF11: 0 | UG11: 1 | UH11: 0 | UI11: 4 | UJ11: 0 | UK11: 1 | UL11: 0 | UM11: 0 | UN11: 0 | UO11: 0
A12: =HYPERLINK("https://meshb.nlm.nih.gov/record/ui?ui=" & B12,C12) -> Haloperidol | B12: D006220 | C12: Haloperidol | D12: 52-86-8 | E12: =HYPERLINK("https://comptox.epa.gov/dashboard/dsstoxdb/results?utf8=%E2%9C%93&search=" & F12,F12) -> DTXSID4034150 | F12: DTXSID4034150 | G12: =SUM(H12:UO12) -> 555 | H12: 6 | I12: 6 | J12: 1 | K12: 10 | L12: 6 | M12: 153 | N12: 51 | O12: 4 | P12: 4 | Q12: 11 | R12: 1 | S12: 0 | T12: 10 | U12: 0 | V12: 0 | W12: 52 | X12: 5 | Y12: 2 | Z12: 3 | AA12: 0 | AB12: 0 | AC12: 1 | AD12: 0 | AE12: 1 | AF12: 0 | AG12: 3 | AH12: 1 | AI12: 0 | AJ12: 1 | AK12: 0 | AL12: 0 | AM12: 0 | AN12: 22 | AO12: 0 | AP12: 0 | AQ12: 0 | AR12: 2 | AS12: 9 | AT12: 4 | AU12: 0 | AV12: 0 | AW12: 1 | AX12: 2 | AY12: 0 | AZ12: 0 | BA12: 10 | BB12: 0 | BC12: 1 | BD12: 2 | BE12: 5 | BF12: 0 | BG12: 0 | BH12: 0 | BI12: 75 | BJ12: 17 | BK12: 0 | BL12: 1 | BM12: 1 | BN12: 0 | BO12: 0 | BP12: 3 | BQ12: 1 | BR12: 1 | BS12: 1 | BT12: 0 | BU12: 0 | BV12: 1 | BW12: 0 | BX12: 0 | BY12: 0 | BZ12: 1 | CA12: 1 | CB12: 0 | CC12: 0 | CD12: 0 | CE12: 15 | CF12: 0 | CG12: 0 | CH12: 0 | CI12: 0 | CJ12: 0 | CK12: 3 | CL12: 0 | CM12: 0 | CN12: 0 | CO12: 0 | CP12: 0 | CQ12: 0 | CR12: 0 | CS12: 1 | CT12: 0 | CU12: 0 | CV12: 0 | CW12: 2 | CX12: 0 | CY12: 0 | CZ12: 0 | DA12: 2 | DB12: 0 | DC12: 1 | DD12: 0 | DE12: 0 | DF12: 0 | DG12: 0 | DH12: 0 | DI12: 0 | DJ12: 0 | DK12: 0 | DL12: 0 | DM12: 0 | DN12: 2 | DO12: 0 | DP12: 0 | DQ12: 1 | DR12: 0 | DS12: 0 | DT12: 0 | DU12: 1 | DV12: 0 | DW12: 0 | DX12: 1 | DY12: 0 | DZ12: 2 | EA12: 0 | EB12: 0 | EC12: 0 | ED12: 0 | EE12: 2 | EF12: 0 | EG12: 0 | EH12: 0 | EI12: 0 | EJ12: 0 | EK12: 0 | EL12: 0 | EM12: 0 | EN12: 0 | EO12: 0 | EP12: 0 | EQ12: 0 | ER12: 0 | ES12: 0 | ET12: 1 | EU12: 0 | EV12: 0 | EW12: 0 | EX12: 4 | EY12: 0 | EZ12: 0 | FA12: 0 | FB12: 0 | FC12: 0 | FD12: 0 | FE12: 1 | FF12: 4 | FG12: 0 | FH12: 0 | FI12: 0 | FJ12: 0 | FK12: 0 | FL12: 0 | FM12: 0 | FN12: 0 | FO12: 0 | FP12: 0 | FQ12: 0 | FR12: 0 | FS12: 0 | FT12: 0 | FU12: 0 | FV12: 0 | FW12: 0 | FX12: 0 | FY12: 0 | FZ12: 0 | GA12: 0 | GB12: 4 | GC12: 0 | GD12: 0 | GE12: 0 | GF12: 0 | GG12: 0 | GH12: 0 | GI12: 0 | GJ12: 0 | GK12: 0 | GL12: 0 | GM12: 0 | GN12: 0 | GO12: 0 | GP12: 0 | GQ12: 0 | GR12: 0 | GS12: 0 | GT12: 0 | GU12: 1 | GV12: 0 | GW12: 2 | GX12: 0 | GY12: 0 | GZ12: 0 | HA12: 0 | HB12: 0 | HC12: 0 | HD12: 0 | HE12: 0 | HF12: 0 | HG12: 0 | HH12: 0 | HI12: 0 | HJ12: 0 | HK12: 0 | HL12: 0 | HM12: 0 | HN12: 0 | HO12: 0 | HP12: 0 | HQ12: 0 | HR12: 1 | HS12: 0 | HT12: 0 | HU12: 0 | HV12: 0 | HW12: 0 | HX12: 0 | HY12: 0 | HZ12: 0 | IA12: 0 | IB12: 0 | IC12: 0 | ID12: 0 | IE12: 0 | IF12: 0 | IG12: 0 | IH12: 0 | II12: 0 | IJ12: 0 | IK12: 0 | IL12: 0 | IM12: 0 | IN12: 0 | IO12: 0 | IP12: 0 | IQ12: 0 | IR12: 0 | IS12: 0 | IT12: 0 | IU12: 0 | IV12: 0 | IW12: 0 | IX12: 1 | IY12: 0 | IZ12: 0 | JA12: 0 | JB12: 0 | JC12: 0 | JD12: 0 | JE12: 0 | JF12: 0 | JG12: 0 | JH12: 0 | JI12: 0 | JJ12: 0 | JK12: 0 | JL12: 1 | JM12: 0 | JN12: 0 | JO12: 0 | JP12: 0 | JQ12: 0 | JR12: 0 | JS12: 0 | JT12: 0 | JU12: 0 | JV12: 0 | JW12: 0 | JX12: 0 | JY12: 0 | JZ12: 3 | KA12: 0 | KB12: 0 | KC12: 0 | KD12: 0 | KE12: 0 | KF12: 0 | KG12: 0 | KH12: 0 | KI12: 0 | KJ12: 0 | KK12: 0 | KL12: 0 | KM12: 0 | KN12: 0 | KO12: 0 | KP12: 0 | KQ12: 0 | KR12: 0 | KS12: 0 | KT12: 0 | KU12: 0 | KV12: 0 | KW12: 1 | KX12: 0 | KY12: 0 | KZ12: 0 | LA12: 0 | LB12: 0 | LC12: 0 | LD12: 1 | LE12: 0 | LF12: 0 | LG12: 0 | LH12: 0 | LI12: 0 | LJ12: 0 | LK12: 0 | LL12: 0 | LM12: 0 | LN12: 0 | LO12: 0 | LP12: 0 | LQ12: 0 | LR12: 0 | LS12: 0 | LT12: 0 | LU12: 0 | LV12: 0 | LW12: 0 | LX12: 0 | LY12: 0 | LZ12: 0 | MA12: 0 | MB12: 0 | MC12: 0 | MD12: 0 | ME12: 0 | MF12: 0 | MG12: 0 | MH12: 0 | MI12: 0 | MJ12: 0 | MK12: 0 | ML12: 0 | MM12: 0 | MN12: 0 | MO12: 0 | MP12: 0 | MQ12: 0 | MR12: 0 | MS12: 0 | MT12: 0 | MU12: 0 | MV12: 0 | MW12: 0 | MX12: 0 | MY12: 0 | MZ12: 0 | NA12: 0 | NB12: 0 | NC12: 0 | ND12: 0 | NE12: 0 | NF12: 0 | NG12: 0 | NH12: 0 | NI12: 0 | NJ12: 0 | NK12: 0 | NL12: 0 | NM12: 0 | NN12: 0 | NO12: 0 | NP12: 0 | NQ12: 0 | NR12: 0 | NS12: 0 | NT12: 0 | NU12: 0 | NV12: 0 | NW12: 0 | NX12: 0 | NY12: 0 | NZ12: 0 | OA12: 0 | OB12: 0 | OC12: 0 | OD12: 0 | OE12: 0 | OF12: 0 | OG12: 0 | OH12: 0 | OI12: 0 | OJ12: 0 | OK12: 0 | OL12: 0 | OM12: 0 | ON12: 0 | OO12: 0 | OP12: 0 | OQ12: 0 | OR12: 0 | OS12: 0 | OT12: 0 | OU12: 0 | OV12: 0 | OW12: 0 | OX12: 0 | OY12: 0 | OZ12: 0 | PA12: 0 | PB12: 0 | PC12: 0 | PD12: 0 | PE12: 0 | PF12: 0 | PG12: 0 | PH12: 0 | PI12: 0 | PJ12: 0 | PK12: 0 | PL12: 0 | PM12: 0 | PN12: 1 | PO12: 0 | PP12: 0 | PQ12: 0 | PR12: 0 | PS12: 0 | PT12: 1 | PU12: 0 | PV12: 0 | PW12: 0 | PX12: 0 | PY12: 0 | PZ12: 0 | QA12: 0 | QB12: 0 | QC12: 0 | QD12: 0 | QE12: 0 | QF12: 0 | QG12: 0 | QH12: 0 | QI12: 0 | QJ12: 0 | QK12: 0 | QL12: 0 | QM12: 0 | QN12: 0 | QO12: 0 | QP12: 0 | QQ12: 0 | QR12: 0 | QS12: 0 | QT12: 0 | QU12: 0 | QV12: 0 | QW12: 0 | QX12: 0 | QY12: 0 | QZ12: 0 | RA12: 0 | RB12: 0 | RC12: 0 | RD12: 0 | RE12: 0 | RF12: 0 | RG12: 0 | RH12: 0 | RI12: 0 | RJ12: 0 | RK12: 0 | RL12: 0 | RM12: 0 | RN12: 0 | RO12: 0 | RP12: 0 | RQ12: 0 | RR12: 0 | RS12: 0 | RT12: 0 | RU12: 0 | RV12: 0 | RW12: 0 | RX12: 0 | RY12: 0 | RZ12: 0 | SA12: 0 | SB12: 0 | SC12: 0 | SD12: 0 | SE12: 0 | SF12: 0 | SG12: 0 | SH12: 0 | SI12: 0 | SJ12: 0 | SK12: 0 | SL12: 0 | SM12: 0 | SN12: 0 | SO12: 0 | SP12: 0 | SQ12: 0 | SR12: 0 | SS12: 0 | ST12: 0 | SU12: 0 | SV12: 0 | SW12: 0 | SX12: 0 | SY12: 0 | SZ12: 0 | TA12: 0 | TB12: 0 | TC12: 0 | TD12: 0 | TE12: 0 | TF12: 0 | TG12: 0 | TH12: 0 | TI12: 0 | TJ12: 0 | TK12: 0 | TL12: 0 | TM12: 0 | TN12: 0 | TO12: 0 | TP12: 0 | TQ12: 0 | TR12: 0 | TS12: 0 | TT12: 0 | TU12: 0 | TV12: 0 | TW12: 0 | TX12: 0 | TY12: 0 | TZ12: 0 | UA12: 0 | UB12: 0 | UC12: 0 | UD12: 0 | UE12: 1 | UF12: 0 | UG12: 0 | UH12: 0 | UI12: 1 | UJ12: 0 | UK12: 0 | UL12: 0 | UM12: 0 | UN12: 0 | UO12: 0
A13: =HYPERLINK("https://meshb.nlm.nih.gov/record/ui?ui=" & B13,C13) -> Cocaine | B13: D003042 | C13: Cocaine | D13: 50-36-2 | E13: =HYPERLINK("https://comptox.epa.gov/dashboard/dsstoxdb/results?utf8=%E2%9C%93&search=" & F13,F13) -> DTXSID2038443 | F13: DTXSID2038443 | G13: =SUM(H13:UO13) -> 530 | H13: 151 | I13: 16 | J13: 0 | K13: 8 | L13: 0 | M13: 2 | N13: 3 | O13: 3 | P13: 8 | Q13: 6 | R13: 12 | S13: 11 | T13: 11 | U13: 30 | V13: 0 | W13: 10 | X13: 0 | Y13: 1 | Z13: 4 | AA13: 0 | AB13: 2 | AC13: 1 | AD13: 10 | AE13: 7 | AF13: 0 | AG13: 9 | AH13: 0 | AI13: 0 | AJ13: 15 | AK13: 1 | AL13: 1 | AM13: 1 | AN13: 0 | AO13: 2 | AP13: 2 | AQ13: 5 | AR13: 1 | AS13: 0 | AT13: 0 | AU13: 0 | AV13: 0 | AW13: 5 | AX13: 1 | AY13: 0 | AZ13: 0 | BA13: 1 | BB13: 0 | BC13: 0 | BD13: 7 | BE13: 10 | BF13: 2 | BG13: 1 | BH13: 20 | BI13: 1 | BJ13: 0 | BK13: 1 | BL13: 0 | BM13: 0 | BN13: 1 | BO13: 0 | BP13: 2 | BQ13: 0 | BR13: 0 | BS13: 0 | BT13: 2 | BU13: 0 | BV13: 2 | BW13: 0 | BX13: 1 | BY13: 7 | BZ13: 0 | CA13: 6 | CB13: 0 | CC13: 0 | CD13: 0 | CE13: 0 | CF13: 0 | CG13: 11 | CH13: 1 | CI13: 0 | CJ13: 0 | CK13: 0 | CL13: 0 | CM13: 1 | CN13: 0 | CO13: 0 | CP13: 3 | CQ13: 1 | CR13: 0 | CS13: 0 | CT13: 4 | CU13: 0 | CV13: 0 | CW13: 0 | CX13: 0 | CY13: 1 | CZ13: 0 | DA13: 0 | DB13: 0 | DC13: 0 | DD13: 0 | DE13: 0 | DF13: 0 | DG13: 0 | DH13: 0 | DI13: 7 | DJ13: 2 | DK13: 0 | DL13: 0 | DM13: 1 | DN13: 0 | DO13: 1 | DP13: 0 | DQ13: 2 | DR13: 6 | DS13: 0 | DT13: 0 | DU13: 0 | DV13: 5 | DW13: 0 | DX13: 3 | DY13: 0 | DZ13: 2 | EA13: 0 | EB13: 0 | EC13: 0 | ED13: 5 | EE13: 0 | EF13: 0 | EG13: 0 | EH13: 0 | EI13: 0 | EJ13: 0 | EK13: 1 | EL13: 1 | EM13: 0 | EN13: 0 | EO13: 2 | EP13: 0 | EQ13: 0 | ER13: 0 | ES13: 0 | ET13: 0 | EU13: 2 | EV13: 0 | EW13: 0 | EX13: 0 | EY13: 1 | EZ13: 0 | FA13: 0 | FB13: 0 | FC13: 0 | FD13: 0 | FE13: 2 | FF13: 1 | FG13: 0 | FH13: 0 | FI13: 0 | FJ13: 0 | FK13: 0 | FL13: 1 | FM13: 0 | FN13: 0 | FO13: 0 | FP13: 1 | FQ13: 2 | FR13: 0 | FS13: 0 | FT13: 0 | FU13: 0 | FV13: 1 | FW13: 0 | FX13: 0 | FY13: 0 | FZ13: 0 | GA13: 0 | GB13: 0 | GC13: 0 | GD13: 0 | GE13: 0 | GF13: 4 | GG13: 0 | GH13: 0 | GI13: 11 | GJ13: 0 | GK13: 0 | GL13: 2 | GM13: 0 | GN13: 1 | GO13: 0 | GP13: 1 | GQ13: 0 | GR13: 0 | GS13: 1 | GT13: 0 | GU13: 0 | GV13: 0 | GW13: 1 | GX13: 0 | GY13: 0 | GZ13: 0 | HA13: 0 | HB13: 0 | HC13: 0 | HD13: 0 | HE13: 0 | HF13: 0 | HG13: 0 | HH13: 0 | HI13: 0 | HJ13: 0 | HK13: 0 | HL13: 0 | HM13: 0 | HN13: 0 | HO13: 0 | HP13: 0 | HQ13: 1 | HR13: 0 | HS13: 0 | HT13: 0 | HU13: 1 | HV13: 0 | HW13: 0 | HX13: 0 | HY13: 1 | HZ13: 0 | IA13: 0 | IB13: 0 | IC13: 0 | ID13: 0 | IE13: 0 | IF13: 0 | IG13: 0 | IH13: 0 | II13: 0 | IJ13: 0 | IK13: 0 | IL13: 1 | IM13: 1 | IN13: 0 | IO13: 0 | IP13: 1 | IQ13: 0 | IR13: 0 | IS13: 0 | IT13: 1 | IU13: 0 | IV13: 0 | IW13: 0 | IX13: 0 | IY13: 0 | IZ13: 0 | JA13: 0 | JB13: 0 | JC13: 0 | JD13: 0 | JE13: 0 | JF13: 0 | JG13: 0 | JH13: 1 | JI13: 0 | JJ13: 0 | JK13: 0 | JL13: 0 | JM13: 0 | JN13: 0 | JO13: 0 | JP13: 0 | JQ13: 0 | JR13: 0 | JS13: 1 | JT13: 0 | JU13: 1 | JV13: 0 | JW13: 0 | JX13: 0 | JY13: 0 | JZ13: 0 | KA13: 0 | KB13: 0 | KC13: 0 | KD13: 0 | KE13: 0 | KF13: 0 | KG13: 0 | KH13: 1 | KI13: 1 | KJ13: 0 | KK13: 0 | KL13: 0 | KM13: 0 | KN13: 0 | KO13: 0 | KP13: 0 | KQ13: 2 | KR13: 0 | KS13: 0 | KT13: 0 | KU13: 0 | KV13: 0 | KW13: 0 | KX13: 0 | KY13: 1 | KZ13: 0 | LA13: 0 | LB13: 0 | LC13: 1 | LD13: 0 | LE13: 0 | LF13: 0 | LG13: 0 | LH13: 0 | LI13: 0 | LJ13: 0 | LK13: 0 | LL13: 0 | LM13: 0 | LN13: 0 | LO13: 0 | LP13: 0 | LQ13: 0 | LR13: 0 | LS13: 0 | LT13: 2 | LU13: 0 | LV13: 0 | LW13: 0 | LX13: 0 | LY13: 0 | LZ13: 0 | MA13: 0 | MB13: 0 | MC13: 0 | MD13: 0 | ME13: 1 | MF13: 0 | MG13: 0 | MH13: 0 | MI13: 0 | MJ13: 0 | MK13: 0 | ML13: 0 | MM13: 0 | MN13: 0 | MO13: 0 | MP13: 0 | MQ13: 0 | MR13: 0 | MS13: 0 | MT13: 0 | MU13: 0 | MV13: 0 | MW13: 0 | MX13: 0 | MY13: 0 | MZ13: 0 | NA13: 0 | NB13: 0 | NC13: 0 | ND13: 0 | NE13: 0 | NF13: 0 | NG13: 1 | NH13: 0 | NI13: 0 | NJ13: 0 | NK13: 0 | NL13: 0 | NM13: 0 | NN13: 0 | NO13: 0 | NP13: 0 | NQ13: 0 | NR13: 0 | NS13: 0 | NT13: 0 | NU13: 0 | NV13: 0 | NW13: 0 | NX13: 0 | NY13: 1 | NZ13: 0 | OA13: 0 | OB13: 1 | OC13: 0 | OD13: 0 | OE13: 0 | OF13: 0 | OG13: 0 | OH13: 0 | OI13: 0 | OJ13: 0 | OK13: 0 | OL13: 0 | OM13: 0 | ON13: 0 | OO13: 0 | OP13: 0 | OQ13: 1 | OR13: 0 | OS13: 0 | OT13: 0 | OU13: 0 | OV13: 0 | OW13: 0 | OX13: 0 | OY13: 0 | OZ13: 0 | PA13: 0 | PB13: 0 | PC13: 0 | PD13: 0 | PE13: 1 | PF13: 0 | PG13: 0 | PH13: 0 | PI13: 0 | PJ13: 0 | PK13: 0 | PL13: 0 | PM13: 0 | PN13: 0 | PO13: 0 | PP13: 0 | PQ13: 0 | PR13: 0 | PS13: 0 | PT13: 0 | PU13: 0 | PV13: 0 | PW13: 0 | PX13: 0 | PY13: 0 | PZ13: 0 | QA13: 0 | QB13: 0 | QC13: 0 | QD13: 0 | QE13: 0 | QF13: 0 | QG13: 0 | QH13: 0 | QI13: 0 | QJ13: 0 | QK13: 0 | QL13: 0 | QM13: 0 | QN13: 0 | QO13: 0 | QP13: 0 | QQ13: 0 | QR13: 0 | QS13: 0 | QT13: 0 | QU13: 0 | QV13: 0 | QW13: 0 | QX13: 0 | QY13: 0 | QZ13: 0 | RA13: 0 | RB13: 0 | RC13: 0 | RD13: 0 | RE13: 0 | RF13: 0 | RG13: 0 | RH13: 0 | RI13: 0 | RJ13: 0 | RK13: 0 | RL13: 0 | RM13: 0 | RN13: 0 | RO13: 0 | RP13: 0 | RQ13: 0 | RR13: 0 | RS13: 0 | RT13: 0 | RU13: 0 | RV13: 0 | RW13: 0 | RX13: 0 | RY13: 0 | RZ13: 0 | SA13: 0 | SB13: 0 | SC13: 0 | SD13: 0 | SE13: 0 | SF13: 0 | SG13: 0 | SH13: 0 | SI13: 0 | SJ13: 0 | SK13: 0 | SL13: 0 | SM13: 0 | SN13: 0 | SO13: 0 | SP13: 0 | SQ13: 0 | SR13: 0 | SS13: 0 | ST13: 0 | SU13: 0 | SV13: 0 | SW13: 0 | SX13: 0 | SY13: 0 | SZ13: 0 | TA13: 0 | TB13: 0 | TC13: 0 | TD13: 0 | TE13: 0 | TF13: 0 | TG13: 0 | TH13: 0 | TI13: 0 | TJ13: 0 | TK13: 0 | TL13: 0 | TM13: 0 | TN13: 0 | TO13: 0 | TP13: 0 | TQ13: 0 | TR13: 0 | TS13: 0 | TT13: 0 | TU13: 0 | TV13: 0 | TW13: 0 | TX13: 0 | TY13: 0 | TZ13: 1 | UA13: 2 | UB13: 3 | UC13: 0 | UD13: 0 | UE13: 0 | UF13: 0 | UG13: 0 | UH13: 0 | UI13: 5 | UJ13: 0 | UK13: 0 | UL13: 0 | UM13: 0 | UN13: 0 | UO13: 0
A14: =HYPERLINK("https://meshb.nlm.nih.gov/record/ui?ui=" & B14,C14) -> Aspirin | B14: D001241 | C14: Aspirin | D14: 50-78-2 | E14: =HYPERLINK("https://comptox.epa.gov/dashboard/dsstoxdb/results?utf8=%E2%9C%93&search=" & F14,F14) -> DTXSID5020108 | F14: DTXSID5020108 | G14: =SUM(H14:UO14) -> 489 | H14: 8 | I14: 3 | J14: 0 | K14: 3 | L14: 2 | M14: 2 | N14: 0 | O14: 9 | P14: 4 | Q14: 1 | R14: 0 | S14: 5 | T14: 0 | U14: 80 | V14: 0 | W14: 0 | X14: 1 | Y14: 1 | Z14: 0 | AA14: 14 | AB14: 0 | AC14: 7 | AD14: 1 | AE14: 1 | AF14: 0 | AG14: 1 | AH14: 0 | AI14: 8 | AJ14: 29 | AK14: 0 | AL14: 4 | AM14: 0 | AN14: 0 | AO14: 5 | AP14: 5 | AQ14: 4 | AR14: 0 | AS14: 0 | AT14: 0 | AU14: 11 | AV14: 41 | AW14: 0 | AX14: 1 | AY14: 0 | AZ14: 0 | BA14: 0 | BB14: 0 | BC14: 1 | BD14: 1 | BE14: 3 | BF14: 3 | BG14: 0 | BH14: 11 | BI14: 0 | BJ14: 0 | BK14: 2 | BL14: 0 | BM14: 0 | BN14: 23 | BO14: 0 | BP14: 0 | BQ14: 1 | BR14: 0 | BS14: 0 | BT14: 2 | BU14: 0 | BV14: 1 | BW14: 2 | BX14: 2 | BY14: 0 | BZ14: 1 | CA14: 8 | CB14: 124 | CC14: 0 | CD14: 1 | CE14: 0 | CF14: 0 | CG14: 5 | CH14: 1 | CI14: 0 | CJ14: 0 | CK14: 0 | CL14: 0 | CM14: 1 | CN14: 0 | CO14: 0 | CP14: 2 | CQ14: 0 | CR14: 0 | CS14: 0 | CT14: 0 | CU14: 0 | CV14: 0 | CW14: 0 | CX14: 0 | CY14: 0 | CZ14: 0 | DA14: 0 | DB14: 0 | DC14: 0 | DD14: 0 | DE14: 0 | DF14: 0 | DG14: 0 | DH14: 0 | DI14: 9 | DJ14: 0 | DK14: 0 | DL14: 2 | DM14: 0 | DN14: 0 | DO14: 2 | DP14: 0 | DQ14: 0 | DR14: 2 | DS14: 0 | DT14: 0 | DU14: 0 | DV14: 0 | DW14: 0 | DX14: 0 | DY14: 0 | DZ14: 0 | EA14: 0 | EB14: 7 | EC14: 0 | ED14: 0 | EE14: 0 | EF14: 0 | EG14: 0 | EH14: 0 | EI14: 0 | EJ14: 0 | EK14: 0 | EL14: 0 | EM14: 0 | EN14: 0 | EO14: 0 | EP14: 0 | EQ14: 0 | ER14: 0 | ES14: 0 | ET14: 0 | EU14: 2 | EV14: 0 | EW14: 0 | EX14: 0 | EY14: 0 | EZ14: 0 | FA14: 0 | FB14: 0 | FC14: 0 | FD14: 0 | FE14: 0 | FF14: 0 | FG14: 0 | FH14: 0 | FI14: 0 | FJ14: 0 | FK14: 0 | FL14: 0 | FM14: 0 | FN14: 0 | FO14: 0 | FP14: 0 | FQ14: 0 | FR14: 6 | FS14: 0 | FT14: 0 | FU14: 0 | FV14: 0 | FW14: 0 | FX14: 0 | FY14: 0 | FZ14: 0 | GA14: 0 | GB14: 0 | GC14: 0 | GD14: 0 | GE14: 0 | GF14: 0 | GG14: 0 | GH14: 0 | GI14: 0 | GJ14: 0 | GK14: 0 | GL14: 0 | GM14: 0 | GN14: 0 | GO14: 0 | GP14: 0 | GQ14: 0 | GR14: 1 | GS14: 0 | GT14: 0 | GU14: 0 | GV14: 0 | GW14: 0 | GX14: 0 | GY14: 0 | GZ14: 0 | HA14: 0 | HB14: 0 | HC14: 0 | HD14: 0 | HE14: 0 | HF14: 0 | HG14: 0 | HH14: 0 | HI14: 0 | HJ14: 0 | HK14: 0 | HL14: 0 | HM14: 0 | HN14: 0 | HO14: 0 | HP14: 0 | HQ14: 0 | HR14: 0 | HS14: 0 | HT14: 0 | HU14: 0 | HV14: 0 | HW14: 0 | HX14: 0 | HY14: 0 | HZ14: 0 | IA14: 0 | IB14: 0 | IC14: 1 | ID14: 0 | IE14: 0 | IF14: 0 | IG14: 0 | IH14: 0 | II14: 0 | IJ14: 0 | IK14: 0 | IL14: 0 | IM14: 0 | IN14: 0 | IO14: 0 | IP14: 0 | IQ14: 0 | IR14: 1 | IS14: 0 | IT14: 0 | IU14: 0 | IV14: 0 | IW14: 0 | IX14: 0 | IY14: 0 | IZ14: 0 | JA14: 0 | JB14: 0 | JC14: 0 | JD14: 0 | JE14: 0 | JF14: 0 | JG14: 0 | JH14: 0 | JI14: 0 | JJ14: 0 | JK14: 0 | JL14: 0 | JM14: 0 | JN14: 0 | JO14: 0 | JP14: 0 | JQ14: 0 | JR14: 0 | JS14: 0 | JT14: 1 | JU14: 1 | JV14: 0 | JW14: 0 | JX14: 0 | JY14: 0 | JZ14: 0 | KA14: 0 | KB14: 0 | KC14: 0 | KD14: 0 | KE14: 0 | KF14: 0 | KG14: 0 | KH14: 0 | KI14: 0 | KJ14: 0 | KK14: 0 | KL14: 0 | KM14: 0 | KN14: 0 | KO14: 0 | KP14: 0 | KQ14: 0 | KR14: 0 | KS14: 0 | KT14: 0 | KU14: 0 | KV14: 0 | KW14: 0 | KX14: 0 | KY14: 0 | KZ14: 0 | LA14: 0 | LB14: 0 | LC14: 1 | LD14: 0 | LE14: 0 | LF14: 0 | LG14: 0 | LH14: 0 | LI14: 0 | LJ14: 0 | LK14: 0 | LL14: 0 | LM14: 0 | LN14: 0 | LO14: 1 | LP14: 0 | LQ14: 0 | LR14: 0 | LS14: 0 | LT14: 0 | LU14: 0 | LV14: 0 | LW14: 0 | LX14: 0 | LY14: 0 | LZ14: 0 | MA14: 0 | MB14: 0 | MC14: 0 | MD14: 0 | ME14: 0 | MF14: 0 | MG14: 0 | MH14: 0 | MI14: 0 | MJ14: 0 | MK14: 0 | ML14: 0 | MM14: 0 | MN14: 0 | MO14: 0 | MP14: 0 | MQ14: 0 | MR14: 0 | MS14: 0 | MT14: 0 | MU14: 0 | MV14: 0 | MW14: 0 | MX14: 0 | MY14: 0 | MZ14: 0 | NA14: 0 | NB14: 0 | NC14: 0 | ND14: 0 | NE14: 0 | NF14: 0 | NG14: 0 | NH14: 0 | NI14: 0 | NJ14: 0 | NK14: 0 | NL14: 0 | NM14: 0 | NN14: 0 | NO14: 0 | NP14: 0 | NQ14: 0 | NR14: 0 | NS14: 0 | NT14: 0 | NU14: 0 | NV14: 0 | NW14: 0 | NX14: 0 | NY14: 0 | NZ14: 0 | OA14: 0 | OB14: 0 | OC14: 0 | OD14: 0 | OE14: 0 | OF14: 0 | OG14: 0 | OH14: 0 | OI14: 0 | OJ14: 0 | OK14: 0 | OL14: 0 | OM14: 0 | ON14: 0 | OO14: 0 | OP14: 1 | OQ14: 0 | OR14: 0 | OS14: 0 | OT14: 0 | OU14: 0 | OV14: 0 | OW14: 0 | OX14: 0 | OY14: 0 | OZ14: 0 | PA14: 0 | PB14: 0 | PC14: 0 | PD14: 0 | PE14: 0 | PF14: 0 | PG14: 0 | PH14: 0 | PI14: 0 | PJ14: 0 | PK14: 0 | PL14: 0 | PM14: 0 | PN14: 0 | PO14: 0 | PP14: 0 | PQ14: 0 | PR14: 0 | PS14: 0 | PT14: 0 | PU14: 0 | PV14: 0 | PW14: 0 | PX14: 0 | PY14: 0 | PZ14: 0 | QA14: 0 | QB14: 0 | QC14: 0 | QD14: 0 | QE14: 0 | QF14: 0 | QG14: 0 | QH14: 0 | QI14: 0 | QJ14: 0 | QK14: 0 | QL14: 0 | QM14: 0 | QN14: 0 | QO14: 0 | QP14: 0 | QQ14: 0 | QR14: 0 | QS14: 0 | QT14: 0 | QU14: 0 | QV14: 0 | QW14: 0 | QX14: 0 | QY14: 0 | QZ14: 0 | RA14: 0 | RB14: 0 | RC14: 0 | RD14: 0 | RE14: 0 | RF14: 0 | RG14: 0 | RH14: 0 | RI14: 0 | RJ14: 0 | RK14: 0 | RL14: 0 | RM14: 0 | RN14: 0 | RO14: 0 | RP14: 0 | RQ14: 0 | RR14: 0 | RS14: 0 | RT14: 0 | RU14: 0 | RV14: 0 | RW14: 0 | RX14: 0 | RY14: 0 | RZ14: 0 | SA14: 0 | SB14: 0 | SC14: 0 | SD14: 0 | SE14: 0 | SF14: 0 | SG14: 0 | SH14: 0 | SI14: 0 | SJ14: 0 | SK14: 0 | SL14: 0 | SM14: 0 | SN14: 0 | SO14: 0 | SP14: 0 | SQ14: 0 | SR14: 0 | SS14: 0 | ST14: 0 | SU14: 0 | SV14: 0 | SW14: 0 | SX14: 0 | SY14: 0 | SZ14: 0 | TA14: 0 | TB14: 0 | TC14: 0 | TD14: 0 | TE14: 0 | TF14: 0 | TG14: 0 | TH14: 0 | TI14: 0 | TJ14: 0 | TK14: 0 | TL14: 0 | TM14: 0 | TN14: 0 | TO14: 0 | TP14: 0 | TQ14: 0 | TR14: 0 | TS14: 0 | TT14: 0 | TU14: 0 | TV14: 0 | TW14: 0 | TX14: 0 | TY14: 0 | TZ14: 0 | UA14: 0 | UB14: 1 | UC14: 0 | UD14: 0 | UE14: 2 | UF14: 1 | UG14: 0 | UH14: 0 | UI14: 1 | UJ14: 0 | UK14: 0 | UL14: 0 | UM14: 0 | UN14: 0 | UO14: 0
A15: =HYPERLINK("https://meshb.nlm.nih.gov/record/ui?ui=" & B15,C15) -> Paclitaxel | B15: D017239 | C15: Paclitaxel | D15: 33069-62-4 | E15: =HYPERLINK("https://comptox.epa.gov/dashboard/dsstoxdb/results?utf8=%E2%9C%93&search=" & F15,F15) -> DTXSID9023413 | F15: DTXSID9023413 | G15: =SUM(H15:UO15) -> 485 | H15: 4 | I15: 43 | J15: 217 | K15: 9 | L15: 14 | M15: 0 | N15: 0 | O15: 0 | P15: 0 | Q15: 0 | R15: 1 | S15: 2 | T15: 0 | U15: 0 | V15: 13 | W15: 0 | X15: 0 | Y15: 4 | Z15: 0 | AA15: 0 | AB15: 0 | AC15: 1 | AD15: 0 | AE15: 1 | AF15: 53 | AG15: 1 | AH15: 0 | AI15: 1 | AJ15: 0 | AK15: 0 | AL15: 3 | AM15: 7 | AN15: 0 | AO15: 0 | AP15: 3 | AQ15: 0 | AR15: 1 | AS15: 0 | AT15: 1 | AU15: 0 | AV15: 0 | AW15: 0 | AX15: 4 | AY15: 0 | AZ15: 0 | BA15: 0 | BB15: 0 | BC15: 0 | BD15: 1 | BE15: 0 | BF15: 0 | BG15: 1 | BH15: 1 | BI15: 0 | BJ15: 0 | BK15: 1 | BL15: 0 | BM15: 0 | BN15: 0 | BO15: 1 | BP15: 0 | BQ15: 0 | BR15: 0 | BS15: 0 | BT15: 0 | BU15: 53 | BV15: 0 | BW15: 0 | BX15: 0 | BY15: 0 | BZ15: 1 | CA15: 0 | CB15: 0 | CC15: 9 | CD15: 0 | CE15: 0 | CF15: 0 | CG15: 2 | CH15: 0 | CI15: 2 | CJ15: 0 | CK15: 2 | CL15: 2 | CM15: 0 | CN15: 0 | CO15: 0 | CP15: 0 | CQ15: 0 | CR15: 0 | CS15: 1 | CT15: 0 | CU15: 0 | CV15: 0 | CW15: 0 | CX15: 0 | CY15: 0 | CZ15: 0 | DA15: 0 | DB15: 0 | DC15: 0 | DD15: 0 | DE15: 0 | DF15: 0 | DG15: 0 | DH15: 0 | DI15: 0 | DJ15: 0 | DK15: 0 | DL15: 1 | DM15: 2 | DN15: 0 | DO15: 0 | DP15: 1 | DQ15: 0 | DR15: 0 | DS15: 0 | DT15: 0 | DU15: 0 | DV15: 2 | DW15: 0 | DX15: 0 | DY15: 0 | DZ15: 0 | EA15: 1 | EB15: 0 | EC15: 0 | ED15: 0 | EE15: 0 | EF15: 0 | EG15: 0 | EH15: 0 | EI15: 0 | EJ15: 0 | EK15: 2 | EL15: 0 | EM15: 0 | EN15: 0 | EO15: 0 | EP15: 0 | EQ15: 0 | ER15: 0 | ES15: 0 | ET15: 0 | EU15: 1 | EV15: 0 | EW15: 0 | EX15: 0 | EY15: 0 | EZ15: 2 | FA15: 0 | FB15: 0 | FC15: 0 | FD15: 0 | FE15: 0 | FF15: 0 | FG15: 0 | FH15: 0 | FI15: 0 | FJ15: 0 | FK15: 0 | FL15: 0 | FM15: 0 | FN15: 0 | FO15: 0 | FP15: 0 | FQ15: 0 | FR15: 0 | FS15: 2 | FT15: 0 | FU15: 0 | FV15: 0 | FW15: 0 | FX15: 0 | FY15: 0 | FZ15: 0 | GA15: 0 | GB15: 0 | GC15: 0 | GD15: 0 | GE15: 0 | GF15: 0 | GG15: 0 | GH15: 0 | GI15: 0 | GJ15: 0 | GK15: 0 | GL15: 0 | GM15: 0 | GN15: 0 | GO15: 0 | GP15: 0 | GQ15: 0 | GR15: 0 | GS15: 0 | GT15: 0 | GU15: 0 | GV15: 0 | GW15: 0 | GX15: 0 | GY15: 0 | GZ15: 0 | HA15: 0 | HB15: 0 | HC15: 0 | HD15: 0 | HE15: 0 | HF15: 0 | HG15: 0 | HH15: 0 | HI15: 0 | HJ15: 0 | HK15: 0 | HL15: 0 | HM15: 0 | HN15: 0 | HO15: 0 | HP15: 0 | HQ15: 0 | HR15: 0 | HS15: 0 | HT15: 0 | HU15: 0 | HV15: 1 | HW15: 0 | HX15: 0 | HY15: 0 | HZ15: 0 | IA15: 0 | IB15: 0 | IC15: 0 | ID15: 0 | IE15: 0 | IF15: 0 | IG15: 0 | IH15: 0 | II15: 1 | IJ15: 0 | IK15: 0 | IL15: 0 | IM15: 0 | IN15: 0 | IO15: 0 | IP15: 0 | IQ15: 0 | IR15: 0 | IS15: 0 | IT15: 0 | IU15: 0 | IV15: 0 | IW15: 0 | IX15: 0 | IY15: 0 | IZ15: 0 | JA15: 0 | JB15: 0 | JC15: 0 | JD15: 0 | JE15: 0 | JF15: 0 | JG15: 0 | JH15: 0 | JI15: 0 | JJ15: 1 | JK15: 0 | JL15: 0 | JM15: 0 | JN15: 0 | JO15: 0 | JP15: 0 | JQ15: 0 | JR15: 0 | JS15: 0 | JT15: 0 | JU15: 0 | JV15: 0 | JW15: 0 | JX15: 0 | JY15: 0 | JZ15: 0 | KA15: 0 | KB15: 0 | KC15: 0 | KD15: 0 | KE15: 0 | KF15: 0 | KG15: 0 | KH15: 0 | KI15: 0 | KJ15: 0 | KK15: 0 | KL15: 0 | KM15: 0 | KN15: 0 | KO15: 1 | KP15: 0 | KQ15: 0 | KR15: 0 | KS15: 0 | KT15: 0 | KU15: 0 | KV15: 0 | KW15: 0 | KX15: 0 | KY15: 0 | KZ15: 0 | LA15: 0 | LB15: 0 | LC15: 0 | LD15: 0 | LE15: 0 | LF15: 0 | LG15: 0 | LH15: 0 | LI15: 0 | LJ15: 0 | LK15: 0 | LL15: 0 | LM15: 0 | LN15: 0 | LO15: 0 | LP15: 0 | LQ15: 0 | LR15: 0 | LS15: 0 | LT15: 0 | LU15: 0 | LV15: 0 | LW15: 0 | LX15: 0 | LY15: 0 | LZ15: 0 | MA15: 0 | MB15: 0 | MC15: 0 | MD15: 0 | ME15: 0 | MF15: 0 | MG15: 0 | MH15: 0 | MI15: 0 | MJ15: 0 | MK15: 0 | ML15: 0 | MM15: 0 | MN15: 0 | MO15: 0 | MP15: 0 | MQ15: 0 | MR15: 0 | MS15: 0 | MT15: 0 | MU15: 0 | MV15: 0 | MW15: 0 | MX15: 0 | MY15: 0 | MZ15: 0 | NA15: 0 | NB15: 0 | NC15: 0 | ND15: 0 | NE15: 0 | NF15: 0 | NG15: 0 | NH15: 0 | NI15: 0 | NJ15: 0 | NK15: 0 | NL15: 0 | NM15: 0 | NN15: 0 | NO15: 0 | NP15: 0 | NQ15: 0 | NR15: 0 | NS15: 0 | NT15: 0 | NU15: 0 | NV15: 1 | NW15: 0 | NX15: 0 | NY15: 0 | NZ15: 0 | OA15: 0 | OB15: 0 | OC15: 0 | OD15: 0 | OE15: 0 | OF15: 0 | OG15: 0 | OH15: 0 | OI15: 0 | OJ15: 0 | OK15: 0 | OL15: 0 | OM15: 0 | ON15: 0 | OO15: 0 | OP15: 0 | OQ15: 0 | OR15: 0 | OS15: 0 | OT15: 0 | OU15: 0 | OV15: 0 | OW15: 0 | OX15: 0 | OY15: 0 | OZ15: 0 | PA15: 0 | PB15: 0 | PC15: 0 | PD15: 0 | PE15: 0 | PF15: 0 | PG15: 0 | PH15: 0 | PI15: 0 | PJ15: 0 | PK15: 0 | PL15: 0 | PM15: 0 | PN15: 0 | PO15: 0 | PP15: 0 | PQ15: 0 | PR15: 0 | PS15: 0 | PT15: 0 | PU15: 0 | PV15: 0 | PW15: 0 | PX15: 0 | PY15: 0 | PZ15: 0 | QA15: 0 | QB15: 0 | QC15: 0 | QD15: 0 | QE15: 0 | QF15: 0 | QG15: 0 | QH15: 0 | QI15: 0 | QJ15: 0 | QK15: 0 | QL15: 1 | QM15: 0 | QN15: 0 | QO15: 0 | QP15: 0 | QQ15: 0 | QR15: 0 | QS15: 0 | QT15: 0 | QU15: 0 | QV15: 0 | QW15: 0 | QX15: 0 | QY15: 0 | QZ15: 0 | RA15: 0 | RB15: 0 | RC15: 0 | RD15: 0 | RE15: 0 | RF15: 0 | RG15: 0 | RH15: 0 | RI15: 0 | RJ15: 0 | RK15: 0 | RL15: 0 | RM15: 0 | RN15: 0 | RO15: 0 | RP15: 0 | RQ15: 0 | RR15: 0 | RS15: 0 | RT15: 0 | RU15: 0 | RV15: 0 | RW15: 0 | RX15: 0 | RY15: 0 | RZ15: 0 | SA15: 0 | SB15: 0 | SC15: 0 | SD15: 0 | SE15: 0 | SF15: 0 | SG15: 0 | SH15: 0 | SI15: 0 | SJ15: 0 | SK15: 0 | SL15: 0 | SM15: 0 | SN15: 0 | SO15: 0 | SP15: 0 | SQ15: 0 | SR15: 0 | SS15: 0 | ST15: 0 | SU15: 0 | SV15: 0 | SW15: 0 | SX15: 0 | SY15: 0 | SZ15: 0 | TA15: 0 | TB15: 0 | TC15: 0 | TD15: 0 | TE15: 0 | TF15: 0 | TG15: 0 | TH15: 0 | TI15: 0 | TJ15: 0 | TK15: 0 | TL15: 0 | TM15: 0 | TN15: 0 | TO15: 0 | TP15: 0 | TQ15: 0 | TR15: 0 | TS15: 0 | TT15: 0 | TU15: 0 | TV15: 0 | TW15: 0 | TX15: 0 | TY15: 0 | TZ15: 0 | UA15: 0 | UB15: 0 | UC15: 0 | UD15: 0 | UE15: 0 | UF15: 0 | UG15: 0 | UH15: 0 | UI15: 4 | UJ15: 0 | UK15: 1 | UL15: 0 | UM15: 0 | UN15: 0 | UO15: 0
A16: =HYPERLINK("https://meshb.nlm.nih.gov/record/ui?ui=" & B16,C16) -> Aluminum | B16: D000535 | C16: Aluminum | D16: 7429-90-5 | E16: =HYPERLINK("https://comptox.epa.gov/dashboard/dsstoxdb/results?utf8=%E2%9C%93&search=" & F16,F16) -> DTXSID3040273 | F16: DTXSID3040273 | G16: =SUM(H16:UO16) -> 477 | H16: 13 | I16: 41 | J16: 1 | K16: 105 | L16: 4 | M16: 0 | N16: 0 | O16: 1 | P16: 0 | Q16: 1 | R16: 13 | S16: 12 | T16: 0 | U16: 0 | V16: 0 | W16: 0 | X16: 4 | Y16: 1 | Z16: 2 | AA16: 0 | AB16: 1 | AC16: 1 | AD16: 2 | AE16: 0 | AF16: 0 | AG16: 1 | AH16: 0 | AI16: 0 | AJ16: 0 | AK16: 0 | AL16: 0 | AM16: 1 | AN16: 0 | AO16: 0 | AP16: 0 | AQ16: 1 | AR16: 0 | AS16: 0 | AT16: 0 | AU16: 1 | AV16: 0 | AW16: 0 | AX16: 3 | AY16: 0 | AZ16: 147 | BA16: 0 | BB16: 3 | BC16: 0 | BD16: 2 | BE16: 0 | BF16: 0 | BG16: 0 | BH16: 1 | BI16: 0 | BJ16: 0 | BK16: 1 | BL16: 0 | BM16: 0 | BN16: 0 | BO16: 0 | BP16: 1 | BQ16: 0 | BR16: 0 | BS16: 0 | BT16: 0 | BU16: 0 | BV16: 18 | BW16: 0 | BX16: 49 | BY16: 1 | BZ16: 0 | CA16: 0 | CB16: 0 | CC16: 0 | CD16: 0 | CE16: 0 | CF16: 1 | CG16: 0 | CH16: 0 | CI16: 2 | CJ16: 2 | CK16: 1 | CL16: 0 | CM16: 0 | CN16: 0 | CO16: 0 | CP16: 0 | CQ16: 1 | CR16: 1 | CS16: 0 | CT16: 0 | CU16: 0 | CV16: 0 | CW16: 5 | CX16: 0 | CY16: 0 | CZ16: 0 | DA16: 3 | DB16: 0 | DC16: 3 | DD16: 0 | DE16: 0 | DF16: 0 | DG16: 0 | DH16: 0 | DI16: 0 | DJ16: 0 | DK16: 0 | DL16: 0 | DM16: 0 | DN16: 0 | DO16: 0 | DP16: 0 | DQ16: 1 | DR16: 0 | DS16: 1 | DT16: 0 | DU16: 0 | DV16: 0 | DW16: 0 | DX16: 0 | DY16: 1 | DZ16: 0 | EA16: 0 | EB16: 0 | EC16: 0 | ED16: 0 | EE16: 0 | EF16: 0 | EG16: 0 | EH16: 0 | EI16: 0 | EJ16: 0 | EK16: 0 | EL16: 0 | EM16: 0 | EN16: 0 | EO16: 0 | EP16: 0 | EQ16: 0 | ER16: 0 | ES16: 0 | ET16: 0 | EU16: 0 | EV16: 1 | EW16: 0 | EX16: 0 | EY16: 5 | EZ16: 0 | FA16: 1 | FB16: 0 | FC16: 0 | FD16: 0 | FE16: 0 | FF16: 0 | FG16: 0 | FH16: 0 | FI16: 0 | FJ16: 1 | FK16: 0 | FL16: 0 | FM16: 0 | FN16: 0 | FO16: 0 | FP16: 1 | FQ16: 0 | FR16: 0 | FS16: 3 | FT16: 0 | FU16: 0 | FV16: 0 | FW16: 0 | FX16: 0 | FY16: 0 | FZ16: 0 | GA16: 0 | GB16: 0 | GC16: 0 | GD16: 0 | GE16: 0 | GF16: 0 | GG16: 0 | GH16: 0 | GI16: 0 | GJ16: 0 | GK16: 0 | GL16: 0 | GM16: 0 | GN16: 0 | GO16: 0 | GP16: 1 | GQ16: 0 | GR16: 0 | GS16: 0 | GT16: 0 | GU16: 4 | GV16: 0 | GW16: 0 | GX16: 0 | GY16: 0 | GZ16: 0 | HA16: 0 | HB16: 0 | HC16: 0 | HD16: 0 | HE16: 0 | HF16: 0 | HG16: 0 | HH16: 0 | HI16: 0 | HJ16: 0 | HK16: 0 | HL16: 0 | HM16: 0 | HN16: 0 | HO16: 0 | HP16: 0 | HQ16: 0 | HR16: 0 | HS16: 0 | HT16: 0 | HU16: 0 | HV16: 0 | HW16: 0 | HX16: 0 | HY16: 0 | HZ16: 0 | IA16: 0 | IB16: 1 | IC16: 0 | ID16: 0 | IE16: 0 | IF16: 0 | IG16: 0 | IH16: 0 | II16: 0 | IJ16: 0 | IK16: 0 | IL16: 0 | IM16: 0 | IN16: 0 | IO16: 0 | IP16: 0 | IQ16: 1 | IR16: 0 | IS16: 0 | IT16: 0 | IU16: 0 | IV16: 0 | IW16: 0 | IX16: 0 | IY16: 0 | IZ16: 0 | JA16: 0 | JB16: 0 | JC16: 0 | JD16: 0 | JE16: 0 | JF16: 0 | JG16: 0 | JH16: 0 | JI16: 0 | JJ16: 0 | JK16: 0 | JL16: 0 | JM16: 0 | JN16: 0 | JO16: 0 | JP16: 0 | JQ16: 0 | JR16: 1 | JS16: 0 | JT16: 0 | JU16: 0 | JV16: 0 | JW16: 0 | JX16: 0 | JY16: 0 | JZ16: 0 | KA16: 0 | KB16: 0 | KC16: 0 | KD16: 0 | KE16: 1 | KF16: 0 | KG16: 0 | KH16: 0 | KI16: 0 | KJ16: 0 | KK16: 0 | KL16: 0 | KM16: 0 | KN16: 0 | KO16: 0 | KP16: 0 | KQ16: 0 | KR16: 0 | KS16: 0 | KT16: 0 | KU16: 0 | KV16: 0 | KW16: 0 | KX16: 0 | KY16: 0 | KZ16: 0 | LA16: 0 | LB16: 0 | LC16: 0 | LD16: 0 | LE16: 0 | LF16: 0 | LG16: 0 | LH16: 0 | LI16: 0 | LJ16: 0 | LK16: 0 | LL16: 0 | LM16: 0 | LN16: 0 | LO16: 0 | LP16: 0 | LQ16: 0 | LR16: 0 | LS16: 0 | LT16: 0 | LU16: 0 | LV16: 0 | LW16: 0 | LX16: 0 | LY16: 0 | LZ16: 0 | MA16: 0 | MB16: 0 | MC16: 0 | MD16: 0 | ME16: 0 | MF16: 0 | MG16: 0 | MH16: 0 | MI16: 0 | MJ16: 0 | MK16: 0 | ML16: 0 | MM16: 0 | MN16: 0 | MO16: 0 | MP16: 0 | MQ16: 0 | MR16: 0 | MS16: 0 | MT16: 0 | MU16: 0 | MV16: 0 | MW16: 0 | MX16: 0 | MY16: 1 | MZ16: 0 | NA16: 0 | NB16: 0 | NC16: 0 | ND16: 0 | NE16: 0 | NF16: 0 | NG16: 0 | NH16: 0 | NI16: 0 | NJ16: 0 | NK16: 0 | NL16: 0 | NM16: 0 | NN16: 0 | NO16: 0 | NP16: 0 | NQ16: 0 | NR16: 0 | NS16: 0 | NT16: 0 | NU16: 0 | NV16: 0 | NW16: 0 | NX16: 0 | NY16: 0 | NZ16: 0 | OA16: 0 | OB16: 0 | OC16: 0 | OD16: 0 | OE16: 0 | OF16: 0 | OG16: 0 | OH16: 0 | OI16: 0 | OJ16: 0 | OK16: 0 | OL16: 0 | OM16: 0 | ON16: 0 | OO16: 0 | OP16: 0 | OQ16: 0 | OR16: 0 | OS16: 0 | OT16: 0 | OU16: 0 | OV16: 0 | OW16: 0 | OX16: 0 | OY16: 0 | OZ16: 0 | PA16: 0 | PB16: 0 | PC16: 0 | PD16: 0 | PE16: 0 | PF16: 0 | PG16: 0 | PH16: 0 | PI16: 0 | PJ16: 0 | PK16: 0 | PL16: 0 | PM16: 0 | PN16: 0 | PO16: 0 | PP16: 0 | PQ16: 0 | PR16: 0 | PS16: 0 | PT16: 0 | PU16: 0 | PV16: 0 | PW16: 0 | PX16: 0 | PY16: 0 | PZ16: 0 | QA16: 0 | QB16: 0 | QC16: 0 | QD16: 0 | QE16: 0 | QF16: 0 | QG16: 0 | QH16: 0 | QI16: 0 | QJ16: 0 | QK16: 0 | QL16: 0 | QM16: 0 | QN16: 0 | QO16: 0 | QP16: 0 | QQ16: 0 | QR16: 0 | QS16: 0 | QT16: 0 | QU16: 0 | QV16: 0 | QW16: 0 | QX16: 0 | QY16: 0 | QZ16: 0 | RA16: 0 | RB16: 0 | RC16: 0 | RD16: 0 | RE16: 0 | RF16: 0 | RG16: 1 | RH16: 0 | RI16: 0 | RJ16: 0 | RK16: 0 | RL16: 0 | RM16: 0 | RN16: 0 | RO16: 0 | RP16: 0 | RQ16: 0 | RR16: 0 | RS16: 0 | RT16: 0 | RU16: 0 | RV16: 0 | RW16: 0 | RX16: 0 | RY16: 0 | RZ16: 0 | SA16: 0 | SB16: 0 | SC16: 0 | SD16: 0 | SE16: 0 | SF16: 0 | SG16: 0 | SH16: 0 | SI16: 0 | SJ16: 0 | SK16: 0 | SL16: 0 | SM16: 0 | SN16: 0 | SO16: 0 | SP16: 0 | SQ16: 0 | SR16: 0 | SS16: 0 | ST16: 0 | SU16: 0 | SV16: 0 | SW16: 0 | SX16: 0 | SY16: 0 | SZ16: 0 | TA16: 0 | TB16: 0 | TC16: 0 | TD16: 0 | TE16: 0 | TF16: 0 | TG16: 0 | TH16: 0 | TI16: 0 | TJ16: 0 | TK16: 0 | TL16: 0 | TM16: 0 | TN16: 0 | TO16: 0 | TP16: 0 | TQ16: 0 | TR16: 0 | TS16: 0 | TT16: 0 | TU16: 0 | TV16: 0 | TW16: 0 | TX16: 0 | TY16: 0 | TZ16: 0 | UA16: 0 | UB16: 0 | UC16: 0 | UD16: 0 | UE16: 0 | UF16: 0 | UG16: 0 | UH16: 0 | UI16: 0 | UJ16: 0 | UK16: 0 | UL16: 0 | UM16: 0 | UN16: 0 | UO16: 0
A17: =HYPERLINK("https://meshb.nlm.nih.gov/record/ui?ui=" & B17,C17) -> Lidocaine | B17: D008012 | C17: Lidocaine | D17: 6108-05-0 | E17: =HYPERLINK("https://comptox.epa.gov/dashboard/dsstoxdb/results?utf8=%E2%9C%93&search=" & F17,F17) -> DTXSID80209953 | F17: DTXSID80209953 | G17: =SUM(H17:UO17) -> 464 | H17: 150 | I17: 26 | J17: 15 | K17: 3 | L17: 2 | M17: 0 | N17: 0 | O17: 8 | P17: 4 | Q17: 6 | R17: 2 | S17: 10 | T17: 3 | U17: 0 | V17: 7 | W17: 0 | X17: 2 | Y17: 4 | Z17: 6 | AA17: 0 | AB17: 8 | AC17: 3 | AD17: 2 | AE17: 1 | AF17: 5 | AG17: 16 | AH17: 0 | AI17: 0 | AJ17: 0 | AK17: 13 | AL17: 0 | AM17: 0 | AN17: 0 | AO17: 7 | AP17: 0 | AQ17: 0 | AR17: 1 | AS17: 0 | AT17: 1 | AU17: 0 | AV17: 0 | AW17: 0 | AX17: 0 | AY17: 0 | AZ17: 0 | BA17: 0 | BB17: 1 | BC17: 4 | BD17: 0 | BE17: 0 | BF17: 3 | BG17: 0 | BH17: 0 | BI17: 0 | BJ17: 1 | BK17: 1 | BL17: 0 | BM17: 0 | BN17: 4 | BO17: 5 | BP17: 1 | BQ17: 4 | BR17: 1 | BS17: 0 | BT17: 3 | BU17: 2 | BV17: 0 | BW17: 0 | BX17: 0 | BY17: 0 | BZ17: 2 | CA17: 0 | CB17: 0 | CC17: 11 | CD17: 0 | CE17: 0 | CF17: 0 | CG17: 0 | CH17: 2 | CI17: 1 | CJ17: 0 | CK17: 0 | CL17: 2 | CM17: 0 | CN17: 2 | CO17: 0 | CP17: 0 | CQ17: 0 | CR17: 1 | CS17: 13 | CT17: 0 | CU17: 2 | CV17: 0 | CW17: 2 | CX17: 0 | CY17: 0 | CZ17: 0 | DA17: 1 | DB17: 0 | DC17: 0 | DD17: 0 | DE17: 1 | DF17: 0 | DG17: 6 | DH17: 0 | DI17: 0 | DJ17: 0 | DK17: 0 | DL17: 1 | DM17: 2 | DN17: 0 | DO17: 0 | DP17: 0 | DQ17: 0 | DR17: 0 | DS17: 0 | DT17: 0 | DU17: 0 | DV17: 0 | DW17: 0 | DX17: 0 | DY17: 0 | DZ17: 1 | EA17: 2 | EB17: 0 | EC17: 0 | ED17: 0 | EE17: 0 | EF17: 1 | EG17: 5 | EH17: 0 | EI17: 0 | EJ17: 1 | EK17: 5 | EL17: 0 | EM17: 1 | EN17: 0 | EO17: 1 | EP17: 1 | EQ17: 0 | ER17: 0 | ES17: 0 | ET17: 1 | EU17: 0 | EV17: 0 | EW17: 0 | EX17: 0 | EY17: 0 | EZ17: 0 | FA17: 0 | FB17: 0 | FC17: 0 | FD17: 0 | FE17: 0 | FF17: 0 | FG17: 0 | FH17: 1 | FI17: 4 | FJ17: 0 | FK17: 0 | FL17: 0 | FM17: 0 | FN17: 0 | FO17: 0 | FP17: 0 | FQ17: 0 | FR17: 0 | FS17: 0 | FT17: 0 | FU17: 0 | FV17: 1 | FW17: 0 | FX17: 0 | FY17: 0 | FZ17: 0 | GA17: 1 | GB17: 0 | GC17: 0 | GD17: 1 | GE17: 0 | GF17: 0 | GG17: 0 | GH17: 0 | GI17: 0 | GJ17: 0 | GK17: 0 | GL17: 0 | GM17: 0 | GN17: 0 | GO17: 1 | GP17: 0 | GQ17: 0 | GR17: 1 | GS17: 0 | GT17: 13 | GU17: 0 | GV17: 0 | GW17: 0 | GX17: 0 | GY17: 1 | GZ17: 0 | HA17: 0 | HB17: 1 | HC17: 3 | HD17: 0 | HE17: 5 | HF17: 0 | HG17: 0 | HH17: 0 | HI17: 0 | HJ17: 0 | HK17: 0 | HL17: 0 | HM17: 0 | HN17: 0 | HO17: 0 | HP17: 0 | HQ17: 0 | HR17: 0 | HS17: 0 | HT17: 0 | HU17: 0 | HV17: 0 | HW17: 0 | HX17: 0 | HY17: 0 | HZ17: 0 | IA17: 0 | IB17: 0 | IC17: 0 | ID17: 0 | IE17: 0 | IF17: 0 | IG17: 0 | IH17: 0 | II17: 0 | IJ17: 0 | IK17: 0 | IL17: 0 | IM17: 0 | IN17: 0 | IO17: 0 | IP17: 0 | IQ17: 0 | IR17: 0 | IS17: 0 | IT17: 0 | IU17: 0 | IV17: 0 | IW17: 2 | IX17: 0 | IY17: 0 | IZ17: 0 | JA17: 0 | JB17: 0 | JC17: 0 | JD17: 0 | JE17: 0 | JF17: 0 | JG17: 0 | JH17: 0 | JI17: 0 | JJ17: 0 | JK17: 0 | JL17: 0 | JM17: 0 | JN17: 0 | JO17: 0 | JP17: 0 | JQ17: 0 | JR17: 0 | JS17: 0 | JT17: 0 | JU17: 0 | JV17: 0 | JW17: 0 | JX17: 0 | JY17: 0 | JZ17: 0 | KA17: 0 | KB17: 0 | KC17: 0 | KD17: 0 | KE17: 0 | KF17: 0 | KG17: 0 | KH17: 0 | KI17: 0 | KJ17: 0 | KK17: 1 | KL17: 0 | KM17: 0 | KN17: 1 | KO17: 0 | KP17: 0 | KQ17: 0 | KR17: 0 | KS17: 0 | KT17: 0 | KU17: 0 | KV17: 0 | KW17: 0 | KX17: 0 | KY17: 0 | KZ17: 0 | LA17: 0 | LB17: 1 | LC17: 0 | LD17: 0 | LE17: 0 | LF17: 0 | LG17: 0 | LH17: 0 | LI17: 0 | LJ17: 0 | LK17: 0 | LL17: 0 | LM17: 0 | LN17: 0 | LO17: 0 | LP17: 0 | LQ17: 0 | LR17: 0 | LS17: 0 | LT17: 0 | LU17: 0 | LV17: 0 | LW17: 0 | LX17: 0 | LY17: 0 | LZ17: 0 | MA17: 0 | MB17: 0 | MC17: 0 | MD17: 0 | ME17: 0 | MF17: 0 | MG17: 0 | MH17: 0 | MI17: 0 | MJ17: 0 | MK17: 0 | ML17: 0 | MM17: 0 | MN17: 0 | MO17: 0 | MP17: 0 | MQ17: 0 | MR17: 0 | MS17: 0 | MT17: 0 | MU17: 0 | MV17: 0 | MW17: 2 | MX17: 0 | MY17: 0 | MZ17: 0 | NA17: 0 | NB17: 0 | NC17: 0 | ND17: 0 | NE17: 0 | NF17: 0 | NG17: 0 | NH17: 0 | NI17: 0 | NJ17: 0 | NK17: 0 | NL17: 0 | NM17: 0 | NN17: 0 | NO17: 0 | NP17: 0 | NQ17: 0 | NR17: 0 | NS17: 0 | NT17: 0 | NU17: 0 | NV17: 0 | NW17: 0 | NX17: 0 | NY17: 0 | NZ17: 0 | OA17: 0 | OB17: 0 | OC17: 1 | OD17: 1 | OE17: 0 | OF17: 0 | OG17: 0 | OH17: 0 | OI17: 0 | OJ17: 0 | OK17: 0 | OL17: 0 | OM17: 0 | ON17: 0 | OO17: 0 | OP17: 0 | OQ17: 0 | OR17: 0 | OS17: 0 | OT17: 0 | OU17: 0 | OV17: 0 | OW17: 0 | OX17: 0 | OY17: 0 | OZ17: 0 | PA17: 0 | PB17: 0 | PC17: 0 | PD17: 0 | PE17: 0 | PF17: 0 | PG17: 0 | PH17: 0 | PI17: 0 | PJ17: 0 | PK17: 0 | PL17: 0 | PM17: 0 | PN17: 0 | PO17: 0 | PP17: 0 | PQ17: 0 | PR17: 0 | PS17: 0 | PT17: 0 | PU17: 0 | PV17: 0 | PW17: 0 | PX17: 0 | PY17: 0 | PZ17: 0 | QA17: 0 | QB17: 0 | QC17: 0 | QD17: 0 | QE17: 0 | QF17: 0 | QG17: 0 | QH17: 0 | QI17: 0 | QJ17: 0 | QK17: 0 | QL17: 0 | QM17: 0 | QN17: 0 | QO17: 0 | QP17: 0 | QQ17: 0 | QR17: 0 | QS17: 0 | QT17: 0 | QU17: 0 | QV17: 0 | QW17: 0 | QX17: 0 | QY17: 0 | QZ17: 0 | RA17: 0 | RB17: 0 | RC17: 0 | RD17: 0 | RE17: 0 | RF17: 0 | RG17: 0 | RH17: 0 | RI17: 0 | RJ17: 0 | RK17: 0 | RL17: 0 | RM17: 0 | RN17: 0 | RO17: 0 | RP17: 0 | RQ17: 0 | RR17: 0 | RS17: 0 | RT17: 0 | RU17: 0 | RV17: 0 | RW17: 0 | RX17: 0 | RY17: 0 | RZ17: 0 | SA17: 0 | SB17: 0 | SC17: 0 | SD17: 0 | SE17: 0 | SF17: 0 | SG17: 0 | SH17: 0 | SI17: 0 | SJ17: 0 | SK17: 0 | SL17: 0 | SM17: 0 | SN17: 0 | SO17: 0 | SP17: 0 | SQ17: 0 | SR17: 0 | SS17: 0 | ST17: 0 | SU17: 0 | SV17: 0 | SW17: 0 | SX17: 0 | SY17: 0 | SZ17: 0 | TA17: 0 | TB17: 0 | TC17: 0 | TD17: 0 | TE17: 0 | TF17: 0 | TG17: 0 | TH17: 0 | TI17: 0 | TJ17: 0 | TK17: 0 | TL17: 0 | TM17: 0 | TN17: 0 | TO17: 0 | TP17: 0 | TQ17: 0 | TR17: 0 | TS17: 0 | TT17: 0 | TU17: 0 | TV17: 0 | TW17: 0 | TX17: 0 | TY17: 0 | TZ17: 0 | UA17: 0 | UB17: 0 | UC17: 0 | UD17: 0 | UE17: 12 | UF17: 0 | UG17: 0 | UH17: 0 | UI17: 5 | UJ17: 0 | UK17: 1 | UL17: 1 | UM17: 0 | UN17: 0 | UO17: 0
A18: =HYPERLINK("https://meshb.nlm.nih.gov/record/ui?ui=" & B18,C18) -> Methotrexate | B18: D008727 | C18: Methotrexate | D18: 59-05-2 | E18: =HYPERLINK("https://comptox.epa.gov/dashboard/dsstoxdb/results?utf8=%E2%9C%93&search=" & F18,F18) -> DTXSID4020822 | F18: DTXSID4020822 | G18: =SUM(H18:UO18) -> 451 | H18: 17 | I18: 25 | J18: 1 | K18: 79 | L18: 4 | M18: 0 | N18: 1 | O18: 5 | P18: 0 | Q18: 1 | R18: 9 | S18: 18 | T18: 1 | U18: 1 | V18: 0 | W18: 0 | X18: 0 | Y18: 3 | Z18: 2 | AA18: 0 | AB18: 6 | AC18: 3 | AD18: 3 | AE18: 0 | AF18: 0 | AG18: 3 | AH18: 0 | AI18: 1 | AJ18: 5 | AK18: 1 | AL18: 0 | AM18: 0 | AN18: 0 | AO18: 0 | AP18: 1 | AQ18: 13 | AR18: 0 | AS18: 0 | AT18: 1 | AU18: 0 | AV18: 2 | AW18: 0 | AX18: 0 | AY18: 0 | AZ18: 0 | BA18: 0 | BB18: 15 | BC18: 0 | BD18: 2 | BE18: 0 | BF18: 3 | BG18: 2 | BH18: 5 | BI18: 0 | BJ18: 0 | BK18: 11 | BL18: 4 | BM18: 0 | BN18: 0 | BO18: 2 | BP18: 1 | BQ18: 0 | BR18: 1 | BS18: 2 | BT18: 1 | BU18: 0 | BV18: 1 | BW18: 1 | BX18: 4 | BY18: 3 | BZ18: 0 | CA18: 0 | CB18: 0 | CC18: 2 | CD18: 1 | CE18: 0 | CF18: 3 | CG18: 0 | CH18: 0 | CI18: 0 | CJ18: 3 | CK18: 0 | CL18: 1 | CM18: 1 | CN18: 0 | CO18: 1 | CP18: 0 | CQ18: 4 | CR18: 0 | CS18: 1 | CT18: 22 | CU18: 0 | CV18: 1 | CW18: 1 | CX18: 0 | CY18: 1 | CZ18: 3 | DA18: 5 | DB18: 0 | DC18: 0 | DD18: 21 | DE18: 7 | DF18: 0 | DG18: 1 | DH18: 12 | DI18: 0 | DJ18: 0 | DK18: 6 | DL18: 1 | DM18: 1 | DN18: 0 | DO18: 0 | DP18: 2 | DQ18: 1 | DR18: 2 | DS18: 3 | DT18: 0 | DU18: 0 | DV18: 1 | DW18: 6 | DX18: 0 | DY18: 0 | DZ18: 1 | EA18: 1 | EB18: 1 | EC18: 0 | ED18: 0 | EE18: 0 | EF18: 9 | EG18: 0 | EH18: 0 | EI18: 0 | EJ18: 0 | EK18: 3 | EL18: 0 | EM18: 0 | EN18: 0 | EO18: 0 | EP18: 2 | EQ18: 0 | ER18: 0 | ES18: 0 | ET18: 0 | EU18: 2 | EV18: 2 | EW18: 0 | EX18: 0 | EY18: 0 | EZ18: 0 | FA18: 0 | FB18: 0 | FC18: 0 | FD18: 0 | FE18: 0 | FF18: 0 | FG18: 0 | FH18: 0 | FI18: 2 | FJ18: 0 | FK18: 0 | FL18: 0 | FM18: 0 | FN18: 0 | FO18: 0 | FP18: 2 | FQ18: 0 | FR18: 0 | FS18: 0 | FT18: 0 | FU18: 0 | FV18: 0 | FW18: 0 | FX18: 0 | FY18: 1 | FZ18: 0 | GA18: 0 | GB18: 0 | GC18: 0 | GD18: 0 | GE18: 0 | GF18: 0 | GG18: 0 | GH18: 0 | GI18: 0 | GJ18: 2 | GK18: 0 | GL18: 0 | GM18: 0 | GN18: 0 | GO18: 0 | GP18: 0 | GQ18: 0 | GR18: 0 | GS18: 0 | GT18: 0 | GU18: 0 | GV18: 0 | GW18: 0 | GX18: 0 | GY18: 0 | GZ18: 0 | HA18: 0 | HB18: 2 | HC18: 0 | HD18: 0 | HE18: 0 | HF18: 0 | HG18: 0 | HH18: 1 | HI18: 0 | HJ18: 0 | HK18: 0 | HL18: 0 | HM18: 1 | HN18: 0 | HO18: 0 | HP18: 0 | HQ18: 0 | HR18: 0 | HS18: 0 | HT18: 1 | HU18: 2 | HV18: 1 | HW18: 0 | HX18: 0 | HY18: 0 | HZ18: 0 | IA18: 2 | IB18: 3 | IC18: 1 | ID18: 0 | IE18: 0 | IF18: 1 | IG18: 0 | IH18: 0 | II18: 0 | IJ18: 0 | IK18: 0 | IL18: 0 | IM18: 1 | IN18: 0 | IO18: 0 | IP18: 0 | IQ18: 0 | IR18: 0 | IS18: 0 | IT18: 0 | IU18: 0 | IV18: 0 | IW18: 1 | IX18: 0 | IY18: 0 | IZ18: 0 | JA18: 0 | JB18: 0 | JC18: 0 | JD18: 1 | JE18: 0 | JF18: 1 | JG18: 1 | JH18: 1 | JI18: 0 | JJ18: 0 | JK18: 1 | JL18: 0 | JM18: 0 | JN18: 0 | JO18: 0 | JP18: 0 | JQ18: 0 | JR18: 0 | JS18: 0 | JT18: 0 | JU18: 0 | JV18: 0 | JW18: 0 | JX18: 0 | JY18: 0 | JZ18: 0 | KA18: 0 | KB18: 0 | KC18: 0 | KD18: 0 | KE18: 0 | KF18: 0 | KG18: 0 | KH18: 0 | KI18: 0 | KJ18: 0 | KK18: 0 | KL18: 0 | KM18: 0 | KN18: 0 | KO18: 0 | KP18: 0 | KQ18: 0 | KR18: 0 | KS18: 0 | KT18: 0 | KU18: 0 | KV18: 0 | KW18: 0 | KX18: 0 | KY18: 0 | KZ18: 0 | LA18: 0 | LB18: 0 | LC18: 0 | LD18: 0 | LE18: 1 | LF18: 0 | LG18: 0 | LH18: 0 | LI18: 0 | LJ18: 0 | LK18: 1 | LL18: 0 | LM18: 0 | LN18: 0 | LO18: 0 | LP18: 0 | LQ18: 0 | LR18: 0 | LS18: 0 | LT18: 0 | LU18: 0 | LV18: 0 | LW18: 0 | LX18: 0 | LY18: 0 | LZ18: 0 | MA18: 0 | MB18: 0 | MC18: 0 | MD18: 0 | ME18: 0 | MF18: 0 | MG18: 0 | MH18: 0 | MI18: 0 | MJ18: 0 | MK18: 0 | ML18: 0 | MM18: 0 | MN18: 0 | MO18: 0 | MP18: 0 | MQ18: 0 | MR18: 0 | MS18: 0 | MT18: 0 | MU18: 0 | MV18: 0 | MW18: 0 | MX18: 0 | MY18: 0 | MZ18: 0 | NA18: 0 | NB18: 0 | NC18: 0 | ND18: 0 | NE18: 0 | NF18: 0 | NG18: 1 | NH18: 0 | NI18: 0 | NJ18: 0 | NK18: 0 | NL18: 0 | NM18: 1 | NN18: 3 | NO18: 0 | NP18: 1 | NQ18: 0 | NR18: 0 | NS18: 0 | NT18: 0 | NU18: 0 | NV18: 0 | NW18: 0 | NX18: 0 | NY18: 0 | NZ18: 0 | OA18: 0 | OB18: 0 | OC18: 0 | OD18: 0 | OE18: 0 | OF18: 0 | OG18: 0 | OH18: 0 | OI18: 1 | OJ18: 0 | OK18: 0 | OL18: 0 | OM18: 0 | ON18: 0 | OO18: 0 | OP18: 0 | OQ18: 0 | OR18: 0 | OS18: 0 | OT18: 0 | OU18: 0 | OV18: 0 | OW18: 0 | OX18: 0 | OY18: 1 | OZ18: 0 | PA18: 0 | PB18: 0 | PC18: 0 | PD18: 0 | PE18: 0 | PF18: 1 | PG18: 0 | PH18: 0 | PI18: 0 | PJ18: 0 | PK18: 0 | PL18: 0 | PM18: 0 | PN18: 0 | PO18: 0 | PP18: 0 | PQ18: 0 | PR18: 0 | PS18: 0 | PT18: 1 | PU18: 0 | PV18: 0 | PW18: 0 | PX18: 0 | PY18: 0 | PZ18: 0 | QA18: 0 | QB18: 0 | QC18: 0 | QD18: 0 | QE18: 0 | QF18: 0 | QG18: 0 | QH18: 0 | QI18: 0 | QJ18: 0 | QK18: 0 | QL18: 0 | QM18: 0 | QN18: 0 | QO18: 1 | QP18: 0 | QQ18: 0 | QR18: 0 | QS18: 0 | QT18: 0 | QU18: 0 | QV18: 0 | QW18: 0 | QX18: 1 | QY18: 1 | QZ18: 0 | RA18: 0 | RB18: 0 | RC18: 0 | RD18: 0 | RE18: 0 | RF18: 0 | RG18: 0 | RH18: 0 | RI18: 0 | RJ18: 0 | RK18: 0 | RL18: 0 | RM18: 0 | RN18: 0 | RO18: 0 | RP18: 0 | RQ18: 0 | RR18: 0 | RS18: 0 | RT18: 0 | RU18: 0 | RV18: 0 | RW18: 0 | RX18: 0 | RY18: 0 | RZ18: 1 | SA18: 0 | SB18: 1 | SC18: 0 | SD18: 0 | SE18: 0 | SF18: 0 | SG18: 0 | SH18: 0 | SI18: 0 | SJ18: 0 | SK18: 0 | SL18: 0 | SM18: 0 | SN18: 0 | SO18: 0 | SP18: 0 | SQ18: 0 | SR18: 0 | SS18: 0 | ST18: 0 | SU18: 0 | SV18: 0 | SW18: 0 | SX18: 0 | SY18: 0 | SZ18: 0 | TA18: 0 | TB18: 0 | TC18: 0 | TD18: 0 | TE18: 0 | TF18: 0 | TG18: 0 | TH18: 0 | TI18: 0 | TJ18: 0 | TK18: 0 | TL18: 0 | TM18: 0 | TN18: 0 | TO18: 0 | TP18: 0 | TQ18: 0 | TR18: 1 | TS18: 0 | TT18: 0 | TU18: 0 | TV18: 0 | TW18: 0 | TX18: 0 | TY18: 0 | TZ18: 0 | UA18: 0 | UB18: 0 | UC18: 0 | UD18: 0 | UE18: 2 | UF18: 0 | UG18: 0 | UH18: 0 | UI18: 3 | UJ18: 0 | UK18: 0 | UL18: 0 | UM18: 0 | UN18: 0 | UO18: 0
A19: =HYPERLINK("https://meshb.nlm.nih.gov/record/ui?ui=" & B19,C19) -> Mercury | B19: D008628 | C19: Mercury | D19: 7439-97-6 | E19: =HYPERLINK("https://comptox.epa.gov/dashboard/dsstoxdb/results?utf8=%E2%9C%93&search=" & F19,F19) -> DTXSID1024172 | F19: DTXSID1024172 | G19: =SUM(H19:UO19) -> 450 | H19: 6 | I19: 79 | J19: 22 | K19: 23 | L19: 2 | M19: 3 | N19: 5 | O19: 2 | P19: 2 | Q19: 38 | R19: 7 | S19: 25 | T19: 1 | U19: 0 | V19: 1 | W19: 0 | X19: 4 | Y19: 6 | Z19: 2 | AA19: 2 | AB19: 2 | AC19: 1 | AD19: 0 | AE19: 3 | AF19: 1 | AG19: 1 | AH19: 4 | AI19: 1 | AJ19: 2 | AK19: 2 | AL19: 1 | AM19: 10 | AN19: 7 | AO19: 0 | AP19: 0 | AQ19: 0 | AR19: 1 | AS19: 0 | AT19: 0 | AU19: 1 | AV19: 0 | AW19: 1 | AX19: 5 | AY19: 0 | AZ19: 10 | BA19: 0 | BB19: 1 | BC19: 0 | BD19: 1 | BE19: 0 | BF19: 0 | BG19: 0 | BH19: 0 | BI19: 1 | BJ19: 0 | BK19: 0 | BL19: 4 | BM19: 0 | BN19: 0 | BO19: 2 | BP19: 11 | BQ19: 1 | BR19: 0 | BS19: 2 | BT19: 0 | BU19: 0 | BV19: 10 | BW19: 0 | BX19: 2 | BY19: 6 | BZ19: 1 | CA19: 0 | CB19: 0 | CC19: 0 | CD19: 0 | CE19: 0 | CF19: 2 | CG19: 0 | CH19: 3 | CI19: 0 | CJ19: 0 | CK19: 1 | CL19: 1 | CM19: 0 | CN19: 0 | CO19: 0 | CP19: 0 | CQ19: 2 | CR19: 1 | CS19: 0 | CT19: 0 | CU19: 1 | CV19: 8 | CW19: 0 | CX19: 0 | CY19: 0 | CZ19: 0 | DA19: 1 | DB19: 0 | DC19: 0 | DD19: 0 | DE19: 0 | DF19: 0 | DG19: 0 | DH19: 0 | DI19: 0 | DJ19: 0 | DK19: 0 | DL19: 0 | DM19: 1 | DN19: 0 | DO19: 0 | DP19: 0 | DQ19: 0 | DR19: 0 | DS19: 4 | DT19: 4 | DU19: 0 | DV19: 1 | DW19: 0 | DX19: 0 | DY19: 0 | DZ19: 0 | EA19: 0 | EB19: 0 | EC19: 0 | ED19: 2 | EE19: 0 | EF19: 0 | EG19: 0 | EH19: 0 | EI19: 0 | EJ19: 0 | EK19: 0 | EL19: 0 | EM19: 0 | EN19: 0 | EO19: 1 | EP19: 0 | EQ19: 0 | ER19: 0 | ES19: 0 | ET19: 0 | EU19: 1 | EV19: 0 | EW19: 0 | EX19: 0 | EY19: 7 | EZ19: 0 | FA19: 0 | FB19: 1 | FC19: 2 | FD19: 1 | FE19: 0 | FF19: 0 | FG19: 0 | FH19: 0 | FI19: 2 | FJ19: 0 | FK19: 0 | FL19: 0 | FM19: 0 | FN19: 10 | FO19: 0 | FP19: 1 | FQ19: 0 | FR19: 0 | FS19: 2 | FT19: 0 | FU19: 0 | FV19: 0 | FW19: 1 | FX19: 26 | FY19: 0 | FZ19: 0 | GA19: 0 | GB19: 0 | GC19: 0 | GD19: 0 | GE19: 0 | GF19: 1 | GG19: 0 | GH19: 0 | GI19: 1 | GJ19: 0 | GK19: 0 | GL19: 0 | GM19: 0 | GN19: 0 | GO19: 0 | GP19: 0 | GQ19: 0 | GR19: 0 | GS19: 0 | GT19: 0 | GU19: 0 | GV19: 0 | GW19: 1 | GX19: 0 | GY19: 0 | GZ19: 0 | HA19: 0 | HB19: 0 | HC19: 0 | HD19: 0 | HE19: 0 | HF19: 3 | HG19: 0 | HH19: 0 | HI19: 0 | HJ19: 0 | HK19: 0 | HL19: 1 | HM19: 0 | HN19: 0 | HO19: 0 | HP19: 0 | HQ19: 0 | HR19: 0 | HS19: 0 | HT19: 0 | HU19: 0 | HV19: 0 | HW19: 1 | HX19: 0 | HY19: 0 | HZ19: 0 | IA19: 0 | IB19: 1 | IC19: 0 | ID19: 0 | IE19: 0 | IF19: 0 | IG19: 0 | IH19: 0 | II19: 1 | IJ19: 0 | IK19: 0 | IL19: 1 | IM19: 0 | IN19: 0 | IO19: 0 | IP19: 0 | IQ19: 3 | IR19: 1 | IS19: 1 | IT19: 0 | IU19: 0 | IV19: 0 | IW19: 0 | IX19: 0 | IY19: 0 | IZ19: 1 | JA19: 0 | JB19: 0 | JC19: 0 | JD19: 0 | JE19: 0 | JF19: 0 | JG19: 0 | JH19: 0 | JI19: 0 | JJ19: 0 | JK19: 0 | JL19: 0 | JM19: 0 | JN19: 0 | JO19: 0 | JP19: 0 | JQ19: 0 | JR19: 0 | JS19: 0 | JT19: 0 | JU19: 1 | JV19: 0 | JW19: 0 | JX19: 0 | JY19: 0 | JZ19: 0 | KA19: 0 | KB19: 0 | KC19: 0 | KD19: 0 | KE19: 1 | KF19: 0 | KG19: 0 | KH19: 0 | KI19: 0 | KJ19: 0 | KK19: 0 | KL19: 1 | KM19: 0 | KN19: 0 | KO19: 0 | KP19: 0 | KQ19: 0 | KR19: 0 | KS19: 0 | KT19: 0 | KU19: 0 | KV19: 0 | KW19: 0 | KX19: 0 | KY19: 0 | KZ19: 0 | LA19: 0 | LB19: 0 | LC19: 0 | LD19: 0 | LE19: 0 | LF19: 0 | LG19: 0 | LH19: 0 | LI19: 0 | LJ19: 0 | LK19: 0 | LL19: 0 | LM19: 0 | LN19: 0 | LO19: 0 | LP19: 0 | LQ19: 0 | LR19: 0 | LS19: 0 | LT19: 0 | LU19: 0 | LV19: 0 | LW19: 0 | LX19: 0 | LY19: 0 | LZ19: 0 | MA19: 0 | MB19: 0 | MC19: 0 | MD19: 0 | ME19: 0 | MF19: 0 | MG19: 0 | MH19: 0 | MI19: 0 | MJ19: 0 | MK19: 0 | ML19: 0 | MM19: 0 | MN19: 0 | MO19: 0 | MP19: 0 | MQ19: 0 | MR19: 0 | MS19: 1 | MT19: 0 | MU19: 0 | MV19: 0 | MW19: 0 | MX19: 0 | MY19: 0 | MZ19: 0 | NA19: 0 | NB19: 0 | NC19: 0 | ND19: 0 | NE19: 0 | NF19: 0 | NG19: 0 | NH19: 0 | NI19: 0 | NJ19: 0 | NK19: 0 | NL19: 0 | NM19: 0 | NN19: 0 | NO19: 0 | NP19: 0 | NQ19: 0 | NR19: 0 | NS19: 0 | NT19: 0 | NU19: 0 | NV19: 0 | NW19: 1 | NX19: 0 | NY19: 0 | NZ19: 0 | OA19: 0 | OB19: 0 | OC19: 0 | OD19: 0 | OE19: 0 | OF19: 0 | OG19: 0 | OH19: 0 | OI19: 0 | OJ19: 0 | OK19: 0 | OL19: 0 | OM19: 0 | ON19: 0 | OO19: 0 | OP19: 0 | OQ19: 0 | OR19: 0 | OS19: 0 | OT19: 0 | OU19: 0 | OV19: 0 | OW19: 0 | OX19: 0 | OY19: 0 | OZ19: 0 | PA19: 0 | PB19: 0 | PC19: 0 | PD19: 0 | PE19: 0 | PF19: 0 | PG19: 0 | PH19: 1 | PI19: 0 | PJ19: 0 | PK19: 0 | PL19: 0 | PM19: 0 | PN19: 0 | PO19: 0 | PP19: 0 | PQ19: 0 | PR19: 0 | PS19: 0 | PT19: 0 | PU19: 0 | PV19: 0 | PW19: 0 | PX19: 0 | PY19: 0 | PZ19: 0 | QA19: 0 | QB19: 0 | QC19: 0 | QD19: 0 | QE19: 0 | QF19: 0 | QG19: 0 | QH19: 0 | QI19: 0 | QJ19: 0 | QK19: 0 | QL19: 0 | QM19: 0 | QN19: 0 | QO19: 0 | QP19: 0 | QQ19: 0 | QR19: 0 | QS19: 0 | QT19: 0 | QU19: 0 | QV19: 0 | QW19: 0 | QX19: 0 | QY19: 0 | QZ19: 0 | RA19: 0 | RB19: 0 | RC19: 0 | RD19: 0 | RE19: 0 | RF19: 0 | RG19: 0 | RH19: 0 | RI19: 0 | RJ19: 0 | RK19: 0 | RL19: 0 | RM19: 0 | RN19: 0 | RO19: 0 | RP19: 0 | RQ19: 0 | RR19: 0 | RS19: 0 | RT19: 0 | RU19: 0 | RV19: 0 | RW19: 0 | RX19: 0 | RY19: 0 | RZ19: 0 | SA19: 0 | SB19: 0 | SC19: 0 | SD19: 0 | SE19: 0 | SF19: 0 | SG19: 0 | SH19: 0 | SI19: 0 | SJ19: 0 | SK19: 0 | SL19: 0 | SM19: 0 | SN19: 0 | SO19: 0 | SP19: 0 | SQ19: 0 | SR19: 0 | SS19: 0 | ST19: 0 | SU19: 0 | SV19: 0 | SW19: 0 | SX19: 0 | SY19: 0 | SZ19: 0 | TA19: 0 | TB19: 0 | TC19: 0 | TD19: 0 | TE19: 0 | TF19: 0 | TG19: 0 | TH19: 0 | TI19: 0 | TJ19: 0 | TK19: 0 | TL19: 0 | TM19: 0 | TN19: 0 | TO19: 0 | TP19: 0 | TQ19: 0 | TR19: 0 | TS19: 0 | TT19: 0 | TU19: 0 | TV19: 0 | TW19: 0 | TX19: 0 | TY19: 0 | TZ19: 0 | UA19: 0 | UB19: 0 | UC19: 0 | UD19: 0 | UE19: 3 | UF19: 0 | UG19: 0 | UH19: 0 | UI19: 12 | UJ19: 0 | UK19: 0 | UL19: 0 | UM19: 0 | UN19: 0 | UO19: 0
A20: =HYPERLINK("https://meshb.nlm.nih.gov/record/ui?ui=" & B20,C20) -> Kainic Acid | B20: D007608 | C20: Kainic Acid | D20: 487-79-6 | E20: =HYPERLINK("https://comptox.epa.gov/dashboard/dsstoxdb/results?utf8=%E2%9C%93&search=" & F20,F20) -> DTXSID7040526 | F20: DTXSID7040526 | G20: =SUM(H20:UO20) -> 441 | H20: 205 | I20: 21 | J20: 0 | K20: 16 | L20: 0 | M20: 0 | N20: 0 | O20: 0 | P20: 0 | Q20: 2 | R20: 13 | S20: 1 | T20: 0 | U20: 0 | V20: 0 | W20: 0 | X20: 1 | Y20: 0 | Z20: 43 | AA20: 0 | AB20: 4 | AC20: 0 | AD20: 47 | AE20: 1 | AF20: 1 | AG20: 5 | AH20: 0 | AI20: 0 | AJ20: 0 | AK20: 0 | AL20: 2 | AM20: 0 | AN20: 0 | AO20: 0 | AP20: 0 | AQ20: 1 | AR20: 0 | AS20: 1 | AT20: 0 | AU20: 1 | AV20: 0 | AW20: 8 | AX20: 3 | AY20: 0 | AZ20: 0 | BA20: 0 | BB20: 1 | BC20: 0 | BD20: 1 | BE20: 1 | BF20: 0 | BG20: 0 | BH20: 0 | BI20: 0 | BJ20: 0 | BK20: 0 | BL20: 4 | BM20: 0 | BN20: 0 | BO20: 0 | BP20: 0 | BQ20: 0 | BR20: 0 | BS20: 0 | BT20: 0 | BU20: 0 | BV20: 7 | BW20: 0 | BX20: 0 | BY20: 4 | BZ20: 0 | CA20: 1 | CB20: 0 | CC20: 0 | CD20: 0 | CE20: 0 | CF20: 0 | CG20: 0 | CH20: 0 | CI20: 0 | CJ20: 1 | CK20: 0 | CL20: 0 | CM20: 1 | CN20: 0 | CO20: 0 | CP20: 0 | CQ20: 0 | CR20: 0 | CS20: 0 | CT20: 0 | CU20: 0 | CV20: 0 | CW20: 0 | CX20: 0 | CY20: 0 | CZ20: 0 | DA20: 0 | DB20: 1 | DC20: 0 | DD20: 0 | DE20: 0 | DF20: 0 | DG20: 0 | DH20: 0 | DI20: 0 | DJ20: 30 | DK20: 0 | DL20: 0 | DM20: 0 | DN20: 0 | DO20: 0 | DP20: 0 | DQ20: 2 | DR20: 0 | DS20: 0 | DT20: 0 | DU20: 0 | DV20: 0 | DW20: 0 | DX20: 0 | DY20: 0 | DZ20: 0 | EA20: 0 | EB20: 0 | EC20: 0 | ED20: 0 | EE20: 0 | EF20: 0 | EG20: 0 | EH20: 0 | EI20: 1 | EJ20: 2 | EK20: 0 | EL20: 0 | EM20: 0 | EN20: 0 | EO20: 0 | EP20: 0 | EQ20: 0 | ER20: 0 | ES20: 0 | ET20: 0 | EU20: 0 | EV20: 0 | EW20: 0 | EX20: 0 | EY20: 1 | EZ20: 0 | FA20: 0 | FB20: 1 | FC20: 0 | FD20: 0 | FE20: 0 | FF20: 0 | FG20: 0 | FH20: 0 | FI20: 0 | FJ20: 0 | FK20: 0 | FL20: 0 | FM20: 0 | FN20: 0 | FO20: 0 | FP20: 0 | FQ20: 0 | FR20: 0 | FS20: 0 | FT20: 0 | FU20: 0 | FV20: 0 | FW20: 0 | FX20: 0 | FY20: 0 | FZ20: 0 | GA20: 0 | GB20: 0 | GC20: 0 | GD20: 0 | GE20: 0 | GF20: 0 | GG20: 0 | GH20: 0 | GI20: 0 | GJ20: 0 | GK20: 0 | GL20: 0 | GM20: 0 | GN20: 0 | GO20: 0 | GP20: 0 | GQ20: 0 | GR20: 0 | GS20: 0 | GT20: 0 | GU20: 0 | GV20: 0 | GW20: 0 | GX20: 0 | GY20: 0 | GZ20: 0 | HA20: 0 | HB20: 1 | HC20: 0 | HD20: 0 | HE20: 0 | HF20: 0 | HG20: 0 | HH20: 0 | HI20: 0 | HJ20: 0 | HK20: 1 | HL20: 0 | HM20: 0 | HN20: 0 | HO20: 0 | HP20: 0 | HQ20: 0 | HR20: 0 | HS20: 0 | HT20: 1 | HU20: 0 | HV20: 0 | HW20: 0 | HX20: 0 | HY20: 0 | HZ20: 0 | IA20: 0 | IB20: 0 | IC20: 0 | ID20: 0 | IE20: 0 | IF20: 0 | IG20: 0 | IH20: 0 | II20: 0 | IJ20: 0 | IK20: 0 | IL20: 0 | IM20: 0 | IN20: 0 | IO20: 0 | IP20: 0 | IQ20: 0 | IR20: 0 | IS20: 0 | IT20: 0 | IU20: 0 | IV20: 0 | IW20: 0 | IX20: 0 | IY20: 0 | IZ20: 0 | JA20: 0 | JB20: 0 | JC20: 0 | JD20: 0 | JE20: 0 | JF20: 0 | JG20: 0 | JH20: 0 | JI20: 0 | JJ20: 0 | JK20: 0 | JL20: 0 | JM20: 0 | JN20: 0 | JO20: 0 | JP20: 0 | JQ20: 0 | JR20: 0 | JS20: 0 | JT20: 0 | JU20: 0 | JV20: 0 | JW20: 0 | JX20: 0 | JY20: 0 | JZ20: 0 | KA20: 0 | KB20: 0 | KC20: 0 | KD20: 0 | KE20: 0 | KF20: 0 | KG20: 0 | KH20: 0 | KI20: 0 | KJ20: 0 | KK20: 0 | KL20: 0 | KM20: 0 | KN20: 1 | KO20: 0 | KP20: 0 | KQ20: 0 | KR20: 0 | KS20: 0 | KT20: 0 | KU20: 0 | KV20: 0 | KW20: 0 | KX20: 0 | KY20: 0 | KZ20: 0 | LA20: 0 | LB20: 0 | LC20: 0 | LD20: 0 | LE20: 0 | LF20: 0 | LG20: 0 | LH20: 0 | LI20: 0 | LJ20: 0 | LK20: 0 | LL20: 0 | LM20: 0 | LN20: 0 | LO20: 0 | LP20: 0 | LQ20: 0 | LR20: 0 | LS20: 0 | LT20: 0 | LU20: 0 | LV20: 0 | LW20: 0 | LX20: 0 | LY20: 0 | LZ20: 0 | MA20: 0 | MB20: 0 | MC20: 0 | MD20: 0 | ME20: 0 | MF20: 0 | MG20: 0 | MH20: 0 | MI20: 0 | MJ20: 0 | MK20: 0 | ML20: 0 | MM20: 0 | MN20: 0 | MO20: 0 | MP20: 0 | MQ20: 0 | MR20: 0 | MS20: 0 | MT20: 0 | MU20: 0 | MV20: 0 | MW20: 0 | MX20: 0 | MY20: 0 | MZ20: 0 | NA20: 0 | NB20: 0 | NC20: 0 | ND20: 0 | NE20: 0 | NF20: 0 | NG20: 0 | NH20: 0 | NI20: 0 | NJ20: 0 | NK20: 0 | NL20: 0 | NM20: 0 | NN20: 0 | NO20: 0 | NP20: 0 | NQ20: 0 | NR20: 0 | NS20: 0 | NT20: 1 | NU20: 0 | NV20: 0 | NW20: 0 | NX20: 0 | NY20: 0 | NZ20: 0 | OA20: 0 | OB20: 0 | OC20: 0 | OD20: 0 | OE20: 0 | OF20: 0 | OG20: 0 | OH20: 0 | OI20: 0 | OJ20: 0 | OK20: 0 | OL20: 0 | OM20: 0 | ON20: 0 | OO20: 0 | OP20: 0 | OQ20: 0 | OR20: 0 | OS20: 0 | OT20: 0 | OU20: 0 | OV20: 0 | OW20: 0 | OX20: 0 | OY20: 0 | OZ20: 0 | PA20: 0 | PB20: 0 | PC20: 0 | PD20: 0 | PE20: 0 | PF20: 0 | PG20: 0 | PH20: 0 | PI20: 0 | PJ20: 0 | PK20: 0 | PL20: 0 | PM20: 0 | PN20: 0 | PO20: 0 | PP20: 0 | PQ20: 0 | PR20: 0 | PS20: 0 | PT20: 0 | PU20: 0 | PV20: 0 | PW20: 0 | PX20: 0 | PY20: 0 | PZ20: 0 | QA20: 0 | QB20: 0 | QC20: 0 | QD20: 0 | QE20: 0 | QF20: 0 | QG20: 0 | QH20: 0 | QI20: 0 | QJ20: 0 | QK20: 0 | QL20: 0 | QM20: 0 | QN20: 0 | QO20: 0 | QP20: 0 | QQ20: 0 | QR20: 0 | QS20: 0 | QT20: 0 | QU20: 0 | QV20: 0 | QW20: 0 | QX20: 0 | QY20: 0 | QZ20: 0 | RA20: 0 | RB20: 0 | RC20: 0 | RD20: 0 | RE20: 0 | RF20: 0 | RG20: 0 | RH20: 0 | RI20: 0 | RJ20: 0 | RK20: 0 | RL20: 0 | RM20: 0 | RN20: 0 | RO20: 0 | RP20: 0 | RQ20: 0 | RR20: 0 | RS20: 0 | RT20: 0 | RU20: 0 | RV20: 0 | RW20: 0 | RX20: 0 | RY20: 0 | RZ20: 0 | SA20: 0 | SB20: 0 | SC20: 0 | SD20: 0 | SE20: 0 | SF20: 0 | SG20: 0 | SH20: 0 | SI20: 0 | SJ20: 0 | SK20: 0 | SL20: 0 | SM20: 0 | SN20: 0 | SO20: 0 | SP20: 0 | SQ20: 0 | SR20: 0 | SS20: 0 | ST20: 0 | SU20: 0 | SV20: 0 | SW20: 0 | SX20: 0 | SY20: 0 | SZ20: 0 | TA20: 0 | TB20: 0 | TC20: 0 | TD20: 0 | TE20: 0 | TF20: 0 | TG20: 0 | TH20: 0 | TI20: 0 | TJ20: 0 | TK20: 0 | TL20: 0 | TM20: 0 | TN20: 0 | TO20: 0 | TP20: 0 | TQ20: 0 | TR20: 0 | TS20: 0 | TT20: 0 | TU20: 0 | TV20: 0 | TW20: 0 | TX20: 0 | TY20: 0 | TZ20: 0 | UA20: 0 | UB20: 0 | UC20: 0 | UD20: 0 | UE20: 0 | UF20: 0 | UG20: 0 | UH20: 0 | UI20: 1 | UJ20: 0 | UK20: 0 | UL20: 0 | UM20: 0 | UN20: 0 | UO20: 0
A21: =HYPERLINK("https://meshb.nlm.nih.gov/record/ui?ui=" & B21,C21) -> Risperidone | B21: D018967 | C21: Risperidone | D21: 106266-06-2 | E21: =HYPERLINK("https://comptox.epa.gov/dashboard/dsstoxdb/results?utf8=%E2%9C%93&search=" & F21,F21) -> DTXSID8045193 | F21: DTXSID8045193 | G21: =SUM(H21:UO21) -> 408 | H21: 4 | I21: 0 | J21: 0 | K21: 0 | L21: 0 | M21: 135 | N21: 11 | O21: 1 | P21: 9 | Q21: 3 | R21: 1 | S21: 1 | T21: 10 | U21: 0 | V21: 1 | W21: 27 | X21: 0 | Y21: 1 | Z21: 0 | AA21: 0 | AB21: 0 | AC21: 5 | AD21: 0 | AE21: 5 | AF21: 0 | AG21: 1 | AH21: 7 | AI21: 0 | AJ21: 12 | AK21: 0 | AL21: 0 | AM21: 0 | AN21: 0 | AO21: 1 | AP21: 0 | AQ21: 1 | AR21: 5 | AS21: 3 | AT21: 2 | AU21: 0 | AV21: 0 | AW21: 0 | AX21: 1 | AY21: 0 | AZ21: 1 | BA21: 87 | BB21: 0 | BC21: 0 | BD21: 0 | BE21: 3 | BF21: 0 | BG21: 0 | BH21: 5 | BI21: 3 | BJ21: 4 | BK21: 0 | BL21: 0 | BM21: 0 | BN21: 0 | BO21: 1 | BP21: 4 | BQ21: 0 | BR21: 4 | BS21: 1 | BT21: 0 | BU21: 0 | BV21: 0 | BW21: 0 | BX21: 0 | BY21: 0 | BZ21: 0 | CA21: 1 | CB21: 0 | CC21: 0 | CD21: 2 | CE21: 6 | CF21: 0 | CG21: 0 | CH21: 0 | CI21: 0 | CJ21: 0 | CK21: 0 | CL21: 0 | CM21: 0 | CN21: 0 | CO21: 0 | CP21: 0 | CQ21: 0 | CR21: 0 | CS21: 0 | CT21: 0 | CU21: 1 | CV21: 1 | CW21: 1 | CX21: 0 | CY21: 0 | CZ21: 0 | DA21: 0 | DB21: 0 | DC21: 0 | DD21: 0 | DE21: 0 | DF21: 0 | DG21: 0 | DH21: 0 | DI21: 0 | DJ21: 0 | DK21: 0 | DL21: 0 | DM21: 0 | DN21: 1 | DO21: 0 | DP21: 0 | DQ21: 0 | DR21: 4 | DS21: 0 | DT21: 0 | DU21: 0 | DV21: 0 | DW21: 0 | DX21: 2 | DY21: 0 | DZ21: 3 | EA21: 0 | EB21: 0 | EC21: 3 | ED21: 0 | EE21: 2 | EF21: 0 | EG21: 0 | EH21: 1 | EI21: 0 | EJ21: 0 | EK21: 0 | EL21: 0 | EM21: 0 | EN21: 0 | EO21: 0 | EP21: 0 | EQ21: 0 | ER21: 0 | ES21: 0 | ET21: 0 | EU21: 0 | EV21: 0 | EW21: 0 | EX21: 2 | EY21: 0 | EZ21: 0 | FA21: 0 | FB21: 0 | FC21: 0 | FD21: 0 | FE21: 1 | FF21: 0 | FG21: 0 | FH21: 0 | FI21: 0 | FJ21: 2 | FK21: 0 | FL21: 0 | FM21: 0 | FN21: 0 | FO21: 0 | FP21: 0 | FQ21: 0 | FR21: 0 | FS21: 0 | FT21: 1 | FU21: 0 | FV21: 0 | FW21: 0 | FX21: 0 | FY21: 0 | FZ21: 0 | GA21: 0 | GB21: 0 | GC21: 4 | GD21: 0 | GE21: 0 | GF21: 0 | GG21: 0 | GH21: 0 | GI21: 0 | GJ21: 0 | GK21: 0 | GL21: 0 | GM21: 0 | GN21: 0 | GO21: 1 | GP21: 0 | GQ21: 0 | GR21: 0 | GS21: 0 | GT21: 0 | GU21: 0 | GV21: 0 | GW21: 0 | GX21: 0 | GY21: 0 | GZ21: 0 | HA21: 0 | HB21: 0 | HC21: 0 | HD21: 0 | HE21: 0 | HF21: 0 | HG21: 0 | HH21: 0 | HI21: 0 | HJ21: 1 | HK21: 0 | HL21: 0 | HM21: 0 | HN21: 0 | HO21: 0 | HP21: 0 | HQ21: 0 | HR21: 1 | HS21: 0 | HT21: 0 | HU21: 0 | HV21: 0 | HW21: 0 | HX21: 0 | HY21: 0 | HZ21: 0 | IA21: 0 | IB21: 0 | IC21: 0 | ID21: 0 | IE21: 0 | IF21: 0 | IG21: 0 | IH21: 0 | II21: 0 | IJ21: 0 | IK21: 0 | IL21: 1 | IM21: 0 | IN21: 0 | IO21: 0 | IP21: 0 | IQ21: 0 | IR21: 0 | IS21: 0 | IT21: 0 | IU21: 0 | IV21: 0 | IW21: 0 | IX21: 0 | IY21: 0 | IZ21: 0 | JA21: 0 | JB21: 0 | JC21: 0 | JD21: 0 | JE21: 0 | JF21: 0 | JG21: 0 | JH21: 0 | JI21: 2 | JJ21: 0 | JK21: 0 | JL21: 0 | JM21: 0 | JN21: 0 | JO21: 0 | JP21: 0 | JQ21: 0 | JR21: 0 | JS21: 1 | JT21: 0 | JU21: 0 | JV21: 0 | JW21: 0 | JX21: 0 | JY21: 0 | JZ21: 0 | KA21: 0 | KB21: 0 | KC21: 0 | KD21: 0 | KE21: 0 | KF21: 0 | KG21: 0 | KH21: 0 | KI21: 0 | KJ21: 0 | KK21: 0 | KL21: 0 | KM21: 0 | KN21: 0 | KO21: 0 | KP21: 0 | KQ21: 0 | KR21: 0 | KS21: 0 | KT21: 0 | KU21: 1 | KV21: 0 | KW21: 0 | KX21: 0 | KY21: 0 | KZ21: 0 | LA21: 0 | LB21: 0 | LC21: 0 | LD21: 0 | LE21: 0 | LF21: 0 | LG21: 0 | LH21: 0 | LI21: 0 | LJ21: 0 | LK21: 0 | LL21: 0 | LM21: 0 | LN21: 0 | LO21: 0 | LP21: 0 | LQ21: 0 | LR21: 0 | LS21: 0 | LT21: 0 | LU21: 0 | LV21: 0 | LW21: 0 | LX21: 0 | LY21: 0 | LZ21: 0 | MA21: 0 | MB21: 0 | MC21: 0 | MD21: 0 | ME21: 0 | MF21: 0 | MG21: 0 | MH21: 0 | MI21: 0 | MJ21: 0 | MK21: 0 | ML21: 0 | MM21: 0 | MN21: 0 | MO21: 0 | MP21: 0 | MQ21: 0 | MR21: 0 | MS21: 0 | MT21: 0 | MU21: 0 | MV21: 0 | MW21: 0 | MX21: 0 | MY21: 0 | MZ21: 0 | NA21: 0 | NB21: 0 | NC21: 0 | ND21: 0 | NE21: 0 | NF21: 0 | NG21: 0 | NH21: 0 | NI21: 0 | NJ21: 0 | NK21: 0 | NL21: 0 | NM21: 0 | NN21: 0 | NO21: 0 | NP21: 0 | NQ21: 0 | NR21: 0 | NS21: 0 | NT21: 0 | NU21: 0 | NV21: 0 | NW21: 0 | NX21: 0 | NY21: 0 | NZ21: 0 | OA21: 0 | OB21: 0 | OC21: 0 | OD21: 0 | OE21: 0 | OF21: 0 | OG21: 0 | OH21: 0 | OI21: 0 | OJ21: 0 | OK21: 0 | OL21: 0 | OM21: 0 | ON21: 0 | OO21: 0 | OP21: 0 | OQ21: 0 | OR21: 0 | OS21: 0 | OT21: 0 | OU21: 0 | OV21: 0 | OW21: 0 | OX21: 0 | OY21: 0 | OZ21: 0 | PA21: 0 | PB21: 0 | PC21: 0 | PD21: 0 | PE21: 0 | PF21: 0 | PG21: 0 | PH21: 0 | PI21: 0 | PJ21: 0 | PK21: 0 | PL21: 0 | PM21: 0 | PN21: 0 | PO21: 0 | PP21: 0 | PQ21: 0 | PR21: 0 | PS21: 0 | PT21: 0 | PU21: 0 | PV21: 0 | PW21: 0 | PX21: 0 | PY21: 0 | PZ21: 0 | QA21: 0 | QB21: 0 | QC21: 0 | QD21: 0 | QE21: 0 | QF21: 0 | QG21: 0 | QH21: 0 | QI21: 0 | QJ21: 0 | QK21: 0 | QL21: 0 | QM21: 0 | QN21: 0 | QO21: 0 | QP21: 0 | QQ21: 0 | QR21: 0 | QS21: 0 | QT21: 0 | QU21: 0 | QV21: 0 | QW21: 0 | QX21: 0 | QY21: 0 | QZ21: 0 | RA21: 0 | RB21: 0 | RC21: 0 | RD21: 0 | RE21: 0 | RF21: 0 | RG21: 0 | RH21: 0 | RI21: 0 | RJ21: 0 | RK21: 0 | RL21: 0 | RM21: 0 | RN21: 0 | RO21: 0 | RP21: 0 | RQ21: 0 | RR21: 0 | RS21: 0 | RT21: 0 | RU21: 0 | RV21: 0 | RW21: 0 | RX21: 0 | RY21: 0 | RZ21: 0 | SA21: 0 | SB21: 0 | SC21: 0 | SD21: 0 | SE21: 0 | SF21: 0 | SG21: 0 | SH21: 0 | SI21: 0 | SJ21: 0 | SK21: 0 | SL21: 0 | SM21: 0 | SN21: 0 | SO21: 0 | SP21: 0 | SQ21: 0 | SR21: 0 | SS21: 0 | ST21: 0 | SU21: 0 | SV21: 0 | SW21: 0 | SX21: 0 | SY21: 0 | SZ21: 0 | TA21: 0 | TB21: 0 | TC21: 0 | TD21: 0 | TE21: 0 | TF21: 0 | TG21: 0 | TH21: 0 | TI21: 0 | TJ21: 0 | TK21: 0 | TL21: 0 | TM21: 0 | TN21: 0 | TO21: 0 | TP21: 0 | TQ21: 0 | TR21: 0 | TS21: 0 | TT21: 0 | TU21: 0 | TV21: 0 | TW21: 0 | TX21: 0 | TY21: 0 | TZ21: 0 | UA21: 0 | UB21: 0 | UC21: 0 | UD21: 0 | UE21: 0 | UF21: 0 | UG21: 0 | UH21: 0 | UI21: 1 | UJ21: 0 | UK21: 0 | UL21: 1 | UM21: 0 | UN21: 0 | UO21: 0
A22: =HYPERLINK("https://meshb.nlm.nih.gov/record/ui?ui=" & B22,C22) -> Carbamazepine | B22: D002220 | C22: Carbamazepine | D22: 85756-57-6 | E22: =HYPERLINK("https://comptox.epa.gov/dashboard/dsstoxdb/results?utf8=%E2%9C%93&search=" & F22,F22) -> DTXSID00235052 | F22: DTXSID00235052 | G22: =SUM(H22:UO22) -> 403 | H22: 29 | I22: 21 | J22: 4 | K22: 9 | L22: 1 | M22: 3 | N22: 4 | O22: 28 | P22: 7 | Q22: 5 | R22: 5 | S22: 3 | T22: 2 | U22: 0 | V22: 0 | W22: 10 | X22: 8 | Y22: 19 | Z22: 9 | AA22: 0 | AB22: 0 | AC22: 6 | AD22: 10 | AE22: 5 | AF22: 0 | AG22: 4 | AH22: 0 | AI22: 6 | AJ22: 0 | AK22: 0 | AL22: 1 | AM22: 0 | AN22: 4 | AO22: 5 | AP22: 2 | AQ22: 0 | AR22: 0 | AS22: 0 | AT22: 22 | AU22: 0 | AV22: 0 | AW22: 0 | AX22: 0 | AY22: 0 | AZ22: 0 | BA22: 0 | BB22: 0 | BC22: 0 | BD22: 1 | BE22: 1 | BF22: 6 | BG22: 0 | BH22: 0 | BI22: 0 | BJ22: 0 | BK22: 0 | BL22: 2 | BM22: 0 | BN22: 1 | BO22: 0 | BP22: 5 | BQ22: 15 | BR22: 5 | BS22: 3 | BT22: 1 | BU22: 0 | BV22: 0 | BW22: 4 | BX22: 2 | BY22: 2 | BZ22: 3 | CA22: 0 | CB22: 0 | CC22: 0 | CD22: 0 | CE22: 2 | CF22: 0 | CG22: 0 | CH22: 4 | CI22: 0 | CJ22: 1 | CK22: 0 | CL22: 1 | CM22: 0 | CN22: 0 | CO22: 2 | CP22: 1 | CQ22: 0 | CR22: 0 | CS22: 8 | CT22: 0 | CU22: 0 | CV22: 3 | CW22: 1 | CX22: 0 | CY22: 0 | CZ22: 0 | DA22: 1 | DB22: 0 | DC22: 7 | DD22: 0 | DE22: 1 | DF22: 2 | DG22: 5 | DH22: 0 | DI22: 0 | DJ22: 2 | DK22: 0 | DL22: 0 | DM22: 0 | DN22: 1 | DO22: 1 | DP22: 0 | DQ22: 3 | DR22: 0 | DS22: 3 | DT22: 0 | DU22: 2 | DV22: 1 | DW22: 1 | DX22: 2 | DY22: 0 | DZ22: 0 | EA22: 0 | EB22: 0 | EC22: 0 | ED22: 1 | EE22: 0 | EF22: 1 | EG22: 0 | EH22: 0 | EI22: 0 | EJ22: 11 | EK22: 0 | EL22: 0 | EM22: 3 | EN22: 0 | EO22: 0 | EP22: 0 | EQ22: 1 | ER22: 0 | ES22: 1 | ET22: 0 | EU22: 0 | EV22: 1 | EW22: 0 | EX22: 0 | EY22: 0 | EZ22: 0 | FA22: 0 | FB22: 1 | FC22: 0 | FD22: 5 | FE22: 4 | FF22: 1 | FG22: 0 | FH22: 0 | FI22: 0 | FJ22: 0 | FK22: 0 | FL22: 0 | FM22: 1 | FN22: 1 | FO22: 0 | FP22: 0 | FQ22: 1 | FR22: 0 | FS22: 1 | FT22: 2 | FU22: 2 | FV22: 0 | FW22: 0 | FX22: 0 | FY22: 0 | FZ22: 0 | GA22: 0 | GB22: 0 | GC22: 0 | GD22: 0 | GE22: 0 | GF22: 1 | GG22: 0 | GH22: 0 | GI22: 1 | GJ22: 0 | GK22: 0 | GL22: 0 | GM22: 0 | GN22: 0 | GO22: 0 | GP22: 0 | GQ22: 0 | GR22: 0 | GS22: 0 | GT22: 0 | GU22: 0 | GV22: 0 | GW22: 0 | GX22: 0 | GY22: 1 | GZ22: 0 | HA22: 0 | HB22: 0 | HC22: 0 | HD22: 0 | HE22: 0 | HF22: 0 | HG22: 1 | HH22: 0 | HI22: 0 | HJ22: 0 | HK22: 0 | HL22: 0 | HM22: 0 | HN22: 0 | HO22: 0 | HP22: 0 | HQ22: 1 | HR22: 0 | HS22: 0 | HT22: 0 | HU22: 0 | HV22: 0 | HW22: 0 | HX22: 0 | HY22: 0 | HZ22: 0 | IA22: 0 | IB22: 1 | IC22: 0 | ID22: 0 | IE22: 0 | IF22: 0 | IG22: 0 | IH22: 0 | II22: 0 | IJ22: 0 | IK22: 0 | IL22: 2 | IM22: 0 | IN22: 0 | IO22: 1 | IP22: 1 | IQ22: 0 | IR22: 0 | IS22: 0 | IT22: 0 | IU22: 0 | IV22: 0 | IW22: 0 | IX22: 0 | IY22: 0 | IZ22: 0 | JA22: 0 | JB22: 0 | JC22: 0 | JD22: 0 | JE22: 0 | JF22: 0 | JG22: 0 | JH22: 0 | JI22: 0 | JJ22: 0 | JK22: 0 | JL22: 0 | JM22: 0 | JN22: 0 | JO22: 0 | JP22: 0 | JQ22: 1 | JR22: 0 | JS22: 0 | JT22: 0 | JU22: 0 | JV22: 0 | JW22: 0 | JX22: 0 | JY22: 0 | JZ22: 0 | KA22: 0 | KB22: 0 | KC22: 0 | KD22: 0 | KE22: 0 | KF22: 0 | KG22: 0 | KH22: 0 | KI22: 0 | KJ22: 0 | KK22: 0 | KL22: 0 | KM22: 0 | KN22: 0 | KO22: 0 | KP22: 0 | KQ22: 0 | KR22: 0 | KS22: 0 | KT22: 0 | KU22: 0 | KV22: 0 | KW22: 0 | KX22: 0 | KY22: 0 | KZ22: 0 | LA22: 0 | LB22: 0 | LC22: 0 | LD22: 0 | LE22: 0 | LF22: 0 | LG22: 0 | LH22: 0 | LI22: 0 | LJ22: 0 | LK22: 0 | LL22: 0 | LM22: 0 | LN22: 0 | LO22: 0 | LP22: 0 | LQ22: 0 | LR22: 0 | LS22: 0 | LT22: 0 | LU22: 0 | LV22: 0 | LW22: 0 | LX22: 0 | LY22: 0 | LZ22: 0 | MA22: 0 | MB22: 0 | MC22: 0 | MD22: 0 | ME22: 1 | MF22: 0 | MG22: 0 | MH22: 0 | MI22: 0 | MJ22: 0 | MK22: 0 | ML22: 0 | MM22: 0 | MN22: 0 | MO22: 0 | MP22: 1 | MQ22: 0 | MR22: 0 | MS22: 0 | MT22: 0 | MU22: 0 | MV22: 0 | MW22: 0 | MX22: 0 | MY22: 0 | MZ22: 0 | NA22: 0 | NB22: 0 | NC22: 0 | ND22: 0 | NE22: 0 | NF22: 0 | NG22: 0 | NH22: 0 | NI22: 0 | NJ22: 0 | NK22: 0 | NL22: 0 | NM22: 0 | NN22: 0 | NO22: 0 | NP22: 0 | NQ22: 0 | NR22: 0 | NS22: 0 | NT22: 0 | NU22: 0 | NV22: 0 | NW22: 0 | NX22: 0 | NY22: 0 | NZ22: 0 | OA22: 0 | OB22: 0 | OC22: 0 | OD22: 0 | OE22: 0 | OF22: 0 | OG22: 0 | OH22: 0 | OI22: 0 | OJ22: 0 | OK22: 0 | OL22: 0 | OM22: 0 | ON22: 0 | OO22: 0 | OP22: 0 | OQ22: 0 | OR22: 0 | OS22: 0 | OT22: 0 | OU22: 1 | OV22: 0 | OW22: 0 | OX22: 0 | OY22: 0 | OZ22: 0 | PA22: 0 | PB22: 1 | PC22: 0 | PD22: 0 | PE22: 0 | PF22: 0 | PG22: 0 | PH22: 0 | PI22: 0 | PJ22: 0 | PK22: 0 | PL22: 0 | PM22: 0 | PN22: 0 | PO22: 0 | PP22: 0 | PQ22: 0 | PR22: 0 | PS22: 0 | PT22: 0 | PU22: 0 | PV22: 0 | PW22: 0 | PX22: 0 | PY22: 0 | PZ22: 0 | QA22: 0 | QB22: 0 | QC22: 0 | QD22: 0 | QE22: 0 | QF22: 0 | QG22: 0 | QH22: 0 | QI22: 0 | QJ22: 0 | QK22: 0 | QL22: 0 | QM22: 0 | QN22: 0 | QO22: 0 | QP22: 0 | QQ22: 0 | QR22: 0 | QS22: 0 | QT22: 0 | QU22: 0 | QV22: 0 | QW22: 0 | QX22: 0 | QY22: 0 | QZ22: 0 | RA22: 0 | RB22: 0 | RC22: 0 | RD22: 0 | RE22: 0 | RF22: 0 | RG22: 0 | RH22: 0 | RI22: 0 | RJ22: 0 | RK22: 0 | RL22: 0 | RM22: 0 | RN22: 0 | RO22: 0 | RP22: 0 | RQ22: 0 | RR22: 0 | RS22: 0 | RT22: 0 | RU22: 0 | RV22: 0 | RW22: 0 | RX22: 0 | RY22: 0 | RZ22: 0 | SA22: 1 | SB22: 0 | SC22: 0 | SD22: 0 | SE22: 0 | SF22: 0 | SG22: 0 | SH22: 0 | SI22: 0 | SJ22: 0 | SK22: 0 | SL22: 0 | SM22: 0 | SN22: 0 | SO22: 0 | SP22: 0 | SQ22: 0 | SR22: 0 | SS22: 0 | ST22: 0 | SU22: 0 | SV22: 0 | SW22: 0 | SX22: 0 | SY22: 0 | SZ22: 0 | TA22: 0 | TB22: 0 | TC22: 0 | TD22: 0 | TE22: 0 | TF22: 0 | TG22: 0 | TH22: 0 | TI22: 0 | TJ22: 0 | TK22: 0 | TL22: 0 | TM22: 0 | TN22: 0 | TO22: 0 | TP22: 0 | TQ22: 0 | TR22: 0 | TS22: 0 | TT22: 0 | TU22: 0 | TV22: 0 | TW22: 0 | TX22: 0 | TY22: 0 | TZ22: 0 | UA22: 0 | UB22: 0 | UC22: 0 | UD22: 0 | UE22: 4 | UF22: 0 | UG22: 0 | UH22: 0 | UI22: 7 | UJ22: 0 | UK22: 0 | UL22: 0 | UM22: 0 | UN22: 0 | UO22: 0
A23: =HYPERLINK("https://meshb.nlm.nih.gov/record/ui?ui=" & B23,C23) -> Warfarin | B23: D014859 | C23: Warfarin | D23: 81-81-2 | E23: =HYPERLINK("https://comptox.epa.gov/dashboard/dsstoxdb/results?utf8=%E2%9C%93&search=" & F23,F23) -> DTXSID5023742 | F23: DTXSID5023742 | G23: =SUM(H23:UO23) -> 392 | H23: 0 | I23: 1 | J23: 2 | K23: 1 | L23: 6 | M23: 0 | N23: 0 | O23: 1 | P23: 0 | Q23: 0 | R23: 0 | S23: 1 | T23: 0 | U23: 136 | V23: 0 | W23: 0 | X23: 0 | Y23: 0 | Z23: 0 | AA23: 0 | AB23: 1 | AC23: 2 | AD23: 0 | AE23: 0 | AF23: 0 | AG23: 0 | AH23: 0 | AI23: 0 | AJ23: 37 | AK23: 3 | AL23: 0 | AM23: 0 | AN23: 0 | AO23: 0 | AP23: 0 | AQ23: 0 | AR23: 0 | AS23: 0 | AT23: 0 | AU23: 1 | AV23: 105 | AW23: 0 | AX23: 0 | AY23: 0 | AZ23: 0 | BA23: 0 | BB23: 0 | BC23: 0 | BD23: 0 | BE23: 0 | BF23: 0 | BG23: 1 | BH23: 2 | BI23: 0 | BJ23: 0 | BK23: 12 | BL23: 1 | BM23: 0 | BN23: 0 | BO23: 0 | BP23: 0 | BQ23: 0 | BR23: 0 | BS23: 0 | BT23: 0 | BU23: 0 | BV23: 0 | BW23: 0 | BX23: 0 | BY23: 0 | BZ23: 0 | CA23: 5 | CB23: 1 | CC23: 0 | CD23: 0 | CE23: 0 | CF23: 0 | CG23: 2 | CH23: 0 | CI23: 0 | CJ23: 0 | CK23: 0 | CL23: 0 | CM23: 0 | CN23: 0 | CO23: 0 | CP23: 0 | CQ23: 0 | CR23: 0 | CS23: 1 | CT23: 0 | CU23: 0 | CV23: 0 | CW23: 0 | CX23: 0 | CY23: 0 | CZ23: 0 | DA23: 1 | DB23: 0 | DC23: 0 | DD23: 0 | DE23: 0 | DF23: 0 | DG23: 0 | DH23: 1 | DI23: 5 | DJ23: 0 | DK23: 0 | DL23: 0 | DM23: 0 | DN23: 0 | DO23: 0 | DP23: 0 | DQ23: 0 | DR23: 1 | DS23: 0 | DT23: 2 | DU23: 0 | DV23: 0 | DW23: 0 | DX23: 0 | DY23: 0 | DZ23: 0 | EA23: 0 | EB23: 23 | EC23: 0 | ED23: 2 | EE23: 0 | EF23: 0 | EG23: 0 | EH23: 0 | EI23: 0 | EJ23: 0 | EK23: 0 | EL23: 0 | EM23: 0 | EN23: 0 | EO23: 0 | EP23: 0 | EQ23: 0 | ER23: 0 | ES23: 0 | ET23: 0 | EU23: 0 | EV23: 0 | EW23: 0 | EX23: 0 | EY23: 0 | EZ23: 0 | FA23: 0 | FB23: 0 | FC23: 0 | FD23: 0 | FE23: 0 | FF23: 0 | FG23: 0 | FH23: 0 | FI23: 0 | FJ23: 0 | FK23: 0 | FL23: 0 | FM23: 0 | FN23: 0 | FO23: 0 | FP23: 0 | FQ23: 0 | FR23: 9 | FS23: 0 | FT23: 0 | FU23: 0 | FV23: 0 | FW23: 0 | FX23: 0 | FY23: 0 | FZ23: 0 | GA23: 0 | GB23: 0 | GC23: 0 | GD23: 0 | GE23: 1 | GF23: 0 | GG23: 0 | GH23: 0 | GI23: 0 | GJ23: 0 | GK23: 0 | GL23: 0 | GM23: 2 | GN23: 0 | GO23: 0 | GP23: 0 | GQ23: 0 | GR23: 0 | GS23: 0 | GT23: 0 | GU23: 0 | GV23: 0 | GW23: 0 | GX23: 0 | GY23: 0 | GZ23: 0 | HA23: 0 | HB23: 0 | HC23: 1 | HD23: 0 | HE23: 2 | HF23: 0 | HG23: 0 | HH23: 0 | HI23: 0 | HJ23: 0 | HK23: 0 | HL23: 0 | HM23: 0 | HN23: 0 | HO23: 0 | HP23: 0 | HQ23: 0 | HR23: 0 | HS23: 0 | HT23: 0 | HU23: 0 | HV23: 0 | HW23: 0 | HX23: 0 | HY23: 0 | HZ23: 1 | IA23: 0 | IB23: 0 | IC23: 0 | ID23: 1 | IE23: 0 | IF23: 0 | IG23: 0 | IH23: 0 | II23: 0 | IJ23: 0 | IK23: 0 | IL23: 1 | IM23: 1 | IN23: 0 | IO23: 0 | IP23: 0 | IQ23: 0 | IR23: 0 | IS23: 0 | IT23: 0 | IU23: 0 | IV23: 0 | IW23: 0 | IX23: 0 | IY23: 0 | IZ23: 0 | JA23: 0 | JB23: 0 | JC23: 0 | JD23: 0 | JE23: 1 | JF23: 0 | JG23: 0 | JH23: 0 | JI23: 0 | JJ23: 0 | JK23: 0 | JL23: 0 | JM23: 4 | JN23: 0 | JO23: 0 | JP23: 0 | JQ23: 0 | JR23: 0 | JS23: 0 | JT23: 0 | JU23: 0 | JV23: 0 | JW23: 0 | JX23: 0 | JY23: 0 | JZ23: 0 | KA23: 0 | KB23: 0 | KC23: 0 | KD23: 0 | KE23: 0 | KF23: 0 | KG23: 0 | KH23: 0 | KI23: 0 | KJ23: 0 | KK23: 0 | KL23: 0 | KM23: 0 | KN23: 0 | KO23: 0 | KP23: 0 | KQ23: 0 | KR23: 0 | KS23: 0 | KT23: 0 | KU23: 0 | KV23: 0 | KW23: 0 | KX23: 0 | KY23: 0 | KZ23: 0 | LA23: 0 | LB23: 0 | LC23: 1 | LD23: 0 | LE23: 0 | LF23: 0 | LG23: 0 | LH23: 0 | LI23: 0 | LJ23: 0 | LK23: 0 | LL23: 0 | LM23: 0 | LN23: 0 | LO23: 0 | LP23: 0 | LQ23: 0 | LR23: 1 | LS23: 0 | LT23: 0 | LU23: 0 | LV23: 0 | LW23: 0 | LX23: 0 | LY23: 0 | LZ23: 0 | MA23: 0 | MB23: 0 | MC23: 0 | MD23: 0 | ME23: 0 | MF23: 0 | MG23: 0 | MH23: 0 | MI23: 0 | MJ23: 0 | MK23: 0 | ML23: 0 | MM23: 0 | MN23: 0 | MO23: 0 | MP23: 0 | MQ23: 0 | MR23: 0 | MS23: 0 | MT23: 0 | MU23: 0 | MV23: 0 | MW23: 0 | MX23: 0 | MY23: 0 | MZ23: 0 | NA23: 0 | NB23: 0 | NC23: 3 | ND23: 0 | NE23: 0 | NF23: 0 | NG23: 0 | NH23: 0 | NI23: 0 | NJ23: 0 | NK23: 0 | NL23: 0 | NM23: 0 | NN23: 0 | NO23: 0 | NP23: 0 | NQ23: 0 | NR23: 0 | NS23: 0 | NT23: 0 | NU23: 0 | NV23: 0 | NW23: 0 | NX23: 0 | NY23: 0 | NZ23: 0 | OA23: 0 | OB23: 0 | OC23: 0 | OD23: 0 | OE23: 0 | OF23: 0 | OG23: 0 | OH23: 0 | OI23: 0 | OJ23: 0 | OK23: 0 | OL23: 0 | OM23: 0 | ON23: 0 | OO23: 0 | OP23: 1 | OQ23: 0 | OR23: 0 | OS23: 0 | OT23: 0 | OU23: 0 | OV23: 0 | OW23: 0 | OX23: 3 | OY23: 0 | OZ23: 0 | PA23: 0 | PB23: 0 | PC23: 0 | PD23: 0 | PE23: 0 | PF23: 0 | PG23: 0 | PH23: 0 | PI23: 0 | PJ23: 0 | PK23: 0 | PL23: 0 | PM23: 0 | PN23: 0 | PO23: 0 | PP23: 0 | PQ23: 0 | PR23: 0 | PS23: 0 | PT23: 0 | PU23: 0 | PV23: 0 | PW23: 0 | PX23: 0 | PY23: 0 | PZ23: 0 | QA23: 0 | QB23: 0 | QC23: 0 | QD23: 0 | QE23: 0 | QF23: 0 | QG23: 0 | QH23: 0 | QI23: 0 | QJ23: 0 | QK23: 0 | QL23: 0 | QM23: 0 | QN23: 0 | QO23: 0 | QP23: 0 | QQ23: 0 | QR23: 0 | QS23: 0 | QT23: 0 | QU23: 0 | QV23: 0 | QW23: 0 | QX23: 0 | QY23: 0 | QZ23: 0 | RA23: 0 | RB23: 0 | RC23: 0 | RD23: 0 | RE23: 0 | RF23: 0 | RG23: 0 | RH23: 0 | RI23: 0 | RJ23: 0 | RK23: 0 | RL23: 0 | RM23: 0 | RN23: 0 | RO23: 0 | RP23: 0 | RQ23: 0 | RR23: 0 | RS23: 0 | RT23: 0 | RU23: 0 | RV23: 0 | RW23: 0 | RX23: 0 | RY23: 0 | RZ23: 0 | SA23: 0 | SB23: 0 | SC23: 0 | SD23: 0 | SE23: 0 | SF23: 0 | SG23: 0 | SH23: 0 | SI23: 0 | SJ23: 0 | SK23: 0 | SL23: 0 | SM23: 0 | SN23: 0 | SO23: 0 | SP23: 0 | SQ23: 0 | SR23: 0 | SS23: 0 | ST23: 0 | SU23: 0 | SV23: 0 | SW23: 0 | SX23: 0 | SY23: 0 | SZ23: 0 | TA23: 0 | TB23: 0 | TC23: 0 | TD23: 0 | TE23: 0 | TF23: 0 | TG23: 0 | TH23: 0 | TI23: 0 | TJ23: 0 | TK23: 0 | TL23: 0 | TM23: 0 | TN23: 0 | TO23: 0 | TP23: 0 | TQ23: 0 | TR23: 0 | TS23: 0 | TT23: 0 | TU23: 0 | TV23: 0 | TW23: 0 | TX23: 0 | TY23: 0 | TZ23: 0 | UA23: 0 | UB23: 0 | UC23: 1 | UD23: 0 | UE23: 0 | UF23: 0 | UG23: 0 | UH23: 0 | UI23: 1 | UJ23: 0 | UK23: 0 | UL23: 0 | UM23: 0 | UN23: 0 | UO23: 0
A24: =HYPERLINK("https://meshb.nlm.nih.gov/record/ui?ui=" & B24,C24) -> Clozapine | B24: D003024 | C24: Clozapine | D24: 5786-21-0 | E24: =HYPERLINK("https://comptox.epa.gov/dashboard/dsstoxdb/results?utf8=%E2%9C%93&search=" & F24,F24) -> DTXSID5022855 | F24: DTXSID5022855 | G24: =SUM(H24:UO24) -> 364 | H24: 64 | I24: 1 | J24: 0 | K24: 1 | L24: 1 | M24: 55 | N24: 12 | O24: 7 | P24: 5 | Q24: 6 | R24: 1 | S24: 5 | T24: 15 | U24: 0 | V24: 0 | W24: 16 | X24: 16 | Y24: 0 | Z24: 13 | AA24: 0 | AB24: 1 | AC24: 6 | AD24: 1 | AE24: 7 | AF24: 0 | AG24: 15 | AH24: 3 | AI24: 0 | AJ24: 0 | AK24: 0 | AL24: 0 | AM24: 0 | AN24: 2 | AO24: 6 | AP24: 2 | AQ24: 0 | AR24: 5 | AS24: 1 | AT24: 0 | AU24: 0 | AV24: 0 | AW24: 1 | AX24: 1 | AY24: 0 | AZ24: 0 | BA24: 2 | BB24: 0 | BC24: 1 | BD24: 0 | BE24: 1 | BF24: 0 | BG24: 0 | BH24: 0 | BI24: 3 | BJ24: 1 | BK24: 0 | BL24: 1 | BM24: 0 | BN24: 0 | BO24: 0 | BP24: 1 | BQ24: 0 | BR24: 7 | BS24: 1 | BT24: 4 | BU24: 0 | BV24: 0 | BW24: 0 | BX24: 1 | BY24: 0 | BZ24: 0 | CA24: 0 | CB24: 0 | CC24: 0 | CD24: 0 | CE24: 12 | CF24: 0 | CG24: 0 | CH24: 0 | CI24: 0 | CJ24: 1 | CK24: 3 | CL24: 0 | CM24: 0 | CN24: 0 | CO24: 0 | CP24: 0 | CQ24: 0 | CR24: 0 | CS24: 0 | CT24: 0 | CU24: 1 | CV24: 0 | CW24: 1 | CX24: 0 | CY24: 0 | CZ24: 0 | DA24: 1 | DB24: 2 | DC24: 11 | DD24: 0 | DE24: 0 | DF24: 1 | DG24: 0 | DH24: 0 | DI24: 0 | DJ24: 0 | DK24: 0 | DL24: 0 | DM24: 0 | DN24: 3 | DO24: 0 | DP24: 0 | DQ24: 0 | DR24: 0 | DS24: 0 | DT24: 0 | DU24: 0 | DV24: 0 | DW24: 0 | DX24: 3 | DY24: 0 | DZ24: 1 | EA24: 0 | EB24: 1 | EC24: 0 | ED24: 0 | EE24: 0 | EF24: 0 | EG24: 0 | EH24: 0 | EI24: 0 | EJ24: 0 | EK24: 0 | EL24: 0 | EM24: 3 | EN24: 0 | EO24: 0 | EP24: 0 | EQ24: 0 | ER24: 0 | ES24: 0 | ET24: 0 | EU24: 0 | EV24: 0 | EW24: 0 | EX24: 1 | EY24: 0 | EZ24: 0 | FA24: 0 | FB24: 0 | FC24: 0 | FD24: 0 | FE24: 1 | FF24: 1 | FG24: 0 | FH24: 0 | FI24: 0 | FJ24: 9 | FK24: 0 | FL24: 0 | FM24: 0 | FN24: 0 | FO24: 0 | FP24: 0 | FQ24: 0 | FR24: 0 | FS24: 0 | FT24: 1 | FU24: 0 | FV24: 0 | FW24: 0 | FX24: 0 | FY24: 0 | FZ24: 0 | GA24: 0 | GB24: 1 | GC24: 0 | GD24: 0 | GE24: 4 | GF24: 0 | GG24: 0 | GH24: 0 | GI24: 0 | GJ24: 0 | GK24: 0 | GL24: 1 | GM24: 0 | GN24: 0 | GO24: 0 | GP24: 0 | GQ24: 0 | GR24: 0 | GS24: 0 | GT24: 0 | GU24: 0 | GV24: 0 | GW24: 0 | GX24: 0 | GY24: 0 | GZ24: 0 | HA24: 0 | HB24: 0 | HC24: 0 | HD24: 0 | HE24: 0 | HF24: 0 | HG24: 0 | HH24: 0 | HI24: 0 | HJ24: 0 | HK24: 0 | HL24: 0 | HM24: 0 | HN24: 0 | HO24: 0 | HP24: 0 | HQ24: 0 | HR24: 0 | HS24: 0 | HT24: 0 | HU24: 0 | HV24: 0 | HW24: 0 | HX24: 0 | HY24: 0 | HZ24: 0 | IA24: 0 | IB24: 0 | IC24: 0 | ID24: 0 | IE24: 0 | IF24: 0 | IG24: 0 | IH24: 0 | II24: 0 | IJ24: 0 | IK24: 0 | IL24: 0 | IM24: 0 | IN24: 0 | IO24: 0 | IP24: 0 | IQ24: 0 | IR24: 0 | IS24: 0 | IT24: 0 | IU24: 0 | IV24: 0 | IW24: 0 | IX24: 0 | IY24: 0 | IZ24: 0 | JA24: 0 | JB24: 0 | JC24: 0 | JD24: 0 | JE24: 0 | JF24: 0 | JG24: 0 | JH24: 0 | JI24: 0 | JJ24: 0 | JK24: 0 | JL24: 5 | JM24: 0 | JN24: 0 | JO24: 0 | JP24: 0 | JQ24: 0 | JR24: 0 | JS24: 0 | JT24: 0 | JU24: 0 | JV24: 0 | JW24: 0 | JX24: 0 | JY24: 0 | JZ24: 1 | KA24: 0 | KB24: 0 | KC24: 0 | KD24: 0 | KE24: 0 | KF24: 0 | KG24: 0 | KH24: 0 | KI24: 0 | KJ24: 0 | KK24: 0 | KL24: 0 | KM24: 0 | KN24: 0 | KO24: 0 | KP24: 0 | KQ24: 0 | KR24: 0 | KS24: 0 | KT24: 0 | KU24: 0 | KV24: 0 | KW24: 1 | KX24: 0 | KY24: 0 | KZ24: 0 | LA24: 0 | LB24: 0 | LC24: 0 | LD24: 0 | LE24: 0 | LF24: 0 | LG24: 1 | LH24: 0 | LI24: 0 | LJ24: 0 | LK24: 0 | LL24: 0 | LM24: 0 | LN24: 0 | LO24: 0 | LP24: 0 | LQ24: 0 | LR24: 0 | LS24: 0 | LT24: 0 | LU24: 0 | LV24: 0 | LW24: 0 | LX24: 0 | LY24: 0 | LZ24: 0 | MA24: 0 | MB24: 0 | MC24: 0 | MD24: 0 | ME24: 0 | MF24: 0 | MG24: 0 | MH24: 0 | MI24: 0 | MJ24: 0 | MK24: 0 | ML24: 0 | MM24: 0 | MN24: 0 | MO24: 0 | MP24: 0 | MQ24: 0 | MR24: 0 | MS24: 0 | MT24: 0 | MU24: 0 | MV24: 0 | MW24: 0 | MX24: 0 | MY24: 0 | MZ24: 0 | NA24: 0 | NB24: 0 | NC24: 0 | ND24: 0 | NE24: 0 | NF24: 0 | NG24: 0 | NH24: 0 | NI24: 0 | NJ24: 0 | NK24: 0 | NL24: 0 | NM24: 0 | NN24: 0 | NO24: 0 | NP24: 0 | NQ24: 0 | NR24: 0 | NS24: 0 | NT24: 0 | NU24: 0 | NV24: 0 | NW24: 0 | NX24: 0 | NY24: 0 | NZ24: 0 | OA24: 0 | OB24: 0 | OC24: 0 | OD24: 0 | OE24: 0 | OF24: 0 | OG24: 0 | OH24: 0 | OI24: 0 | OJ24: 0 | OK24: 0 | OL24: 0 | OM24: 0 | ON24: 0 | OO24: 0 | OP24: 0 | OQ24: 0 | OR24: 0 | OS24: 0 | OT24: 0 | OU24: 0 | OV24: 0 | OW24: 0 | OX24: 0 | OY24: 0 | OZ24: 0 | PA24: 0 | PB24: 0 | PC24: 0 | PD24: 0 | PE24: 0 | PF24: 0 | PG24: 0 | PH24: 0 | PI24: 0 | PJ24: 0 | PK24: 0 | PL24: 0 | PM24: 0 | PN24: 1 | PO24: 0 | PP24: 0 | PQ24: 0 | PR24: 0 | PS24: 0 | PT24: 0 | PU24: 0 | PV24: 0 | PW24: 0 | PX24: 0 | PY24: 0 | PZ24: 0 | QA24: 0 | QB24: 0 | QC24: 0 | QD24: 0 | QE24: 0 | QF24: 0 | QG24: 0 | QH24: 0 | QI24: 0 | QJ24: 0 | QK24: 0 | QL24: 0 | QM24: 0 | QN24: 0 | QO24: 0 | QP24: 0 | QQ24: 0 | QR24: 0 | QS24: 0 | QT24: 0 | QU24: 0 | QV24: 0 | QW24: 0 | QX24: 0 | QY24: 0 | QZ24: 0 | RA24: 0 | RB24: 0 | RC24: 0 | RD24: 0 | RE24: 0 | RF24: 0 | RG24: 0 | RH24: 0 | RI24: 0 | RJ24: 0 | RK24: 0 | RL24: 0 | RM24: 0 | RN24: 0 | RO24: 0 | RP24: 0 | RQ24: 0 | RR24: 0 | RS24: 0 | RT24: 0 | RU24: 0 | RV24: 0 | RW24: 0 | RX24: 0 | RY24: 0 | RZ24: 0 | SA24: 0 | SB24: 0 | SC24: 0 | SD24: 0 | SE24: 0 | SF24: 0 | SG24: 0 | SH24: 0 | SI24: 0 | SJ24: 0 | SK24: 0 | SL24: 0 | SM24: 0 | SN24: 0 | SO24: 0 | SP24: 0 | SQ24: 0 | SR24: 0 | SS24: 0 | ST24: 0 | SU24: 0 | SV24: 0 | SW24: 0 | SX24: 0 | SY24: 0 | SZ24: 0 | TA24: 0 | TB24: 0 | TC24: 0 | TD24: 0 | TE24: 0 | TF24: 0 | TG24: 0 | TH24: 0 | TI24: 0 | TJ24: 0 | TK24: 0 | TL24: 0 | TM24: 0 | TN24: 0 | TO24: 0 | TP24: 0 | TQ24: 0 | TR24: 0 | TS24: 0 | TT24: 0 | TU24: 0 | TV24: 0 | TW24: 0 | TX24: 0 | TY24: 0 | TZ24: 0 | UA24: 0 | UB24: 0 | UC24: 0 | UD24: 0 | UE24: 0 | UF24: 0 | UG24: 0 | UH24: 0 | UI24: 0 | UJ24: 0 | UK24: 0 | UL24: 0 | UM24: 0 | UN24: 0 | UO24: 0
A25: =HYPERLINK("https://meshb.nlm.nih.gov/record/ui?ui=" & B25,C25) -> Carbon Monoxide | B25: D002248 | C25: Carbon Monoxide | D25: 630-08-0 | E25: =HYPERLINK("https://comptox.epa.gov/dashboard/dsstoxdb/results?utf8=%E2%9C%93&search=" & F25,F25) -> DTXSID5027273 | F25: DTXSID5027273 | G25: =SUM(H25:UO25) -> 352 | H25: 5 | I25: 29 | J25: 3 | K25: 59 | L25: 7 | M25: 8 | N25: 17 | O25: 14 | P25: 0 | Q25: 2 | R25: 10 | S25: 11 | T25: 1 | U25: 2 | V25: 0 | W25: 0 | X25: 1 | Y25: 1 | Z25: 3 | AA25: 2 | AB25: 2 | AC25: 4 | AD25: 1 | AE25: 0 | AF25: 0 | AG25: 0 | AH25: 0 | AI25: 2 | AJ25: 0 | AK25: 2 | AL25: 4 | AM25: 2 | AN25: 1 | AO25: 2 | AP25: 0 | AQ25: 7 | AR25: 0 | AS25: 3 | AT25: 0 | AU25: 4 | AV25: 0 | AW25: 15 | AX25: 1 | AY25: 0 | AZ25: 0 | BA25: 0 | BB25: 3 | BC25: 0 | BD25: 6 | BE25: 1 | BF25: 0 | BG25: 1 | BH25: 2 | BI25: 0 | BJ25: 1 | BK25: 0 | BL25: 1 | BM25: 0 | BN25: 0 | BO25: 2 | BP25: 5 | BQ25: 1 | BR25: 1 | BS25: 3 | BT25: 2 | BU25: 0 | BV25: 0 | BW25: 0 | BX25: 5 | BY25: 13 | BZ25: 2 | CA25: 2 | CB25: 0 | CC25: 1 | CD25: 0 | CE25: 0 | CF25: 0 | CG25: 3 | CH25: 0 | CI25: 0 | CJ25: 0 | CK25: 0 | CL25: 0 | CM25: 1 | CN25: 0 | CO25: 0 | CP25: 1 | CQ25: 0 | CR25: 0 | CS25: 0 | CT25: 4 | CU25: 1 | CV25: 2 | CW25: 0 | CX25: 0 | CY25: 0 | CZ25: 0 | DA25: 0 | DB25: 0 | DC25: 0 | DD25: 2 | DE25: 0 | DF25: 0 | DG25: 0 | DH25: 0 | DI25: 0 | DJ25: 0 | DK25: 0 | DL25: 1 | DM25: 0 | DN25: 0 | DO25: 1 | DP25: 0 | DQ25: 1 | DR25: 0 | DS25: 0 | DT25: 2 | DU25: 2 | DV25: 1 | DW25: 0 | DX25: 1 | DY25: 1 | DZ25: 2 | EA25: 0 | EB25: 0 | EC25: 0 | ED25: 0 | EE25: 0 | EF25: 2 | EG25: 1 | EH25: 0 | EI25: 0 | EJ25: 0 | EK25: 0 | EL25: 12 | EM25: 0 | EN25: 0 | EO25: 0 | EP25: 0 | EQ25: 0 | ER25: 0 | ES25: 0 | ET25: 0 | EU25: 1 | EV25: 2 | EW25: 0 | EX25: 0 | EY25: 0 | EZ25: 0 | FA25: 0 | FB25: 0 | FC25: 1 | FD25: 0 | FE25: 1 | FF25: 0 | FG25: 0 | FH25: 0 | FI25: 0 | FJ25: 0 | FK25: 0 | FL25: 0 | FM25: 0 | FN25: 0 | FO25: 0 | FP25: 0 | FQ25: 1 | FR25: 0 | FS25: 0 | FT25: 0 | FU25: 0 | FV25: 0 | FW25: 0 | FX25: 0 | FY25: 1 | FZ25: 0 | GA25: 0 | GB25: 0 | GC25: 0 | GD25: 0 | GE25: 0 | GF25: 0 | GG25: 1 | GH25: 1 | GI25: 0 | GJ25: 0 | GK25: 0 | GL25: 0 | GM25: 0 | GN25: 0 | GO25: 0 | GP25: 0 | GQ25: 0 | GR25: 0 | GS25: 0 | GT25: 0 | GU25: 2 | GV25: 0 | GW25: 0 | GX25: 0 | GY25: 0 | GZ25: 0 | HA25: 0 | HB25: 0 | HC25: 0 | HD25: 0 | HE25: 0 | HF25: 1 | HG25: 0 | HH25: 0 | HI25: 0 | HJ25: 0 | HK25: 0 | HL25: 0 | HM25: 3 | HN25: 0 | HO25: 0 | HP25: 0 | HQ25: 0 | HR25: 0 | HS25: 0 | HT25: 0 | HU25: 1 | HV25: 0 | HW25: 0 | HX25: 0 | HY25: 0 | HZ25: 0 | IA25: 0 | IB25: 3 | IC25: 0 | ID25: 0 | IE25: 0 | IF25: 0 | IG25: 0 | IH25: 0 | II25: 0 | IJ25: 0 | IK25: 0 | IL25: 0 | IM25: 0 | IN25: 0 | IO25: 0 | IP25: 0 | IQ25: 0 | IR25: 2 | IS25: 0 | IT25: 0 | IU25: 0 | IV25: 0 | IW25: 0 | IX25: 0 | IY25: 1 | IZ25: 0 | JA25: 0 | JB25: 0 | JC25: 0 | JD25: 0 | JE25: 0 | JF25: 0 | JG25: 0 | JH25: 0 | JI25: 0 | JJ25: 0 | JK25: 0 | JL25: 0 | JM25: 0 | JN25: 0 | JO25: 0 | JP25: 0 | JQ25: 0 | JR25: 0 | JS25: 0 | JT25: 0 | JU25: 0 | JV25: 0 | JW25: 0 | JX25: 0 | JY25: 0 | JZ25: 0 | KA25: 0 | KB25: 0 | KC25: 0 | KD25: 0 | KE25: 0 | KF25: 0 | KG25: 0 | KH25: 0 | KI25: 0 | KJ25: 0 | KK25: 0 | KL25: 0 | KM25: 0 | KN25: 0 | KO25: 0 | KP25: 2 | KQ25: 0 | KR25: 1 | KS25: 0 | KT25: 0 | KU25: 0 | KV25: 0 | KW25: 0 | KX25: 0 | KY25: 0 | KZ25: 0 | LA25: 0 | LB25: 0 | LC25: 0 | LD25: 0 | LE25: 0 | LF25: 0 | LG25: 0 | LH25: 0 | LI25: 0 | LJ25: 0 | LK25: 0 | LL25: 0 | LM25: 0 | LN25: 0 | LO25: 0 | LP25: 0 | LQ25: 0 | LR25: 0 | LS25: 0 | LT25: 0 | LU25: 0 | LV25: 0 | LW25: 0 | LX25: 0 | LY25: 0 | LZ25: 0 | MA25: 0 | MB25: 0 | MC25: 0 | MD25: 0 | ME25: 0 | MF25: 0 | MG25: 0 | MH25: 0 | MI25: 0 | MJ25: 0 | MK25: 0 | ML25: 0 | MM25: 0 | MN25: 0 | MO25: 0 | MP25: 0 | MQ25: 0 | MR25: 0 | MS25: 0 | MT25: 0 | MU25: 0 | MV25: 0 | MW25: 0 | MX25: 0 | MY25: 0 | MZ25: 0 | NA25: 0 | NB25: 0 | NC25: 0 | ND25: 0 | NE25: 0 | NF25: 0 | NG25: 0 | NH25: 0 | NI25: 1 | NJ25: 0 | NK25: 0 | NL25: 0 | NM25: 0 | NN25: 0 | NO25: 0 | NP25: 0 | NQ25: 0 | NR25: 0 | NS25: 0 | NT25: 0 | NU25: 0 | NV25: 0 | NW25: 0 | NX25: 0 | NY25: 0 | NZ25: 0 | OA25: 0 | OB25: 0 | OC25: 0 | OD25: 0 | OE25: 0 | OF25: 0 | OG25: 0 | OH25: 0 | OI25: 0 | OJ25: 0 | OK25: 0 | OL25: 0 | OM25: 0 | ON25: 0 | OO25: 0 | OP25: 0 | OQ25: 0 | OR25: 0 | OS25: 0 | OT25: 0 | OU25: 0 | OV25: 0 | OW25: 0 | OX25: 0 | OY25: 0 | OZ25: 0 | PA25: 0 | PB25: 0 | PC25: 0 | PD25: 0 | PE25: 0 | PF25: 0 | PG25: 0 | PH25: 0 | PI25: 0 | PJ25: 0 | PK25: 0 | PL25: 0 | PM25: 0 | PN25: 0 | PO25: 0 | PP25: 0 | PQ25: 0 | PR25: 0 | PS25: 0 | PT25: 0 | PU25: 0 | PV25: 0 | PW25: 0 | PX25: 0 | PY25: 0 | PZ25: 0 | QA25: 0 | QB25: 0 | QC25: 0 | QD25: 0 | QE25: 0 | QF25: 0 | QG25: 0 | QH25: 0 | QI25: 0 | QJ25: 0 | QK25: 0 | QL25: 0 | QM25: 0 | QN25: 0 | QO25: 0 | QP25: 0 | QQ25: 0 | QR25: 0 | QS25: 0 | QT25: 0 | QU25: 0 | QV25: 0 | QW25: 0 | QX25: 0 | QY25: 0 | QZ25: 0 | RA25: 0 | RB25: 0 | RC25: 0 | RD25: 0 | RE25: 0 | RF25: 0 | RG25: 0 | RH25: 0 | RI25: 0 | RJ25: 0 | RK25: 0 | RL25: 0 | RM25: 0 | RN25: 0 | RO25: 0 | RP25: 0 | RQ25: 0 | RR25: 0 | RS25: 0 | RT25: 0 | RU25: 0 | RV25: 0 | RW25: 0 | RX25: 0 | RY25: 0 | RZ25: 0 | SA25: 0 | SB25: 0 | SC25: 0 | SD25: 0 | SE25: 0 | SF25: 0 | SG25: 0 | SH25: 0 | SI25: 0 | SJ25: 0 | SK25: 0 | SL25: 0 | SM25: 0 | SN25: 0 | SO25: 0 | SP25: 0 | SQ25: 0 | SR25: 0 | SS25: 0 | ST25: 0 | SU25: 0 | SV25: 0 | SW25: 0 | SX25: 0 | SY25: 0 | SZ25: 0 | TA25: 0 | TB25: 0 | TC25: 0 | TD25: 0 | TE25: 0 | TF25: 0 | TG25: 1 | TH25: 0 | TI25: 0 | TJ25: 0 | TK25: 0 | TL25: 0 | TM25: 0 | TN25: 0 | TO25: 0 | TP25: 0 | TQ25: 0 | TR25: 0 | TS25: 0 | TT25: 0 | TU25: 0 | TV25: 0 | TW25: 0 | TX25: 0 | TY25: 0 | TZ25: 0 | UA25: 0 | UB25: 0 | UC25: 0 | UD25: 0 | UE25: 3 | UF25: 0 | UG25: 0 | UH25: 0 | UI25: 4 | UJ25: 0 | UK25: 0 | UL25: 0 | UM25: 0 | UN25: 0 | UO25: 0
A26: =HYPERLINK("https://meshb.nlm.nih.gov/record/ui?ui=" & B26,C26) -> Manganese | B26: D008345 | C26: Manganese | D26: 7439-96-5 | E26: =HYPERLINK("https://comptox.epa.gov/dashboard/dsstoxdb/results?utf8=%E2%9C%93&search=" & F26,F26) -> DTXSID2024169 | F26: DTXSID2024169 | G26: =SUM(H26:UO26) -> 328 | H26: 3 | I26: 62 | J26: 4 | K26: 16 | L26: 1 | M26: 18 | N26: 66 | O26: 0 | P26: 0 | Q26: 7 | R26: 10 | S26: 9 | T26: 0 | U26: 0 | V26: 1 | W26: 1 | X26: 2 | Y26: 2 | Z26: 1 | AA26: 1 | AB26: 3 | AC26: 0 | AD26: 0 | AE26: 1 | AF26: 0 | AG26: 0 | AH26: 0 | AI26: 0 | AJ26: 0 | AK26: 0 | AL26: 0 | AM26: 3 | AN26: 9 | AO26: 0 | AP26: 2 | AQ26: 2 | AR26: 0 | AS26: 26 | AT26: 0 | AU26: 1 | AV26: 0 | AW26: 0 | AX26: 2 | AY26: 0 | AZ26: 4 | BA26: 0 | BB26: 0 | BC26: 0 | BD26: 4 | BE26: 1 | BF26: 0 | BG26: 0 | BH26: 0 | BI26: 1 | BJ26: 1 | BK26: 1 | BL26: 1 | BM26: 1 | BN26: 0 | BO26: 0 | BP26: 3 | BQ26: 1 | BR26: 0 | BS26: 6 | BT26: 0 | BU26: 0 | BV26: 11 | BW26: 0 | BX26: 1 | BY26: 0 | BZ26: 0 | CA26: 1 | CB26: 0 | CC26: 1 | CD26: 0 | CE26: 1 | CF26: 0 | CG26: 0 | CH26: 0 | CI26: 0 | CJ26: 1 | CK26: 2 | CL26: 0 | CM26: 0 | CN26: 0 | CO26: 0 | CP26: 0 | CQ26: 0 | CR26: 0 | CS26: 0 | CT26: 0 | CU26: 0 | CV26: 0 | CW26: 1 | CX26: 0 | CY26: 0 | CZ26: 0 | DA26: 2 | DB26: 0 | DC26: 0 | DD26: 0 | DE26: 0 | DF26: 0 | DG26: 0 | DH26: 0 | DI26: 0 | DJ26: 0 | DK26: 0 | DL26: 4 | DM26: 1 | DN26: 0 | DO26: 0 | DP26: 0 | DQ26: 0 | DR26: 0 | DS26: 1 | DT26: 0 | DU26: 1 | DV26: 9 | DW26: 0 | DX26: 0 | DY26: 0 | DZ26: 1 | EA26: 0 | EB26: 0 | EC26: 0 | ED26: 0 | EE26: 0 | EF26: 0 | EG26: 0 | EH26: 0 | EI26: 1 | EJ26: 0 | EK26: 0 | EL26: 0 | EM26: 0 | EN26: 0 | EO26: 0 | EP26: 0 | EQ26: 0 | ER26: 0 | ES26: 0 | ET26: 0 | EU26: 0 | EV26: 0 | EW26: 0 | EX26: 0 | EY26: 2 | EZ26: 0 | FA26: 1 | FB26: 0 | FC26: 0 | FD26: 0 | FE26: 0 | FF26: 0 | FG26: 0 | FH26: 0 | FI26: 0 | FJ26: 0 | FK26: 0 | FL26: 0 | FM26: 0 | FN26: 0 | FO26: 0 | FP26: 0 | FQ26: 0 | FR26: 0 | FS26: 0 | FT26: 0 | FU26: 0 | FV26: 0 | FW26: 0 | FX26: 0 | FY26: 0 | FZ26: 0 | GA26: 0 | GB26: 1 | GC26: 1 | GD26: 0 | GE26: 0 | GF26: 0 | GG26: 0 | GH26: 0 | GI26: 0 | GJ26: 0 | GK26: 0 | GL26: 2 | GM26: 0 | GN26: 0 | GO26: 0 | GP26: 0 | GQ26: 0 | GR26: 0 | GS26: 0 | GT26: 0 | GU26: 0 | GV26: 0 | GW26: 0 | GX26: 0 | GY26: 0 | GZ26: 0 | HA26: 0 | HB26: 0 | HC26: 0 | HD26: 0 | HE26: 0 | HF26: 0 | HG26: 0 | HH26: 1 | HI26: 0 | HJ26: 0 | HK26: 0 | HL26: 0 | HM26: 0 | HN26: 0 | HO26: 0 | HP26: 0 | HQ26: 0 | HR26: 0 | HS26: 0 | HT26: 0 | HU26: 0 | HV26: 0 | HW26: 0 | HX26: 0 | HY26: 0 | HZ26: 0 | IA26: 0 | IB26: 1 | IC26: 0 | ID26: 0 | IE26: 0 | IF26: 0 | IG26: 0 | IH26: 0 | II26: 0 | IJ26: 0 | IK26: 0 | IL26: 0 | IM26: 0 | IN26: 0 | IO26: 0 | IP26: 0 | IQ26: 0 | IR26: 0 | IS26: 0 | IT26: 0 | IU26: 0 | IV26: 0 | IW26: 0 | IX26: 0 | IY26: 0 | IZ26: 1 | JA26: 0 | JB26: 0 | JC26: 0 | JD26: 0 | JE26: 0 | JF26: 0 | JG26: 0 | JH26: 0 | JI26: 0 | JJ26: 0 | JK26: 0 | JL26: 0 | JM26: 0 | JN26: 0 | JO26: 0 | JP26: 0 | JQ26: 0 | JR26: 0 | JS26: 0 | JT26: 0 | JU26: 0 | JV26: 0 | JW26: 0 | JX26: 0 | JY26: 0 | JZ26: 0 | KA26: 0 | KB26: 0 | KC26: 0 | KD26: 0 | KE26: 0 | KF26: 0 | KG26: 0 | KH26: 0 | KI26: 0 | KJ26: 0 | KK26: 0 | KL26: 0 | KM26: 0 | KN26: 0 | KO26: 0 | KP26: 0 | KQ26: 0 | KR26: 1 | KS26: 0 | KT26: 0 | KU26: 0 | KV26: 0 | KW26: 0 | KX26: 0 | KY26: 0 | KZ26: 0 | LA26: 0 | LB26: 0 | LC26: 0 | LD26: 0 | LE26: 0 | LF26: 0 | LG26: 1 | LH26: 0 | LI26: 0 | LJ26: 0 | LK26: 0 | LL26: 0 | LM26: 0 | LN26: 0 | LO26: 0 | LP26: 0 | LQ26: 0 | LR26: 0 | LS26: 0 | LT26: 0 | LU26: 0 | LV26: 0 | LW26: 0 | LX26: 0 | LY26: 0 | LZ26: 0 | MA26: 0 | MB26: 0 | MC26: 0 | MD26: 0 | ME26: 0 | MF26: 0 | MG26: 0 | MH26: 0 | MI26: 0 | MJ26: 0 | MK26: 0 | ML26: 0 | MM26: 0 | MN26: 0 | MO26: 0 | MP26: 0 | MQ26: 0 | MR26: 0 | MS26: 0 | MT26: 0 | MU26: 0 | MV26: 0 | MW26: 0 | MX26: 0 | MY26: 0 | MZ26: 0 | NA26: 0 | NB26: 0 | NC26: 0 | ND26: 0 | NE26: 0 | NF26: 0 | NG26: 0 | NH26: 0 | NI26: 0 | NJ26: 0 | NK26: 0 | NL26: 0 | NM26: 0 | NN26: 0 | NO26: 0 | NP26: 0 | NQ26: 0 | NR26: 0 | NS26: 0 | NT26: 0 | NU26: 0 | NV26: 0 | NW26: 0 | NX26: 0 | NY26: 0 | NZ26: 0 | OA26: 0 | OB26: 0 | OC26: 0 | OD26: 0 | OE26: 0 | OF26: 0 | OG26: 0 | OH26: 0 | OI26: 0 | OJ26: 0 | OK26: 0 | OL26: 0 | OM26: 0 | ON26: 0 | OO26: 0 | OP26: 0 | OQ26: 0 | OR26: 0 | OS26: 0 | OT26: 0 | OU26: 0 | OV26: 0 | OW26: 0 | OX26: 0 | OY26: 0 | OZ26: 0 | PA26: 0 | PB26: 0 | PC26: 0 | PD26: 0 | PE26: 0 | PF26: 0 | PG26: 0 | PH26: 0 | PI26: 0 | PJ26: 0 | PK26: 0 | PL26: 0 | PM26: 0 | PN26: 0 | PO26: 0 | PP26: 0 | PQ26: 0 | PR26: 0 | PS26: 0 | PT26: 0 | PU26: 0 | PV26: 0 | PW26: 0 | PX26: 0 | PY26: 0 | PZ26: 0 | QA26: 0 | QB26: 0 | QC26: 0 | QD26: 0 | QE26: 0 | QF26: 0 | QG26: 0 | QH26: 0 | QI26: 0 | QJ26: 0 | QK26: 0 | QL26: 0 | QM26: 0 | QN26: 0 | QO26: 0 | QP26: 0 | QQ26: 0 | QR26: 0 | QS26: 0 | QT26: 0 | QU26: 0 | QV26: 0 | QW26: 0 | QX26: 0 | QY26: 0 | QZ26: 0 | RA26: 0 | RB26: 0 | RC26: 0 | RD26: 0 | RE26: 0 | RF26: 0 | RG26: 0 | RH26: 0 | RI26: 0 | RJ26: 0 | RK26: 0 | RL26: 0 | RM26: 0 | RN26: 0 | RO26: 0 | RP26: 0 | RQ26: 0 | RR26: 0 | RS26: 0 | RT26: 0 | RU26: 0 | RV26: 0 | RW26: 0 | RX26: 0 | RY26: 0 | RZ26: 0 | SA26: 0 | SB26: 0 | SC26: 0 | SD26: 0 | SE26: 0 | SF26: 0 | SG26: 0 | SH26: 0 | SI26: 0 | SJ26: 0 | SK26: 0 | SL26: 0 | SM26: 0 | SN26: 0 | SO26: 0 | SP26: 0 | SQ26: 0 | SR26: 0 | SS26: 0 | ST26: 0 | SU26: 0 | SV26: 0 | SW26: 0 | SX26: 0 | SY26: 0 | SZ26: 0 | TA26: 0 | TB26: 0 | TC26: 0 | TD26: 0 | TE26: 0 | TF26: 0 | TG26: 0 | TH26: 0 | TI26: 0 | TJ26: 0 | TK26: 0 | TL26: 0 | TM26: 0 | TN26: 0 | TO26: 0 | TP26: 0 | TQ26: 0 | TR26: 0 | TS26: 0 | TT26: 0 | TU26: 0 | TV26: 0 | TW26: 0 | TX26: 0 | TY26: 0 | TZ26: 0 | UA26: 0 | UB26: 0 | UC26: 0 | UD26: 0 | UE26: 0 | UF26: 0 | UG26: 0 | UH26: 0 | UI26: 0 | UJ26: 0 | UK26: 0 | UL26: 0 | UM26: 0 | UN26: 0 | UO26: 0
A27: =HYPERLINK("https://meshb.nlm.nih.gov/record/ui?ui=" & B27,C27) -> oxaliplatin | B27: C030110 | C27: oxaliplatin | D27: 61825-94-3 | E27: =HYPERLINK("https://comptox.epa.gov/dashboard/dsstoxdb/results?utf8=%E2%9C%93&search=" & F27,F27) -> DTXSID0036760 | F27: DTXSID0036760 | G27: =SUM(H27:UO27) -> 327 | H27: 0 | I27: 11 | J27: 148 | K27: 4 | L27: 0 | M27: 0 | N27: 0 | O27: 1 | P27: 0 | Q27: 0 | R27: 2 | S27: 1 | T27: 0 | U27: 1 | V27: 20 | W27: 0 | X27: 0 | Y27: 1 | Z27: 0 | AA27: 5 | AB27: 2 | AC27: 0 | AD27: 0 | AE27: 0 | AF27: 42 | AG27: 0 | AH27: 0 | AI27: 0 | AJ27: 0 | AK27: 0 | AL27: 0 | AM27: 6 | AN27: 0 | AO27: 0 | AP27: 0 | AQ27: 0 | AR27: 0 | AS27: 0 | AT27: 0 | AU27: 0 | AV27: 1 | AW27: 0 | AX27: 1 | AY27: 1 | AZ27: 0 | BA27: 0 | BB27: 0 | BC27: 2 | BD27: 0 | BE27: 0 | BF27: 0 | BG27: 0 | BH27: 0 | BI27: 0 | BJ27: 0 | BK27: 0 | BL27: 0 | BM27: 0 | BN27: 1 | BO27: 1 | BP27: 0 | BQ27: 0 | BR27: 0 | BS27: 0 | BT27: 0 | BU27: 30 | BV27: 0 | BW27: 0 | BX27: 0 | BY27: 0 | BZ27: 0 | CA27: 0 | CB27: 0 | CC27: 12 | CD27: 0 | CE27: 0 | CF27: 0 | CG27: 0 | CH27: 0 | CI27: 0 | CJ27: 0 | CK27: 0 | CL27: 3 | CM27: 0 | CN27: 0 | CO27: 0 | CP27: 0 | CQ27: 0 | CR27: 0 | CS27: 0 | CT27: 1 | CU27: 0 | CV27: 0 | CW27: 0 | CX27: 3 | CY27: 0 | CZ27: 0 | DA27: 0 | DB27: 0 | DC27: 0 | DD27: 0 | DE27: 3 | DF27: 0 | DG27: 0 | DH27: 0 | DI27: 1 | DJ27: 0 | DK27: 0 | DL27: 0 | DM27: 4 | DN27: 0 | DO27: 0 | DP27: 0 | DQ27: 0 | DR27: 1 | DS27: 0 | DT27: 0 | DU27: 0 | DV27: 0 | DW27: 0 | DX27: 0 | DY27: 0 | DZ27: 0 | EA27: 2 | EB27: 0 | EC27: 0 | ED27: 0 | EE27: 0 | EF27: 0 | EG27: 0 | EH27: 0 | EI27: 0 | EJ27: 0 | EK27: 0 | EL27: 0 | EM27: 0 | EN27: 0 | EO27: 0 | EP27: 0 | EQ27: 0 | ER27: 0 | ES27: 0 | ET27: 0 | EU27: 0 | EV27: 0 | EW27: 0 | EX27: 0 | EY27: 0 | EZ27: 0 | FA27: 0 | FB27: 0 | FC27: 0 | FD27: 0 | FE27: 0 | FF27: 0 | FG27: 0 | FH27: 0 | FI27: 0 | FJ27: 0 | FK27: 0 | FL27: 0 | FM27: 0 | FN27: 0 | FO27: 0 | FP27: 0 | FQ27: 1 | FR27: 0 | FS27: 0 | FT27: 0 | FU27: 0 | FV27: 0 | FW27: 0 | FX27: 0 | FY27: 0 | FZ27: 0 | GA27: 0 | GB27: 0 | GC27: 0 | GD27: 0 | GE27: 0 | GF27: 0 | GG27: 0 | GH27: 0 | GI27: 0 | GJ27: 0 | GK27: 0 | GL27: 0 | GM27: 0 | GN27: 0 | GO27: 0 | GP27: 0 | GQ27: 0 | GR27: 0 | GS27: 0 | GT27: 0 | GU27: 0 | GV27: 3 | GW27: 0 | GX27: 0 | GY27: 0 | GZ27: 0 | HA27: 0 | HB27: 0 | HC27: 1 | HD27: 0 | HE27: 0 | HF27: 0 | HG27: 0 | HH27: 0 | HI27: 0 | HJ27: 0 | HK27: 0 | HL27: 0 | HM27: 0 | HN27: 0 | HO27: 0 | HP27: 1 | HQ27: 0 | HR27: 0 | HS27: 0 | HT27: 0 | HU27: 0 | HV27: 0 | HW27: 0 | HX27: 0 | HY27: 0 | HZ27: 0 | IA27: 0 | IB27: 0 | IC27: 0 | ID27: 0 | IE27: 0 | IF27: 0 | IG27: 0 | IH27: 0 | II27: 1 | IJ27: 0 | IK27: 0 | IL27: 0 | IM27: 0 | IN27: 0 | IO27: 0 | IP27: 0 | IQ27: 0 | IR27: 0 | IS27: 0 | IT27: 0 | IU27: 0 | IV27: 0 | IW27: 1 | IX27: 0 | IY27: 0 | IZ27: 0 | JA27: 0 | JB27: 0 | JC27: 0 | JD27: 0 | JE27: 0 | JF27: 0 | JG27: 0 | JH27: 0 | JI27: 0 | JJ27: 0 | JK27: 0 | JL27: 0 | JM27: 0 | JN27: 0 | JO27: 0 | JP27: 0 | JQ27: 0 | JR27: 0 | JS27: 0 | JT27: 0 | JU27: 0 | JV27: 0 | JW27: 0 | JX27: 0 | JY27: 0 | JZ27: 0 | KA27: 0 | KB27: 0 | KC27: 0 | KD27: 0 | KE27: 0 | KF27: 0 | KG27: 0 | KH27: 0 | KI27: 0 | KJ27: 0 | KK27: 0 | KL27: 0 | KM27: 0 | KN27: 0 | KO27: 0 | KP27: 0 | KQ27: 0 | KR27: 0 | KS27: 0 | KT27: 0 | KU27: 0 | KV27: 0 | KW27: 0 | KX27: 0 | KY27: 0 | KZ27: 0 | LA27: 0 | LB27: 0 | LC27: 0 | LD27: 0 | LE27: 0 | LF27: 0 | LG27: 0 | LH27: 0 | LI27: 0 | LJ27: 0 | LK27: 0 | LL27: 0 | LM27: 0 | LN27: 0 | LO27: 0 | LP27: 0 | LQ27: 0 | LR27: 0 | LS27: 0 | LT27: 0 | LU27: 0 | LV27: 0 | LW27: 0 | LX27: 0 | LY27: 0 | LZ27: 0 | MA27: 0 | MB27: 0 | MC27: 0 | MD27: 0 | ME27: 0 | MF27: 0 | MG27: 0 | MH27: 0 | MI27: 0 | MJ27: 0 | MK27: 0 | ML27: 0 | MM27: 0 | MN27: 0 | MO27: 0 | MP27: 0 | MQ27: 0 | MR27: 0 | MS27: 0 | MT27: 0 | MU27: 0 | MV27: 0 | MW27: 0 | MX27: 0 | MY27: 0 | MZ27: 0 | NA27: 0 | NB27: 0 | NC27: 0 | ND27: 0 | NE27: 0 | NF27: 0 | NG27: 0 | NH27: 0 | NI27: 1 | NJ27: 0 | NK27: 0 | NL27: 0 | NM27: 0 | NN27: 0 | NO27: 0 | NP27: 0 | NQ27: 0 | NR27: 0 | NS27: 0 | NT27: 0 | NU27: 0 | NV27: 0 | NW27: 0 | NX27: 0 | NY27: 0 | NZ27: 0 | OA27: 0 | OB27: 0 | OC27: 0 | OD27: 0 | OE27: 0 | OF27: 0 | OG27: 0 | OH27: 0 | OI27: 0 | OJ27: 0 | OK27: 0 | OL27: 0 | OM27: 0 | ON27: 0 | OO27: 0 | OP27: 0 | OQ27: 0 | OR27: 0 | OS27: 0 | OT27: 0 | OU27: 0 | OV27: 0 | OW27: 0 | OX27: 0 | OY27: 0 | OZ27: 0 | PA27: 0 | PB27: 0 | PC27: 0 | PD27: 0 | PE27: 0 | PF27: 0 | PG27: 0 | PH27: 0 | PI27: 0 | PJ27: 0 | PK27: 0 | PL27: 0 | PM27: 0 | PN27: 0 | PO27: 0 | PP27: 0 | PQ27: 0 | PR27: 0 | PS27: 0 | PT27: 0 | PU27: 0 | PV27: 2 | PW27: 0 | PX27: 0 | PY27: 0 | PZ27: 0 | QA27: 0 | QB27: 0 | QC27: 0 | QD27: 0 | QE27: 0 | QF27: 0 | QG27: 0 | QH27: 0 | QI27: 0 | QJ27: 0 | QK27: 0 | QL27: 0 | QM27: 0 | QN27: 0 | QO27: 0 | QP27: 0 | QQ27: 0 | QR27: 0 | QS27: 0 | QT27: 0 | QU27: 0 | QV27: 0 | QW27: 0 | QX27: 0 | QY27: 0 | QZ27: 0 | RA27: 0 | RB27: 0 | RC27: 0 | RD27: 0 | RE27: 0 | RF27: 0 | RG27: 0 | RH27: 0 | RI27: 0 | RJ27: 0 | RK27: 0 | RL27: 0 | RM27: 0 | RN27: 0 | RO27: 0 | RP27: 0 | RQ27: 0 | RR27: 0 | RS27: 0 | RT27: 0 | RU27: 0 | RV27: 0 | RW27: 0 | RX27: 0 | RY27: 0 | RZ27: 0 | SA27: 0 | SB27: 0 | SC27: 0 | SD27: 0 | SE27: 0 | SF27: 0 | SG27: 0 | SH27: 0 | SI27: 0 | SJ27: 0 | SK27: 0 | SL27: 0 | SM27: 0 | SN27: 0 | SO27: 0 | SP27: 0 | SQ27: 0 | SR27: 0 | SS27: 0 | ST27: 0 | SU27: 0 | SV27: 0 | SW27: 0 | SX27: 0 | SY27: 0 | SZ27: 0 | TA27: 0 | TB27: 0 | TC27: 0 | TD27: 0 | TE27: 0 | TF27: 0 | TG27: 0 | TH27: 0 | TI27: 0 | TJ27: 0 | TK27: 0 | TL27: 0 | TM27: 0 | TN27: 0 | TO27: 0 | TP27: 0 | TQ27: 0 | TR27: 0 | TS27: 0 | TT27: 0 | TU27: 0 | TV27: 0 | TW27: 0 | TX27: 0 | TY27: 0 | TZ27: 0 | UA27: 0 | UB27: 0 | UC27: 0 | UD27: 0 | UE27: 1 | UF27: 0 | UG27: 0 | UH27: 0 | UI27: 3 | UJ27: 0 | UK27: 0 | UL27: 1 | UM27: 0 | UN27: 0 | UO27: 0
A28: =HYPERLINK("https://meshb.nlm.nih.gov/record/ui?ui=" & B28,C28) -> Ethambutol | B28: D004977 | C28: Ethambutol | D28: 74-55-5 | E28: =HYPERLINK("https://comptox.epa.gov/dashboard/dsstoxdb/results?utf8=%E2%9C%93&search=" & F28,F28) -> DTXSID8023006 | F28: DTXSID8023006 | G28: =SUM(H28:UO28) -> 318 | H28: 2 | I28: 3 | J28: 13 | K28: 1 | L28: 0 | M28: 0 | N28: 0 | O28: 0 | P28: 0 | Q28: 0 | R28: 1 | S28: 1 | T28: 0 | U28: 0 | V28: 2 | W28: 0 | X28: 0 | Y28: 0 | Z28: 2 | AA28: 0 | AB28: 0 | AC28: 0 | AD28: 0 | AE28: 0 | AF28: 0 | AG28: 0 | AH28: 0 | AI28: 1 | AJ28: 0 | AK28: 11 | AL28: 0 | AM28: 1 | AN28: 0 | AO28: 0 | AP28: 1 | AQ28: 0 | AR28: 0 | AS28: 0 | AT28: 0 | AU28: 3 | AV28: 0 | AW28: 0 | AX28: 0 | AY28: 85 | AZ28: 0 | BA28: 0 | BB28: 0 | BC28: 0 | BD28: 0 | BE28: 0 | BF28: 0 | BG28: 56 | BH28: 0 | BI28: 0 | BJ28: 0 | BK28: 0 | BL28: 0 | BM28: 0 | BN28: 0 | BO28: 0 | BP28: 0 | BQ28: 0 | BR28: 0 | BS28: 0 | BT28: 0 | BU28: 0 | BV28: 0 | BW28: 0 | BX28: 0 | BY28: 0 | BZ28: 0 | CA28: 0 | CB28: 0 | CC28: 0 | CD28: 0 | CE28: 0 | CF28: 0 | CG28: 0 | CH28: 0 | CI28: 1 | CJ28: 0 | CK28: 0 | CL28: 0 | CM28: 2 | CN28: 0 | CO28: 0 | CP28: 0 | CQ28: 0 | CR28: 0 | CS28: 0 | CT28: 0 | CU28: 0 | CV28: 13 | CW28: 0 | CX28: 0 | CY28: 3 | CZ28: 11 | DA28: 0 | DB28: 0 | DC28: 0 | DD28: 0 | DE28: 0 | DF28: 0 | DG28: 0 | DH28: 0 | DI28: 0 | DJ28: 0 | DK28: 0 | DL28: 0 | DM28: 0 | DN28: 0 | DO28: 0 | DP28: 11 | DQ28: 0 | DR28: 0 | DS28: 0 | DT28: 0 | DU28: 0 | DV28: 0 | DW28: 0 | DX28: 0 | DY28: 0 | DZ28: 0 | EA28: 1 | EB28: 0 | EC28: 0 | ED28: 0 | EE28: 0 | EF28: 0 | EG28: 0 | EH28: 0 | EI28: 0 | EJ28: 0 | EK28: 0 | EL28: 0 | EM28: 0 | EN28: 2 | EO28: 0 | EP28: 0 | EQ28: 0 | ER28: 0 | ES28: 0 | ET28: 0 | EU28: 0 | EV28: 0 | EW28: 0 | EX28: 0 | EY28: 0 | EZ28: 0 | FA28: 0 | FB28: 0 | FC28: 0 | FD28: 0 | FE28: 0 | FF28: 0 | FG28: 0 | FH28: 0 | FI28: 0 | FJ28: 0 | FK28: 0 | FL28: 0 | FM28: 0 | FN28: 1 | FO28: 6 | FP28: 0 | FQ28: 0 | FR28: 0 | FS28: 0 | FT28: 0 | FU28: 0 | FV28: 0 | FW28: 0 | FX28: 0 | FY28: 0 | FZ28: 0 | GA28: 0 | GB28: 0 | GC28: 0 | GD28: 0 | GE28: 0 | GF28: 0 | GG28: 0 | GH28: 5 | GI28: 0 | GJ28: 0 | GK28: 0 | GL28: 0 | GM28: 0 | GN28: 0 | GO28: 0 | GP28: 0 | GQ28: 0 | GR28: 0 | GS28: 0 | GT28: 0 | GU28: 0 | GV28: 0 | GW28: 0 | GX28: 0 | GY28: 0 | GZ28: 0 | HA28: 0 | HB28: 0 | HC28: 0 | HD28: 0 | HE28: 0 | HF28: 0 | HG28: 0 | HH28: 0 | HI28: 0 | HJ28: 0 | HK28: 0 | HL28: 0 | HM28: 0 | HN28: 0 | HO28: 0 | HP28: 0 | HQ28: 0 | HR28: 0 | HS28: 0 | HT28: 0 | HU28: 0 | HV28: 0 | HW28: 0 | HX28: 0 | HY28: 0 | HZ28: 0 | IA28: 0 | IB28: 0 | IC28: 0 | ID28: 0 | IE28: 0 | IF28: 1 | IG28: 0 | IH28: 0 | II28: 0 | IJ28: 0 | IK28: 0 | IL28: 0 | IM28: 0 | IN28: 0 | IO28: 0 | IP28: 0 | IQ28: 0 | IR28: 0 | IS28: 0 | IT28: 0 | IU28: 0 | IV28: 0 | IW28: 0 | IX28: 0 | IY28: 0 | IZ28: 0 | JA28: 0 | JB28: 0 | JC28: 0 | JD28: 0 | JE28: 0 | JF28: 0 | JG28: 0 | JH28: 0 | JI28: 0 | JJ28: 0 | JK28: 0 | JL28: 0 | JM28: 0 | JN28: 0 | JO28: 0 | JP28: 0 | JQ28: 0 | JR28: 0 | JS28: 0 | JT28: 0 | JU28: 0 | JV28: 0 | JW28: 0 | JX28: 0 | JY28: 0 | JZ28: 0 | KA28: 0 | KB28: 0 | KC28: 0 | KD28: 0 | KE28: 0 | KF28: 0 | KG28: 0 | KH28: 0 | KI28: 0 | KJ28: 0 | KK28: 0 | KL28: 0 | KM28: 0 | KN28: 0 | KO28: 0 | KP28: 0 | KQ28: 0 | KR28: 0 | KS28: 0 | KT28: 0 | KU28: 0 | KV28: 0 | KW28: 0 | KX28: 0 | KY28: 0 | KZ28: 0 | LA28: 0 | LB28: 0 | LC28: 0 | LD28: 0 | LE28: 0 | LF28: 0 | LG28: 0 | LH28: 0 | LI28: 0 | LJ28: 0 | LK28: 0 | LL28: 1 | LM28: 0 | LN28: 0 | LO28: 0 | LP28: 0 | LQ28: 0 | LR28: 0 | LS28: 0 | LT28: 0 | LU28: 0 | LV28: 0 | LW28: 0 | LX28: 0 | LY28: 0 | LZ28: 0 | MA28: 0 | MB28: 0 | MC28: 0 | MD28: 0 | ME28: 0 | MF28: 0 | MG28: 0 | MH28: 0 | MI28: 0 | MJ28: 0 | MK28: 0 | ML28: 0 | MM28: 0 | MN28: 0 | MO28: 0 | MP28: 0 | MQ28: 0 | MR28: 0 | MS28: 0 | MT28: 0 | MU28: 0 | MV28: 0 | MW28: 0 | MX28: 0 | MY28: 0 | MZ28: 0 | NA28: 0 | NB28: 0 | NC28: 0 | ND28: 0 | NE28: 0 | NF28: 0 | NG28: 0 | NH28: 0 | NI28: 0 | NJ28: 0 | NK28: 0 | NL28: 0 | NM28: 0 | NN28: 0 | NO28: 0 | NP28: 0 | NQ28: 0 | NR28: 1 | NS28: 0 | NT28: 0 | NU28: 0 | NV28: 0 | NW28: 0 | NX28: 0 | NY28: 0 | NZ28: 0 | OA28: 0 | OB28: 0 | OC28: 0 | OD28: 0 | OE28: 0 | OF28: 0 | OG28: 0 | OH28: 0 | OI28: 0 | OJ28: 0 | OK28: 0 | OL28: 0 | OM28: 0 | ON28: 0 | OO28: 0 | OP28: 0 | OQ28: 0 | OR28: 0 | OS28: 0 | OT28: 0 | OU28: 0 | OV28: 0 | OW28: 0 | OX28: 0 | OY28: 0 | OZ28: 0 | PA28: 0 | PB28: 0 | PC28: 0 | PD28: 0 | PE28: 0 | PF28: 0 | PG28: 0 | PH28: 0 | PI28: 0 | PJ28: 0 | PK28: 0 | PL28: 0 | PM28: 0 | PN28: 0 | PO28: 0 | PP28: 0 | PQ28: 0 | PR28: 0 | PS28: 0 | PT28: 0 | PU28: 0 | PV28: 0 | PW28: 0 | PX28: 0 | PY28: 0 | PZ28: 0 | QA28: 0 | QB28: 0 | QC28: 0 | QD28: 0 | QE28: 0 | QF28: 0 | QG28: 0 | QH28: 0 | QI28: 0 | QJ28: 2 | QK28: 0 | QL28: 0 | QM28: 0 | QN28: 0 | QO28: 0 | QP28: 0 | QQ28: 0 | QR28: 0 | QS28: 0 | QT28: 0 | QU28: 0 | QV28: 0 | QW28: 0 | QX28: 0 | QY28: 0 | QZ28: 0 | RA28: 0 | RB28: 0 | RC28: 0 | RD28: 0 | RE28: 0 | RF28: 0 | RG28: 0 | RH28: 0 | RI28: 0 | RJ28: 0 | RK28: 0 | RL28: 0 | RM28: 0 | RN28: 0 | RO28: 0 | RP28: 0 | RQ28: 0 | RR28: 0 | RS28: 0 | RT28: 0 | RU28: 0 | RV28: 0 | RW28: 0 | RX28: 0 | RY28: 0 | RZ28: 0 | SA28: 0 | SB28: 0 | SC28: 0 | SD28: 0 | SE28: 0 | SF28: 0 | SG28: 0 | SH28: 0 | SI28: 0 | SJ28: 0 | SK28: 0 | SL28: 0 | SM28: 0 | SN28: 0 | SO28: 0 | SP28: 0 | SQ28: 0 | SR28: 0 | SS28: 0 | ST28: 0 | SU28: 0 | SV28: 0 | SW28: 0 | SX28: 0 | SY28: 0 | SZ28: 0 | TA28: 1 | TB28: 0 | TC28: 0 | TD28: 0 | TE28: 0 | TF28: 0 | TG28: 0 | TH28: 0 | TI28: 0 | TJ28: 0 | TK28: 0 | TL28: 0 | TM28: 0 | TN28: 0 | TO28: 0 | TP28: 0 | TQ28: 0 | TR28: 0 | TS28: 0 | TT28: 0 | TU28: 0 | TV28: 0 | TW28: 0 | TX28: 0 | TY28: 0 | TZ28: 0 | UA28: 0 | UB28: 0 | UC28: 0 | UD28: 0 | UE28: 3 | UF28: 0 | UG28: 0 | UH28: 0 | UI28: 65 | UJ28: 5 | UK28: 0 | UL28: 0 | UM28: 0 | UN28: 0 | UO28: 0
A29: =HYPERLINK("https://meshb.nlm.nih.gov/record/ui?ui=" & B29,C29) -> Methanol | B29: D000432 | C29: Methanol | D29: 67-56-1 | E29: =HYPERLINK("https://comptox.epa.gov/dashboard/dsstoxdb/results?utf8=%E2%9C%93&search=" & F29,F29) -> DTXSID2021731 | F29: DTXSID2021731 | G29: =SUM(H29:UO29) -> 318 | H29: 6 | I29: 8 | J29: 0 | K29: 14 | L29: 0 | M29: 10 | N29: 12 | O29: 17 | P29: 0 | Q29: 4 | R29: 3 | S29: 4 | T29: 0 | U29: 11 | V29: 0 | W29: 2 | X29: 0 | Y29: 1 | Z29: 0 | AA29: 0 | AB29: 1 | AC29: 1 | AD29: 0 | AE29: 0 | AF29: 0 | AG29: 0 | AH29: 0 | AI29: 1 | AJ29: 0 | AK29: 41 | AL29: 0 | AM29: 1 | AN29: 2 | AO29: 0 | AP29: 0 | AQ29: 11 | AR29: 0 | AS29: 2 | AT29: 0 | AU29: 0 | AV29: 3 | AW29: 0 | AX29: 1 | AY29: 6 | AZ29: 1 | BA29: 0 | BB29: 1 | BC29: 1 | BD29: 0 | BE29: 0 | BF29: 3 | BG29: 28 | BH29: 0 | BI29: 0 | BJ29: 1 | BK29: 1 | BL29: 0 | BM29: 0 | BN29: 0 | BO29: 0 | BP29: 0 | BQ29: 1 | BR29: 0 | BS29: 0 | BT29: 2 | BU29: 0 | BV29: 2 | BW29: 0 | BX29: 0 | BY29: 1 | BZ29: 0 | CA29: 1 | CB29: 0 | CC29: 1 | CD29: 0 | CE29: 0 | CF29: 0 | CG29: 5 | CH29: 0 | CI29: 0 | CJ29: 0 | CK29: 0 | CL29: 0 | CM29: 6 | CN29: 0 | CO29: 0 | CP29: 0 | CQ29: 0 | CR29: 0 | CS29: 0 | CT29: 0 | CU29: 0 | CV29: 0 | CW29: 0 | CX29: 0 | CY29: 0 | CZ29: 17 | DA29: 2 | DB29: 0 | DC29: 0 | DD29: 1 | DE29: 0 | DF29: 0 | DG29: 0 | DH29: 0 | DI29: 2 | DJ29: 0 | DK29: 0 | DL29: 0 | DM29: 0 | DN29: 0 | DO29: 0 | DP29: 4 | DQ29: 0 | DR29: 0 | DS29: 0 | DT29: 0 | DU29: 0 | DV29: 0 | DW29: 0 | DX29: 0 | DY29: 0 | DZ29: 0 | EA29: 0 | EB29: 0 | EC29: 0 | ED29: 0 | EE29: 0 | EF29: 1 | EG29: 0 | EH29: 0 | EI29: 0 | EJ29: 0 | EK29: 0 | EL29: 0 | EM29: 0 | EN29: 0 | EO29: 0 | EP29: 0 | EQ29: 0 | ER29: 0 | ES29: 0 | ET29: 0 | EU29: 0 | EV29: 1 | EW29: 0 | EX29: 0 | EY29: 0 | EZ29: 0 | FA29: 0 | FB29: 0 | FC29: 0 | FD29: 0 | FE29: 0 | FF29: 0 | FG29: 0 | FH29: 0 | FI29: 0 | FJ29: 0 | FK29: 0 | FL29: 0 | FM29: 0 | FN29: 0 | FO29: 2 | FP29: 0 | FQ29: 0 | FR29: 0 | FS29: 2 | FT29: 0 | FU29: 0 | FV29: 1 | FW29: 0 | FX29: 0 | FY29: 0 | FZ29: 0 | GA29: 0 | GB29: 0 | GC29: 1 | GD29: 0 | GE29: 0 | GF29: 0 | GG29: 0 | GH29: 1 | GI29: 0 | GJ29: 0 | GK29: 0 | GL29: 0 | GM29: 0 | GN29: 0 | GO29: 0 | GP29: 0 | GQ29: 1 | GR29: 0 | GS29: 0 | GT29: 0 | GU29: 1 | GV29: 0 | GW29: 0 | GX29: 0 | GY29: 1 | GZ29: 0 | HA29: 0 | HB29: 0 | HC29: 0 | HD29: 0 | HE29: 0 | HF29: 0 | HG29: 0 | HH29: 0 | HI29: 0 | HJ29: 0 | HK29: 0 | HL29: 0 | HM29: 0 | HN29: 0 | HO29: 0 | HP29: 0 | HQ29: 0 | HR29: 0 | HS29: 0 | HT29: 0 | HU29: 1 | HV29: 0 | HW29: 0 | HX29: 0 | HY29: 0 | HZ29: 0 | IA29: 0 | IB29: 0 | IC29: 1 | ID29: 0 | IE29: 0 | IF29: 0 | IG29: 0 | IH29: 0 | II29: 0 | IJ29: 0 | IK29: 0 | IL29: 0 | IM29: 0 | IN29: 0 | IO29: 0 | IP29: 0 | IQ29: 0 | IR29: 0 | IS29: 0 | IT29: 0 | IU29: 0 | IV29: 0 | IW29: 0 | IX29: 0 | IY29: 0 | IZ29: 0 | JA29: 0 | JB29: 0 | JC29: 0 | JD29: 0 | JE29: 0 | JF29: 0 | JG29: 0 | JH29: 0 | JI29: 0 | JJ29: 0 | JK29: 0 | JL29: 0 | JM29: 0 | JN29: 0 | JO29: 0 | JP29: 0 | JQ29: 0 | JR29: 0 | JS29: 0 | JT29: 0 | JU29: 0 | JV29: 0 | JW29: 0 | JX29: 0 | JY29: 0 | JZ29: 0 | KA29: 0 | KB29: 0 | KC29: 0 | KD29: 0 | KE29: 0 | KF29: 0 | KG29: 0 | KH29: 1 | KI29: 0 | KJ29: 0 | KK29: 0 | KL29: 0 | KM29: 0 | KN29: 0 | KO29: 1 | KP29: 0 | KQ29: 0 | KR29: 0 | KS29: 0 | KT29: 0 | KU29: 0 | KV29: 8 | KW29: 0 | KX29: 0 | KY29: 0 | KZ29: 0 | LA29: 0 | LB29: 0 | LC29: 0 | LD29: 0 | LE29: 0 | LF29: 0 | LG29: 0 | LH29: 0 | LI29: 0 | LJ29: 0 | LK29: 0 | LL29: 0 | LM29: 0 | LN29: 0 | LO29: 0 | LP29: 0 | LQ29: 0 | LR29: 0 | LS29: 0 | LT29: 0 | LU29: 0 | LV29: 0 | LW29: 0 | LX29: 0 | LY29: 0 | LZ29: 0 | MA29: 0 | MB29: 0 | MC29: 0 | MD29: 0 | ME29: 0 | MF29: 0 | MG29: 0 | MH29: 0 | MI29: 0 | MJ29: 0 | MK29: 1 | ML29: 0 | MM29: 0 | MN29: 0 | MO29: 0 | MP29: 0 | MQ29: 0 | MR29: 0 | MS29: 0 | MT29: 0 | MU29: 0 | MV29: 0 | MW29: 0 | MX29: 0 | MY29: 0 | MZ29: 0 | NA29: 0 | NB29: 0 | NC29: 0 | ND29: 0 | NE29: 0 | NF29: 0 | NG29: 0 | NH29: 0 | NI29: 0 | NJ29: 0 | NK29: 0 | NL29: 0 | NM29: 0 | NN29: 0 | NO29: 0 | NP29: 0 | NQ29: 0 | NR29: 0 | NS29: 0 | NT29: 0 | NU29: 0 | NV29: 0 | NW29: 0 | NX29: 0 | NY29: 0 | NZ29: 0 | OA29: 0 | OB29: 0 | OC29: 0 | OD29: 0 | OE29: 0 | OF29: 1 | OG29: 0 | OH29: 0 | OI29: 0 | OJ29: 0 | OK29: 0 | OL29: 0 | OM29: 0 | ON29: 0 | OO29: 0 | OP29: 0 | OQ29: 0 | OR29: 0 | OS29: 0 | OT29: 0 | OU29: 0 | OV29: 0 | OW29: 0 | OX29: 0 | OY29: 0 | OZ29: 0 | PA29: 0 | PB29: 0 | PC29: 0 | PD29: 0 | PE29: 0 | PF29: 0 | PG29: 0 | PH29: 0 | PI29: 0 | PJ29: 0 | PK29: 0 | PL29: 0 | PM29: 0 | PN29: 0 | PO29: 0 | PP29: 0 | PQ29: 0 | PR29: 0 | PS29: 0 | PT29: 0 | PU29: 0 | PV29: 0 | PW29: 0 | PX29: 0 | PY29: 0 | PZ29: 0 | QA29: 0 | QB29: 0 | QC29: 0 | QD29: 0 | QE29: 0 | QF29: 0 | QG29: 0 | QH29: 0 | QI29: 0 | QJ29: 0 | QK29: 0 | QL29: 0 | QM29: 0 | QN29: 0 | QO29: 0 | QP29: 0 | QQ29: 0 | QR29: 0 | QS29: 0 | QT29: 0 | QU29: 0 | QV29: 0 | QW29: 0 | QX29: 0 | QY29: 0 | QZ29: 0 | RA29: 0 | RB29: 0 | RC29: 0 | RD29: 0 | RE29: 0 | RF29: 0 | RG29: 0 | RH29: 0 | RI29: 0 | RJ29: 0 | RK29: 0 | RL29: 0 | RM29: 0 | RN29: 0 | RO29: 0 | RP29: 0 | RQ29: 0 | RR29: 0 | RS29: 0 | RT29: 0 | RU29: 0 | RV29: 0 | RW29: 0 | RX29: 0 | RY29: 0 | RZ29: 0 | SA29: 0 | SB29: 0 | SC29: 0 | SD29: 0 | SE29: 0 | SF29: 0 | SG29: 0 | SH29: 0 | SI29: 0 | SJ29: 0 | SK29: 0 | SL29: 0 | SM29: 0 | SN29: 0 | SO29: 0 | SP29: 0 | SQ29: 0 | SR29: 0 | SS29: 0 | ST29: 0 | SU29: 0 | SV29: 0 | SW29: 0 | SX29: 0 | SY29: 0 | SZ29: 0 | TA29: 0 | TB29: 0 | TC29: 0 | TD29: 0 | TE29: 0 | TF29: 0 | TG29: 0 | TH29: 0 | TI29: 0 | TJ29: 0 | TK29: 0 | TL29: 0 | TM29: 0 | TN29: 0 | TO29: 0 | TP29: 0 | TQ29: 0 | TR29: 0 | TS29: 0 | TT29: 0 | TU29: 0 | TV29: 0 | TW29: 0 | TX29: 0 | TY29: 0 | TZ29: 0 | UA29: 0 | UB29: 0 | UC29: 0 | UD29: 0 | UE29: 1 | UF29: 0 | UG29: 0 | UH29: 0 | UI29: 45 | UJ29: 3 | UK29: 0 | UL29: 0 | UM29: 0 | UN29: 0 | UO29: 0
A30: =HYPERLINK("https://meshb.nlm.nih.gov/record/ui?ui=" & B30,C30) -> Morphine | B30: D009020 | C30: Morphine | D30: 6211-15-0 | E30: =HYPERLINK("https://comptox.epa.gov/dashboard/dsstoxdb/results?utf8=%E2%9C%93&search=" & F30,F30) -> DTXSID1048914 | F30: DTXSID1048914 | G30: =SUM(H30:UO30) -> 302 | H30: 17 | I30: 0 | J30: 1 | K30: 1 | L30: 0 | M30: 1 | N30: 0 | O30: 2 | P30: 11 | Q30: 5 | R30: 13 | S30: 2 | T30: 9 | U30: 1 | V30: 0 | W30: 1 | X30: 21 | Y30: 2 | Z30: 2 | AA30: 0 | AB30: 3 | AC30: 4 | AD30: 3 | AE30: 5 | AF30: 54 | AG30: 4 | AH30: 0 | AI30: 0 | AJ30: 1 | AK30: 0 | AL30: 1 | AM30: 0 | AN30: 3 | AO30: 0 | AP30: 1 | AQ30: 0 | AR30: 3 | AS30: 0 | AT30: 0 | AU30: 0 | AV30: 0 | AW30: 6 | AX30: 0 | AY30: 0 | AZ30: 0 | BA30: 0 | BB30: 1 | BC30: 7 | BD30: 1 | BE30: 9 | BF30: 1 | BG30: 0 | BH30: 0 | BI30: 15 | BJ30: 5 | BK30: 4 | BL30: 0 | BM30: 0 | BN30: 0 | BO30: 2 | BP30: 0 | BQ30: 6 | BR30: 2 | BS30: 0 | BT30: 5 | BU30: 2 | BV30: 0 | BW30: 0 | BX30: 0 | BY30: 1 | BZ30: 1 | CA30: 0 | CB30: 0 | CC30: 2 | CD30: 0 | CE30: 5 | CF30: 0 | CG30: 0 | CH30: 0 | CI30: 0 | CJ30: 0 | CK30: 1 | CL30: 0 | CM30: 0 | CN30: 0 | CO30: 1 | CP30: 0 | CQ30: 0 | CR30: 0 | CS30: 1 | CT30: 1 | CU30: 0 | CV30: 0 | CW30: 0 | CX30: 0 | CY30: 0 | CZ30: 0 | DA30: 0 | DB30: 0 | DC30: 5 | DD30: 0 | DE30: 0 | DF30: 0 | DG30: 0 | DH30: 0 | DI30: 0 | DJ30: 0 | DK30: 0 | DL30: 0 | DM30: 0 | DN30: 0 | DO30: 0 | DP30: 0 | DQ30: 1 | DR30: 0 | DS30: 0 | DT30: 0 | DU30: 0 | DV30: 0 | DW30: 1 | DX30: 0 | DY30: 0 | DZ30: 0 | EA30: 0 | EB30: 1 | EC30: 0 | ED30: 0 | EE30: 8 | EF30: 1 | EG30: 0 | EH30: 0 | EI30: 0 | EJ30: 0 | EK30: 0 | EL30: 1 | EM30: 0 | EN30: 0 | EO30: 1 | EP30: 0 | EQ30: 0 | ER30: 0 | ES30: 1 | ET30: 0 | EU30: 0 | EV30: 0 | EW30: 0 | EX30: 0 | EY30: 0 | EZ30: 1 | FA30: 1 | FB30: 2 | FC30: 0 | FD30: 0 | FE30: 0 | FF30: 0 | FG30: 0 | FH30: 0 | FI30: 0 | FJ30: 0 | FK30: 0 | FL30: 1 | FM30: 0 | FN30: 0 | FO30: 0 | FP30: 0 | FQ30: 0 | FR30: 0 | FS30: 0 | FT30: 0 | FU30: 0 | FV30: 0 | FW30: 0 | FX30: 0 | FY30: 0 | FZ30: 0 | GA30: 0 | GB30: 0 | GC30: 0 | GD30: 2 | GE30: 0 | GF30: 2 | GG30: 1 | GH30: 0 | GI30: 0 | GJ30: 0 | GK30: 0 | GL30: 0 | GM30: 0 | GN30: 0 | GO30: 0 | GP30: 0 | GQ30: 0 | GR30: 0 | GS30: 0 | GT30: 0 | GU30: 0 | GV30: 0 | GW30: 0 | GX30: 0 | GY30: 1 | GZ30: 0 | HA30: 0 | HB30: 0 | HC30: 0 | HD30: 0 | HE30: 0 | HF30: 0 | HG30: 0 | HH30: 0 | HI30: 0 | HJ30: 0 | HK30: 0 | HL30: 1 | HM30: 1 | HN30: 0 | HO30: 0 | HP30: 0 | HQ30: 0 | HR30: 0 | HS30: 0 | HT30: 0 | HU30: 0 | HV30: 0 | HW30: 0 | HX30: 0 | HY30: 0 | HZ30: 0 | IA30: 0 | IB30: 0 | IC30: 0 | ID30: 0 | IE30: 0 | IF30: 0 | IG30: 0 | IH30: 1 | II30: 0 | IJ30: 0 | IK30: 0 | IL30: 0 | IM30: 0 | IN30: 0 | IO30: 0 | IP30: 0 | IQ30: 0 | IR30: 0 | IS30: 0 | IT30: 0 | IU30: 0 | IV30: 0 | IW30: 0 | IX30: 0 | IY30: 0 | IZ30: 0 | JA30: 0 | JB30: 0 | JC30: 0 | JD30: 3 | JE30: 0 | JF30: 0 | JG30: 0 | JH30: 0 | JI30: 0 | JJ30: 0 | JK30: 1 | JL30: 0 | JM30: 0 | JN30: 0 | JO30: 0 | JP30: 0 | JQ30: 0 | JR30: 0 | JS30: 1 | JT30: 0 | JU30: 0 | JV30: 0 | JW30: 0 | JX30: 0 | JY30: 0 | JZ30: 0 | KA30: 0 | KB30: 0 | KC30: 0 | KD30: 0 | KE30: 0 | KF30: 2 | KG30: 0 | KH30: 0 | KI30: 0 | KJ30: 0 | KK30: 0 | KL30: 0 | KM30: 0 | KN30: 0 | KO30: 0 | KP30: 0 | KQ30: 0 | KR30: 0 | KS30: 0 | KT30: 0 | KU30: 0 | KV30: 0 | KW30: 1 | KX30: 0 | KY30: 0 | KZ30: 0 | LA30: 0 | LB30: 0 | LC30: 1 | LD30: 0 | LE30: 0 | LF30: 0 | LG30: 0 | LH30: 0 | LI30: 0 | LJ30: 0 | LK30: 0 | LL30: 0 | LM30: 0 | LN30: 0 | LO30: 0 | LP30: 0 | LQ30: 0 | LR30: 0 | LS30: 0 | LT30: 0 | LU30: 0 | LV30: 0 | LW30: 0 | LX30: 0 | LY30: 0 | LZ30: 0 | MA30: 0 | MB30: 0 | MC30: 0 | MD30: 0 | ME30: 0 | MF30: 0 | MG30: 0 | MH30: 0 | MI30: 0 | MJ30: 0 | MK30: 0 | ML30: 0 | MM30: 0 | MN30: 0 | MO30: 0 | MP30: 0 | MQ30: 0 | MR30: 0 | MS30: 0 | MT30: 0 | MU30: 0 | MV30: 0 | MW30: 0 | MX30: 0 | MY30: 0 | MZ30: 0 | NA30: 0 | NB30: 0 | NC30: 0 | ND30: 0 | NE30: 0 | NF30: 0 | NG30: 0 | NH30: 0 | NI30: 0 | NJ30: 0 | NK30: 0 | NL30: 0 | NM30: 0 | NN30: 0 | NO30: 0 | NP30: 0 | NQ30: 0 | NR30: 0 | NS30: 1 | NT30: 0 | NU30: 0 | NV30: 0 | NW30: 0 | NX30: 0 | NY30: 0 | NZ30: 0 | OA30: 0 | OB30: 1 | OC30: 0 | OD30: 0 | OE30: 0 | OF30: 0 | OG30: 0 | OH30: 0 | OI30: 0 | OJ30: 0 | OK30: 0 | OL30: 0 | OM30: 0 | ON30: 0 | OO30: 0 | OP30: 0 | OQ30: 0 | OR30: 0 | OS30: 0 | OT30: 0 | OU30: 0 | OV30: 0 | OW30: 0 | OX30: 0 | OY30: 0 | OZ30: 0 | PA30: 0 | PB30: 0 | PC30: 0 | PD30: 0 | PE30: 0 | PF30: 0 | PG30: 0 | PH30: 0 | PI30: 0 | PJ30: 0 | PK30: 0 | PL30: 0 | PM30: 0 | PN30: 0 | PO30: 0 | PP30: 0 | PQ30: 0 | PR30: 0 | PS30: 0 | PT30: 0 | PU30: 0 | PV30: 0 | PW30: 0 | PX30: 0 | PY30: 0 | PZ30: 0 | QA30: 0 | QB30: 0 | QC30: 0 | QD30: 0 | QE30: 0 | QF30: 0 | QG30: 0 | QH30: 0 | QI30: 0 | QJ30: 0 | QK30: 0 | QL30: 0 | QM30: 0 | QN30: 0 | QO30: 0 | QP30: 0 | QQ30: 0 | QR30: 0 | QS30: 0 | QT30: 0 | QU30: 0 | QV30: 0 | QW30: 0 | QX30: 0 | QY30: 0 | QZ30: 0 | RA30: 0 | RB30: 0 | RC30: 0 | RD30: 0 | RE30: 0 | RF30: 0 | RG30: 0 | RH30: 0 | RI30: 0 | RJ30: 0 | RK30: 0 | RL30: 0 | RM30: 0 | RN30: 0 | RO30: 0 | RP30: 0 | RQ30: 0 | RR30: 0 | RS30: 0 | RT30: 0 | RU30: 0 | RV30: 0 | RW30: 0 | RX30: 0 | RY30: 0 | RZ30: 0 | SA30: 0 | SB30: 0 | SC30: 0 | SD30: 0 | SE30: 0 | SF30: 0 | SG30: 0 | SH30: 0 | SI30: 0 | SJ30: 0 | SK30: 0 | SL30: 0 | SM30: 0 | SN30: 0 | SO30: 0 | SP30: 0 | SQ30: 0 | SR30: 0 | SS30: 0 | ST30: 0 | SU30: 0 | SV30: 0 | SW30: 0 | SX30: 0 | SY30: 0 | SZ30: 0 | TA30: 0 | TB30: 0 | TC30: 0 | TD30: 0 | TE30: 0 | TF30: 0 | TG30: 0 | TH30: 0 | TI30: 0 | TJ30: 0 | TK30: 0 | TL30: 0 | TM30: 0 | TN30: 0 | TO30: 0 | TP30: 0 | TQ30: 0 | TR30: 0 | TS30: 0 | TT30: 0 | TU30: 0 | TV30: 0 | TW30: 0 | TX30: 0 | TY30: 0 | TZ30: 0 | UA30: 0 | UB30: 0 | UC30: 0 | UD30: 0 | UE30: 5 | UF30: 0 | UG30: 0 | UH30: 0 | UI30: 2 | UJ30: 0 | UK30: 0 | UL30: 0 | UM30: 0 | UN30: 0 | UO30: 0
A31: =HYPERLINK("https://meshb.nlm.nih.gov/record/ui?ui=" & B31,C31) -> Isoniazid | B31: D007538 | C31: Isoniazid | D31: 149-17-7 | E31: =HYPERLINK("https://comptox.epa.gov/dashboard/dsstoxdb/results?utf8=%E2%9C%93&search=" & F31,F31) -> DTXSID3020758 | F31: DTXSID3020758 | G31: =SUM(H31:UO31) -> 301 | H31: 77 | I31: 8 | J31: 28 | K31: 10 | L31: 1 | M31: 0 | N31: 1 | O31: 19 | P31: 4 | Q31: 0 | R31: 3 | S31: 6 | T31: 2 | U31: 1 | V31: 4 | W31: 0 | X31: 4 | Y31: 2 | Z31: 5 | AA31: 1 | AB31: 0 | AC31: 3 | AD31: 15 | AE31: 0 | AF31: 0 | AG31: 7 | AH31: 0 | AI31: 0 | AJ31: 0 | AK31: 1 | AL31: 0 | AM31: 10 | AN31: 0 | AO31: 0 | AP31: 13 | AQ31: 3 | AR31: 0 | AS31: 0 | AT31: 0 | AU31: 0 | AV31: 0 | AW31: 0 | AX31: 0 | AY31: 13 | AZ31: 0 | BA31: 0 | BB31: 0 | BC31: 1 | BD31: 1 | BE31: 1 | BF31: 0 | BG31: 4 | BH31: 0 | BI31: 0 | BJ31: 0 | BK31: 0 | BL31: 4 | BM31: 0 | BN31: 0 | BO31: 1 | BP31: 1 | BQ31: 1 | BR31: 0 | BS31: 0 | BT31: 1 | BU31: 0 | BV31: 0 | BW31: 0 | BX31: 1 | BY31: 0 | BZ31: 0 | CA31: 0 | CB31: 0 | CC31: 1 | CD31: 0 | CE31: 0 | CF31: 1 | CG31: 0 | CH31: 5 | CI31: 0 | CJ31: 1 | CK31: 0 | CL31: 0 | CM31: 1 | CN31: 0 | CO31: 0 | CP31: 0 | CQ31: 0 | CR31: 1 | CS31: 1 | CT31: 0 | CU31: 0 | CV31: 0 | CW31: 1 | CX31: 1 | CY31: 1 | CZ31: 0 | DA31: 0 | DB31: 0 | DC31: 0 | DD31: 0 | DE31: 0 | DF31: 0 | DG31: 0 | DH31: 0 | DI31: 0 | DJ31: 1 | DK31: 0 | DL31: 0 | DM31: 1 | DN31: 0 | DO31: 0 | DP31: 1 | DQ31: 2 | DR31: 0 | DS31: 0 | DT31: 0 | DU31: 0 | DV31: 0 | DW31: 1 | DX31: 0 | DY31: 0 | DZ31: 0 | EA31: 3 | EB31: 0 | EC31: 0 | ED31: 0 | EE31: 0 | EF31: 0 | EG31: 0 | EH31: 0 | EI31: 0 | EJ31: 0 | EK31: 0 | EL31: 0 | EM31: 0 | EN31: 1 | EO31: 0 | EP31: 0 | EQ31: 0 | ER31: 0 | ES31: 0 | ET31: 0 | EU31: 0 | EV31: 0 | EW31: 0 | EX31: 0 | EY31: 0 | EZ31: 0 | FA31: 0 | FB31: 0 | FC31: 1 | FD31: 0 | FE31: 0 | FF31: 0 | FG31: 0 | FH31: 0 | FI31: 0 | FJ31: 0 | FK31: 0 | FL31: 0 | FM31: 0 | FN31: 0 | FO31: 1 | FP31: 0 | FQ31: 0 | FR31: 0 | FS31: 1 | FT31: 0 | FU31: 6 | FV31: 0 | FW31: 0 | FX31: 0 | FY31: 0 | FZ31: 0 | GA31: 0 | GB31: 0 | GC31: 0 | GD31: 0 | GE31: 0 | GF31: 0 | GG31: 0 | GH31: 1 | GI31: 0 | GJ31: 1 | GK31: 0 | GL31: 0 | GM31: 0 | GN31: 0 | GO31: 0 | GP31: 0 | GQ31: 0 | GR31: 0 | GS31: 0 | GT31: 0 | GU31: 0 | GV31: 0 | GW31: 0 | GX31: 0 | GY31: 0 | GZ31: 0 | HA31: 0 | HB31: 0 | HC31: 0 | HD31: 0 | HE31: 0 | HF31: 0 | HG31: 0 | HH31: 0 | HI31: 0 | HJ31: 0 | HK31: 0 | HL31: 0 | HM31: 0 | HN31: 0 | HO31: 0 | HP31: 0 | HQ31: 1 | HR31: 0 | HS31: 0 | HT31: 0 | HU31: 0 | HV31: 0 | HW31: 0 | HX31: 0 | HY31: 0 | HZ31: 0 | IA31: 0 | IB31: 0 | IC31: 0 | ID31: 0 | IE31: 0 | IF31: 0 | IG31: 0 | IH31: 0 | II31: 0 | IJ31: 0 | IK31: 0 | IL31: 0 | IM31: 0 | IN31: 0 | IO31: 0 | IP31: 0 | IQ31: 0 | IR31: 0 | IS31: 0 | IT31: 0 | IU31: 0 | IV31: 0 | IW31: 0 | IX31: 0 | IY31: 0 | IZ31: 0 | JA31: 0 | JB31: 0 | JC31: 0 | JD31: 0 | JE31: 0 | JF31: 0 | JG31: 0 | JH31: 0 | JI31: 0 | JJ31: 0 | JK31: 0 | JL31: 0 | JM31: 0 | JN31: 0 | JO31: 0 | JP31: 0 | JQ31: 0 | JR31: 0 | JS31: 0 | JT31: 0 | JU31: 0 | JV31: 0 | JW31: 0 | JX31: 0 | JY31: 0 | JZ31: 0 | KA31: 0 | KB31: 0 | KC31: 0 | KD31: 0 | KE31: 0 | KF31: 0 | KG31: 0 | KH31: 0 | KI31: 0 | KJ31: 0 | KK31: 0 | KL31: 0 | KM31: 0 | KN31: 0 | KO31: 0 | KP31: 0 | KQ31: 0 | KR31: 0 | KS31: 0 | KT31: 0 | KU31: 0 | KV31: 0 | KW31: 0 | KX31: 0 | KY31: 0 | KZ31: 0 | LA31: 0 | LB31: 0 | LC31: 0 | LD31: 0 | LE31: 0 | LF31: 0 | LG31: 0 | LH31: 0 | LI31: 0 | LJ31: 0 | LK31: 0 | LL31: 0 | LM31: 0 | LN31: 0 | LO31: 0 | LP31: 0 | LQ31: 0 | LR31: 0 | LS31: 0 | LT31: 0 | LU31: 0 | LV31: 0 | LW31: 0 | LX31: 0 | LY31: 0 | LZ31: 0 | MA31: 0 | MB31: 0 | MC31: 0 | MD31: 0 | ME31: 0 | MF31: 0 | MG31: 0 | MH31: 0 | MI31: 0 | MJ31: 0 | MK31: 0 | ML31: 0 | MM31: 0 | MN31: 0 | MO31: 0 | MP31: 0 | MQ31: 0 | MR31: 0 | MS31: 0 | MT31: 0 | MU31: 0 | MV31: 0 | MW31: 0 | MX31: 0 | MY31: 0 | MZ31: 0 | NA31: 0 | NB31: 0 | NC31: 0 | ND31: 0 | NE31: 0 | NF31: 0 | NG31: 0 | NH31: 0 | NI31: 0 | NJ31: 0 | NK31: 0 | NL31: 0 | NM31: 0 | NN31: 0 | NO31: 0 | NP31: 0 | NQ31: 0 | NR31: 0 | NS31: 0 | NT31: 0 | NU31: 0 | NV31: 0 | NW31: 0 | NX31: 0 | NY31: 0 | NZ31: 0 | OA31: 0 | OB31: 0 | OC31: 0 | OD31: 0 | OE31: 0 | OF31: 0 | OG31: 0 | OH31: 0 | OI31: 0 | OJ31: 0 | OK31: 0 | OL31: 0 | OM31: 0 | ON31: 0 | OO31: 0 | OP31: 0 | OQ31: 0 | OR31: 0 | OS31: 0 | OT31: 0 | OU31: 0 | OV31: 0 | OW31: 0 | OX31: 0 | OY31: 0 | OZ31: 0 | PA31: 0 | PB31: 0 | PC31: 0 | PD31: 0 | PE31: 0 | PF31: 0 | PG31: 0 | PH31: 0 | PI31: 0 | PJ31: 0 | PK31: 0 | PL31: 0 | PM31: 0 | PN31: 0 | PO31: 0 | PP31: 0 | PQ31: 0 | PR31: 0 | PS31: 0 | PT31: 0 | PU31: 0 | PV31: 0 | PW31: 0 | PX31: 0 | PY31: 0 | PZ31: 0 | QA31: 0 | QB31: 0 | QC31: 0 | QD31: 0 | QE31: 0 | QF31: 0 | QG31: 0 | QH31: 0 | QI31: 0 | QJ31: 0 | QK31: 0 | QL31: 0 | QM31: 0 | QN31: 0 | QO31: 0 | QP31: 0 | QQ31: 0 | QR31: 0 | QS31: 0 | QT31: 0 | QU31: 0 | QV31: 0 | QW31: 0 | QX31: 0 | QY31: 0 | QZ31: 0 | RA31: 0 | RB31: 0 | RC31: 0 | RD31: 0 | RE31: 0 | RF31: 0 | RG31: 0 | RH31: 0 | RI31: 0 | RJ31: 0 | RK31: 0 | RL31: 0 | RM31: 0 | RN31: 0 | RO31: 0 | RP31: 0 | RQ31: 0 | RR31: 0 | RS31: 0 | RT31: 0 | RU31: 0 | RV31: 0 | RW31: 0 | RX31: 0 | RY31: 0 | RZ31: 0 | SA31: 0 | SB31: 0 | SC31: 0 | SD31: 0 | SE31: 0 | SF31: 0 | SG31: 0 | SH31: 0 | SI31: 0 | SJ31: 0 | SK31: 0 | SL31: 0 | SM31: 0 | SN31: 0 | SO31: 0 | SP31: 0 | SQ31: 0 | SR31: 0 | SS31: 0 | ST31: 0 | SU31: 0 | SV31: 0 | SW31: 0 | SX31: 0 | SY31: 0 | SZ31: 0 | TA31: 0 | TB31: 0 | TC31: 0 | TD31: 0 | TE31: 0 | TF31: 0 | TG31: 0 | TH31: 0 | TI31: 0 | TJ31: 0 | TK31: 0 | TL31: 0 | TM31: 0 | TN31: 0 | TO31: 0 | TP31: 0 | TQ31: 0 | TR31: 0 | TS31: 0 | TT31: 0 | TU31: 0 | TV31: 0 | TW31: 0 | TX31: 0 | TY31: 0 | TZ31: 0 | UA31: 0 | UB31: 0 | UC31: 0 | UD31: 0 | UE31: 2 | UF31: 0 | UG31: 0 | UH31: 0 | UI31: 5 | UJ31: 1 | UK31: 0 | UL31: 0 | UM31: 0 | UN31: 0 | UO31: 0
A32: =HYPERLINK("https://meshb.nlm.nih.gov/record/ui?ui=" & B32,C32) -> N-Methyl-3,4-methylenedioxyamphetamine | B32: D018817 | C32: N-Methyl-3,4-methylenedioxyamphetamine | D32: 64057-70-1 | E32: =HYPERLINK("https://comptox.epa.gov/dashboard/dsstoxdb/results?utf8=%E2%9C%93&search=" & F32,F32) -> DTXSID5048893 | F32: DTXSID5048893 | G32: =SUM(H32:UO32) -> 298 | H32: 28 | I32: 19 | J32: 0 | K32: 11 | L32: 0 | M32: 2 | N32: 9 | O32: 5 | P32: 8 | Q32: 5 | R32: 70 | S32: 4 | T32: 1 | U32: 5 | V32: 0 | W32: 2 | X32: 1 | Y32: 0 | Z32: 1 | AA32: 0 | AB32: 0 | AC32: 1 | AD32: 1 | AE32: 6 | AF32: 0 | AG32: 3 | AH32: 1 | AI32: 0 | AJ32: 4 | AK32: 0 | AL32: 1 | AM32: 0 | AN32: 0 | AO32: 1 | AP32: 2 | AQ32: 14 | AR32: 1 | AS32: 7 | AT32: 10 | AU32: 0 | AV32: 1 | AW32: 4 | AX32: 0 | AY32: 0 | AZ32: 0 | BA32: 0 | BB32: 0 | BC32: 0 | BD32: 2 | BE32: 4 | BF32: 0 | BG32: 0 | BH32: 4 | BI32: 0 | BJ32: 0 | BK32: 2 | BL32: 0 | BM32: 0 | BN32: 1 | BO32: 0 | BP32: 4 | BQ32: 1 | BR32: 0 | BS32: 0 | BT32: 1 | BU32: 0 | BV32: 3 | BW32: 0 | BX32: 0 | BY32: 5 | BZ32: 1 | CA32: 2 | CB32: 0 | CC32: 0 | CD32: 0 | CE32: 3 | CF32: 0 | CG32: 1 | CH32: 1 | CI32: 0 | CJ32: 0 | CK32: 1 | CL32: 0 | CM32: 0 | CN32: 0 | CO32: 0 | CP32: 0 | CQ32: 1 | CR32: 0 | CS32: 1 | CT32: 1 | CU32: 0 | CV32: 0 | CW32: 0 | CX32: 0 | CY32: 0 | CZ32: 0 | DA32: 0 | DB32: 0 | DC32: 0 | DD32: 0 | DE32: 0 | DF32: 0 | DG32: 0 | DH32: 1 | DI32: 5 | DJ32: 0 | DK32: 0 | DL32: 0 | DM32: 0 | DN32: 0 | DO32: 0 | DP32: 0 | DQ32: 0 | DR32: 0 | DS32: 0 | DT32: 0 | DU32: 0 | DV32: 0 | DW32: 0 | DX32: 0 | DY32: 1 | DZ32: 2 | EA32: 0 | EB32: 0 | EC32: 0 | ED32: 0 | EE32: 0 | EF32: 0 | EG32: 0 | EH32: 0 | EI32: 0 | EJ32: 0 | EK32: 0 | EL32: 1 | EM32: 1 | EN32: 0 | EO32: 0 | EP32: 0 | EQ32: 0 | ER32: 0 | ES32: 0 | ET32: 0 | EU32: 0 | EV32: 1 | EW32: 0 | EX32: 2 | EY32: 0 | EZ32: 0 | FA32: 0 | FB32: 0 | FC32: 0 | FD32: 0 | FE32: 0 | FF32: 0 | FG32: 0 | FH32: 0 | FI32: 0 | FJ32: 0 | FK32: 0 | FL32: 0 | FM32: 0 | FN32: 0 | FO32: 0 | FP32: 1 | FQ32: 0 | FR32: 1 | FS32: 0 | FT32: 1 | FU32: 0 | FV32: 0 | FW32: 0 | FX32: 0 | FY32: 1 | FZ32: 0 | GA32: 0 | GB32: 0 | GC32: 0 | GD32: 0 | GE32: 0 | GF32: 0 | GG32: 0 | GH32: 0 | GI32: 0 | GJ32: 0 | GK32: 0 | GL32: 0 | GM32: 0 | GN32: 0 | GO32: 0 | GP32: 0 | GQ32: 0 | GR32: 0 | GS32: 0 | GT32: 0 | GU32: 0 | GV32: 0 | GW32: 0 | GX32: 0 | GY32: 0 | GZ32: 0 | HA32: 0 | HB32: 0 | HC32: 0 | HD32: 0 | HE32: 0 | HF32: 0 | HG32: 0 | HH32: 0 | HI32: 0 | HJ32: 0 | HK32: 0 | HL32: 0 | HM32: 0 | HN32: 0 | HO32: 0 | HP32: 0 | HQ32: 0 | HR32: 0 | HS32: 0 | HT32: 0 | HU32: 0 | HV32: 0 | HW32: 0 | HX32: 0 | HY32: 0 | HZ32: 0 | IA32: 0 | IB32: 0 | IC32: 0 | ID32: 0 | IE32: 0 | IF32: 0 | IG32: 0 | IH32: 0 | II32: 0 | IJ32: 0 | IK32: 0 | IL32: 0 | IM32: 0 | IN32: 0 | IO32: 0 | IP32: 0 | IQ32: 0 | IR32: 1 | IS32: 0 | IT32: 0 | IU32: 0 | IV32: 0 | IW32: 1 | IX32: 0 | IY32: 0 | IZ32: 0 | JA32: 0 | JB32: 0 | JC32: 0 | JD32: 0 | JE32: 0 | JF32: 0 | JG32: 0 | JH32: 2 | JI32: 0 | JJ32: 0 | JK32: 1 | JL32: 0 | JM32: 0 | JN32: 0 | JO32: 0 | JP32: 0 | JQ32: 0 | JR32: 0 | JS32: 0 | JT32: 0 | JU32: 0 | JV32: 0 | JW32: 0 | JX32: 0 | JY32: 0 | JZ32: 0 | KA32: 0 | KB32: 0 | KC32: 0 | KD32: 0 | KE32: 0 | KF32: 0 | KG32: 0 | KH32: 0 | KI32: 0 | KJ32: 0 | KK32: 0 | KL32: 0 | KM32: 0 | KN32: 0 | KO32: 0 | KP32: 0 | KQ32: 0 | KR32: 0 | KS32: 0 | KT32: 0 | KU32: 0 | KV32: 0 | KW32: 0 | KX32: 0 | KY32: 0 | KZ32: 0 | LA32: 0 | LB32: 0 | LC32: 0 | LD32: 1 | LE32: 0 | LF32: 0 | LG32: 0 | LH32: 0 | LI32: 0 | LJ32: 0 | LK32: 0 | LL32: 0 | LM32: 0 | LN32: 0 | LO32: 0 | LP32: 0 | LQ32: 0 | LR32: 0 | LS32: 0 | LT32: 1 | LU32: 0 | LV32: 0 | LW32: 0 | LX32: 0 | LY32: 0 | LZ32: 0 | MA32: 0 | MB32: 0 | MC32: 1 | MD32: 0 | ME32: 0 | MF32: 0 | MG32: 0 | MH32: 0 | MI32: 0 | MJ32: 0 | MK32: 0 | ML32: 0 | MM32: 0 | MN32: 0 | MO32: 0 | MP32: 0 | MQ32: 0 | MR32: 0 | MS32: 0 | MT32: 0 | MU32: 0 | MV32: 0 | MW32: 0 | MX32: 0 | MY32: 0 | MZ32: 0 | NA32: 0 | NB32: 0 | NC32: 0 | ND32: 0 | NE32: 0 | NF32: 0 | NG32: 0 | NH32: 0 | NI32: 0 | NJ32: 0 | NK32: 0 | NL32: 0 | NM32: 0 | NN32: 0 | NO32: 0 | NP32: 0 | NQ32: 0 | NR32: 0 | NS32: 0 | NT32: 0 | NU32: 0 | NV32: 0 | NW32: 0 | NX32: 0 | NY32: 0 | NZ32: 0 | OA32: 0 | OB32: 0 | OC32: 0 | OD32: 0 | OE32: 0 | OF32: 0 | OG32: 0 | OH32: 0 | OI32: 0 | OJ32: 0 | OK32: 0 | OL32: 0 | OM32: 0 | ON32: 0 | OO32: 0 | OP32: 0 | OQ32: 0 | OR32: 0 | OS32: 0 | OT32: 0 | OU32: 0 | OV32: 0 | OW32: 0 | OX32: 0 | OY32: 0 | OZ32: 0 | PA32: 0 | PB32: 0 | PC32: 0 | PD32: 0 | PE32: 0 | PF32: 0 | PG32: 0 | PH32: 0 | PI32: 0 | PJ32: 0 | PK32: 0 | PL32: 0 | PM32: 0 | PN32: 0 | PO32: 0 | PP32: 0 | PQ32: 0 | PR32: 0 | PS32: 0 | PT32: 0 | PU32: 0 | PV32: 0 | PW32: 0 | PX32: 0 | PY32: 0 | PZ32: 0 | QA32: 0 | QB32: 0 | QC32: 0 | QD32: 0 | QE32: 0 | QF32: 0 | QG32: 0 | QH32: 0 | QI32: 0 | QJ32: 0 | QK32: 0 | QL32: 0 | QM32: 0 | QN32: 0 | QO32: 0 | QP32: 0 | QQ32: 0 | QR32: 0 | QS32: 0 | QT32: 0 | QU32: 0 | QV32: 0 | QW32: 0 | QX32: 0 | QY32: 0 | QZ32: 0 | RA32: 0 | RB32: 0 | RC32: 0 | RD32: 0 | RE32: 0 | RF32: 0 | RG32: 0 | RH32: 0 | RI32: 0 | RJ32: 0 | RK32: 0 | RL32: 0 | RM32: 0 | RN32: 0 | RO32: 0 | RP32: 0 | RQ32: 0 | RR32: 0 | RS32: 0 | RT32: 0 | RU32: 0 | RV32: 0 | RW32: 0 | RX32: 0 | RY32: 0 | RZ32: 0 | SA32: 0 | SB32: 0 | SC32: 0 | SD32: 0 | SE32: 0 | SF32: 0 | SG32: 0 | SH32: 0 | SI32: 0 | SJ32: 0 | SK32: 0 | SL32: 0 | SM32: 0 | SN32: 0 | SO32: 0 | SP32: 0 | SQ32: 0 | SR32: 0 | SS32: 0 | ST32: 0 | SU32: 0 | SV32: 0 | SW32: 0 | SX32: 0 | SY32: 0 | SZ32: 0 | TA32: 0 | TB32: 0 | TC32: 0 | TD32: 0 | TE32: 0 | TF32: 0 | TG32: 0 | TH32: 0 | TI32: 0 | TJ32: 0 | TK32: 0 | TL32: 0 | TM32: 0 | TN32: 0 | TO32: 0 | TP32: 0 | TQ32: 0 | TR32: 0 | TS32: 0 | TT32: 0 | TU32: 0 | TV32: 0 | TW32: 0 | TX32: 0 | TY32: 0 | TZ32: 0 | UA32: 1 | UB32: 2 | UC32: 0 | UD32: 1 | UE32: 0 | UF32: 0 | UG32: 0 | UH32: 0 | UI32: 1 | UJ32: 0 | UK32: 0 | UL32: 0 | UM32: 0 | UN32: 0 | UO32: 0
A33: =HYPERLINK("https://meshb.nlm.nih.gov/record/ui?ui=" & B33,C33) -> Succinylcholine | B33: D013390 | C33: Succinylcholine | D33: 306-40-1 | E33: =HYPERLINK("https://comptox.epa.gov/dashboard/dsstoxdb/results?utf8=%E2%9C%93&search=" & F33,F33) -> DTXSID7048455 | F33: DTXSID7048455 | G33: =SUM(H33:UO33) -> 293 | H33: 2 | I33: 2 | J33: 0 | K33: 1 | L33: 78 | M33: 0 | N33: 0 | O33: 0 | P33: 0 | Q33: 0 | R33: 0 | S33: 0 | T33: 0 | U33: 0 | V33: 0 | W33: 0 | X33: 0 | Y33: 0 | Z33: 0 | AA33: 0 | AB33: 20 | AC33: 0 | AD33: 0 | AE33: 0 | AF33: 0 | AG33: 0 | AH33: 0 | AI33: 0 | AJ33: 0 | AK33: 0 | AL33: 0 | AM33: 1 | AN33: 2 | AO33: 0 | AP33: 0 | AQ33: 0 | AR33: 0 | AS33: 0 | AT33: 0 | AU33: 0 | AV33: 0 | AW33: 0 | AX33: 5 | AY33: 0 | AZ33: 0 | BA33: 0 | BB33: 0 | BC33: 31 | BD33: 0 | BE33: 0 | BF33: 0 | BG33: 0 | BH33: 0 | BI33: 0 | BJ33: 23 | BK33: 0 | BL33: 0 | BM33: 0 | BN33: 0 | BO33: 0 | BP33: 0 | BQ33: 0 | BR33: 0 | BS33: 0 | BT33: 1 | BU33: 0 | BV33: 0 | BW33: 0 | BX33: 0 | BY33: 0 | BZ33: 0 | CA33: 0 | CB33: 0 | CC33: 1 | CD33: 1 | CE33: 0 | CF33: 0 | CG33: 0 | CH33: 0 | CI33: 0 | CJ33: 1 | CK33: 0 | CL33: 0 | CM33: 0 | CN33: 0 | CO33: 0 | CP33: 0 | CQ33: 0 | CR33: 0 | CS33: 1 | CT33: 0 | CU33: 1 | CV33: 0 | CW33: 0 | CX33: 5 | CY33: 0 | CZ33: 0 | DA33: 0 | DB33: 76 | DC33: 0 | DD33: 0 | DE33: 0 | DF33: 0 | DG33: 0 | DH33: 0 | DI33: 0 | DJ33: 0 | DK33: 0 | DL33: 0 | DM33: 0 | DN33: 0 | DO33: 0 | DP33: 0 | DQ33: 0 | DR33: 0 | DS33: 0 | DT33: 0 | DU33: 0 | DV33: 0 | DW33: 0 | DX33: 0 | DY33: 0 | DZ33: 0 | EA33: 0 | EB33: 0 | EC33: 0 | ED33: 0 | EE33: 0 | EF33: 1 | EG33: 2 | EH33: 0 | EI33: 0 | EJ33: 0 | EK33: 0 | EL33: 1 | EM33: 0 | EN33: 0 | EO33: 0 | EP33: 0 | EQ33: 4 | ER33: 0 | ES33: 0 | ET33: 14 | EU33: 0 | EV33: 0 | EW33: 1 | EX33: 0 | EY33: 0 | EZ33: 0 | FA33: 0 | FB33: 3 | FC33: 0 | FD33: 0 | FE33: 0 | FF33: 0 | FG33: 1 | FH33: 0 | FI33: 0 | FJ33: 0 | FK33: 0 | FL33: 0 | FM33: 0 | FN33: 0 | FO33: 0 | FP33: 0 | FQ33: 0 | FR33: 0 | FS33: 0 | FT33: 0 | FU33: 0 | FV33: 0 | FW33: 5 | FX33: 0 | FY33: 0 | FZ33: 0 | GA33: 0 | GB33: 0 | GC33: 0 | GD33: 0 | GE33: 0 | GF33: 0 | GG33: 0 | GH33: 0 | GI33: 0 | GJ33: 0 | GK33: 0 | GL33: 3 | GM33: 0 | GN33: 0 | GO33: 0 | GP33: 0 | GQ33: 0 | GR33: 0 | GS33: 0 | GT33: 0 | GU33: 0 | GV33: 0 | GW33: 0 | GX33: 0 | GY33: 0 | GZ33: 0 | HA33: 0 | HB33: 0 | HC33: 1 | HD33: 0 | HE33: 0 | HF33: 0 | HG33: 0 | HH33: 0 | HI33: 0 | HJ33: 0 | HK33: 0 | HL33: 0 | HM33: 0 | HN33: 0 | HO33: 0 | HP33: 0 | HQ33: 0 | HR33: 0 | HS33: 0 | HT33: 0 | HU33: 0 | HV33: 0 | HW33: 0 | HX33: 0 | HY33: 0 | HZ33: 0 | IA33: 0 | IB33: 0 | IC33: 0 | ID33: 0 | IE33: 0 | IF33: 0 | IG33: 0 | IH33: 0 | II33: 0 | IJ33: 0 | IK33: 0 | IL33: 0 | IM33: 0 | IN33: 0 | IO33: 0 | IP33: 0 | IQ33: 0 | IR33: 0 | IS33: 0 | IT33: 0 | IU33: 0 | IV33: 0 | IW33: 0 | IX33: 0 | IY33: 0 | IZ33: 0 | JA33: 0 | JB33: 0 | JC33: 0 | JD33: 0 | JE33: 0 | JF33: 0 | JG33: 0 | JH33: 0 | JI33: 0 | JJ33: 0 | JK33: 0 | JL33: 0 | JM33: 0 | JN33: 0 | JO33: 0 | JP33: 0 | JQ33: 0 | JR33: 0 | JS33: 0 | JT33: 0 | JU33: 0 | JV33: 0 | JW33: 0 | JX33: 0 | JY33: 0 | JZ33: 0 | KA33: 0 | KB33: 0 | KC33: 0 | KD33: 0 | KE33: 1 | KF33: 0 | KG33: 0 | KH33: 0 | KI33: 0 | KJ33: 0 | KK33: 0 | KL33: 0 | KM33: 0 | KN33: 0 | KO33: 0 | KP33: 0 | KQ33: 0 | KR33: 0 | KS33: 0 | KT33: 0 | KU33: 0 | KV33: 0 | KW33: 0 | KX33: 0 | KY33: 0 | KZ33: 0 | LA33: 0 | LB33: 0 | LC33: 0 | LD33: 0 | LE33: 0 | LF33: 0 | LG33: 0 | LH33: 0 | LI33: 0 | LJ33: 0 | LK33: 0 | LL33: 0 | LM33: 0 | LN33: 0 | LO33: 0 | LP33: 0 | LQ33: 0 | LR33: 0 | LS33: 0 | LT33: 0 | LU33: 0 | LV33: 0 | LW33: 0 | LX33: 0 | LY33: 3 | LZ33: 0 | MA33: 0 | MB33: 0 | MC33: 0 | MD33: 0 | ME33: 0 | MF33: 0 | MG33: 0 | MH33: 0 | MI33: 0 | MJ33: 0 | MK33: 0 | ML33: 0 | MM33: 0 | MN33: 0 | MO33: 0 | MP33: 0 | MQ33: 0 | MR33: 0 | MS33: 0 | MT33: 0 | MU33: 0 | MV33: 0 | MW33: 0 | MX33: 0 | MY33: 0 | MZ33: 0 | NA33: 0 | NB33: 0 | NC33: 0 | ND33: 0 | NE33: 0 | NF33: 0 | NG33: 0 | NH33: 0 | NI33: 0 | NJ33: 0 | NK33: 0 | NL33: 0 | NM33: 0 | NN33: 0 | NO33: 0 | NP33: 0 | NQ33: 0 | NR33: 0 | NS33: 0 | NT33: 0 | NU33: 0 | NV33: 0 | NW33: 0 | NX33: 0 | NY33: 0 | NZ33: 0 | OA33: 0 | OB33: 0 | OC33: 0 | OD33: 0 | OE33: 0 | OF33: 0 | OG33: 0 | OH33: 0 | OI33: 0 | OJ33: 0 | OK33: 0 | OL33: 0 | OM33: 0 | ON33: 0 | OO33: 0 | OP33: 0 | OQ33: 0 | OR33: 0 | OS33: 0 | OT33: 0 | OU33: 0 | OV33: 0 | OW33: 0 | OX33: 0 | OY33: 0 | OZ33: 0 | PA33: 0 | PB33: 0 | PC33: 0 | PD33: 0 | PE33: 0 | PF33: 0 | PG33: 0 | PH33: 0 | PI33: 0 | PJ33: 0 | PK33: 0 | PL33: 0 | PM33: 0 | PN33: 0 | PO33: 0 | PP33: 0 | PQ33: 0 | PR33: 0 | PS33: 0 | PT33: 0 | PU33: 0 | PV33: 0 | PW33: 0 | PX33: 0 | PY33: 0 | PZ33: 0 | QA33: 0 | QB33: 0 | QC33: 0 | QD33: 0 | QE33: 0 | QF33: 0 | QG33: 0 | QH33: 0 | QI33: 0 | QJ33: 0 | QK33: 0 | QL33: 0 | QM33: 0 | QN33: 0 | QO33: 0 | QP33: 0 | QQ33: 0 | QR33: 0 | QS33: 0 | QT33: 0 | QU33: 0 | QV33: 0 | QW33: 0 | QX33: 0 | QY33: 0 | QZ33: 0 | RA33: 0 | RB33: 0 | RC33: 0 | RD33: 0 | RE33: 0 | RF33: 0 | RG33: 0 | RH33: 0 | RI33: 0 | RJ33: 0 | RK33: 0 | RL33: 0 | RM33: 0 | RN33: 0 | RO33: 0 | RP33: 0 | RQ33: 0 | RR33: 0 | RS33: 0 | RT33: 0 | RU33: 0 | RV33: 0 | RW33: 0 | RX33: 0 | RY33: 0 | RZ33: 0 | SA33: 0 | SB33: 0 | SC33: 0 | SD33: 0 | SE33: 0 | SF33: 0 | SG33: 0 | SH33: 0 | SI33: 0 | SJ33: 0 | SK33: 0 | SL33: 0 | SM33: 0 | SN33: 0 | SO33: 0 | SP33: 0 | SQ33: 0 | SR33: 0 | SS33: 1 | ST33: 0 | SU33: 0 | SV33: 0 | SW33: 0 | SX33: 0 | SY33: 0 | SZ33: 0 | TA33: 0 | TB33: 0 | TC33: 0 | TD33: 0 | TE33: 0 | TF33: 0 | TG33: 0 | TH33: 0 | TI33: 0 | TJ33: 0 | TK33: 0 | TL33: 0 | TM33: 0 | TN33: 0 | TO33: 0 | TP33: 0 | TQ33: 0 | TR33: 0 | TS33: 0 | TT33: 0 | TU33: 0 | TV33: 0 | TW33: 0 | TX33: 0 | TY33: 0 | TZ33: 0 | UA33: 0 | UB33: 0 | UC33: 0 | UD33: 0 | UE33: 0 | UF33: 0 | UG33: 0 | UH33: 0 | UI33: 0 | UJ33: 0 | UK33: 0 | UL33: 0 | UM33: 0 | UN33: 0 | UO33: 0
A34: =HYPERLINK("https://meshb.nlm.nih.gov/record/ui?ui=" & B34,C34) -> Amiodarone | B34: D000638 | C34: Amiodarone | D34: 19774-82-4 | E34: =HYPERLINK("https://comptox.epa.gov/dashboard/dsstoxdb/results?utf8=%E2%9C%93&search=" & F34,F34) -> DTXSID7037185 | F34: DTXSID7037185 | G34: =SUM(H34:UO34) -> 291 | H34: 1 | I34: 20 | J34: 37 | K34: 2 | L34: 7 | M34: 3 | N34: 5 | O34: 4 | P34: 0 | Q34: 10 | R34: 0 | S34: 1 | T34: 5 | U34: 0 | V34: 5 | W34: 0 | X34: 1 | Y34: 12 | Z34: 0 | AA34: 0 | AB34: 0 | AC34: 0 | AD34: 0 | AE34: 2 | AF34: 0 | AG34: 0 | AH34: 1 | AI34: 0 | AJ34: 2 | AK34: 6 | AL34: 0 | AM34: 7 | AN34: 2 | AO34: 5 | AP34: 3 | AQ34: 0 | AR34: 2 | AS34: 2 | AT34: 8 | AU34: 0 | AV34: 0 | AW34: 0 | AX34: 8 | AY34: 3 | AZ34: 0 | BA34: 0 | BB34: 3 | BC34: 0 | BD34: 0 | BE34: 1 | BF34: 0 | BG34: 36 | BH34: 1 | BI34: 1 | BJ34: 0 | BK34: 0 | BL34: 2 | BM34: 0 | BN34: 0 | BO34: 2 | BP34: 0 | BQ34: 0 | BR34: 0 | BS34: 0 | BT34: 0 | BU34: 0 | BV34: 0 | BW34: 0 | BX34: 0 | BY34: 0 | BZ34: 1 | CA34: 0 | CB34: 2 | CC34: 0 | CD34: 6 | CE34: 0 | CF34: 0 | CG34: 0 | CH34: 1 | CI34: 1 | CJ34: 0 | CK34: 1 | CL34: 0 | CM34: 18 | CN34: 0 | CO34: 0 | CP34: 0 | CQ34: 0 | CR34: 0 | CS34: 0 | CT34: 0 | CU34: 2 | CV34: 2 | CW34: 0 | CX34: 1 | CY34: 0 | CZ34: 4 | DA34: 1 | DB34: 0 | DC34: 0 | DD34: 0 | DE34: 0 | DF34: 0 | DG34: 0 | DH34: 1 | DI34: 0 | DJ34: 0 | DK34: 0 | DL34: 1 | DM34: 0 | DN34: 0 | DO34: 0 | DP34: 1 | DQ34: 0 | DR34: 1 | DS34: 0 | DT34: 0 | DU34: 0 | DV34: 0 | DW34: 0 | DX34: 0 | DY34: 0 | DZ34: 0 | EA34: 0 | EB34: 0 | EC34: 0 | ED34: 0 | EE34: 0 | EF34: 0 | EG34: 1 | EH34: 0 | EI34: 0 | EJ34: 0 | EK34: 0 | EL34: 0 | EM34: 0 | EN34: 6 | EO34: 0 | EP34: 0 | EQ34: 0 | ER34: 0 | ES34: 4 | ET34: 0 | EU34: 0 | EV34: 0 | EW34: 0 | EX34: 0 | EY34: 0 | EZ34: 0 | FA34: 0 | FB34: 0 | FC34: 0 | FD34: 0 | FE34: 0 | FF34: 0 | FG34: 0 | FH34: 0 | FI34: 0 | FJ34: 0 | FK34: 0 | FL34: 0 | FM34: 0 | FN34: 0 | FO34: 0 | FP34: 0 | FQ34: 0 | FR34: 0 | FS34: 0 | FT34: 0 | FU34: 0 | FV34: 0 | FW34: 0 | FX34: 0 | FY34: 0 | FZ34: 0 | GA34: 0 | GB34: 0 | GC34: 0 | GD34: 0 | GE34: 0 | GF34: 0 | GG34: 0 | GH34: 0 | GI34: 0 | GJ34: 0 | GK34: 0 | GL34: 0 | GM34: 0 | GN34: 0 | GO34: 0 | GP34: 0 | GQ34: 0 | GR34: 0 | GS34: 0 | GT34: 0 | GU34: 0 | GV34: 0 | GW34: 0 | GX34: 1 | GY34: 0 | GZ34: 0 | HA34: 0 | HB34: 0 | HC34: 0 | HD34: 0 | HE34: 0 | HF34: 0 | HG34: 0 | HH34: 0 | HI34: 0 | HJ34: 0 | HK34: 0 | HL34: 0 | HM34: 0 | HN34: 0 | HO34: 0 | HP34: 0 | HQ34: 0 | HR34: 0 | HS34: 0 | HT34: 0 | HU34: 0 | HV34: 0 | HW34: 0 | HX34: 0 | HY34: 0 | HZ34: 0 | IA34: 0 | IB34: 0 | IC34: 0 | ID34: 0 | IE34: 0 | IF34: 0 | IG34: 0 | IH34: 0 | II34: 0 | IJ34: 0 | IK34: 0 | IL34: 0 | IM34: 0 | IN34: 0 | IO34: 0 | IP34: 0 | IQ34: 0 | IR34: 0 | IS34: 0 | IT34: 0 | IU34: 0 | IV34: 0 | IW34: 0 | IX34: 0 | IY34: 0 | IZ34: 0 | JA34: 0 | JB34: 0 | JC34: 0 | JD34: 0 | JE34: 0 | JF34: 0 | JG34: 1 | JH34: 0 | JI34: 0 | JJ34: 0 | JK34: 0 | JL34: 0 | JM34: 0 | JN34: 0 | JO34: 0 | JP34: 0 | JQ34: 0 | JR34: 0 | JS34: 0 | JT34: 0 | JU34: 0 | JV34: 0 | JW34: 1 | JX34: 0 | JY34: 0 | JZ34: 0 | KA34: 0 | KB34: 0 | KC34: 0 | KD34: 0 | KE34: 0 | KF34: 0 | KG34: 0 | KH34: 0 | KI34: 0 | KJ34: 0 | KK34: 0 | KL34: 0 | KM34: 0 | KN34: 0 | KO34: 0 | KP34: 0 | KQ34: 0 | KR34: 1 | KS34: 0 | KT34: 0 | KU34: 0 | KV34: 0 | KW34: 0 | KX34: 0 | KY34: 0 | KZ34: 0 | LA34: 0 | LB34: 0 | LC34: 0 | LD34: 0 | LE34: 0 | LF34: 0 | LG34: 0 | LH34: 0 | LI34: 0 | LJ34: 0 | LK34: 0 | LL34: 0 | LM34: 0 | LN34: 0 | LO34: 0 | LP34: 0 | LQ34: 0 | LR34: 0 | LS34: 0 | LT34: 0 | LU34: 0 | LV34: 0 | LW34: 0 | LX34: 0 | LY34: 0 | LZ34: 0 | MA34: 0 | MB34: 0 | MC34: 0 | MD34: 0 | ME34: 0 | MF34: 0 | MG34: 0 | MH34: 0 | MI34: 0 | MJ34: 0 | MK34: 0 | ML34: 0 | MM34: 0 | MN34: 0 | MO34: 0 | MP34: 0 | MQ34: 0 | MR34: 1 | MS34: 0 | MT34: 0 | MU34: 0 | MV34: 0 | MW34: 0 | MX34: 0 | MY34: 0 | MZ34: 0 | NA34: 0 | NB34: 0 | NC34: 0 | ND34: 0 | NE34: 0 | NF34: 0 | NG34: 0 | NH34: 0 | NI34: 0 | NJ34: 0 | NK34: 0 | NL34: 0 | NM34: 0 | NN34: 0 | NO34: 0 | NP34: 0 | NQ34: 0 | NR34: 0 | NS34: 0 | NT34: 0 | NU34: 0 | NV34: 0 | NW34: 0 | NX34: 0 | NY34: 0 | NZ34: 0 | OA34: 0 | OB34: 0 | OC34: 0 | OD34: 0 | OE34: 0 | OF34: 0 | OG34: 0 | OH34: 0 | OI34: 0 | OJ34: 0 | OK34: 0 | OL34: 0 | OM34: 0 | ON34: 0 | OO34: 0 | OP34: 0 | OQ34: 0 | OR34: 0 | OS34: 0 | OT34: 0 | OU34: 0 | OV34: 0 | OW34: 0 | OX34: 0 | OY34: 0 | OZ34: 0 | PA34: 0 | PB34: 0 | PC34: 0 | PD34: 0 | PE34: 0 | PF34: 0 | PG34: 0 | PH34: 0 | PI34: 0 | PJ34: 0 | PK34: 0 | PL34: 0 | PM34: 0 | PN34: 0 | PO34: 0 | PP34: 0 | PQ34: 0 | PR34: 0 | PS34: 0 | PT34: 0 | PU34: 0 | PV34: 0 | PW34: 0 | PX34: 0 | PY34: 0 | PZ34: 0 | QA34: 0 | QB34: 0 | QC34: 0 | QD34: 0 | QE34: 0 | QF34: 0 | QG34: 0 | QH34: 0 | QI34: 0 | QJ34: 0 | QK34: 0 | QL34: 0 | QM34: 0 | QN34: 0 | QO34: 0 | QP34: 0 | QQ34: 0 | QR34: 0 | QS34: 0 | QT34: 0 | QU34: 0 | QV34: 0 | QW34: 0 | QX34: 0 | QY34: 0 | QZ34: 0 | RA34: 0 | RB34: 0 | RC34: 0 | RD34: 0 | RE34: 0 | RF34: 0 | RG34: 0 | RH34: 0 | RI34: 0 | RJ34: 0 | RK34: 0 | RL34: 0 | RM34: 0 | RN34: 0 | RO34: 0 | RP34: 0 | RQ34: 0 | RR34: 0 | RS34: 0 | RT34: 0 | RU34: 0 | RV34: 0 | RW34: 0 | RX34: 0 | RY34: 0 | RZ34: 0 | SA34: 0 | SB34: 0 | SC34: 0 | SD34: 0 | SE34: 0 | SF34: 0 | SG34: 0 | SH34: 0 | SI34: 0 | SJ34: 0 | SK34: 0 | SL34: 0 | SM34: 0 | SN34: 0 | SO34: 0 | SP34: 0 | SQ34: 0 | SR34: 0 | SS34: 0 | ST34: 0 | SU34: 0 | SV34: 0 | SW34: 0 | SX34: 1 | SY34: 0 | SZ34: 0 | TA34: 0 | TB34: 1 | TC34: 0 | TD34: 0 | TE34: 0 | TF34: 0 | TG34: 0 | TH34: 0 | TI34: 0 | TJ34: 0 | TK34: 0 | TL34: 0 | TM34: 0 | TN34: 0 | TO34: 0 | TP34: 0 | TQ34: 0 | TR34: 0 | TS34: 0 | TT34: 0 | TU34: 0 | TV34: 0 | TW34: 0 | TX34: 0 | TY34: 0 | TZ34: 0 | UA34: 0 | UB34: 0 | UC34: 0 | UD34: 0 | UE34: 2 | UF34: 0 | UG34: 0 | UH34: 0 | UI34: 14 | UJ34: 2 | UK34: 1 | UL34: 0 | UM34: 0 | UN34: 0 | UO34: 0
A35: =HYPERLINK("https://meshb.nlm.nih.gov/record/ui?ui=" & B35,C35) -> Fluoxetine | B35: D005473 | C35: Fluoxetine | D35: 59333-67-4 | E35: =HYPERLINK("https://comptox.epa.gov/dashboard/dsstoxdb/results?utf8=%E2%9C%93&search=" & F35,F35) -> DTXSID7020635 | F35: DTXSID7020635 | G35: =SUM(H35:UO35) -> 269 | H35: 21 | I35: 4 | J35: 0 | K35: 2 | L35: 1 | M35: 24 | N35: 10 | O35: 3 | P35: 9 | Q35: 12 | R35: 4 | S35: 1 | T35: 10 | U35: 1 | V35: 3 | W35: 15 | X35: 9 | Y35: 3 | Z35: 1 | AA35: 1 | AB35: 0 | AC35: 3 | AD35: 2 | AE35: 6 | AF35: 0 | AG35: 7 | AH35: 17 | AI35: 0 | AJ35: 0 | AK35: 0 | AL35: 0 | AM35: 0 | AN35: 1 | AO35: 4 | AP35: 0 | AQ35: 0 | AR35: 6 | AS35: 0 | AT35: 24 | AU35: 0 | AV35: 0 | AW35: 2 | AX35: 0 | AY35: 0 | AZ35: 0 | BA35: 5 | BB35: 0 | BC35: 1 | BD35: 0 | BE35: 0 | BF35: 0 | BG35: 0 | BH35: 0 | BI35: 0 | BJ35: 1 | BK35: 0 | BL35: 0 | BM35: 0 | BN35: 0 | BO35: 1 | BP35: 2 | BQ35: 0 | BR35: 3 | BS35: 3 | BT35: 0 | BU35: 0 | BV35: 0 | BW35: 0 | BX35: 0 | BY35: 0 | BZ35: 0 | CA35: 0 | CB35: 0 | CC35: 3 | CD35: 0 | CE35: 0 | CF35: 0 | CG35: 0 | CH35: 0 | CI35: 0 | CJ35: 0 | CK35: 1 | CL35: 0 | CM35: 0 | CN35: 0 | CO35: 0 | CP35: 3 | CQ35: 0 | CR35: 0 | CS35: 0 | CT35: 0 | CU35: 1 | CV35: 0 | CW35: 0 | CX35: 1 | CY35: 0 | CZ35: 0 | DA35: 0 | DB35: 0 | DC35: 2 | DD35: 0 | DE35: 0 | DF35: 0 | DG35: 0 | DH35: 0 | DI35: 0 | DJ35: 0 | DK35: 0 | DL35: 0 | DM35: 3 | DN35: 2 | DO35: 0 | DP35: 0 | DQ35: 0 | DR35: 0 | DS35: 0 | DT35: 0 | DU35: 0 | DV35: 0 | DW35: 0 | DX35: 1 | DY35: 0 | DZ35: 0 | EA35: 0 | EB35: 0 | EC35: 0 | ED35: 0 | EE35: 0 | EF35: 0 | EG35: 0 | EH35: 0 | EI35: 0 | EJ35: 1 | EK35: 0 | EL35: 0 | EM35: 1 | EN35: 0 | EO35: 0 | EP35: 0 | EQ35: 0 | ER35: 0 | ES35: 1 | ET35: 1 | EU35: 0 | EV35: 0 | EW35: 0 | EX35: 1 | EY35: 0 | EZ35: 0 | FA35: 0 | FB35: 1 | FC35: 0 | FD35: 1 | FE35: 2 | FF35: 1 | FG35: 0 | FH35: 0 | FI35: 0 | FJ35: 3 | FK35: 0 | FL35: 0 | FM35: 0 | FN35: 2 | FO35: 0 | FP35: 0 | FQ35: 0 | FR35: 0 | FS35: 0 | FT35: 1 | FU35: 0 | FV35: 0 | FW35: 0 | FX35: 0 | FY35: 0 | FZ35: 0 | GA35: 0 | GB35: 0 | GC35: 1 | GD35: 0 | GE35: 0 | GF35: 0 | GG35: 0 | GH35: 0 | GI35: 0 | GJ35: 0 | GK35: 0 | GL35: 0 | GM35: 0 | GN35: 1 | GO35: 0 | GP35: 0 | GQ35: 0 | GR35: 0 | GS35: 0 | GT35: 0 | GU35: 0 | GV35: 0 | GW35: 0 | GX35: 0 | GY35: 0 | GZ35: 0 | HA35: 0 | HB35: 0 | HC35: 0 | HD35: 0 | HE35: 0 | HF35: 0 | HG35: 0 | HH35: 0 | HI35: 0 | HJ35: 0 | HK35: 0 | HL35: 0 | HM35: 0 | HN35: 0 | HO35: 0 | HP35: 0 | HQ35: 0 | HR35: 0 | HS35: 0 | HT35: 0 | HU35: 0 | HV35: 0 | HW35: 0 | HX35: 0 | HY35: 0 | HZ35: 0 | IA35: 0 | IB35: 0 | IC35: 0 | ID35: 0 | IE35: 0 | IF35: 0 | IG35: 0 | IH35: 0 | II35: 0 | IJ35: 0 | IK35: 0 | IL35: 0 | IM35: 0 | IN35: 0 | IO35: 0 | IP35: 0 | IQ35: 0 | IR35: 0 | IS35: 0 | IT35: 0 | IU35: 3 | IV35: 0 | IW35: 0 | IX35: 0 | IY35: 0 | IZ35: 0 | JA35: 0 | JB35: 0 | JC35: 0 | JD35: 0 | JE35: 0 | JF35: 0 | JG35: 0 | JH35: 0 | JI35: 0 | JJ35: 0 | JK35: 0 | JL35: 1 | JM35: 0 | JN35: 0 | JO35: 1 | JP35: 0 | JQ35: 0 | JR35: 0 | JS35: 0 | JT35: 0 | JU35: 0 | JV35: 0 | JW35: 0 | JX35: 0 | JY35: 0 | JZ35: 0 | KA35: 0 | KB35: 0 | KC35: 0 | KD35: 0 | KE35: 0 | KF35: 0 | KG35: 0 | KH35: 0 | KI35: 0 | KJ35: 0 | KK35: 0 | KL35: 0 | KM35: 0 | KN35: 0 | KO35: 0 | KP35: 0 | KQ35: 0 | KR35: 0 | KS35: 0 | KT35: 0 | KU35: 0 | KV35: 0 | KW35: 0 | KX35: 0 | KY35: 0 | KZ35: 0 | LA35: 0 | LB35: 0 | LC35: 0 | LD35: 0 | LE35: 0 | LF35: 0 | LG35: 0 | LH35: 0 | LI35: 0 | LJ35: 0 | LK35: 0 | LL35: 0 | LM35: 0 | LN35: 0 | LO35: 0 | LP35: 0 | LQ35: 0 | LR35: 0 | LS35: 0 | LT35: 0 | LU35: 0 | LV35: 0 | LW35: 0 | LX35: 0 | LY35: 0 | LZ35: 0 | MA35: 0 | MB35: 0 | MC35: 0 | MD35: 0 | ME35: 0 | MF35: 0 | MG35: 0 | MH35: 0 | MI35: 0 | MJ35: 0 | MK35: 0 | ML35: 0 | MM35: 0 | MN35: 0 | MO35: 0 | MP35: 0 | MQ35: 0 | MR35: 0 | MS35: 0 | MT35: 0 | MU35: 0 | MV35: 0 | MW35: 0 | MX35: 0 | MY35: 0 | MZ35: 0 | NA35: 0 | NB35: 0 | NC35: 0 | ND35: 0 | NE35: 0 | NF35: 0 | NG35: 0 | NH35: 0 | NI35: 0 | NJ35: 0 | NK35: 0 | NL35: 0 | NM35: 0 | NN35: 0 | NO35: 0 | NP35: 0 | NQ35: 0 | NR35: 0 | NS35: 0 | NT35: 0 | NU35: 0 | NV35: 0 | NW35: 0 | NX35: 0 | NY35: 0 | NZ35: 0 | OA35: 0 | OB35: 0 | OC35: 0 | OD35: 0 | OE35: 0 | OF35: 0 | OG35: 0 | OH35: 0 | OI35: 0 | OJ35: 0 | OK35: 0 | OL35: 0 | OM35: 0 | ON35: 0 | OO35: 0 | OP35: 0 | OQ35: 0 | OR35: 0 | OS35: 0 | OT35: 0 | OU35: 0 | OV35: 0 | OW35: 0 | OX35: 0 | OY35: 0 | OZ35: 0 | PA35: 0 | PB35: 0 | PC35: 0 | PD35: 0 | PE35: 0 | PF35: 0 | PG35: 0 | PH35: 0 | PI35: 0 | PJ35: 0 | PK35: 0 | PL35: 0 | PM35: 0 | PN35: 0 | PO35: 0 | PP35: 0 | PQ35: 0 | PR35: 0 | PS35: 0 | PT35: 0 | PU35: 0 | PV35: 0 | PW35: 0 | PX35: 0 | PY35: 0 | PZ35: 0 | QA35: 0 | QB35: 0 | QC35: 0 | QD35: 1 | QE35: 0 | QF35: 0 | QG35: 0 | QH35: 0 | QI35: 0 | QJ35: 0 | QK35: 0 | QL35: 0 | QM35: 0 | QN35: 0 | QO35: 0 | QP35: 0 | QQ35: 0 | QR35: 0 | QS35: 0 | QT35: 0 | QU35: 0 | QV35: 0 | QW35: 0 | QX35: 0 | QY35: 0 | QZ35: 0 | RA35: 0 | RB35: 0 | RC35: 0 | RD35: 0 | RE35: 0 | RF35: 0 | RG35: 0 | RH35: 0 | RI35: 0 | RJ35: 0 | RK35: 0 | RL35: 0 | RM35: 0 | RN35: 0 | RO35: 0 | RP35: 0 | RQ35: 0 | RR35: 0 | RS35: 0 | RT35: 0 | RU35: 0 | RV35: 0 | RW35: 0 | RX35: 0 | RY35: 0 | RZ35: 0 | SA35: 0 | SB35: 0 | SC35: 0 | SD35: 0 | SE35: 0 | SF35: 0 | SG35: 0 | SH35: 0 | SI35: 0 | SJ35: 0 | SK35: 0 | SL35: 0 | SM35: 0 | SN35: 0 | SO35: 0 | SP35: 0 | SQ35: 0 | SR35: 0 | SS35: 0 | ST35: 0 | SU35: 0 | SV35: 0 | SW35: 0 | SX35: 0 | SY35: 0 | SZ35: 0 | TA35: 0 | TB35: 0 | TC35: 0 | TD35: 0 | TE35: 0 | TF35: 0 | TG35: 0 | TH35: 0 | TI35: 0 | TJ35: 0 | TK35: 0 | TL35: 1 | TM35: 0 | TN35: 0 | TO35: 0 | TP35: 0 | TQ35: 0 | TR35: 0 | TS35: 0 | TT35: 0 | TU35: 0 | TV35: 0 | TW35: 0 | TX35: 0 | TY35: 0 | TZ35: 0 | UA35: 0 | UB35: 0 | UC35: 0 | UD35: 0 | UE35: 1 | UF35: 0 | UG35: 0 | UH35: 0 | UI35: 2 | UJ35: 0 | UK35: 0 | UL35: 2 | UM35: 0 | UN35: 0 | UO35: 0
A36: =HYPERLINK("https://meshb.nlm.nih.gov/record/ui?ui=" & B36,C36) -> Clioquinol | B36: D007464 | C36: Clioquinol | D36: 130-26-7 | E36: =HYPERLINK("https://comptox.epa.gov/dashboard/dsstoxdb/results?utf8=%E2%9C%93&search=" & F36,F36) -> DTXSID7022837 | F36: DTXSID7022837 | G36: =SUM(H36:UO36) -> 268 | H36: 0 | I36: 18 | J36: 12 | K36: 4 | L36: 0 | M36: 0 | N36: 0 | O36: 0 | P36: 0 | Q36: 0 | R36: 1 | S36: 3 | T36: 0 | U36: 0 | V36: 6 | W36: 0 | X36: 0 | Y36: 5 | Z36: 1 | AA36: 0 | AB36: 2 | AC36: 1 | AD36: 0 | AE36: 0 | AF36: 0 | AG36: 0 | AH36: 0 | AI36: 0 | AJ36: 0 | AK36: 3 | AL36: 0 | AM36: 3 | AN36: 0 | AO36: 0 | AP36: 0 | AQ36: 0 | AR36: 0 | AS36: 0 | AT36: 0 | AU36: 0 | AV36: 0 | AW36: 4 | AX36: 4 | AY36: 76 | AZ36: 0 | BA36: 0 | BB36: 4 | BC36: 0 | BD36: 0 | BE36: 0 | BF36: 0 | BG36: 5 | BH36: 0 | BI36: 0 | BJ36: 0 | BK36: 14 | BL36: 0 | BM36: 0 | BN36: 0 | BO36: 0 | BP36: 0 | BQ36: 1 | BR36: 0 | BS36: 0 | BT36: 0 | BU36: 0 | BV36: 0 | BW36: 0 | BX36: 0 | BY36: 0 | BZ36: 0 | CA36: 0 | CB36: 0 | CC36: 0 | CD36: 0 | CE36: 0 | CF36: 0 | CG36: 0 | CH36: 0 | CI36: 0 | CJ36: 0 | CK36: 0 | CL36: 0 | CM36: 0 | CN36: 0 | CO36: 0 | CP36: 0 | CQ36: 0 | CR36: 0 | CS36: 0 | CT36: 0 | CU36: 0 | CV36: 0 | CW36: 0 | CX36: 0 | CY36: 63 | CZ36: 17 | DA36: 0 | DB36: 0 | DC36: 0 | DD36: 0 | DE36: 0 | DF36: 0 | DG36: 0 | DH36: 1 | DI36: 0 | DJ36: 1 | DK36: 0 | DL36: 0 | DM36: 0 | DN36: 0 | DO36: 0 | DP36: 1 | DQ36: 0 | DR36: 0 | DS36: 0 | DT36: 0 | DU36: 0 | DV36: 0 | DW36: 0 | DX36: 0 | DY36: 0 | DZ36: 0 | EA36: 2 | EB36: 0 | EC36: 0 | ED36: 0 | EE36: 0 | EF36: 0 | EG36: 0 | EH36: 0 | EI36: 0 | EJ36: 0 | EK36: 0 | EL36: 0 | EM36: 0 | EN36: 0 | EO36: 0 | EP36: 0 | EQ36: 0 | ER36: 0 | ES36: 0 | ET36: 0 | EU36: 0 | EV36: 0 | EW36: 0 | EX36: 0 | EY36: 0 | EZ36: 0 | FA36: 0 | FB36: 0 | FC36: 0 | FD36: 0 | FE36: 0 | FF36: 0 | FG36: 0 | FH36: 0 | FI36: 1 | FJ36: 0 | FK36: 0 | FL36: 0 | FM36: 0 | FN36: 1 | FO36: 1 | FP36: 0 | FQ36: 0 | FR36: 0 | FS36: 0 | FT36: 0 | FU36: 0 | FV36: 0 | FW36: 0 | FX36: 0 | FY36: 0 | FZ36: 0 | GA36: 0 | GB36: 0 | GC36: 0 | GD36: 0 | GE36: 0 | GF36: 0 | GG36: 1 | GH36: 0 | GI36: 0 | GJ36: 0 | GK36: 0 | GL36: 0 | GM36: 0 | GN36: 0 | GO36: 0 | GP36: 0 | GQ36: 0 | GR36: 0 | GS36: 1 | GT36: 0 | GU36: 0 | GV36: 0 | GW36: 0 | GX36: 0 | GY36: 0 | GZ36: 0 | HA36: 0 | HB36: 0 | HC36: 0 | HD36: 0 | HE36: 0 | HF36: 0 | HG36: 0 | HH36: 0 | HI36: 0 | HJ36: 0 | HK36: 0 | HL36: 0 | HM36: 0 | HN36: 0 | HO36: 0 | HP36: 0 | HQ36: 0 | HR36: 0 | HS36: 0 | HT36: 0 | HU36: 0 | HV36: 0 | HW36: 0 | HX36: 0 | HY36: 0 | HZ36: 0 | IA36: 0 | IB36: 0 | IC36: 0 | ID36: 0 | IE36: 0 | IF36: 0 | IG36: 0 | IH36: 0 | II36: 0 | IJ36: 0 | IK36: 1 | IL36: 0 | IM36: 0 | IN36: 0 | IO36: 0 | IP36: 0 | IQ36: 0 | IR36: 0 | IS36: 0 | IT36: 0 | IU36: 0 | IV36: 0 | IW36: 0 | IX36: 0 | IY36: 0 | IZ36: 0 | JA36: 0 | JB36: 0 | JC36: 0 | JD36: 0 | JE36: 0 | JF36: 0 | JG36: 0 | JH36: 0 | JI36: 0 | JJ36: 0 | JK36: 0 | JL36: 0 | JM36: 0 | JN36: 0 | JO36: 0 | JP36: 0 | JQ36: 0 | JR36: 0 | JS36: 0 | JT36: 0 | JU36: 0 | JV36: 0 | JW36: 0 | JX36: 0 | JY36: 0 | JZ36: 0 | KA36: 0 | KB36: 0 | KC36: 0 | KD36: 0 | KE36: 0 | KF36: 0 | KG36: 0 | KH36: 0 | KI36: 0 | KJ36: 0 | KK36: 0 | KL36: 0 | KM36: 0 | KN36: 0 | KO36: 0 | KP36: 0 | KQ36: 0 | KR36: 0 | KS36: 0 | KT36: 0 | KU36: 0 | KV36: 0 | KW36: 0 | KX36: 0 | KY36: 0 | KZ36: 0 | LA36: 0 | LB36: 0 | LC36: 0 | LD36: 0 | LE36: 0 | LF36: 0 | LG36: 0 | LH36: 0 | LI36: 0 | LJ36: 0 | LK36: 0 | LL36: 0 | LM36: 0 | LN36: 0 | LO36: 0 | LP36: 0 | LQ36: 0 | LR36: 0 | LS36: 0 | LT36: 0 | LU36: 0 | LV36: 0 | LW36: 0 | LX36: 0 | LY36: 0 | LZ36: 0 | MA36: 0 | MB36: 0 | MC36: 0 | MD36: 0 | ME36: 0 | MF36: 0 | MG36: 0 | MH36: 0 | MI36: 0 | MJ36: 0 | MK36: 0 | ML36: 0 | MM36: 0 | MN36: 0 | MO36: 0 | MP36: 0 | MQ36: 0 | MR36: 0 | MS36: 0 | MT36: 0 | MU36: 0 | MV36: 0 | MW36: 0 | MX36: 0 | MY36: 0 | MZ36: 0 | NA36: 0 | NB36: 0 | NC36: 0 | ND36: 0 | NE36: 0 | NF36: 0 | NG36: 0 | NH36: 0 | NI36: 0 | NJ36: 0 | NK36: 0 | NL36: 0 | NM36: 0 | NN36: 0 | NO36: 0 | NP36: 0 | NQ36: 1 | NR36: 0 | NS36: 0 | NT36: 0 | NU36: 0 | NV36: 0 | NW36: 0 | NX36: 0 | NY36: 0 | NZ36: 0 | OA36: 0 | OB36: 0 | OC36: 0 | OD36: 0 | OE36: 0 | OF36: 0 | OG36: 0 | OH36: 0 | OI36: 0 | OJ36: 0 | OK36: 0 | OL36: 0 | OM36: 0 | ON36: 0 | OO36: 0 | OP36: 0 | OQ36: 0 | OR36: 0 | OS36: 0 | OT36: 0 | OU36: 0 | OV36: 0 | OW36: 0 | OX36: 0 | OY36: 0 | OZ36: 0 | PA36: 0 | PB36: 0 | PC36: 0 | PD36: 0 | PE36: 0 | PF36: 0 | PG36: 0 | PH36: 0 | PI36: 0 | PJ36: 0 | PK36: 0 | PL36: 0 | PM36: 0 | PN36: 0 | PO36: 0 | PP36: 0 | PQ36: 0 | PR36: 0 | PS36: 0 | PT36: 0 | PU36: 0 | PV36: 0 | PW36: 0 | PX36: 0 | PY36: 0 | PZ36: 0 | QA36: 0 | QB36: 0 | QC36: 0 | QD36: 0 | QE36: 0 | QF36: 0 | QG36: 0 | QH36: 0 | QI36: 0 | QJ36: 0 | QK36: 0 | QL36: 0 | QM36: 0 | QN36: 0 | QO36: 0 | QP36: 0 | QQ36: 0 | QR36: 0 | QS36: 0 | QT36: 0 | QU36: 0 | QV36: 0 | QW36: 0 | QX36: 0 | QY36: 0 | QZ36: 0 | RA36: 0 | RB36: 0 | RC36: 0 | RD36: 0 | RE36: 0 | RF36: 0 | RG36: 0 | RH36: 0 | RI36: 0 | RJ36: 0 | RK36: 0 | RL36: 0 | RM36: 0 | RN36: 0 | RO36: 0 | RP36: 0 | RQ36: 0 | RR36: 0 | RS36: 0 | RT36: 0 | RU36: 0 | RV36: 0 | RW36: 0 | RX36: 0 | RY36: 0 | RZ36: 0 | SA36: 0 | SB36: 0 | SC36: 0 | SD36: 0 | SE36: 0 | SF36: 0 | SG36: 0 | SH36: 0 | SI36: 0 | SJ36: 0 | SK36: 0 | SL36: 0 | SM36: 0 | SN36: 0 | SO36: 0 | SP36: 0 | SQ36: 0 | SR36: 0 | SS36: 0 | ST36: 0 | SU36: 0 | SV36: 0 | SW36: 0 | SX36: 0 | SY36: 0 | SZ36: 0 | TA36: 0 | TB36: 0 | TC36: 0 | TD36: 0 | TE36: 0 | TF36: 0 | TG36: 0 | TH36: 0 | TI36: 0 | TJ36: 0 | TK36: 0 | TL36: 0 | TM36: 0 | TN36: 0 | TO36: 0 | TP36: 0 | TQ36: 0 | TR36: 0 | TS36: 0 | TT36: 0 | TU36: 0 | TV36: 0 | TW36: 0 | TX36: 0 | TY36: 0 | TZ36: 0 | UA36: 0 | UB36: 0 | UC36: 0 | UD36: 0 | UE36: 0 | UF36: 0 | UG36: 0 | UH36: 0 | UI36: 9 | UJ36: 0 | UK36: 0 | UL36: 0 | UM36: 0 | UN36: 0 | UO36: 0
A37: =HYPERLINK("https://meshb.nlm.nih.gov/record/ui?ui=" & B37,C37) -> Bupivacaine | B37: D002045 | C37: Bupivacaine | D37: 14252-80-3 | E37: =HYPERLINK("https://comptox.epa.gov/dashboard/dsstoxdb/results?utf8=%E2%9C%93&search=" & F37,F37) -> DTXSID0030877 | F37: DTXSID0030877 | G37: =SUM(H37:UO37) -> 262 | H37: 88 | I37: 10 | J37: 7 | K37: 1 | L37: 19 | M37: 0 | N37: 1 | O37: 2 | P37: 0 | Q37: 1 | R37: 0 | S37: 7 | T37: 1 | U37: 0 | V37: 3 | W37: 0 | X37: 6 | Y37: 0 | Z37: 0 | AA37: 1 | AB37: 10 | AC37: 2 | AD37: 0 | AE37: 0 | AF37: 1 | AG37: 6 | AH37: 0 | AI37: 0 | AJ37: 1 | AK37: 1 | AL37: 1 | AM37: 0 | AN37: 0 | AO37: 0 | AP37: 0 | AQ37: 0 | AR37: 1 | AS37: 0 | AT37: 0 | AU37: 0 | AV37: 0 | AW37: 0 | AX37: 1 | AY37: 0 | AZ37: 0 | BA37: 0 | BB37: 2 | BC37: 1 | BD37: 0 | BE37: 0 | BF37: 0 | BG37: 0 | BH37: 0 | BI37: 0 | BJ37: 0 | BK37: 3 | BL37: 0 | BM37: 0 | BN37: 1 | BO37: 2 | BP37: 0 | BQ37: 1 | BR37: 0 | BS37: 0 | BT37: 2 | BU37: 2 | BV37: 0 | BW37: 4 | BX37: 0 | BY37: 0 | BZ37: 0 | CA37: 0 | CB37: 0 | CC37: 5 | CD37: 0 | CE37: 0 | CF37: 0 | CG37: 0 | CH37: 0 | CI37: 1 | CJ37: 1 | CK37: 1 | CL37: 0 | CM37: 0 | CN37: 0 | CO37: 3 | CP37: 0 | CQ37: 1 | CR37: 1 | CS37: 2 | CT37: 0 | CU37: 0 | CV37: 0 | CW37: 0 | CX37: 0 | CY37: 0 | CZ37: 0 | DA37: 0 | DB37: 0 | DC37: 0 | DD37: 0 | DE37: 0 | DF37: 0 | DG37: 0 | DH37: 1 | DI37: 0 | DJ37: 0 | DK37: 0 | DL37: 0 | DM37: 5 | DN37: 0 | DO37: 0 | DP37: 0 | DQ37: 0 | DR37: 0 | DS37: 0 | DT37: 0 | DU37: 0 | DV37: 0 | DW37: 1 | DX37: 0 | DY37: 0 | DZ37: 1 | EA37: 0 | EB37: 0 | EC37: 0 | ED37: 0 | EE37: 0 | EF37: 2 | EG37: 2 | EH37: 0 | EI37: 0 | EJ37: 0 | EK37: 2 | EL37: 0 | EM37: 0 | EN37: 0 | EO37: 1 | EP37: 1 | EQ37: 0 | ER37: 0 | ES37: 0 | ET37: 1 | EU37: 0 | EV37: 0 | EW37: 0 | EX37: 0 | EY37: 0 | EZ37: 0 | FA37: 0 | FB37: 0 | FC37: 0 | FD37: 0 | FE37: 0 | FF37: 0 | FG37: 0 | FH37: 0 | FI37: 8 | FJ37: 0 | FK37: 0 | FL37: 1 | FM37: 0 | FN37: 0 | FO37: 0 | FP37: 0 | FQ37: 0 | FR37: 0 | FS37: 0 | FT37: 0 | FU37: 0 | FV37: 0 | FW37: 0 | FX37: 0 | FY37: 0 | FZ37: 0 | GA37: 12 | GB37: 0 | GC37: 0 | GD37: 1 | GE37: 0 | GF37: 0 | GG37: 0 | GH37: 0 | GI37: 0 | GJ37: 0 | GK37: 0 | GL37: 0 | GM37: 0 | GN37: 0 | GO37: 0 | GP37: 0 | GQ37: 1 | GR37: 1 | GS37: 2 | GT37: 1 | GU37: 0 | GV37: 0 | GW37: 0 | GX37: 0 | GY37: 1 | GZ37: 0 | HA37: 0 | HB37: 0 | HC37: 1 | HD37: 0 | HE37: 1 | HF37: 0 | HG37: 0 | HH37: 0 | HI37: 0 | HJ37: 0 | HK37: 1 | HL37: 0 | HM37: 0 | HN37: 0 | HO37: 0 | HP37: 0 | HQ37: 0 | HR37: 0 | HS37: 0 | HT37: 0 | HU37: 0 | HV37: 0 | HW37: 0 | HX37: 0 | HY37: 0 | HZ37: 0 | IA37: 0 | IB37: 0 | IC37: 0 | ID37: 0 | IE37: 0 | IF37: 0 | IG37: 0 | IH37: 0 | II37: 0 | IJ37: 0 | IK37: 0 | IL37: 0 | IM37: 0 | IN37: 0 | IO37: 0 | IP37: 0 | IQ37: 0 | IR37: 0 | IS37: 0 | IT37: 0 | IU37: 0 | IV37: 0 | IW37: 0 | IX37: 0 | IY37: 0 | IZ37: 0 | JA37: 0 | JB37: 0 | JC37: 0 | JD37: 0 | JE37: 0 | JF37: 0 | JG37: 0 | JH37: 0 | JI37: 0 | JJ37: 0 | JK37: 1 | JL37: 0 | JM37: 0 | JN37: 0 | JO37: 0 | JP37: 0 | JQ37: 0 | JR37: 0 | JS37: 0 | JT37: 0 | JU37: 0 | JV37: 0 | JW37: 0 | JX37: 0 | JY37: 0 | JZ37: 0 | KA37: 0 | KB37: 0 | KC37: 0 | KD37: 0 | KE37: 0 | KF37: 0 | KG37: 0 | KH37: 0 | KI37: 0 | KJ37: 0 | KK37: 0 | KL37: 0 | KM37: 0 | KN37: 2 | KO37: 0 | KP37: 0 | KQ37: 0 | KR37: 0 | KS37: 0 | KT37: 0 | KU37: 0 | KV37: 0 | KW37: 0 | KX37: 0 | KY37: 0 | KZ37: 0 | LA37: 0 | LB37: 1 | LC37: 0 | LD37: 0 | LE37: 0 | LF37: 0 | LG37: 0 | LH37: 0 | LI37: 0 | LJ37: 0 | LK37: 0 | LL37: 0 | LM37: 0 | LN37: 0 | LO37: 0 | LP37: 0 | LQ37: 0 | LR37: 2 | LS37: 0 | LT37: 0 | LU37: 0 | LV37: 0 | LW37: 0 | LX37: 0 | LY37: 0 | LZ37: 0 | MA37: 0 | MB37: 0 | MC37: 0 | MD37: 0 | ME37: 0 | MF37: 0 | MG37: 0 | MH37: 0 | MI37: 0 | MJ37: 0 | MK37: 0 | ML37: 0 | MM37: 0 | MN37: 0 | MO37: 0 | MP37: 0 | MQ37: 0 | MR37: 0 | MS37: 0 | MT37: 0 | MU37: 0 | MV37: 0 | MW37: 0 | MX37: 0 | MY37: 0 | MZ37: 0 | NA37: 0 | NB37: 0 | NC37: 0 | ND37: 0 | NE37: 0 | NF37: 0 | NG37: 0 | NH37: 0 | NI37: 0 | NJ37: 0 | NK37: 0 | NL37: 0 | NM37: 0 | NN37: 0 | NO37: 0 | NP37: 0 | NQ37: 1 | NR37: 0 | NS37: 0 | NT37: 0 | NU37: 0 | NV37: 0 | NW37: 0 | NX37: 0 | NY37: 0 | NZ37: 0 | OA37: 0 | OB37: 0 | OC37: 0 | OD37: 0 | OE37: 0 | OF37: 0 | OG37: 1 | OH37: 0 | OI37: 0 | OJ37: 0 | OK37: 0 | OL37: 0 | OM37: 0 | ON37: 0 | OO37: 0 | OP37: 0 | OQ37: 0 | OR37: 0 | OS37: 0 | OT37: 0 | OU37: 0 | OV37: 0 | OW37: 0 | OX37: 0 | OY37: 0 | OZ37: 0 | PA37: 0 | PB37: 0 | PC37: 0 | PD37: 0 | PE37: 0 | PF37: 0 | PG37: 0 | PH37: 0 | PI37: 0 | PJ37: 0 | PK37: 0 | PL37: 0 | PM37: 0 | PN37: 0 | PO37: 0 | PP37: 0 | PQ37: 0 | PR37: 0 | PS37: 0 | PT37: 0 | PU37: 0 | PV37: 0 | PW37: 0 | PX37: 0 | PY37: 0 | PZ37: 0 | QA37: 0 | QB37: 0 | QC37: 0 | QD37: 0 | QE37: 0 | QF37: 0 | QG37: 0 | QH37: 0 | QI37: 0 | QJ37: 0 | QK37: 0 | QL37: 0 | QM37: 0 | QN37: 0 | QO37: 0 | QP37: 0 | QQ37: 0 | QR37: 0 | QS37: 0 | QT37: 0 | QU37: 0 | QV37: 0 | QW37: 0 | QX37: 0 | QY37: 0 | QZ37: 0 | RA37: 0 | RB37: 0 | RC37: 0 | RD37: 0 | RE37: 0 | RF37: 0 | RG37: 0 | RH37: 0 | RI37: 0 | RJ37: 0 | RK37: 0 | RL37: 0 | RM37: 0 | RN37: 0 | RO37: 0 | RP37: 0 | RQ37: 0 | RR37: 0 | RS37: 0 | RT37: 0 | RU37: 0 | RV37: 0 | RW37: 0 | RX37: 0 | RY37: 0 | RZ37: 0 | SA37: 0 | SB37: 0 | SC37: 0 | SD37: 0 | SE37: 0 | SF37: 0 | SG37: 0 | SH37: 0 | SI37: 0 | SJ37: 0 | SK37: 0 | SL37: 0 | SM37: 0 | SN37: 0 | SO37: 0 | SP37: 0 | SQ37: 0 | SR37: 0 | SS37: 0 | ST37: 0 | SU37: 0 | SV37: 0 | SW37: 0 | SX37: 0 | SY37: 0 | SZ37: 0 | TA37: 0 | TB37: 0 | TC37: 0 | TD37: 0 | TE37: 0 | TF37: 0 | TG37: 0 | TH37: 0 | TI37: 0 | TJ37: 0 | TK37: 0 | TL37: 0 | TM37: 0 | TN37: 0 | TO37: 0 | TP37: 0 | TQ37: 0 | TR37: 0 | TS37: 0 | TT37: 0 | TU37: 0 | TV37: 0 | TW37: 0 | TX37: 0 | TY37: 0 | TZ37: 0 | UA37: 0 | UB37: 0 | UC37: 0 | UD37: 0 | UE37: 1 | UF37: 0 | UG37: 0 | UH37: 0 | UI37: 0 | UJ37: 0 | UK37: 1 | UL37: 0 | UM37: 0 | UN37: 0 | UO37: 0
A38: =HYPERLINK("https://meshb.nlm.nih.gov/record/ui?ui=" & B38,C38) -> Ketamine | B38: D007649 | C38: Ketamine | D38: 1867-66-9 | E38: =HYPERLINK("https://comptox.epa.gov/dashboard/dsstoxdb/results?utf8=%E2%9C%93&search=" & F38,F38) -> DTXSID4040137 | F38: DTXSID4040137 | G38: =SUM(H38:UO38) -> 250 | H38: 24 | I38: 3 | J38: 2 | K38: 3 | L38: 1 | M38: 0 | N38: 0 | O38: 2 | P38: 82 | Q38: 5 | R38: 25 | S38: 1 | T38: 14 | U38: 0 | V38: 0 | W38: 1 | X38: 1 | Y38: 6 | Z38: 2 | AA38: 0 | AB38: 0 | AC38: 2 | AD38: 0 | AE38: 5 | AF38: 6 | AG38: 1 | AH38: 0 | AI38: 0 | AJ38: 0 | AK38: 1 | AL38: 0 | AM38: 0 | AN38: 1 | AO38: 0 | AP38: 0 | AQ38: 1 | AR38: 0 | AS38: 0 | AT38: 0 | AU38: 0 | AV38: 0 | AW38: 6 | AX38: 0 | AY38: 0 | AZ38: 0 | BA38: 0 | BB38: 0 | BC38: 0 | BD38: 2 | BE38: 1 | BF38: 0 | BG38: 0 | BH38: 0 | BI38: 3 | BJ38: 1 | BK38: 4 | BL38: 0 | BM38: 0 | BN38: 0 | BO38: 0 | BP38: 1 | BQ38: 3 | BR38: 0 | BS38: 0 | BT38: 2 | BU38: 0 | BV38: 5 | BW38: 0 | BX38: 1 | BY38: 2 | BZ38: 2 | CA38: 1 | CB38: 0 | CC38: 0 | CD38: 1 | CE38: 1 | CF38: 0 | CG38: 0 | CH38: 0 | CI38: 0 | CJ38: 0 | CK38: 0 | CL38: 0 | CM38: 0 | CN38: 0 | CO38: 0 | CP38: 0 | CQ38: 0 | CR38: 0 | CS38: 0 | CT38: 0 | CU38: 0 | CV38: 0 | CW38: 2 | CX38: 1 | CY38: 0 | CZ38: 0 | DA38: 0 | DB38: 0 | DC38: 0 | DD38: 0 | DE38: 0 | DF38: 0 | DG38: 0 | DH38: 0 | DI38: 0 | DJ38: 0 | DK38: 1 | DL38: 1 | DM38: 0 | DN38: 0 | DO38: 0 | DP38: 0 | DQ38: 0 | DR38: 0 | DS38: 0 | DT38: 0 | DU38: 0 | DV38: 1 | DW38: 0 | DX38: 2 | DY38: 0 | DZ38: 0 | EA38: 0 | EB38: 0 | EC38: 0 | ED38: 0 | EE38: 0 | EF38: 0 | EG38: 0 | EH38: 0 | EI38: 0 | EJ38: 1 | EK38: 0 | EL38: 0 | EM38: 0 | EN38: 0 | EO38: 0 | EP38: 0 | EQ38: 0 | ER38: 0 | ES38: 0 | ET38: 1 | EU38: 0 | EV38: 0 | EW38: 0 | EX38: 0 | EY38: 0 | EZ38: 0 | FA38: 0 | FB38: 0 | FC38: 0 | FD38: 0 | FE38: 0 | FF38: 0 | FG38: 0 | FH38: 0 | FI38: 0 | FJ38: 0 | FK38: 3 | FL38: 0 | FM38: 0 | FN38: 0 | FO38: 0 | FP38: 0 | FQ38: 0 | FR38: 0 | FS38: 0 | FT38: 0 | FU38: 0 | FV38: 0 | FW38: 0 | FX38: 0 | FY38: 0 | FZ38: 0 | GA38: 0 | GB38: 0 | GC38: 0 | GD38: 0 | GE38: 0 | GF38: 0 | GG38: 0 | GH38: 0 | GI38: 0 | GJ38: 0 | GK38: 0 | GL38: 0 | GM38: 0 | GN38: 0 | GO38: 0 | GP38: 2 | GQ38: 0 | GR38: 0 | GS38: 0 | GT38: 0 | GU38: 0 | GV38: 0 | GW38: 0 | GX38: 0 | GY38: 0 | GZ38: 0 | HA38: 0 | HB38: 0 | HC38: 0 | HD38: 0 | HE38: 0 | HF38: 0 | HG38: 0 | HH38: 0 | HI38: 0 | HJ38: 0 | HK38: 0 | HL38: 0 | HM38: 0 | HN38: 1 | HO38: 0 | HP38: 0 | HQ38: 0 | HR38: 0 | HS38: 0 | HT38: 0 | HU38: 0 | HV38: 0 | HW38: 0 | HX38: 0 | HY38: 0 | HZ38: 0 | IA38: 0 | IB38: 0 | IC38: 0 | ID38: 0 | IE38: 0 | IF38: 0 | IG38: 0 | IH38: 0 | II38: 0 | IJ38: 0 | IK38: 0 | IL38: 0 | IM38: 0 | IN38: 0 | IO38: 0 | IP38: 0 | IQ38: 0 | IR38: 0 | IS38: 0 | IT38: 0 | IU38: 0 | IV38: 0 | IW38: 0 | IX38: 0 | IY38: 0 | IZ38: 0 | JA38: 0 | JB38: 0 | JC38: 1 | JD38: 0 | JE38: 0 | JF38: 0 | JG38: 0 | JH38: 0 | JI38: 0 | JJ38: 0 | JK38: 1 | JL38: 0 | JM38: 0 | JN38: 0 | JO38: 0 | JP38: 0 | JQ38: 0 | JR38: 0 | JS38: 0 | JT38: 0 | JU38: 0 | JV38: 0 | JW38: 0 | JX38: 0 | JY38: 0 | JZ38: 0 | KA38: 0 | KB38: 0 | KC38: 0 | KD38: 0 | KE38: 0 | KF38: 0 | KG38: 0 | KH38: 0 | KI38: 0 | KJ38: 0 | KK38: 0 | KL38: 0 | KM38: 0 | KN38: 0 | KO38: 0 | KP38: 0 | KQ38: 0 | KR38: 0 | KS38: 0 | KT38: 0 | KU38: 1 | KV38: 0 | KW38: 0 | KX38: 0 | KY38: 0 | KZ38: 0 | LA38: 0 | LB38: 0 | LC38: 0 | LD38: 0 | LE38: 0 | LF38: 0 | LG38: 0 | LH38: 0 | LI38: 0 | LJ38: 0 | LK38: 0 | LL38: 0 | LM38: 0 | LN38: 0 | LO38: 0 | LP38: 0 | LQ38: 0 | LR38: 0 | LS38: 0 | LT38: 0 | LU38: 0 | LV38: 0 | LW38: 0 | LX38: 0 | LY38: 0 | LZ38: 0 | MA38: 0 | MB38: 0 | MC38: 0 | MD38: 0 | ME38: 0 | MF38: 0 | MG38: 0 | MH38: 0 | MI38: 0 | MJ38: 0 | MK38: 0 | ML38: 0 | MM38: 0 | MN38: 0 | MO38: 0 | MP38: 0 | MQ38: 0 | MR38: 0 | MS38: 0 | MT38: 0 | MU38: 0 | MV38: 0 | MW38: 0 | MX38: 0 | MY38: 0 | MZ38: 0 | NA38: 0 | NB38: 0 | NC38: 0 | ND38: 0 | NE38: 0 | NF38: 0 | NG38: 0 | NH38: 0 | NI38: 0 | NJ38: 0 | NK38: 0 | NL38: 0 | NM38: 0 | NN38: 0 | NO38: 0 | NP38: 0 | NQ38: 0 | NR38: 0 | NS38: 0 | NT38: 0 | NU38: 0 | NV38: 1 | NW38: 0 | NX38: 0 | NY38: 0 | NZ38: 0 | OA38: 0 | OB38: 0 | OC38: 0 | OD38: 0 | OE38: 0 | OF38: 0 | OG38: 0 | OH38: 0 | OI38: 0 | OJ38: 0 | OK38: 0 | OL38: 0 | OM38: 0 | ON38: 0 | OO38: 0 | OP38: 0 | OQ38: 0 | OR38: 0 | OS38: 0 | OT38: 0 | OU38: 0 | OV38: 0 | OW38: 0 | OX38: 0 | OY38: 0 | OZ38: 0 | PA38: 0 | PB38: 0 | PC38: 0 | PD38: 0 | PE38: 0 | PF38: 0 | PG38: 0 | PH38: 0 | PI38: 0 | PJ38: 0 | PK38: 0 | PL38: 0 | PM38: 0 | PN38: 0 | PO38: 0 | PP38: 0 | PQ38: 0 | PR38: 0 | PS38: 0 | PT38: 0 | PU38: 0 | PV38: 0 | PW38: 0 | PX38: 0 | PY38: 0 | PZ38: 0 | QA38: 0 | QB38: 0 | QC38: 0 | QD38: 0 | QE38: 0 | QF38: 0 | QG38: 0 | QH38: 0 | QI38: 0 | QJ38: 0 | QK38: 0 | QL38: 0 | QM38: 0 | QN38: 0 | QO38: 0 | QP38: 0 | QQ38: 0 | QR38: 0 | QS38: 0 | QT38: 0 | QU38: 0 | QV38: 0 | QW38: 0 | QX38: 0 | QY38: 0 | QZ38: 0 | RA38: 0 | RB38: 0 | RC38: 0 | RD38: 0 | RE38: 0 | RF38: 0 | RG38: 0 | RH38: 0 | RI38: 0 | RJ38: 0 | RK38: 0 | RL38: 0 | RM38: 0 | RN38: 0 | RO38: 0 | RP38: 0 | RQ38: 0 | RR38: 0 | RS38: 0 | RT38: 0 | RU38: 0 | RV38: 0 | RW38: 0 | RX38: 0 | RY38: 0 | RZ38: 0 | SA38: 0 | SB38: 0 | SC38: 0 | SD38: 0 | SE38: 0 | SF38: 0 | SG38: 0 | SH38: 0 | SI38: 0 | SJ38: 0 | SK38: 0 | SL38: 0 | SM38: 0 | SN38: 0 | SO38: 0 | SP38: 0 | SQ38: 0 | SR38: 0 | SS38: 0 | ST38: 0 | SU38: 0 | SV38: 0 | SW38: 0 | SX38: 0 | SY38: 0 | SZ38: 0 | TA38: 0 | TB38: 0 | TC38: 0 | TD38: 0 | TE38: 0 | TF38: 0 | TG38: 0 | TH38: 0 | TI38: 0 | TJ38: 0 | TK38: 0 | TL38: 0 | TM38: 0 | TN38: 0 | TO38: 0 | TP38: 0 | TQ38: 0 | TR38: 0 | TS38: 0 | TT38: 0 | TU38: 0 | TV38: 0 | TW38: 0 | TX38: 0 | TY38: 0 | TZ38: 0 | UA38: 0 | UB38: 0 | UC38: 0 | UD38: 0 | UE38: 3 | UF38: 0 | UG38: 0 | UH38: 0 | UI38: 2 | UJ38: 0 | UK38: 0 | UL38: 0 | UM38: 0 | UN38: 0 | UO38: 0
A39: =HYPERLINK("https://meshb.nlm.nih.gov/record/ui?ui=" & B39,C39) -> olanzapine | B39: C076029 | C39: olanzapine | D39: 132539-06-1 | E39: =HYPERLINK("https://comptox.epa.gov/dashboard/dsstoxdb/results?utf8=%E2%9C%93&search=" & F39,F39) -> DTXSID9023388 | F39: DTXSID9023388 | G39: =SUM(H39:UO39) -> 250 | H39: 9 | I39: 2 | J39: 0 | K39: 0 | L39: 0 | M39: 74 | N39: 7 | O39: 7 | P39: 6 | Q39: 5 | R39: 2 | S39: 1 | T39: 24 | U39: 0 | V39: 1 | W39: 12 | X39: 1 | Y39: 0 | Z39: 0 | AA39: 0 | AB39: 0 | AC39: 0 | AD39: 2 | AE39: 7 | AF39: 0 | AG39: 0 | AH39: 2 | AI39: 0 | AJ39: 4 | AK39: 0 | AL39: 1 | AM39: 0 | AN39: 0 | AO39: 0 | AP39: 0 | AQ39: 0 | AR39: 1 | AS39: 4 | AT39: 1 | AU39: 0 | AV39: 1 | AW39: 1 | AX39: 0 | AY39: 0 | AZ39: 0 | BA39: 16 | BB39: 0 | BC39: 0 | BD39: 0 | BE39: 0 | BF39: 0 | BG39: 0 | BH39: 1 | BI39: 1 | BJ39: 5 | BK39: 0 | BL39: 0 | BM39: 0 | BN39: 0 | BO39: 0 | BP39: 2 | BQ39: 0 | BR39: 6 | BS39: 1 | BT39: 3 | BU39: 0 | BV39: 0 | BW39: 0 | BX39: 0 | BY39: 0 | BZ39: 0 | CA39: 0 | CB39: 0 | CC39: 0 | CD39: 0 | CE39: 3 | CF39: 0 | CG39: 0 | CH39: 0 | CI39: 0 | CJ39: 1 | CK39: 2 | CL39: 0 | CM39: 0 | CN39: 0 | CO39: 0 | CP39: 0 | CQ39: 0 | CR39: 0 | CS39: 0 | CT39: 0 | CU39: 0 | CV39: 0 | CW39: 2 | CX39: 0 | CY39: 0 | CZ39: 0 | DA39: 2 | DB39: 0 | DC39: 0 | DD39: 0 | DE39: 0 | DF39: 0 | DG39: 0 | DH39: 0 | DI39: 0 | DJ39: 0 | DK39: 0 | DL39: 0 | DM39: 0 | DN39: 7 | DO39: 0 | DP39: 0 | DQ39: 0 | DR39: 0 | DS39: 0 | DT39: 0 | DU39: 1 | DV39: 1 | DW39: 1 | DX39: 2 | DY39: 0 | DZ39: 0 | EA39: 0 | EB39: 0 | EC39: 0 | ED39: 0 | EE39: 1 | EF39: 0 | EG39: 0 | EH39: 3 | EI39: 0 | EJ39: 0 | EK39: 0 | EL39: 0 | EM39: 0 | EN39: 0 | EO39: 0 | EP39: 0 | EQ39: 0 | ER39: 0 | ES39: 0 | ET39: 0 | EU39: 0 | EV39: 0 | EW39: 0 | EX39: 0 | EY39: 0 | EZ39: 0 | FA39: 0 | FB39: 0 | FC39: 1 | FD39: 0 | FE39: 0 | FF39: 0 | FG39: 0 | FH39: 0 | FI39: 0 | FJ39: 2 | FK39: 0 | FL39: 0 | FM39: 0 | FN39: 0 | FO39: 0 | FP39: 0 | FQ39: 0 | FR39: 0 | FS39: 0 | FT39: 0 | FU39: 0 | FV39: 0 | FW39: 0 | FX39: 0 | FY39: 0 | FZ39: 0 | GA39: 0 | GB39: 0 | GC39: 2 | GD39: 0 | GE39: 0 | GF39: 0 | GG39: 0 | GH39: 0 | GI39: 0 | GJ39: 0 | GK39: 0 | GL39: 0 | GM39: 0 | GN39: 0 | GO39: 0 | GP39: 0 | GQ39: 0 | GR39: 0 | GS39: 0 | GT39: 0 | GU39: 0 | GV39: 0 | GW39: 0 | GX39: 0 | GY39: 0 | GZ39: 0 | HA39: 0 | HB39: 1 | HC39: 0 | HD39: 0 | HE39: 0 | HF39: 0 | HG39: 0 | HH39: 0 | HI39: 0 | HJ39: 0 | HK39: 0 | HL39: 0 | HM39: 0 | HN39: 0 | HO39: 0 | HP39: 0 | HQ39: 1 | HR39: 0 | HS39: 0 | HT39: 0 | HU39: 0 | HV39: 0 | HW39: 0 | HX39: 0 | HY39: 0 | HZ39: 0 | IA39: 0 | IB39: 0 | IC39: 0 | ID39: 0 | IE39: 0 | IF39: 0 | IG39: 0 | IH39: 0 | II39: 0 | IJ39: 0 | IK39: 0 | IL39: 0 | IM39: 0 | IN39: 0 | IO39: 0 | IP39: 0 | IQ39: 0 | IR39: 0 | IS39: 0 | IT39: 0 | IU39: 0 | IV39: 0 | IW39: 0 | IX39: 0 | IY39: 0 | IZ39: 0 | JA39: 0 | JB39: 0 | JC39: 0 | JD39: 0 | JE39: 0 | JF39: 0 | JG39: 0 | JH39: 0 | JI39: 1 | JJ39: 0 | JK39: 0 | JL39: 0 | JM39: 0 | JN39: 0 | JO39: 0 | JP39: 0 | JQ39: 0 | JR39: 0 | JS39: 0 | JT39: 0 | JU39: 0 | JV39: 0 | JW39: 0 | JX39: 0 | JY39: 0 | JZ39: 1 | KA39: 0 | KB39: 0 | KC39: 0 | KD39: 0 | KE39: 0 | KF39: 0 | KG39: 0 | KH39: 0 | KI39: 0 | KJ39: 0 | KK39: 0 | KL39: 1 | KM39: 1 | KN39: 0 | KO39: 0 | KP39: 0 | KQ39: 0 | KR39: 0 | KS39: 0 | KT39: 0 | KU39: 0 | KV39: 0 | KW39: 0 | KX39: 0 | KY39: 0 | KZ39: 0 | LA39: 0 | LB39: 0 | LC39: 0 | LD39: 0 | LE39: 0 | LF39: 0 | LG39: 0 | LH39: 0 | LI39: 0 | LJ39: 0 | LK39: 0 | LL39: 0 | LM39: 0 | LN39: 0 | LO39: 0 | LP39: 0 | LQ39: 0 | LR39: 0 | LS39: 0 | LT39: 0 | LU39: 0 | LV39: 0 | LW39: 0 | LX39: 0 | LY39: 0 | LZ39: 0 | MA39: 0 | MB39: 0 | MC39: 0 | MD39: 0 | ME39: 0 | MF39: 0 | MG39: 0 | MH39: 0 | MI39: 0 | MJ39: 1 | MK39: 0 | ML39: 0 | MM39: 0 | MN39: 0 | MO39: 0 | MP39: 0 | MQ39: 0 | MR39: 0 | MS39: 0 | MT39: 0 | MU39: 0 | MV39: 0 | MW39: 0 | MX39: 0 | MY39: 0 | MZ39: 0 | NA39: 0 | NB39: 0 | NC39: 0 | ND39: 0 | NE39: 0 | NF39: 0 | NG39: 0 | NH39: 0 | NI39: 0 | NJ39: 0 | NK39: 0 | NL39: 0 | NM39: 0 | NN39: 0 | NO39: 0 | NP39: 0 | NQ39: 0 | NR39: 0 | NS39: 0 | NT39: 0 | NU39: 0 | NV39: 0 | NW39: 0 | NX39: 0 | NY39: 0 | NZ39: 0 | OA39: 0 | OB39: 0 | OC39: 0 | OD39: 0 | OE39: 0 | OF39: 0 | OG39: 0 | OH39: 0 | OI39: 0 | OJ39: 0 | OK39: 0 | OL39: 0 | OM39: 1 | ON39: 0 | OO39: 0 | OP39: 0 | OQ39: 0 | OR39: 0 | OS39: 0 | OT39: 0 | OU39: 0 | OV39: 0 | OW39: 0 | OX39: 0 | OY39: 0 | OZ39: 0 | PA39: 0 | PB39: 0 | PC39: 0 | PD39: 0 | PE39: 0 | PF39: 0 | PG39: 0 | PH39: 0 | PI39: 0 | PJ39: 0 | PK39: 0 | PL39: 0 | PM39: 0 | PN39: 0 | PO39: 0 | PP39: 0 | PQ39: 0 | PR39: 0 | PS39: 0 | PT39: 0 | PU39: 0 | PV39: 0 | PW39: 0 | PX39: 0 | PY39: 0 | PZ39: 0 | QA39: 0 | QB39: 0 | QC39: 0 | QD39: 0 | QE39: 0 | QF39: 0 | QG39: 0 | QH39: 0 | QI39: 0 | QJ39: 0 | QK39: 0 | QL39: 0 | QM39: 0 | QN39: 0 | QO39: 0 | QP39: 0 | QQ39: 0 | QR39: 0 | QS39: 0 | QT39: 0 | QU39: 0 | QV39: 0 | QW39: 0 | QX39: 0 | QY39: 0 | QZ39: 0 | RA39: 0 | RB39: 0 | RC39: 0 | RD39: 0 | RE39: 0 | RF39: 0 | RG39: 0 | RH39: 0 | RI39: 0 | RJ39: 0 | RK39: 0 | RL39: 0 | RM39: 0 | RN39: 0 | RO39: 0 | RP39: 0 | RQ39: 0 | RR39: 0 | RS39: 0 | RT39: 0 | RU39: 0 | RV39: 0 | RW39: 0 | RX39: 0 | RY39: 0 | RZ39: 0 | SA39: 0 | SB39: 0 | SC39: 0 | SD39: 0 | SE39: 0 | SF39: 0 | SG39: 0 | SH39: 0 | SI39: 0 | SJ39: 0 | SK39: 0 | SL39: 0 | SM39: 0 | SN39: 0 | SO39: 0 | SP39: 0 | SQ39: 0 | SR39: 0 | SS39: 0 | ST39: 0 | SU39: 0 | SV39: 0 | SW39: 0 | SX39: 0 | SY39: 0 | SZ39: 0 | TA39: 0 | TB39: 0 | TC39: 0 | TD39: 0 | TE39: 0 | TF39: 0 | TG39: 0 | TH39: 0 | TI39: 0 | TJ39: 0 | TK39: 0 | TL39: 0 | TM39: 0 | TN39: 0 | TO39: 0 | TP39: 0 | TQ39: 0 | TR39: 0 | TS39: 0 | TT39: 0 | TU39: 0 | TV39: 0 | TW39: 0 | TX39: 0 | TY39: 0 | TZ39: 0 | UA39: 0 | UB39: 0 | UC39: 0 | UD39: 0 | UE39: 0 | UF39: 0 | UG39: 0 | UH39: 0 | UI39: 0 | UJ39: 1 | UK39: 0 | UL39: 0 | UM39: 0 | UN39: 0 | UO39: 0
A40: =HYPERLINK("https://meshb.nlm.nih.gov/record/ui?ui=" & B40,C40) -> Thalidomide | B40: D013792 | C40: Thalidomide | D40: 50-35-1 | E40: =HYPERLINK("https://comptox.epa.gov/dashboard/dsstoxdb/results?utf8=%E2%9C%93&search=" & F40,F40) -> DTXSID9022524 | F40: DTXSID9022524 | G40: =SUM(H40:UO40) -> 250 | H40: 0 | I40: 23 | J40: 96 | K40: 3 | L40: 0 | M40: 0 | N40: 0 | O40: 0 | P40: 1 | Q40: 5 | R40: 1 | S40: 3 | T40: 0 | U40: 0 | V40: 9 | W40: 0 | X40: 0 | Y40: 0 | Z40: 2 | AA40: 1 | AB40: 2 | AC40: 0 | AD40: 0 | AE40: 2 | AF40: 0 | AG40: 0 | AH40: 2 | AI40: 0 | AJ40: 2 | AK40: 0 | AL40: 0 | AM40: 17 | AN40: 0 | AO40: 1 | AP40: 1 | AQ40: 0 | AR40: 0 | AS40: 0 | AT40: 0 | AU40: 4 | AV40: 0 | AW40: 0 | AX40: 0 | AY40: 0 | AZ40: 0 | BA40: 0 | BB40: 0 | BC40: 0 | BD40: 0 | BE40: 0 | BF40: 1 | BG40: 0 | BH40: 0 | BI40: 1 | BJ40: 0 | BK40: 0 | BL40: 0 | BM40: 0 | BN40: 0 | BO40: 2 | BP40: 0 | BQ40: 0 | BR40: 6 | BS40: 0 | BT40: 0 | BU40: 0 | BV40: 0 | BW40: 0 | BX40: 1 | BY40: 0 | BZ40: 0 | CA40: 0 | CB40: 0 | CC40: 5 | CD40: 0 | CE40: 0 | CF40: 0 | CG40: 2 | CH40: 0 | CI40: 0 | CJ40: 0 | CK40: 0 | CL40: 0 | CM40: 0 | CN40: 0 | CO40: 0 | CP40: 1 | CQ40: 0 | CR40: 1 | CS40: 0 | CT40: 0 | CU40: 0 | CV40: 0 | CW40: 0 | CX40: 0 | CY40: 0 | CZ40: 0 | DA40: 0 | DB40: 0 | DC40: 0 | DD40: 0 | DE40: 1 | DF40: 0 | DG40: 2 | DH40: 0 | DI40: 0 | DJ40: 1 | DK40: 0 | DL40: 0 | DM40: 5 | DN40: 0 | DO40: 0 | DP40: 0 | DQ40: 0 | DR40: 0 | DS40: 1 | DT40: 2 | DU40: 0 | DV40: 2 | DW40: 0 | DX40: 1 | DY40: 0 | DZ40: 0 | EA40: 4 | EB40: 0 | EC40: 0 | ED40: 1 | EE40: 0 | EF40: 0 | EG40: 1 | EH40: 0 | EI40: 0 | EJ40: 0 | EK40: 3 | EL40: 0 | EM40: 0 | EN40: 0 | EO40: 0 | EP40: 0 | EQ40: 0 | ER40: 0 | ES40: 0 | ET40: 0 | EU40: 0 | EV40: 0 | EW40: 0 | EX40: 0 | EY40: 0 | EZ40: 0 | FA40: 0 | FB40: 0 | FC40: 0 | FD40: 0 | FE40: 0 | FF40: 0 | FG40: 0 | FH40: 0 | FI40: 0 | FJ40: 0 | FK40: 0 | FL40: 0 | FM40: 0 | FN40: 0 | FO40: 0 | FP40: 1 | FQ40: 0 | FR40: 0 | FS40: 0 | FT40: 0 | FU40: 0 | FV40: 0 | FW40: 0 | FX40: 1 | FY40: 1 | FZ40: 1 | GA40: 0 | GB40: 0 | GC40: 0 | GD40: 0 | GE40: 4 | GF40: 0 | GG40: 0 | GH40: 0 | GI40: 0 | GJ40: 0 | GK40: 1 | GL40: 0 | GM40: 2 | GN40: 0 | GO40: 0 | GP40: 0 | GQ40: 0 | GR40: 0 | GS40: 3 | GT40: 0 | GU40: 0 | GV40: 0 | GW40: 0 | GX40: 0 | GY40: 0 | GZ40: 0 | HA40: 0 | HB40: 0 | HC40: 0 | HD40: 0 | HE40: 0 | HF40: 0 | HG40: 0 | HH40: 0 | HI40: 0 | HJ40: 0 | HK40: 0 | HL40: 0 | HM40: 0 | HN40: 0 | HO40: 0 | HP40: 0 | HQ40: 0 | HR40: 0 | HS40: 0 | HT40: 0 | HU40: 0 | HV40: 0 | HW40: 0 | HX40: 0 | HY40: 0 | HZ40: 0 | IA40: 0 | IB40: 0 | IC40: 0 | ID40: 0 | IE40: 0 | IF40: 0 | IG40: 0 | IH40: 0 | II40: 0 | IJ40: 0 | IK40: 0 | IL40: 0 | IM40: 0 | IN40: 0 | IO40: 0 | IP40: 0 | IQ40: 0 | IR40: 0 | IS40: 0 | IT40: 0 | IU40: 0 | IV40: 0 | IW40: 0 | IX40: 0 | IY40: 0 | IZ40: 0 | JA40: 0 | JB40: 0 | JC40: 0 | JD40: 1 | JE40: 0 | JF40: 0 | JG40: 0 | JH40: 0 | JI40: 0 | JJ40: 0 | JK40: 0 | JL40: 0 | JM40: 0 | JN40: 0 | JO40: 2 | JP40: 0 | JQ40: 0 | JR40: 0 | JS40: 0 | JT40: 0 | JU40: 0 | JV40: 0 | JW40: 0 | JX40: 0 | JY40: 0 | JZ40: 0 | KA40: 0 | KB40: 0 | KC40: 0 | KD40: 0 | KE40: 0 | KF40: 0 | KG40: 0 | KH40: 0 | KI40: 0 | KJ40: 0 | KK40: 0 | KL40: 0 | KM40: 0 | KN40: 0 | KO40: 0 | KP40: 0 | KQ40: 0 | KR40: 0 | KS40: 0 | KT40: 0 | KU40: 0 | KV40: 0 | KW40: 0 | KX40: 0 | KY40: 0 | KZ40: 0 | LA40: 0 | LB40: 0 | LC40: 0 | LD40: 0 | LE40: 0 | LF40: 0 | LG40: 0 | LH40: 0 | LI40: 0 | LJ40: 0 | LK40: 0 | LL40: 0 | LM40: 0 | LN40: 0 | LO40: 0 | LP40: 0 | LQ40: 0 | LR40: 0 | LS40: 0 | LT40: 0 | LU40: 0 | LV40: 0 | LW40: 0 | LX40: 0 | LY40: 0 | LZ40: 0 | MA40: 0 | MB40: 0 | MC40: 0 | MD40: 0 | ME40: 0 | MF40: 0 | MG40: 0 | MH40: 0 | MI40: 0 | MJ40: 0 | MK40: 0 | ML40: 0 | MM40: 0 | MN40: 2 | MO40: 0 | MP40: 0 | MQ40: 0 | MR40: 0 | MS40: 0 | MT40: 0 | MU40: 0 | MV40: 0 | MW40: 0 | MX40: 0 | MY40: 0 | MZ40: 0 | NA40: 0 | NB40: 0 | NC40: 0 | ND40: 4 | NE40: 0 | NF40: 0 | NG40: 0 | NH40: 0 | NI40: 0 | NJ40: 0 | NK40: 0 | NL40: 0 | NM40: 0 | NN40: 0 | NO40: 0 | NP40: 0 | NQ40: 0 | NR40: 0 | NS40: 0 | NT40: 0 | NU40: 0 | NV40: 1 | NW40: 0 | NX40: 0 | NY40: 0 | NZ40: 0 | OA40: 0 | OB40: 0 | OC40: 0 | OD40: 0 | OE40: 0 | OF40: 0 | OG40: 0 | OH40: 0 | OI40: 0 | OJ40: 0 | OK40: 0 | OL40: 0 | OM40: 0 | ON40: 0 | OO40: 0 | OP40: 0 | OQ40: 0 | OR40: 0 | OS40: 0 | OT40: 0 | OU40: 0 | OV40: 0 | OW40: 0 | OX40: 0 | OY40: 0 | OZ40: 0 | PA40: 0 | PB40: 0 | PC40: 0 | PD40: 0 | PE40: 0 | PF40: 0 | PG40: 0 | PH40: 0 | PI40: 0 | PJ40: 0 | PK40: 0 | PL40: 0 | PM40: 0 | PN40: 0 | PO40: 0 | PP40: 0 | PQ40: 0 | PR40: 0 | PS40: 0 | PT40: 0 | PU40: 0 | PV40: 0 | PW40: 0 | PX40: 0 | PY40: 0 | PZ40: 1 | QA40: 0 | QB40: 0 | QC40: 0 | QD40: 0 | QE40: 0 | QF40: 0 | QG40: 0 | QH40: 0 | QI40: 0 | QJ40: 0 | QK40: 0 | QL40: 0 | QM40: 0 | QN40: 0 | QO40: 0 | QP40: 0 | QQ40: 0 | QR40: 0 | QS40: 2 | QT40: 0 | QU40: 0 | QV40: 0 | QW40: 0 | QX40: 0 | QY40: 0 | QZ40: 0 | RA40: 0 | RB40: 0 | RC40: 0 | RD40: 0 | RE40: 0 | RF40: 0 | RG40: 0 | RH40: 0 | RI40: 0 | RJ40: 0 | RK40: 0 | RL40: 0 | RM40: 0 | RN40: 0 | RO40: 0 | RP40: 0 | RQ40: 0 | RR40: 0 | RS40: 0 | RT40: 0 | RU40: 0 | RV40: 0 | RW40: 0 | RX40: 0 | RY40: 0 | RZ40: 0 | SA40: 0 | SB40: 0 | SC40: 0 | SD40: 0 | SE40: 0 | SF40: 0 | SG40: 0 | SH40: 0 | SI40: 0 | SJ40: 0 | SK40: 0 | SL40: 0 | SM40: 0 | SN40: 0 | SO40: 0 | SP40: 0 | SQ40: 0 | SR40: 0 | SS40: 0 | ST40: 0 | SU40: 0 | SV40: 0 | SW40: 0 | SX40: 0 | SY40: 0 | SZ40: 0 | TA40: 0 | TB40: 0 | TC40: 0 | TD40: 0 | TE40: 0 | TF40: 0 | TG40: 0 | TH40: 0 | TI40: 0 | TJ40: 0 | TK40: 0 | TL40: 0 | TM40: 0 | TN40: 0 | TO40: 0 | TP40: 0 | TQ40: 0 | TR40: 0 | TS40: 0 | TT40: 0 | TU40: 0 | TV40: 0 | TW40: 0 | TX40: 1 | TY40: 0 | TZ40: 0 | UA40: 0 | UB40: 0 | UC40: 0 | UD40: 0 | UE40: 3 | UF40: 0 | UG40: 0 | UH40: 0 | UI40: 0 | UJ40: 0 | UK40: 0 | UL40: 0 | UM40: 0 | UN40: 0 | UO40: 0
A41: =HYPERLINK("https://meshb.nlm.nih.gov/record/ui?ui=" & B41,C41) -> Arsenic | B41: D001151 | C41: Arsenic | D41: 7440-38-2 | E41: =HYPERLINK("https://comptox.epa.gov/dashboard/dsstoxdb/results?utf8=%E2%9C%93&search=" & F41,F41) -> DTXSID4023886 | F41: DTXSID4023886 | G41: =SUM(H41:UO41) -> 249 | H41: 2 | I41: 38 | J41: 60 | K41: 14 | L41: 3 | M41: 0 | N41: 0 | O41: 1 | P41: 1 | Q41: 0 | R41: 7 | S41: 7 | T41: 1 | U41: 1 | V41: 9 | W41: 0 | X41: 0 | Y41: 2 | Z41: 0 | AA41: 2 | AB41: 1 | AC41: 1 | AD41: 0 | AE41: 0 | AF41: 0 | AG41: 0 | AH41: 1 | AI41: 4 | AJ41: 3 | AK41: 2 | AL41: 1 | AM41: 12 | AN41: 1 | AO41: 0 | AP41: 1 | AQ41: 0 | AR41: 0 | AS41: 0 | AT41: 0 | AU41: 2 | AV41: 0 | AW41: 0 | AX41: 0 | AY41: 1 | AZ41: 2 | BA41: 0 | BB41: 3 | BC41: 0 | BD41: 2 | BE41: 1 | BF41: 8 | BG41: 0 | BH41: 2 | BI41: 0 | BJ41: 0 | BK41: 1 | BL41: 0 | BM41: 0 | BN41: 0 | BO41: 0 | BP41: 1 | BQ41: 2 | BR41: 0 | BS41: 0 | BT41: 0 | BU41: 0 | BV41: 1 | BW41: 0 | BX41: 1 | BY41: 1 | BZ41: 1 | CA41: 1 | CB41: 0 | CC41: 0 | CD41: 0 | CE41: 0 | CF41: 0 | CG41: 0 | CH41: 0 | CI41: 0 | CJ41: 1 | CK41: 2 | CL41: 0 | CM41: 1 | CN41: 0 | CO41: 1 | CP41: 0 | CQ41: 2 | CR41: 1 | CS41: 1 | CT41: 0 | CU41: 0 | CV41: 1 | CW41: 0 | CX41: 0 | CY41: 1 | CZ41: 3 | DA41: 0 | DB41: 0 | DC41: 0 | DD41: 0 | DE41: 0 | DF41: 0 | DG41: 0 | DH41: 0 | DI41: 0 | DJ41: 0 | DK41: 0 | DL41: 0 | DM41: 1 | DN41: 0 | DO41: 0 | DP41: 0 | DQ41: 0 | DR41: 0 | DS41: 3 | DT41: 0 | DU41: 0 | DV41: 0 | DW41: 0 | DX41: 0 | DY41: 0 | DZ41: 0 | EA41: 2 | EB41: 0 | EC41: 0 | ED41: 0 | EE41: 0 | EF41: 0 | EG41: 0 | EH41: 0 | EI41: 0 | EJ41: 1 | EK41: 1 | EL41: 0 | EM41: 0 | EN41: 1 | EO41: 0 | EP41: 0 | EQ41: 0 | ER41: 0 | ES41: 0 | ET41: 0 | EU41: 0 | EV41: 0 | EW41: 0 | EX41: 0 | EY41: 1 | EZ41: 0 | FA41: 0 | FB41: 0 | FC41: 0 | FD41: 0 | FE41: 0 | FF41: 0 | FG41: 0 | FH41: 0 | FI41: 2 | FJ41: 0 | FK41: 0 | FL41: 0 | FM41: 0 | FN41: 1 | FO41: 0 | FP41: 1 | FQ41: 0 | FR41: 0 | FS41: 0 | FT41: 0 | FU41: 0 | FV41: 0 | FW41: 0 | FX41: 1 | FY41: 0 | FZ41: 1 | GA41: 0 | GB41: 0 | GC41: 0 | GD41: 0 | GE41: 0 | GF41: 0 | GG41: 0 | GH41: 0 | GI41: 0 | GJ41: 0 | GK41: 1 | GL41: 0 | GM41: 0 | GN41: 4 | GO41: 0 | GP41: 0 | GQ41: 0 | GR41: 0 | GS41: 0 | GT41: 1 | GU41: 0 | GV41: 1 | GW41: 0 | GX41: 1 | GY41: 0 | GZ41: 0 | HA41: 0 | HB41: 0 | HC41: 0 | HD41: 1 | HE41: 0 | HF41: 0 | HG41: 0 | HH41: 0 | HI41: 0 | HJ41: 0 | HK41: 0 | HL41: 0 | HM41: 0 | HN41: 0 | HO41: 0 | HP41: 0 | HQ41: 0 | HR41: 0 | HS41: 0 | HT41: 0 | HU41: 0 | HV41: 1 | HW41: 0 | HX41: 0 | HY41: 0 | HZ41: 0 | IA41: 0 | IB41: 0 | IC41: 0 | ID41: 0 | IE41: 1 | IF41: 0 | IG41: 0 | IH41: 0 | II41: 0 | IJ41: 0 | IK41: 0 | IL41: 1 | IM41: 0 | IN41: 0 | IO41: 0 | IP41: 0 | IQ41: 0 | IR41: 0 | IS41: 0 | IT41: 0 | IU41: 0 | IV41: 0 | IW41: 0 | IX41: 0 | IY41: 0 | IZ41: 0 | JA41: 0 | JB41: 0 | JC41: 0 | JD41: 0 | JE41: 0 | JF41: 0 | JG41: 0 | JH41: 0 | JI41: 0 | JJ41: 0 | JK41: 0 | JL41: 0 | JM41: 0 | JN41: 0 | JO41: 0 | JP41: 0 | JQ41: 0 | JR41: 0 | JS41: 0 | JT41: 0 | JU41: 0 | JV41: 0 | JW41: 0 | JX41: 0 | JY41: 0 | JZ41: 0 | KA41: 0 | KB41: 0 | KC41: 0 | KD41: 0 | KE41: 0 | KF41: 0 | KG41: 0 | KH41: 0 | KI41: 0 | KJ41: 0 | KK41: 0 | KL41: 0 | KM41: 0 | KN41: 0 | KO41: 0 | KP41: 0 | KQ41: 0 | KR41: 0 | KS41: 0 | KT41: 0 | KU41: 0 | KV41: 0 | KW41: 0 | KX41: 0 | KY41: 0 | KZ41: 0 | LA41: 0 | LB41: 0 | LC41: 0 | LD41: 0 | LE41: 0 | LF41: 0 | LG41: 0 | LH41: 0 | LI41: 0 | LJ41: 0 | LK41: 0 | LL41: 0 | LM41: 0 | LN41: 0 | LO41: 0 | LP41: 0 | LQ41: 0 | LR41: 0 | LS41: 0 | LT41: 0 | LU41: 0 | LV41: 0 | LW41: 0 | LX41: 0 | LY41: 0 | LZ41: 0 | MA41: 0 | MB41: 0 | MC41: 0 | MD41: 0 | ME41: 0 | MF41: 0 | MG41: 0 | MH41: 0 | MI41: 0 | MJ41: 0 | MK41: 0 | ML41: 0 | MM41: 0 | MN41: 0 | MO41: 0 | MP41: 0 | MQ41: 0 | MR41: 0 | MS41: 0 | MT41: 0 | MU41: 0 | MV41: 0 | MW41: 0 | MX41: 0 | MY41: 0 | MZ41: 0 | NA41: 0 | NB41: 0 | NC41: 0 | ND41: 0 | NE41: 0 | NF41: 0 | NG41: 0 | NH41: 0 | NI41: 0 | NJ41: 0 | NK41: 0 | NL41: 0 | NM41: 0 | NN41: 0 | NO41: 0 | NP41: 0 | NQ41: 0 | NR41: 0 | NS41: 0 | NT41: 0 | NU41: 0 | NV41: 0 | NW41: 0 | NX41: 0 | NY41: 0 | NZ41: 0 | OA41: 0 | OB41: 0 | OC41: 0 | OD41: 0 | OE41: 0 | OF41: 0 | OG41: 0 | OH41: 0 | OI41: 0 | OJ41: 0 | OK41: 0 | OL41: 0 | OM41: 0 | ON41: 0 | OO41: 0 | OP41: 0 | OQ41: 0 | OR41: 0 | OS41: 0 | OT41: 0 | OU41: 0 | OV41: 0 | OW41: 0 | OX41: 0 | OY41: 0 | OZ41: 0 | PA41: 0 | PB41: 0 | PC41: 0 | PD41: 0 | PE41: 0 | PF41: 0 | PG41: 0 | PH41: 0 | PI41: 0 | PJ41: 0 | PK41: 0 | PL41: 0 | PM41: 0 | PN41: 0 | PO41: 0 | PP41: 0 | PQ41: 0 | PR41: 0 | PS41: 0 | PT41: 0 | PU41: 0 | PV41: 0 | PW41: 0 | PX41: 0 | PY41: 0 | PZ41: 0 | QA41: 0 | QB41: 0 | QC41: 0 | QD41: 0 | QE41: 0 | QF41: 0 | QG41: 0 | QH41: 0 | QI41: 0 | QJ41: 0 | QK41: 0 | QL41: 0 | QM41: 0 | QN41: 0 | QO41: 0 | QP41: 0 | QQ41: 0 | QR41: 0 | QS41: 0 | QT41: 0 | QU41: 0 | QV41: 0 | QW41: 0 | QX41: 0 | QY41: 0 | QZ41: 0 | RA41: 0 | RB41: 0 | RC41: 0 | RD41: 0 | RE41: 0 | RF41: 0 | RG41: 0 | RH41: 0 | RI41: 0 | RJ41: 0 | RK41: 0 | RL41: 0 | RM41: 0 | RN41: 0 | RO41: 0 | RP41: 0 | RQ41: 0 | RR41: 0 | RS41: 0 | RT41: 0 | RU41: 0 | RV41: 0 | RW41: 0 | RX41: 0 | RY41: 0 | RZ41: 0 | SA41: 0 | SB41: 0 | SC41: 0 | SD41: 0 | SE41: 0 | SF41: 0 | SG41: 0 | SH41: 0 | SI41: 0 | SJ41: 0 | SK41: 0 | SL41: 0 | SM41: 0 | SN41: 0 | SO41: 0 | SP41: 0 | SQ41: 0 | SR41: 0 | SS41: 0 | ST41: 0 | SU41: 0 | SV41: 0 | SW41: 0 | SX41: 0 | SY41: 0 | SZ41: 0 | TA41: 0 | TB41: 0 | TC41: 0 | TD41: 0 | TE41: 0 | TF41: 0 | TG41: 0 | TH41: 0 | TI41: 0 | TJ41: 0 | TK41: 0 | TL41: 0 | TM41: 0 | TN41: 0 | TO41: 0 | TP41: 0 | TQ41: 0 | TR41: 0 | TS41: 0 | TT41: 0 | TU41: 0 | TV41: 0 | TW41: 0 | TX41: 0 | TY41: 0 | TZ41: 0 | UA41: 0 | UB41: 0 | UC41: 0 | UD41: 0 | UE41: 0 | UF41: 0 | UG41: 0 | UH41: 0 | UI41: 2 | UJ41: 0 | UK41: 0 | UL41: 0 | UM41: 0 | UN41: 0 | UO41: 0
A42: =HYPERLINK("https://meshb.nlm.nih.gov/record/ui?ui=" & B42,C42) -> Propofol | B42: D015742 | C42: Propofol | D42: 2078-54-8 | E42: =HYPERLINK("https://comptox.epa.gov/dashboard/dsstoxdb/results?utf8=%E2%9C%93&search=" & F42,F42) -> DTXSID6023523 | F42: DTXSID6023523 | G42: =SUM(H42:UO42) -> 247 | H42: 49 | I42: 2 | J42: 0 | K42: 0 | L42: 3 | M42: 2 | N42: 0 | O42: 5 | P42: 11 | Q42: 2 | R42: 12 | S42: 2 | T42: 17 | U42: 0 | V42: 2 | W42: 10 | X42: 16 | Y42: 2 | Z42: 12 | AA42: 0 | AB42: 0 | AC42: 3 | AD42: 3 | AE42: 3 | AF42: 0 | AG42: 11 | AH42: 0 | AI42: 0 | AJ42: 0 | AK42: 0 | AL42: 0 | AM42: 0 | AN42: 0 | AO42: 0 | AP42: 3 | AQ42: 0 | AR42: 0 | AS42: 0 | AT42: 0 | AU42: 0 | AV42: 0 | AW42: 11 | AX42: 0 | AY42: 0 | AZ42: 0 | BA42: 0 | BB42: 0 | BC42: 12 | BD42: 1 | BE42: 0 | BF42: 0 | BG42: 0 | BH42: 0 | BI42: 0 | BJ42: 3 | BK42: 0 | BL42: 0 | BM42: 0 | BN42: 0 | BO42: 1 | BP42: 0 | BQ42: 1 | BR42: 0 | BS42: 3 | BT42: 6 | BU42: 0 | BV42: 0 | BW42: 0 | BX42: 0 | BY42: 1 | BZ42: 1 | CA42: 1 | CB42: 0 | CC42: 1 | CD42: 0 | CE42: 0 | CF42: 0 | CG42: 0 | CH42: 0 | CI42: 0 | CJ42: 0 | CK42: 0 | CL42: 0 | CM42: 0 | CN42: 0 | CO42: 0 | CP42: 1 | CQ42: 0 | CR42: 0 | CS42: 0 | CT42: 0 | CU42: 0 | CV42: 0 | CW42: 0 | CX42: 0 | CY42: 0 | CZ42: 0 | DA42: 0 | DB42: 0 | DC42: 3 | DD42: 0 | DE42: 0 | DF42: 0 | DG42: 1 | DH42: 0 | DI42: 0 | DJ42: 0 | DK42: 0 | DL42: 0 | DM42: 0 | DN42: 0 | DO42: 0 | DP42: 0 | DQ42: 1 | DR42: 0 | DS42: 0 | DT42: 0 | DU42: 3 | DV42: 0 | DW42: 1 | DX42: 3 | DY42: 0 | DZ42: 0 | EA42: 0 | EB42: 0 | EC42: 0 | ED42: 1 | EE42: 0 | EF42: 0 | EG42: 0 | EH42: 0 | EI42: 0 | EJ42: 1 | EK42: 0 | EL42: 0 | EM42: 2 | EN42: 0 | EO42: 0 | EP42: 0 | EQ42: 0 | ER42: 0 | ES42: 0 | ET42: 2 | EU42: 0 | EV42: 1 | EW42: 0 | EX42: 1 | EY42: 0 | EZ42: 0 | FA42: 0 | FB42: 0 | FC42: 0 | FD42: 0 | FE42: 0 | FF42: 0 | FG42: 0 | FH42: 0 | FI42: 0 | FJ42: 0 | FK42: 0 | FL42: 1 | FM42: 0 | FN42: 0 | FO42: 0 | FP42: 0 | FQ42: 0 | FR42: 0 | FS42: 1 | FT42: 0 | FU42: 0 | FV42: 0 | FW42: 2 | FX42: 0 | FY42: 0 | FZ42: 0 | GA42: 0 | GB42: 0 | GC42: 1 | GD42: 0 | GE42: 0 | GF42: 0 | GG42: 2 | GH42: 0 | GI42: 0 | GJ42: 0 | GK42: 0 | GL42: 2 | GM42: 0 | GN42: 0 | GO42: 0 | GP42: 0 | GQ42: 0 | GR42: 0 | GS42: 0 | GT42: 0 | GU42: 0 | GV42: 0 | GW42: 0 | GX42: 0 | GY42: 0 | GZ42: 0 | HA42: 0 | HB42: 0 | HC42: 0 | HD42: 0 | HE42: 0 | HF42: 0 | HG42: 0 | HH42: 0 | HI42: 0 | HJ42: 0 | HK42: 0 | HL42: 0 | HM42: 0 | HN42: 0 | HO42: 0 | HP42: 0 | HQ42: 0 | HR42: 1 | HS42: 0 | HT42: 0 | HU42: 0 | HV42: 0 | HW42: 0 | HX42: 0 | HY42: 1 | HZ42: 0 | IA42: 0 | IB42: 0 | IC42: 0 | ID42: 0 | IE42: 0 | IF42: 0 | IG42: 0 | IH42: 0 | II42: 0 | IJ42: 0 | IK42: 0 | IL42: 0 | IM42: 0 | IN42: 0 | IO42: 0 | IP42: 0 | IQ42: 0 | IR42: 0 | IS42: 0 | IT42: 0 | IU42: 0 | IV42: 0 | IW42: 0 | IX42: 0 | IY42: 1 | IZ42: 0 | JA42: 0 | JB42: 0 | JC42: 0 | JD42: 0 | JE42: 0 | JF42: 0 | JG42: 0 | JH42: 0 | JI42: 0 | JJ42: 0 | JK42: 0 | JL42: 0 | JM42: 0 | JN42: 0 | JO42: 0 | JP42: 1 | JQ42: 0 | JR42: 0 | JS42: 0 | JT42: 0 | JU42: 0 | JV42: 0 | JW42: 0 | JX42: 1 | JY42: 0 | JZ42: 0 | KA42: 0 | KB42: 0 | KC42: 0 | KD42: 0 | KE42: 0 | KF42: 0 | KG42: 0 | KH42: 0 | KI42: 0 | KJ42: 0 | KK42: 0 | KL42: 0 | KM42: 0 | KN42: 0 | KO42: 0 | KP42: 0 | KQ42: 0 | KR42: 0 | KS42: 0 | KT42: 0 | KU42: 0 | KV42: 0 | KW42: 0 | KX42: 0 | KY42: 0 | KZ42: 0 | LA42: 0 | LB42: 0 | LC42: 0 | LD42: 0 | LE42: 0 | LF42: 0 | LG42: 0 | LH42: 0 | LI42: 0 | LJ42: 0 | LK42: 0 | LL42: 0 | LM42: 0 | LN42: 0 | LO42: 0 | LP42: 0 | LQ42: 0 | LR42: 0 | LS42: 0 | LT42: 0 | LU42: 0 | LV42: 0 | LW42: 0 | LX42: 0 | LY42: 0 | LZ42: 0 | MA42: 0 | MB42: 0 | MC42: 0 | MD42: 0 | ME42: 0 | MF42: 0 | MG42: 0 | MH42: 0 | MI42: 0 | MJ42: 0 | MK42: 0 | ML42: 0 | MM42: 0 | MN42: 0 | MO42: 0 | MP42: 0 | MQ42: 0 | MR42: 0 | MS42: 0 | MT42: 0 | MU42: 0 | MV42: 0 | MW42: 0 | MX42: 0 | MY42: 0 | MZ42: 0 | NA42: 0 | NB42: 0 | NC42: 0 | ND42: 0 | NE42: 0 | NF42: 0 | NG42: 0 | NH42: 0 | NI42: 0 | NJ42: 0 | NK42: 0 | NL42: 0 | NM42: 0 | NN42: 0 | NO42: 0 | NP42: 0 | NQ42: 0 | NR42: 0 | NS42: 0 | NT42: 0 | NU42: 0 | NV42: 0 | NW42: 0 | NX42: 0 | NY42: 0 | NZ42: 0 | OA42: 0 | OB42: 0 | OC42: 0 | OD42: 0 | OE42: 0 | OF42: 0 | OG42: 0 | OH42: 0 | OI42: 0 | OJ42: 0 | OK42: 0 | OL42: 0 | OM42: 0 | ON42: 0 | OO42: 0 | OP42: 0 | OQ42: 0 | OR42: 0 | OS42: 0 | OT42: 0 | OU42: 0 | OV42: 0 | OW42: 0 | OX42: 0 | OY42: 0 | OZ42: 0 | PA42: 0 | PB42: 0 | PC42: 0 | PD42: 0 | PE42: 0 | PF42: 0 | PG42: 0 | PH42: 0 | PI42: 0 | PJ42: 0 | PK42: 0 | PL42: 0 | PM42: 0 | PN42: 0 | PO42: 0 | PP42: 0 | PQ42: 0 | PR42: 0 | PS42: 0 | PT42: 0 | PU42: 0 | PV42: 0 | PW42: 0 | PX42: 0 | PY42: 0 | PZ42: 0 | QA42: 0 | QB42: 0 | QC42: 0 | QD42: 0 | QE42: 0 | QF42: 0 | QG42: 0 | QH42: 0 | QI42: 0 | QJ42: 0 | QK42: 0 | QL42: 0 | QM42: 0 | QN42: 0 | QO42: 0 | QP42: 0 | QQ42: 0 | QR42: 0 | QS42: 0 | QT42: 0 | QU42: 0 | QV42: 0 | QW42: 0 | QX42: 0 | QY42: 0 | QZ42: 0 | RA42: 0 | RB42: 0 | RC42: 0 | RD42: 0 | RE42: 0 | RF42: 0 | RG42: 0 | RH42: 0 | RI42: 0 | RJ42: 0 | RK42: 0 | RL42: 0 | RM42: 0 | RN42: 0 | RO42: 0 | RP42: 0 | RQ42: 0 | RR42: 0 | RS42: 0 | RT42: 0 | RU42: 0 | RV42: 0 | RW42: 0 | RX42: 0 | RY42: 0 | RZ42: 0 | SA42: 0 | SB42: 0 | SC42: 0 | SD42: 0 | SE42: 0 | SF42: 0 | SG42: 0 | SH42: 0 | SI42: 0 | SJ42: 0 | SK42: 0 | SL42: 0 | SM42: 0 | SN42: 0 | SO42: 0 | SP42: 0 | SQ42: 0 | SR42: 0 | SS42: 0 | ST42: 0 | SU42: 0 | SV42: 0 | SW42: 0 | SX42: 0 | SY42: 0 | SZ42: 0 | TA42: 0 | TB42: 0 | TC42: 0 | TD42: 0 | TE42: 0 | TF42: 0 | TG42: 0 | TH42: 0 | TI42: 0 | TJ42: 0 | TK42: 0 | TL42: 0 | TM42: 0 | TN42: 0 | TO42: 0 | TP42: 0 | TQ42: 0 | TR42: 0 | TS42: 0 | TT42: 0 | TU42: 0 | TV42: 0 | TW42: 0 | TX42: 0 | TY42: 0 | TZ42: 0 | UA42: 0 | UB42: 0 | UC42: 0 | UD42: 0 | UE42: 0 | UF42: 0 | UG42: 0 | UH42: 0 | UI42: 0 | UJ42: 0 | UK42: 0 | UL42: 0 | UM42: 0 | UN42: 0 | UO42: 0
A43: =HYPERLINK("https://meshb.nlm.nih.gov/record/ui?ui=" & B43,C43) -> Tacrolimus | B43: D016559 | C43: Tacrolimus | D43: 104987-11-3 | E43: =HYPERLINK("https://comptox.epa.gov/dashboard/dsstoxdb/results?utf8=%E2%9C%93&search=" & F43,F43) -> DTXSID5046354 | F43: DTXSID5046354 | G43: =SUM(H43:UO43) -> 247 | H43: 14 | I43: 19 | J43: 6 | K43: 22 | L43: 0 | M43: 0 | N43: 0 | O43: 5 | P43: 0 | Q43: 13 | R43: 0 | S43: 1 | T43: 1 | U43: 1 | V43: 2 | W43: 0 | X43: 0 | Y43: 1 | Z43: 2 | AA43: 1 | AB43: 0 | AC43: 4 | AD43: 3 | AE43: 1 | AF43: 2 | AG43: 3 | AH43: 5 | AI43: 0 | AJ43: 0 | AK43: 3 | AL43: 0 | AM43: 6 | AN43: 0 | AO43: 0 | AP43: 0 | AQ43: 10 | AR43: 0 | AS43: 1 | AT43: 4 | AU43: 1 | AV43: 1 | AW43: 0 | AX43: 0 | AY43: 0 | AZ43: 0 | BA43: 0 | BB43: 8 | BC43: 0 | BD43: 0 | BE43: 0 | BF43: 1 | BG43: 5 | BH43: 0 | BI43: 0 | BJ43: 0 | BK43: 0 | BL43: 1 | BM43: 0 | BN43: 0 | BO43: 3 | BP43: 0 | BQ43: 0 | BR43: 0 | BS43: 0 | BT43: 0 | BU43: 1 | BV43: 0 | BW43: 0 | BX43: 0 | BY43: 0 | BZ43: 1 | CA43: 0 | CB43: 0 | CC43: 0 | CD43: 0 | CE43: 1 | CF43: 0 | CG43: 1 | CH43: 1 | CI43: 2 | CJ43: 1 | CK43: 0 | CL43: 0 | CM43: 0 | CN43: 0 | CO43: 0 | CP43: 0 | CQ43: 2 | CR43: 0 | CS43: 0 | CT43: 5 | CU43: 0 | CV43: 0 | CW43: 2 | CX43: 0 | CY43: 0 | CZ43: 0 | DA43: 2 | DB43: 0 | DC43: 0 | DD43: 4 | DE43: 20 | DF43: 0 | DG43: 0 | DH43: 0 | DI43: 3 | DJ43: 2 | DK43: 0 | DL43: 0 | DM43: 0 | DN43: 0 | DO43: 0 | DP43: 1 | DQ43: 0 | DR43: 0 | DS43: 0 | DT43: 0 | DU43: 0 | DV43: 0 | DW43: 1 | DX43: 1 | DY43: 0 | DZ43: 0 | EA43: 0 | EB43: 0 | EC43: 0 | ED43: 0 | EE43: 0 | EF43: 1 | EG43: 0 | EH43: 0 | EI43: 0 | EJ43: 0 | EK43: 0 | EL43: 0 | EM43: 0 | EN43: 2 | EO43: 1 | EP43: 1 | EQ43: 1 | ER43: 0 | ES43: 1 | ET43: 0 | EU43: 0 | EV43: 0 | EW43: 0 | EX43: 0 | EY43: 0 | EZ43: 0 | FA43: 0 | FB43: 0 | FC43: 0 | FD43: 0 | FE43: 0 | FF43: 0 | FG43: 0 | FH43: 0 | FI43: 0 | FJ43: 0 | FK43: 1 | FL43: 0 | FM43: 0 | FN43: 0 | FO43: 0 | FP43: 0 | FQ43: 3 | FR43: 0 | FS43: 0 | FT43: 0 | FU43: 0 | FV43: 0 | FW43: 0 | FX43: 0 | FY43: 0 | FZ43: 0 | GA43: 0 | GB43: 0 | GC43: 0 | GD43: 1 | GE43: 0 | GF43: 0 | GG43: 0 | GH43: 0 | GI43: 0 | GJ43: 0 | GK43: 0 | GL43: 0 | GM43: 0 | GN43: 0 | GO43: 0 | GP43: 0 | GQ43: 3 | GR43: 0 | GS43: 0 | GT43: 0 | GU43: 1 | GV43: 0 | GW43: 0 | GX43: 0 | GY43: 0 | GZ43: 0 | HA43: 0 | HB43: 0 | HC43: 0 | HD43: 0 | HE43: 0 | HF43: 0 | HG43: 0 | HH43: 2 | HI43: 0 | HJ43: 0 | HK43: 0 | HL43: 0 | HM43: 2 | HN43: 0 | HO43: 0 | HP43: 0 | HQ43: 0 | HR43: 4 | HS43: 3 | HT43: 0 | HU43: 0 | HV43: 0 | HW43: 0 | HX43: 0 | HY43: 0 | HZ43: 0 | IA43: 3 | IB43: 0 | IC43: 0 | ID43: 0 | IE43: 0 | IF43: 0 | IG43: 0 | IH43: 0 | II43: 0 | IJ43: 0 | IK43: 0 | IL43: 0 | IM43: 0 | IN43: 0 | IO43: 1 | IP43: 1 | IQ43: 0 | IR43: 0 | IS43: 0 | IT43: 0 | IU43: 0 | IV43: 0 | IW43: 0 | IX43: 0 | IY43: 0 | IZ43: 0 | JA43: 0 | JB43: 0 | JC43: 0 | JD43: 0 | JE43: 0 | JF43: 0 | JG43: 0 | JH43: 0 | JI43: 0 | JJ43: 0 | JK43: 0 | JL43: 0 | JM43: 0 | JN43: 0 | JO43: 0 | JP43: 0 | JQ43: 0 | JR43: 0 | JS43: 0 | JT43: 0 | JU43: 0 | JV43: 0 | JW43: 0 | JX43: 0 | JY43: 0 | JZ43: 0 | KA43: 0 | KB43: 0 | KC43: 0 | KD43: 0 | KE43: 0 | KF43: 0 | KG43: 0 | KH43: 0 | KI43: 0 | KJ43: 0 | KK43: 0 | KL43: 0 | KM43: 1 | KN43: 0 | KO43: 0 | KP43: 0 | KQ43: 0 | KR43: 0 | KS43: 0 | KT43: 1 | KU43: 0 | KV43: 0 | KW43: 0 | KX43: 0 | KY43: 0 | KZ43: 0 | LA43: 0 | LB43: 0 | LC43: 0 | LD43: 0 | LE43: 0 | LF43: 0 | LG43: 0 | LH43: 0 | LI43: 0 | LJ43: 0 | LK43: 0 | LL43: 0 | LM43: 0 | LN43: 0 | LO43: 0 | LP43: 0 | LQ43: 0 | LR43: 0 | LS43: 0 | LT43: 0 | LU43: 0 | LV43: 1 | LW43: 0 | LX43: 0 | LY43: 0 | LZ43: 0 | MA43: 0 | MB43: 0 | MC43: 0 | MD43: 0 | ME43: 0 | MF43: 0 | MG43: 0 | MH43: 0 | MI43: 0 | MJ43: 0 | MK43: 0 | ML43: 0 | MM43: 0 | MN43: 0 | MO43: 0 | MP43: 0 | MQ43: 0 | MR43: 0 | MS43: 0 | MT43: 0 | MU43: 0 | MV43: 0 | MW43: 0 | MX43: 0 | MY43: 0 | MZ43: 0 | NA43: 0 | NB43: 0 | NC43: 0 | ND43: 0 | NE43: 0 | NF43: 0 | NG43: 0 | NH43: 0 | NI43: 0 | NJ43: 0 | NK43: 0 | NL43: 0 | NM43: 0 | NN43: 0 | NO43: 0 | NP43: 0 | NQ43: 0 | NR43: 0 | NS43: 0 | NT43: 0 | NU43: 0 | NV43: 0 | NW43: 0 | NX43: 0 | NY43: 0 | NZ43: 0 | OA43: 0 | OB43: 0 | OC43: 0 | OD43: 0 | OE43: 0 | OF43: 0 | OG43: 0 | OH43: 0 | OI43: 0 | OJ43: 0 | OK43: 0 | OL43: 0 | OM43: 0 | ON43: 0 | OO43: 0 | OP43: 0 | OQ43: 0 | OR43: 0 | OS43: 0 | OT43: 0 | OU43: 0 | OV43: 0 | OW43: 0 | OX43: 0 | OY43: 0 | OZ43: 0 | PA43: 0 | PB43: 0 | PC43: 0 | PD43: 0 | PE43: 0 | PF43: 0 | PG43: 0 | PH43: 0 | PI43: 0 | PJ43: 0 | PK43: 0 | PL43: 0 | PM43: 0 | PN43: 0 | PO43: 0 | PP43: 0 | PQ43: 0 | PR43: 0 | PS43: 0 | PT43: 0 | PU43: 0 | PV43: 0 | PW43: 0 | PX43: 0 | PY43: 0 | PZ43: 0 | QA43: 0 | QB43: 0 | QC43: 0 | QD43: 0 | QE43: 0 | QF43: 0 | QG43: 0 | QH43: 0 | QI43: 0 | QJ43: 0 | QK43: 0 | QL43: 0 | QM43: 1 | QN43: 0 | QO43: 0 | QP43: 0 | QQ43: 0 | QR43: 0 | QS43: 0 | QT43: 0 | QU43: 0 | QV43: 0 | QW43: 0 | QX43: 0 | QY43: 0 | QZ43: 0 | RA43: 0 | RB43: 0 | RC43: 0 | RD43: 0 | RE43: 0 | RF43: 0 | RG43: 0 | RH43: 1 | RI43: 0 | RJ43: 0 | RK43: 0 | RL43: 0 | RM43: 0 | RN43: 0 | RO43: 0 | RP43: 0 | RQ43: 0 | RR43: 0 | RS43: 0 | RT43: 0 | RU43: 0 | RV43: 0 | RW43: 0 | RX43: 0 | RY43: 0 | RZ43: 0 | SA43: 0 | SB43: 0 | SC43: 0 | SD43: 0 | SE43: 0 | SF43: 0 | SG43: 0 | SH43: 0 | SI43: 0 | SJ43: 0 | SK43: 0 | SL43: 0 | SM43: 1 | SN43: 0 | SO43: 0 | SP43: 1 | SQ43: 0 | SR43: 0 | SS43: 0 | ST43: 0 | SU43: 0 | SV43: 0 | SW43: 0 | SX43: 0 | SY43: 0 | SZ43: 0 | TA43: 0 | TB43: 0 | TC43: 0 | TD43: 0 | TE43: 0 | TF43: 0 | TG43: 0 | TH43: 0 | TI43: 0 | TJ43: 0 | TK43: 0 | TL43: 0 | TM43: 0 | TN43: 0 | TO43: 0 | TP43: 0 | TQ43: 0 | TR43: 0 | TS43: 0 | TT43: 0 | TU43: 0 | TV43: 0 | TW43: 0 | TX43: 0 | TY43: 0 | TZ43: 0 | UA43: 1 | UB43: 2 | UC43: 0 | UD43: 0 | UE43: 0 | UF43: 0 | UG43: 0 | UH43: 0 | UI43: 3 | UJ43: 1 | UK43: 0 | UL43: 0 | UM43: 0 | UN43: 0 | UO43: 0
A44: =HYPERLINK("https://meshb.nlm.nih.gov/record/ui?ui=" & B44,C44) -> Chloroquine | B44: D002738 | C44: Chloroquine | D44: 54-05-7 | E44: =HYPERLINK("https://comptox.epa.gov/dashboard/dsstoxdb/results?utf8=%E2%9C%93&search=" & F44,F44) -> DTXSID2040446 | F44: DTXSID2040446 | G44: =SUM(H44:UO44) -> 239 | H44: 16 | I44: 8 | J44: 10 | K44: 3 | L44: 34 | M44: 5 | N44: 1 | O44: 4 | P44: 3 | Q44: 0 | R44: 0 | S44: 2 | T44: 1 | U44: 0 | V44: 1 | W44: 1 | X44: 1 | Y44: 0 | Z44: 3 | AA44: 2 | AB44: 0 | AC44: 0 | AD44: 2 | AE44: 0 | AF44: 0 | AG44: 4 | AH44: 1 | AI44: 2 | AJ44: 0 | AK44: 5 | AL44: 3 | AM44: 2 | AN44: 5 | AO44: 3 | AP44: 0 | AQ44: 1 | AR44: 0 | AS44: 0 | AT44: 0 | AU44: 3 | AV44: 0 | AW44: 1 | AX44: 21 | AY44: 0 | AZ44: 0 | BA44: 0 | BB44: 1 | BC44: 0 | BD44: 0 | BE44: 0 | BF44: 1 | BG44: 0 | BH44: 0 | BI44: 0 | BJ44: 0 | BK44: 0 | BL44: 0 | BM44: 0 | BN44: 2 | BO44: 2 | BP44: 0 | BQ44: 1 | BR44: 0 | BS44: 0 | BT44: 0 | BU44: 0 | BV44: 0 | BW44: 0 | BX44: 0 | BY44: 0 | BZ44: 1 | CA44: 0 | CB44: 0 | CC44: 0 | CD44: 0 | CE44: 1 | CF44: 1 | CG44: 0 | CH44: 1 | CI44: 1 | CJ44: 2 | CK44: 0 | CL44: 0 | CM44: 1 | CN44: 0 | CO44: 0 | CP44: 0 | CQ44: 0 | CR44: 0 | CS44: 2 | CT44: 0 | CU44: 1 | CV44: 8 | CW44: 0 | CX44: 1 | CY44: 0 | CZ44: 1 | DA44: 0 | DB44: 0 | DC44: 0 | DD44: 0 | DE44: 0 | DF44: 9 | DG44: 1 | DH44: 0 | DI44: 0 | DJ44: 0 | DK44: 0 | DL44: 0 | DM44: 1 | DN44: 0 | DO44: 0 | DP44: 13 | DQ44: 1 | DR44: 1 | DS44: 0 | DT44: 0 | DU44: 0 | DV44: 0 | DW44: 0 | DX44: 0 | DY44: 0 | DZ44: 0 | EA44: 0 | EB44: 0 | EC44: 0 | ED44: 0 | EE44: 0 | EF44: 1 | EG44: 0 | EH44: 0 | EI44: 0 | EJ44: 0 | EK44: 0 | EL44: 0 | EM44: 1 | EN44: 0 | EO44: 0 | EP44: 0 | EQ44: 0 | ER44: 0 | ES44: 1 | ET44: 0 | EU44: 0 | EV44: 0 | EW44: 0 | EX44: 0 | EY44: 1 | EZ44: 0 | FA44: 1 | FB44: 0 | FC44: 0 | FD44: 0 | FE44: 0 | FF44: 0 | FG44: 0 | FH44: 0 | FI44: 1 | FJ44: 0 | FK44: 0 | FL44: 0 | FM44: 0 | FN44: 0 | FO44: 0 | FP44: 0 | FQ44: 0 | FR44: 0 | FS44: 1 | FT44: 0 | FU44: 0 | FV44: 0 | FW44: 0 | FX44: 0 | FY44: 0 | FZ44: 0 | GA44: 0 | GB44: 0 | GC44: 0 | GD44: 0 | GE44: 0 | GF44: 0 | GG44: 0 | GH44: 1 | GI44: 0 | GJ44: 0 | GK44: 0 | GL44: 0 | GM44: 0 | GN44: 0 | GO44: 0 | GP44: 0 | GQ44: 0 | GR44: 0 | GS44: 0 | GT44: 0 | GU44: 0 | GV44: 0 | GW44: 0 | GX44: 0 | GY44: 0 | GZ44: 0 | HA44: 0 | HB44: 0 | HC44: 0 | HD44: 0 | HE44: 0 | HF44: 0 | HG44: 0 | HH44: 0 | HI44: 0 | HJ44: 0 | HK44: 0 | HL44: 0 | HM44: 0 | HN44: 0 | HO44: 0 | HP44: 0 | HQ44: 0 | HR44: 0 | HS44: 0 | HT44: 0 | HU44: 0 | HV44: 0 | HW44: 0 | HX44: 0 | HY44: 0 | HZ44: 0 | IA44: 0 | IB44: 0 | IC44: 0 | ID44: 0 | IE44: 0 | IF44: 0 | IG44: 0 | IH44: 0 | II44: 0 | IJ44: 1 | IK44: 0 | IL44: 0 | IM44: 0 | IN44: 0 | IO44: 0 | IP44: 0 | IQ44: 0 | IR44: 0 | IS44: 0 | IT44: 0 | IU44: 0 | IV44: 0 | IW44: 0 | IX44: 0 | IY44: 0 | IZ44: 0 | JA44: 0 | JB44: 0 | JC44: 0 | JD44: 0 | JE44: 0 | JF44: 0 | JG44: 0 | JH44: 0 | JI44: 0 | JJ44: 0 | JK44: 0 | JL44: 0 | JM44: 0 | JN44: 0 | JO44: 0 | JP44: 0 | JQ44: 0 | JR44: 0 | JS44: 0 | JT44: 0 | JU44: 0 | JV44: 0 | JW44: 0 | JX44: 0 | JY44: 0 | JZ44: 0 | KA44: 0 | KB44: 0 | KC44: 0 | KD44: 0 | KE44: 0 | KF44: 0 | KG44: 0 | KH44: 0 | KI44: 0 | KJ44: 0 | KK44: 0 | KL44: 0 | KM44: 0 | KN44: 0 | KO44: 0 | KP44: 0 | KQ44: 0 | KR44: 0 | KS44: 0 | KT44: 0 | KU44: 0 | KV44: 0 | KW44: 0 | KX44: 0 | KY44: 0 | KZ44: 0 | LA44: 0 | LB44: 0 | LC44: 0 | LD44: 0 | LE44: 0 | LF44: 0 | LG44: 0 | LH44: 1 | LI44: 0 | LJ44: 0 | LK44: 0 | LL44: 0 | LM44: 0 | LN44: 0 | LO44: 0 | LP44: 0 | LQ44: 0 | LR44: 0 | LS44: 0 | LT44: 0 | LU44: 0 | LV44: 0 | LW44: 0 | LX44: 0 | LY44: 0 | LZ44: 0 | MA44: 0 | MB44: 0 | MC44: 0 | MD44: 0 | ME44: 0 | MF44: 0 | MG44: 0 | MH44: 0 | MI44: 0 | MJ44: 0 | MK44: 0 | ML44: 0 | MM44: 0 | MN44: 0 | MO44: 0 | MP44: 0 | MQ44: 0 | MR44: 0 | MS44: 0 | MT44: 0 | MU44: 0 | MV44: 0 | MW44: 0 | MX44: 0 | MY44: 0 | MZ44: 0 | NA44: 0 | NB44: 0 | NC44: 0 | ND44: 0 | NE44: 0 | NF44: 0 | NG44: 0 | NH44: 0 | NI44: 0 | NJ44: 0 | NK44: 0 | NL44: 0 | NM44: 0 | NN44: 0 | NO44: 0 | NP44: 0 | NQ44: 0 | NR44: 0 | NS44: 0 | NT44: 0 | NU44: 0 | NV44: 0 | NW44: 0 | NX44: 0 | NY44: 0 | NZ44: 0 | OA44: 0 | OB44: 0 | OC44: 0 | OD44: 0 | OE44: 0 | OF44: 0 | OG44: 0 | OH44: 0 | OI44: 0 | OJ44: 0 | OK44: 0 | OL44: 0 | OM44: 0 | ON44: 0 | OO44: 0 | OP44: 0 | OQ44: 0 | OR44: 0 | OS44: 0 | OT44: 0 | OU44: 0 | OV44: 0 | OW44: 0 | OX44: 0 | OY44: 0 | OZ44: 0 | PA44: 0 | PB44: 0 | PC44: 0 | PD44: 0 | PE44: 0 | PF44: 0 | PG44: 0 | PH44: 0 | PI44: 0 | PJ44: 0 | PK44: 0 | PL44: 0 | PM44: 0 | PN44: 0 | PO44: 0 | PP44: 0 | PQ44: 0 | PR44: 0 | PS44: 0 | PT44: 0 | PU44: 0 | PV44: 0 | PW44: 0 | PX44: 0 | PY44: 1 | PZ44: 0 | QA44: 0 | QB44: 0 | QC44: 0 | QD44: 0 | QE44: 0 | QF44: 0 | QG44: 0 | QH44: 0 | QI44: 0 | QJ44: 0 | QK44: 0 | QL44: 0 | QM44: 0 | QN44: 0 | QO44: 0 | QP44: 0 | QQ44: 0 | QR44: 0 | QS44: 0 | QT44: 0 | QU44: 0 | QV44: 0 | QW44: 0 | QX44: 0 | QY44: 0 | QZ44: 0 | RA44: 0 | RB44: 0 | RC44: 0 | RD44: 0 | RE44: 0 | RF44: 0 | RG44: 0 | RH44: 0 | RI44: 0 | RJ44: 0 | RK44: 0 | RL44: 0 | RM44: 0 | RN44: 0 | RO44: 0 | RP44: 0 | RQ44: 1 | RR44: 0 | RS44: 0 | RT44: 0 | RU44: 0 | RV44: 0 | RW44: 0 | RX44: 0 | RY44: 0 | RZ44: 0 | SA44: 0 | SB44: 0 | SC44: 0 | SD44: 0 | SE44: 0 | SF44: 0 | SG44: 0 | SH44: 0 | SI44: 0 | SJ44: 0 | SK44: 0 | SL44: 0 | SM44: 0 | SN44: 0 | SO44: 0 | SP44: 0 | SQ44: 0 | SR44: 0 | SS44: 0 | ST44: 0 | SU44: 0 | SV44: 0 | SW44: 0 | SX44: 0 | SY44: 0 | SZ44: 0 | TA44: 0 | TB44: 0 | TC44: 0 | TD44: 0 | TE44: 0 | TF44: 0 | TG44: 0 | TH44: 0 | TI44: 0 | TJ44: 0 | TK44: 0 | TL44: 0 | TM44: 0 | TN44: 0 | TO44: 0 | TP44: 0 | TQ44: 0 | TR44: 0 | TS44: 0 | TT44: 0 | TU44: 0 | TV44: 0 | TW44: 0 | TX44: 0 | TY44: 0 | TZ44: 0 | UA44: 0 | UB44: 0 | UC44: 0 | UD44: 0 | UE44: 0 | UF44: 0 | UG44: 0 | UH44: 0 | UI44: 25 | UJ44: 0 | UK44: 0 | UL44: 0 | UM44: 0 | UN44: 0 | UO44: 0
A45: =HYPERLINK("https://meshb.nlm.nih.gov/record/ui?ui=" & B45,C45) -> Fentanyl | B45: D005283 | C45: Fentanyl | D45: 990-73-8 | E45: =HYPERLINK("https://comptox.epa.gov/dashboard/dsstoxdb/results?utf8=%E2%9C%93&search=" & F45,F45) -> DTXSID80243933 | F45: DTXSID80243933 | G45: =SUM(H45:UO45) -> 236 | H45: 22 | I45: 0 | J45: 0 | K45: 3 | L45: 1 | M45: 1 | N45: 0 | O45: 11 | P45: 3 | Q45: 3 | R45: 0 | S45: 0 | T45: 18 | U45: 0 | V45: 0 | W45: 2 | X45: 10 | Y45: 1 | Z45: 1 | AA45: 0 | AB45: 1 | AC45: 4 | AD45: 1 | AE45: 2 | AF45: 21 | AG45: 6 | AH45: 0 | AI45: 0 | AJ45: 0 | AK45: 0 | AL45: 0 | AM45: 0 | AN45: 0 | AO45: 0 | AP45: 0 | AQ45: 0 | AR45: 0 | AS45: 0 | AT45: 1 | AU45: 0 | AV45: 1 | AW45: 3 | AX45: 0 | AY45: 0 | AZ45: 0 | BA45: 0 | BB45: 0 | BC45: 6 | BD45: 0 | BE45: 0 | BF45: 0 | BG45: 0 | BH45: 0 | BI45: 2 | BJ45: 51 | BK45: 0 | BL45: 0 | BM45: 0 | BN45: 0 | BO45: 1 | BP45: 0 | BQ45: 2 | BR45: 1 | BS45: 0 | BT45: 6 | BU45: 1 | BV45: 0 | BW45: 1 | BX45: 1 | BY45: 1 | BZ45: 1 | CA45: 1 | CB45: 0 | CC45: 0 | CD45: 2 | CE45: 2 | CF45: 0 | CG45: 1 | CH45: 0 | CI45: 0 | CJ45: 0 | CK45: 0 | CL45: 0 | CM45: 0 | CN45: 0 | CO45: 0 | CP45: 2 | CQ45: 0 | CR45: 0 | CS45: 0 | CT45: 2 | CU45: 0 | CV45: 0 | CW45: 0 | CX45: 0 | CY45: 0 | CZ45: 0 | DA45: 0 | DB45: 0 | DC45: 0 | DD45: 0 | DE45: 0 | DF45: 0 | DG45: 0 | DH45: 0 | DI45: 0 | DJ45: 0 | DK45: 0 | DL45: 0 | DM45: 1 | DN45: 1 | DO45: 0 | DP45: 0 | DQ45: 1 | DR45: 0 | DS45: 0 | DT45: 0 | DU45: 1 | DV45: 0 | DW45: 1 | DX45: 1 | DY45: 0 | DZ45: 0 | EA45: 0 | EB45: 0 | EC45: 0 | ED45: 0 | EE45: 3 | EF45: 1 | EG45: 3 | EH45: 0 | EI45: 0 | EJ45: 0 | EK45: 0 | EL45: 1 | EM45: 0 | EN45: 0 | EO45: 0 | EP45: 2 | EQ45: 0 | ER45: 0 | ES45: 0 | ET45: 0 | EU45: 0 | EV45: 0 | EW45: 0 | EX45: 2 | EY45: 0 | EZ45: 0 | FA45: 1 | FB45: 0 | FC45: 1 | FD45: 0 | FE45: 0 | FF45: 0 | FG45: 0 | FH45: 0 | FI45: 0 | FJ45: 0 | FK45: 1 | FL45: 0 | FM45: 0 | FN45: 0 | FO45: 0 | FP45: 0 | FQ45: 0 | FR45: 0 | FS45: 1 | FT45: 0 | FU45: 0 | FV45: 0 | FW45: 1 | FX45: 0 | FY45: 0 | FZ45: 0 | GA45: 3 | GB45: 1 | GC45: 0 | GD45: 0 | GE45: 0 | GF45: 0 | GG45: 0 | GH45: 0 | GI45: 0 | GJ45: 0 | GK45: 0 | GL45: 0 | GM45: 0 | GN45: 0 | GO45: 0 | GP45: 0 | GQ45: 0 | GR45: 0 | GS45: 0 | GT45: 0 | GU45: 0 | GV45: 0 | GW45: 0 | GX45: 0 | GY45: 0 | GZ45: 0 | HA45: 0 | HB45: 0 | HC45: 0 | HD45: 0 | HE45: 0 | HF45: 0 | HG45: 0 | HH45: 0 | HI45: 0 | HJ45: 0 | HK45: 0 | HL45: 0 | HM45: 0 | HN45: 0 | HO45: 0 | HP45: 0 | HQ45: 0 | HR45: 0 | HS45: 0 | HT45: 0 | HU45: 0 | HV45: 0 | HW45: 0 | HX45: 0 | HY45: 0 | HZ45: 0 | IA45: 0 | IB45: 0 | IC45: 0 | ID45: 0 | IE45: 0 | IF45: 0 | IG45: 0 | IH45: 1 | II45: 0 | IJ45: 0 | IK45: 0 | IL45: 0 | IM45: 0 | IN45: 0 | IO45: 0 | IP45: 0 | IQ45: 0 | IR45: 0 | IS45: 0 | IT45: 0 | IU45: 0 | IV45: 0 | IW45: 0 | IX45: 1 | IY45: 1 | IZ45: 0 | JA45: 0 | JB45: 0 | JC45: 0 | JD45: 0 | JE45: 0 | JF45: 0 | JG45: 0 | JH45: 0 | JI45: 0 | JJ45: 0 | JK45: 0 | JL45: 0 | JM45: 0 | JN45: 0 | JO45: 0 | JP45: 2 | JQ45: 0 | JR45: 0 | JS45: 0 | JT45: 1 | JU45: 0 | JV45: 0 | JW45: 0 | JX45: 0 | JY45: 0 | JZ45: 0 | KA45: 0 | KB45: 0 | KC45: 0 | KD45: 0 | KE45: 0 | KF45: 0 | KG45: 0 | KH45: 0 | KI45: 0 | KJ45: 0 | KK45: 0 | KL45: 0 | KM45: 0 | KN45: 0 | KO45: 0 | KP45: 0 | KQ45: 0 | KR45: 0 | KS45: 0 | KT45: 0 | KU45: 0 | KV45: 0 | KW45: 0 | KX45: 0 | KY45: 0 | KZ45: 0 | LA45: 1 | LB45: 0 | LC45: 0 | LD45: 0 | LE45: 0 | LF45: 0 | LG45: 0 | LH45: 0 | LI45: 0 | LJ45: 0 | LK45: 0 | LL45: 0 | LM45: 0 | LN45: 0 | LO45: 0 | LP45: 0 | LQ45: 0 | LR45: 0 | LS45: 0 | LT45: 0 | LU45: 0 | LV45: 0 | LW45: 0 | LX45: 0 | LY45: 0 | LZ45: 0 | MA45: 0 | MB45: 0 | MC45: 0 | MD45: 0 | ME45: 0 | MF45: 0 | MG45: 0 | MH45: 0 | MI45: 0 | MJ45: 0 | MK45: 0 | ML45: 0 | MM45: 0 | MN45: 0 | MO45: 0 | MP45: 0 | MQ45: 0 | MR45: 0 | MS45: 0 | MT45: 0 | MU45: 0 | MV45: 0 | MW45: 0 | MX45: 0 | MY45: 0 | MZ45: 0 | NA45: 0 | NB45: 0 | NC45: 0 | ND45: 0 | NE45: 0 | NF45: 0 | NG45: 0 | NH45: 0 | NI45: 0 | NJ45: 0 | NK45: 0 | NL45: 0 | NM45: 0 | NN45: 0 | NO45: 0 | NP45: 0 | NQ45: 0 | NR45: 0 | NS45: 0 | NT45: 0 | NU45: 0 | NV45: 0 | NW45: 0 | NX45: 0 | NY45: 0 | NZ45: 0 | OA45: 0 | OB45: 0 | OC45: 0 | OD45: 0 | OE45: 0 | OF45: 0 | OG45: 0 | OH45: 0 | OI45: 0 | OJ45: 0 | OK45: 0 | OL45: 0 | OM45: 0 | ON45: 0 | OO45: 0 | OP45: 0 | OQ45: 0 | OR45: 0 | OS45: 0 | OT45: 0 | OU45: 0 | OV45: 0 | OW45: 0 | OX45: 0 | OY45: 0 | OZ45: 0 | PA45: 0 | PB45: 0 | PC45: 0 | PD45: 0 | PE45: 0 | PF45: 0 | PG45: 0 | PH45: 0 | PI45: 0 | PJ45: 0 | PK45: 0 | PL45: 0 | PM45: 0 | PN45: 0 | PO45: 0 | PP45: 0 | PQ45: 0 | PR45: 0 | PS45: 0 | PT45: 0 | PU45: 0 | PV45: 0 | PW45: 0 | PX45: 0 | PY45: 0 | PZ45: 0 | QA45: 0 | QB45: 0 | QC45: 0 | QD45: 0 | QE45: 0 | QF45: 0 | QG45: 0 | QH45: 0 | QI45: 0 | QJ45: 0 | QK45: 1 | QL45: 0 | QM45: 0 | QN45: 0 | QO45: 0 | QP45: 0 | QQ45: 0 | QR45: 0 | QS45: 0 | QT45: 0 | QU45: 0 | QV45: 0 | QW45: 0 | QX45: 0 | QY45: 0 | QZ45: 0 | RA45: 0 | RB45: 0 | RC45: 0 | RD45: 0 | RE45: 0 | RF45: 0 | RG45: 0 | RH45: 0 | RI45: 0 | RJ45: 0 | RK45: 0 | RL45: 0 | RM45: 0 | RN45: 0 | RO45: 0 | RP45: 0 | RQ45: 0 | RR45: 0 | RS45: 0 | RT45: 0 | RU45: 0 | RV45: 0 | RW45: 0 | RX45: 0 | RY45: 0 | RZ45: 0 | SA45: 0 | SB45: 0 | SC45: 0 | SD45: 0 | SE45: 0 | SF45: 0 | SG45: 0 | SH45: 0 | SI45: 0 | SJ45: 0 | SK45: 0 | SL45: 0 | SM45: 0 | SN45: 0 | SO45: 0 | SP45: 0 | SQ45: 0 | SR45: 0 | SS45: 0 | ST45: 0 | SU45: 0 | SV45: 0 | SW45: 0 | SX45: 0 | SY45: 0 | SZ45: 0 | TA45: 0 | TB45: 0 | TC45: 0 | TD45: 0 | TE45: 0 | TF45: 0 | TG45: 0 | TH45: 0 | TI45: 0 | TJ45: 0 | TK45: 0 | TL45: 0 | TM45: 0 | TN45: 0 | TO45: 0 | TP45: 0 | TQ45: 0 | TR45: 0 | TS45: 0 | TT45: 0 | TU45: 0 | TV45: 0 | TW45: 0 | TX45: 0 | TY45: 0 | TZ45: 0 | UA45: 0 | UB45: 0 | UC45: 0 | UD45: 0 | UE45: 1 | UF45: 0 | UG45: 0 | UH45: 0 | UI45: 0 | UJ45: 0 | UK45: 0 | UL45: 0 | UM45: 0 | UN45: 0 | UO45: 0
A46: =HYPERLINK("https://meshb.nlm.nih.gov/record/ui?ui=" & B46,C46) -> Lithium Carbonate | B46: D016651 | C46: Lithium Carbonate | D46: 554-13-2 | E46: =HYPERLINK("https://comptox.epa.gov/dashboard/dsstoxdb/results?utf8=%E2%9C%93&search=" & F46,F46) -> DTXSID1023784 | F46: DTXSID1023784 | G46: =SUM(H46:UO46) -> 230 | H46: 5 | I46: 13 | J46: 6 | K46: 10 | L46: 2 | M46: 14 | N46: 7 | O46: 5 | P46: 1 | Q46: 13 | R46: 4 | S46: 4 | T46: 8 | U46: 0 | V46: 0 | W46: 1 | X46: 6 | Y46: 7 | Z46: 1 | AA46: 1 | AB46: 0 | AC46: 7 | AD46: 1 | AE46: 1 | AF46: 0 | AG46: 1 | AH46: 2 | AI46: 0 | AJ46: 0 | AK46: 0 | AL46: 0 | AM46: 1 | AN46: 1 | AO46: 2 | AP46: 0 | AQ46: 0 | AR46: 1 | AS46: 3 | AT46: 0 | AU46: 0 | AV46: 0 | AW46: 1 | AX46: 4 | AY46: 1 | AZ46: 1 | BA46: 0 | BB46: 0 | BC46: 1 | BD46: 0 | BE46: 0 | BF46: 2 | BG46: 0 | BH46: 0 | BI46: 0 | BJ46: 1 | BK46: 1 | BL46: 8 | BM46: 0 | BN46: 1 | BO46: 0 | BP46: 3 | BQ46: 7 | BR46: 1 | BS46: 5 | BT46: 0 | BU46: 0 | BV46: 0 | BW46: 0 | BX46: 1 | BY46: 0 | BZ46: 1 | CA46: 0 | CB46: 0 | CC46: 0 | CD46: 8 | CE46: 1 | CF46: 0 | CG46: 0 | CH46: 6 | CI46: 0 | CJ46: 0 | CK46: 0 | CL46: 0 | CM46: 5 | CN46: 0 | CO46: 0 | CP46: 0 | CQ46: 0 | CR46: 0 | CS46: 1 | CT46: 0 | CU46: 0 | CV46: 0 | CW46: 3 | CX46: 1 | CY46: 0 | CZ46: 1 | DA46: 6 | DB46: 0 | DC46: 1 | DD46: 0 | DE46: 0 | DF46: 0 | DG46: 2 | DH46: 0 | DI46: 0 | DJ46: 1 | DK46: 0 | DL46: 0 | DM46: 0 | DN46: 0 | DO46: 0 | DP46: 0 | DQ46: 2 | DR46: 0 | DS46: 0 | DT46: 0 | DU46: 4 | DV46: 0 | DW46: 0 | DX46: 0 | DY46: 0 | DZ46: 0 | EA46: 0 | EB46: 0 | EC46: 0 | ED46: 0 | EE46: 0 | EF46: 0 | EG46: 0 | EH46: 0 | EI46: 0 | EJ46: 1 | EK46: 0 | EL46: 0 | EM46: 0 | EN46: 0 | EO46: 1 | EP46: 3 | EQ46: 0 | ER46: 0 | ES46: 0 | ET46: 0 | EU46: 0 | EV46: 0 | EW46: 0 | EX46: 0 | EY46: 0 | EZ46: 0 | FA46: 0 | FB46: 0 | FC46: 0 | FD46: 0 | FE46: 0 | FF46: 0 | FG46: 0 | FH46: 0 | FI46: 0 | FJ46: 1 | FK46: 0 | FL46: 0 | FM46: 0 | FN46: 0 | FO46: 0 | FP46: 0 | FQ46: 0 | FR46: 0 | FS46: 0 | FT46: 0 | FU46: 0 | FV46: 0 | FW46: 0 | FX46: 0 | FY46: 0 | FZ46: 0 | GA46: 0 | GB46: 0 | GC46: 0 | GD46: 0 | GE46: 0 | GF46: 0 | GG46: 0 | GH46: 0 | GI46: 0 | GJ46: 0 | GK46: 0 | GL46: 0 | GM46: 1 | GN46: 0 | GO46: 0 | GP46: 0 | GQ46: 0 | GR46: 0 | GS46: 0 | GT46: 0 | GU46: 3 | GV46: 0 | GW46: 0 | GX46: 0 | GY46: 0 | GZ46: 0 | HA46: 0 | HB46: 0 | HC46: 0 | HD46: 0 | HE46: 0 | HF46: 0 | HG46: 0 | HH46: 0 | HI46: 0 | HJ46: 0 | HK46: 0 | HL46: 0 | HM46: 0 | HN46: 0 | HO46: 2 | HP46: 0 | HQ46: 0 | HR46: 0 | HS46: 2 | HT46: 0 | HU46: 0 | HV46: 0 | HW46: 0 | HX46: 0 | HY46: 0 | HZ46: 1 | IA46: 0 | IB46: 0 | IC46: 0 | ID46: 0 | IE46: 0 | IF46: 0 | IG46: 0 | IH46: 0 | II46: 0 | IJ46: 0 | IK46: 0 | IL46: 0 | IM46: 0 | IN46: 0 | IO46: 0 | IP46: 0 | IQ46: 0 | IR46: 0 | IS46: 0 | IT46: 0 | IU46: 0 | IV46: 0 | IW46: 0 | IX46: 0 | IY46: 0 | IZ46: 0 | JA46: 0 | JB46: 0 | JC46: 0 | JD46: 0 | JE46: 0 | JF46: 0 | JG46: 0 | JH46: 0 | JI46: 0 | JJ46: 0 | JK46: 0 | JL46: 0 | JM46: 0 | JN46: 0 | JO46: 0 | JP46: 0 | JQ46: 0 | JR46: 0 | JS46: 0 | JT46: 0 | JU46: 0 | JV46: 0 | JW46: 0 | JX46: 0 | JY46: 0 | JZ46: 0 | KA46: 0 | KB46: 0 | KC46: 0 | KD46: 0 | KE46: 0 | KF46: 0 | KG46: 0 | KH46: 0 | KI46: 0 | KJ46: 0 | KK46: 0 | KL46: 0 | KM46: 0 | KN46: 0 | KO46: 0 | KP46: 0 | KQ46: 0 | KR46: 0 | KS46: 0 | KT46: 0 | KU46: 0 | KV46: 0 | KW46: 0 | KX46: 0 | KY46: 0 | KZ46: 0 | LA46: 0 | LB46: 0 | LC46: 0 | LD46: 0 | LE46: 0 | LF46: 0 | LG46: 0 | LH46: 0 | LI46: 0 | LJ46: 0 | LK46: 0 | LL46: 0 | LM46: 0 | LN46: 0 | LO46: 0 | LP46: 0 | LQ46: 0 | LR46: 0 | LS46: 0 | LT46: 0 | LU46: 0 | LV46: 0 | LW46: 0 | LX46: 0 | LY46: 0 | LZ46: 0 | MA46: 0 | MB46: 0 | MC46: 0 | MD46: 0 | ME46: 0 | MF46: 0 | MG46: 0 | MH46: 0 | MI46: 0 | MJ46: 0 | MK46: 0 | ML46: 0 | MM46: 0 | MN46: 0 | MO46: 0 | MP46: 0 | MQ46: 0 | MR46: 0 | MS46: 0 | MT46: 0 | MU46: 0 | MV46: 0 | MW46: 0 | MX46: 1 | MY46: 0 | MZ46: 0 | NA46: 0 | NB46: 0 | NC46: 0 | ND46: 0 | NE46: 0 | NF46: 0 | NG46: 0 | NH46: 0 | NI46: 0 | NJ46: 0 | NK46: 0 | NL46: 0 | NM46: 0 | NN46: 0 | NO46: 0 | NP46: 0 | NQ46: 0 | NR46: 0 | NS46: 0 | NT46: 0 | NU46: 0 | NV46: 0 | NW46: 0 | NX46: 0 | NY46: 0 | NZ46: 0 | OA46: 0 | OB46: 0 | OC46: 0 | OD46: 0 | OE46: 0 | OF46: 0 | OG46: 0 | OH46: 0 | OI46: 0 | OJ46: 0 | OK46: 0 | OL46: 0 | OM46: 0 | ON46: 0 | OO46: 0 | OP46: 0 | OQ46: 0 | OR46: 0 | OS46: 0 | OT46: 0 | OU46: 0 | OV46: 0 | OW46: 0 | OX46: 0 | OY46: 0 | OZ46: 0 | PA46: 0 | PB46: 0 | PC46: 0 | PD46: 0 | PE46: 0 | PF46: 0 | PG46: 0 | PH46: 0 | PI46: 0 | PJ46: 0 | PK46: 0 | PL46: 0 | PM46: 0 | PN46: 0 | PO46: 0 | PP46: 0 | PQ46: 0 | PR46: 0 | PS46: 0 | PT46: 0 | PU46: 0 | PV46: 0 | PW46: 0 | PX46: 0 | PY46: 0 | PZ46: 0 | QA46: 0 | QB46: 0 | QC46: 0 | QD46: 0 | QE46: 0 | QF46: 0 | QG46: 0 | QH46: 0 | QI46: 0 | QJ46: 0 | QK46: 0 | QL46: 0 | QM46: 0 | QN46: 0 | QO46: 0 | QP46: 0 | QQ46: 0 | QR46: 0 | QS46: 0 | QT46: 0 | QU46: 0 | QV46: 0 | QW46: 0 | QX46: 0 | QY46: 0 | QZ46: 0 | RA46: 0 | RB46: 0 | RC46: 0 | RD46: 0 | RE46: 0 | RF46: 0 | RG46: 0 | RH46: 0 | RI46: 0 | RJ46: 0 | RK46: 0 | RL46: 0 | RM46: 0 | RN46: 0 | RO46: 0 | RP46: 0 | RQ46: 0 | RR46: 0 | RS46: 0 | RT46: 0 | RU46: 0 | RV46: 0 | RW46: 0 | RX46: 0 | RY46: 0 | RZ46: 0 | SA46: 0 | SB46: 0 | SC46: 0 | SD46: 0 | SE46: 0 | SF46: 0 | SG46: 0 | SH46: 0 | SI46: 0 | SJ46: 0 | SK46: 0 | SL46: 0 | SM46: 0 | SN46: 0 | SO46: 0 | SP46: 0 | SQ46: 0 | SR46: 0 | SS46: 0 | ST46: 0 | SU46: 0 | SV46: 0 | SW46: 0 | SX46: 0 | SY46: 0 | SZ46: 0 | TA46: 0 | TB46: 0 | TC46: 0 | TD46: 0 | TE46: 0 | TF46: 0 | TG46: 0 | TH46: 0 | TI46: 0 | TJ46: 0 | TK46: 0 | TL46: 0 | TM46: 0 | TN46: 0 | TO46: 0 | TP46: 0 | TQ46: 0 | TR46: 0 | TS46: 1 | TT46: 0 | TU46: 0 | TV46: 0 | TW46: 0 | TX46: 0 | TY46: 0 | TZ46: 1 | UA46: 0 | UB46: 0 | UC46: 0 | UD46: 0 | UE46: 0 | UF46: 0 | UG46: 0 | UH46: 0 | UI46: 2 | UJ46: 0 | UK46: 0 | UL46: 0 | UM46: 0 | UN46: 1 | UO46: 0
A47: =HYPERLINK("https://meshb.nlm.nih.gov/record/ui?ui=" & B47,C47) -> Metoclopramide | B47: D008787 | C47: Metoclopramide | D47: 2576-84-3 | E47: =HYPERLINK("https://comptox.epa.gov/dashboard/dsstoxdb/results?utf8=%E2%9C%93&search=" & F47,F47) -> DTXSID20180434 | F47: DTXSID20180434 | G47: =SUM(H47:UO47) -> 229 | H47: 3 | I47: 7 | J47: 0 | K47: 1 | L47: 5 | M47: 47 | N47: 37 | O47: 0 | P47: 0 | Q47: 5 | R47: 0 | S47: 1 | T47: 1 | U47: 1 | V47: 0 | W47: 59 | X47: 7 | Y47: 0 | Z47: 0 | AA47: 0 | AB47: 0 | AC47: 0 | AD47: 0 | AE47: 0 | AF47: 0 | AG47: 0 | AH47: 1 | AI47: 1 | AJ47: 0 | AK47: 0 | AL47: 0 | AM47: 0 | AN47: 5 | AO47: 1 | AP47: 0 | AQ47: 0 | AR47: 0 | AS47: 0 | AT47: 0 | AU47: 0 | AV47: 0 | AW47: 0 | AX47: 0 | AY47: 0 | AZ47: 0 | BA47: 8 | BB47: 0 | BC47: 4 | BD47: 0 | BE47: 2 | BF47: 0 | BG47: 0 | BH47: 0 | BI47: 0 | BJ47: 2 | BK47: 0 | BL47: 0 | BM47: 0 | BN47: 0 | BO47: 1 | BP47: 0 | BQ47: 0 | BR47: 0 | BS47: 2 | BT47: 0 | BU47: 0 | BV47: 0 | BW47: 0 | BX47: 0 | BY47: 0 | BZ47: 0 | CA47: 0 | CB47: 0 | CC47: 0 | CD47: 0 | CE47: 0 | CF47: 0 | CG47: 0 | CH47: 0 | CI47: 0 | CJ47: 0 | CK47: 0 | CL47: 0 | CM47: 0 | CN47: 0 | CO47: 0 | CP47: 0 | CQ47: 0 | CR47: 0 | CS47: 0 | CT47: 0 | CU47: 0 | CV47: 0 | CW47: 2 | CX47: 1 | CY47: 0 | CZ47: 0 | DA47: 2 | DB47: 0 | DC47: 0 | DD47: 0 | DE47: 0 | DF47: 0 | DG47: 0 | DH47: 0 | DI47: 0 | DJ47: 0 | DK47: 0 | DL47: 0 | DM47: 0 | DN47: 0 | DO47: 0 | DP47: 0 | DQ47: 0 | DR47: 0 | DS47: 0 | DT47: 0 | DU47: 0 | DV47: 0 | DW47: 0 | DX47: 2 | DY47: 0 | DZ47: 0 | EA47: 0 | EB47: 1 | EC47: 0 | ED47: 0 | EE47: 0 | EF47: 0 | EG47: 0 | EH47: 0 | EI47: 1 | EJ47: 0 | EK47: 1 | EL47: 0 | EM47: 0 | EN47: 0 | EO47: 1 | EP47: 0 | EQ47: 0 | ER47: 0 | ES47: 0 | ET47: 4 | EU47: 0 | EV47: 1 | EW47: 0 | EX47: 3 | EY47: 0 | EZ47: 0 | FA47: 0 | FB47: 2 | FC47: 0 | FD47: 0 | FE47: 0 | FF47: 0 | FG47: 0 | FH47: 0 | FI47: 0 | FJ47: 0 | FK47: 0 | FL47: 0 | FM47: 0 | FN47: 0 | FO47: 0 | FP47: 0 | FQ47: 0 | FR47: 0 | FS47: 0 | FT47: 0 | FU47: 0 | FV47: 0 | FW47: 0 | FX47: 0 | FY47: 0 | FZ47: 0 | GA47: 0 | GB47: 0 | GC47: 1 | GD47: 0 | GE47: 0 | GF47: 0 | GG47: 0 | GH47: 0 | GI47: 0 | GJ47: 0 | GK47: 0 | GL47: 0 | GM47: 0 | GN47: 0 | GO47: 0 | GP47: 0 | GQ47: 0 | GR47: 0 | GS47: 0 | GT47: 0 | GU47: 0 | GV47: 0 | GW47: 0 | GX47: 0 | GY47: 0 | GZ47: 0 | HA47: 0 | HB47: 0 | HC47: 0 | HD47: 0 | HE47: 0 | HF47: 0 | HG47: 0 | HH47: 0 | HI47: 0 | HJ47: 0 | HK47: 0 | HL47: 0 | HM47: 0 | HN47: 0 | HO47: 0 | HP47: 0 | HQ47: 0 | HR47: 0 | HS47: 0 | HT47: 0 | HU47: 0 | HV47: 0 | HW47: 0 | HX47: 0 | HY47: 0 | HZ47: 0 | IA47: 0 | IB47: 0 | IC47: 0 | ID47: 0 | IE47: 0 | IF47: 0 | IG47: 0 | IH47: 0 | II47: 0 | IJ47: 0 | IK47: 0 | IL47: 0 | IM47: 0 | IN47: 0 | IO47: 0 | IP47: 0 | IQ47: 0 | IR47: 0 | IS47: 0 | IT47: 0 | IU47: 0 | IV47: 0 | IW47: 0 | IX47: 0 | IY47: 0 | IZ47: 0 | JA47: 0 | JB47: 0 | JC47: 0 | JD47: 0 | JE47: 0 | JF47: 0 | JG47: 0 | JH47: 0 | JI47: 0 | JJ47: 0 | JK47: 0 | JL47: 0 | JM47: 0 | JN47: 0 | JO47: 0 | JP47: 0 | JQ47: 0 | JR47: 0 | JS47: 0 | JT47: 0 | JU47: 0 | JV47: 0 | JW47: 0 | JX47: 0 | JY47: 0 | JZ47: 0 | KA47: 0 | KB47: 0 | KC47: 0 | KD47: 0 | KE47: 0 | KF47: 0 | KG47: 0 | KH47: 0 | KI47: 0 | KJ47: 0 | KK47: 0 | KL47: 0 | KM47: 0 | KN47: 0 | KO47: 0 | KP47: 0 | KQ47: 0 | KR47: 3 | KS47: 0 | KT47: 0 | KU47: 0 | KV47: 0 | KW47: 0 | KX47: 0 | KY47: 0 | KZ47: 0 | LA47: 0 | LB47: 0 | LC47: 0 | LD47: 0 | LE47: 0 | LF47: 0 | LG47: 0 | LH47: 0 | LI47: 0 | LJ47: 0 | LK47: 0 | LL47: 0 | LM47: 0 | LN47: 0 | LO47: 0 | LP47: 0 | LQ47: 0 | LR47: 0 | LS47: 0 | LT47: 1 | LU47: 0 | LV47: 0 | LW47: 0 | LX47: 0 | LY47: 1 | LZ47: 0 | MA47: 0 | MB47: 0 | MC47: 0 | MD47: 0 | ME47: 0 | MF47: 0 | MG47: 0 | MH47: 0 | MI47: 0 | MJ47: 0 | MK47: 0 | ML47: 0 | MM47: 0 | MN47: 0 | MO47: 0 | MP47: 0 | MQ47: 0 | MR47: 0 | MS47: 0 | MT47: 0 | MU47: 0 | MV47: 0 | MW47: 0 | MX47: 0 | MY47: 0 | MZ47: 0 | NA47: 0 | NB47: 0 | NC47: 0 | ND47: 0 | NE47: 0 | NF47: 0 | NG47: 0 | NH47: 0 | NI47: 0 | NJ47: 0 | NK47: 0 | NL47: 0 | NM47: 0 | NN47: 0 | NO47: 0 | NP47: 0 | NQ47: 0 | NR47: 0 | NS47: 0 | NT47: 0 | NU47: 0 | NV47: 0 | NW47: 0 | NX47: 0 | NY47: 0 | NZ47: 0 | OA47: 0 | OB47: 0 | OC47: 0 | OD47: 0 | OE47: 0 | OF47: 0 | OG47: 0 | OH47: 0 | OI47: 0 | OJ47: 0 | OK47: 0 | OL47: 0 | OM47: 0 | ON47: 0 | OO47: 0 | OP47: 0 | OQ47: 0 | OR47: 0 | OS47: 0 | OT47: 0 | OU47: 0 | OV47: 0 | OW47: 0 | OX47: 0 | OY47: 0 | OZ47: 0 | PA47: 0 | PB47: 0 | PC47: 0 | PD47: 0 | PE47: 0 | PF47: 0 | PG47: 0 | PH47: 0 | PI47: 0 | PJ47: 0 | PK47: 0 | PL47: 0 | PM47: 0 | PN47: 0 | PO47: 0 | PP47: 0 | PQ47: 0 | PR47: 0 | PS47: 0 | PT47: 0 | PU47: 0 | PV47: 0 | PW47: 0 | PX47: 0 | PY47: 0 | PZ47: 0 | QA47: 0 | QB47: 0 | QC47: 0 | QD47: 0 | QE47: 0 | QF47: 0 | QG47: 0 | QH47: 0 | QI47: 0 | QJ47: 0 | QK47: 0 | QL47: 0 | QM47: 0 | QN47: 0 | QO47: 0 | QP47: 0 | QQ47: 0 | QR47: 0 | QS47: 0 | QT47: 0 | QU47: 0 | QV47: 0 | QW47: 0 | QX47: 0 | QY47: 0 | QZ47: 0 | RA47: 0 | RB47: 0 | RC47: 0 | RD47: 0 | RE47: 0 | RF47: 0 | RG47: 0 | RH47: 0 | RI47: 0 | RJ47: 0 | RK47: 0 | RL47: 0 | RM47: 0 | RN47: 0 | RO47: 0 | RP47: 0 | RQ47: 0 | RR47: 0 | RS47: 0 | RT47: 0 | RU47: 0 | RV47: 0 | RW47: 0 | RX47: 0 | RY47: 0 | RZ47: 0 | SA47: 0 | SB47: 0 | SC47: 0 | SD47: 0 | SE47: 0 | SF47: 0 | SG47: 0 | SH47: 0 | SI47: 0 | SJ47: 0 | SK47: 0 | SL47: 0 | SM47: 0 | SN47: 0 | SO47: 0 | SP47: 0 | SQ47: 0 | SR47: 0 | SS47: 0 | ST47: 0 | SU47: 0 | SV47: 0 | SW47: 0 | SX47: 0 | SY47: 0 | SZ47: 0 | TA47: 0 | TB47: 0 | TC47: 0 | TD47: 0 | TE47: 0 | TF47: 0 | TG47: 0 | TH47: 0 | TI47: 0 | TJ47: 0 | TK47: 0 | TL47: 0 | TM47: 0 | TN47: 0 | TO47: 0 | TP47: 0 | TQ47: 0 | TR47: 0 | TS47: 0 | TT47: 0 | TU47: 0 | TV47: 0 | TW47: 0 | TX47: 0 | TY47: 0 | TZ47: 0 | UA47: 0 | UB47: 0 | UC47: 0 | UD47: 0 | UE47: 0 | UF47: 0 | UG47: 0 | UH47: 0 | UI47: 0 | UJ47: 0 | UK47: 0 | UL47: 1 | UM47: 0 | UN47: 0 | UO47: 0
A48: =HYPERLINK("https://meshb.nlm.nih.gov/record/ui?ui=" & B48,C48) -> Diazepam | B48: D003975 | C48: Diazepam | D48: 439-14-5 | E48: =HYPERLINK("https://comptox.epa.gov/dashboard/dsstoxdb/results?utf8=%E2%9C%93&search=" & F48,F48) -> DTXSID4020406 | F48: DTXSID4020406 | G48: =SUM(H48:UO48) -> 228 | H48: 33 | I48: 3 | J48: 1 | K48: 1 | L48: 2 | M48: 1 | N48: 2 | O48: 19 | P48: 5 | Q48: 4 | R48: 8 | S48: 0 | T48: 3 | U48: 1 | V48: 1 | W48: 5 | X48: 2 | Y48: 9 | Z48: 1 | AA48: 0 | AB48: 0 | AC48: 0 | AD48: 2 | AE48: 4 | AF48: 0 | AG48: 3 | AH48: 3 | AI48: 0 | AJ48: 0 | AK48: 0 | AL48: 0 | AM48: 0 | AN48: 4 | AO48: 3 | AP48: 1 | AQ48: 0 | AR48: 3 | AS48: 1 | AT48: 1 | AU48: 0 | AV48: 0 | AW48: 25 | AX48: 0 | AY48: 0 | AZ48: 0 | BA48: 0 | BB48: 0 | BC48: 4 | BD48: 3 | BE48: 2 | BF48: 2 | BG48: 0 | BH48: 0 | BI48: 0 | BJ48: 1 | BK48: 0 | BL48: 1 | BM48: 0 | BN48: 0 | BO48: 0 | BP48: 4 | BQ48: 3 | BR48: 1 | BS48: 1 | BT48: 2 | BU48: 0 | BV48: 0 | BW48: 0 | BX48: 1 | BY48: 1 | BZ48: 2 | CA48: 0 | CB48: 0 | CC48: 0 | CD48: 0 | CE48: 0 | CF48: 0 | CG48: 0 | CH48: 0 | CI48: 0 | CJ48: 0 | CK48: 0 | CL48: 1 | CM48: 0 | CN48: 0 | CO48: 0 | CP48: 0 | CQ48: 1 | CR48: 0 | CS48: 1 | CT48: 0 | CU48: 6 | CV48: 0 | CW48: 5 | CX48: 0 | CY48: 0 | CZ48: 0 | DA48: 1 | DB48: 0 | DC48: 0 | DD48: 0 | DE48: 0 | DF48: 0 | DG48: 1 | DH48: 0 | DI48: 0 | DJ48: 0 | DK48: 0 | DL48: 0 | DM48: 0 | DN48: 0 | DO48: 0 | DP48: 0 | DQ48: 0 | DR48: 0 | DS48: 0 | DT48: 0 | DU48: 0 | DV48: 0 | DW48: 0 | DX48: 0 | DY48: 0 | DZ48: 3 | EA48: 0 | EB48: 0 | EC48: 0 | ED48: 0 | EE48: 0 | EF48: 1 | EG48: 0 | EH48: 0 | EI48: 0 | EJ48: 0 | EK48: 0 | EL48: 1 | EM48: 0 | EN48: 0 | EO48: 0 | EP48: 0 | EQ48: 0 | ER48: 0 | ES48: 0 | ET48: 0 | EU48: 0 | EV48: 0 | EW48: 0 | EX48: 2 | EY48: 0 | EZ48: 0 | FA48: 0 | FB48: 1 | FC48: 2 | FD48: 2 | FE48: 0 | FF48: 0 | FG48: 0 | FH48: 0 | FI48: 0 | FJ48: 0 | FK48: 0 | FL48: 1 | FM48: 0 | FN48: 0 | FO48: 0 | FP48: 0 | FQ48: 0 | FR48: 0 | FS48: 0 | FT48: 0 | FU48: 0 | FV48: 0 | FW48: 0 | FX48: 0 | FY48: 0 | FZ48: 1 | GA48: 0 | GB48: 0 | GC48: 0 | GD48: 0 | GE48: 0 | GF48: 0 | GG48: 3 | GH48: 0 | GI48: 0 | GJ48: 0 | GK48: 0 | GL48: 0 | GM48: 1 | GN48: 0 | GO48: 0 | GP48: 0 | GQ48: 0 | GR48: 0 | GS48: 1 | GT48: 0 | GU48: 0 | GV48: 0 | GW48: 0 | GX48: 0 | GY48: 0 | GZ48: 0 | HA48: 0 | HB48: 0 | HC48: 0 | HD48: 0 | HE48: 0 | HF48: 0 | HG48: 0 | HH48: 0 | HI48: 0 | HJ48: 0 | HK48: 0 | HL48: 0 | HM48: 0 | HN48: 1 | HO48: 0 | HP48: 0 | HQ48: 0 | HR48: 1 | HS48: 0 | HT48: 0 | HU48: 0 | HV48: 0 | HW48: 0 | HX48: 0 | HY48: 0 | HZ48: 0 | IA48: 0 | IB48: 0 | IC48: 0 | ID48: 0 | IE48: 0 | IF48: 0 | IG48: 0 | IH48: 0 | II48: 0 | IJ48: 0 | IK48: 0 | IL48: 1 | IM48: 0 | IN48: 0 | IO48: 0 | IP48: 0 | IQ48: 0 | IR48: 0 | IS48: 0 | IT48: 0 | IU48: 0 | IV48: 0 | IW48: 0 | IX48: 0 | IY48: 0 | IZ48: 0 | JA48: 0 | JB48: 4 | JC48: 0 | JD48: 0 | JE48: 0 | JF48: 0 | JG48: 0 | JH48: 0 | JI48: 0 | JJ48: 0 | JK48: 0 | JL48: 0 | JM48: 0 | JN48: 0 | JO48: 0 | JP48: 0 | JQ48: 1 | JR48: 0 | JS48: 0 | JT48: 0 | JU48: 0 | JV48: 0 | JW48: 0 | JX48: 0 | JY48: 0 | JZ48: 0 | KA48: 0 | KB48: 0 | KC48: 0 | KD48: 0 | KE48: 0 | KF48: 0 | KG48: 0 | KH48: 0 | KI48: 0 | KJ48: 0 | KK48: 0 | KL48: 0 | KM48: 0 | KN48: 0 | KO48: 0 | KP48: 0 | KQ48: 0 | KR48: 1 | KS48: 0 | KT48: 0 | KU48: 0 | KV48: 0 | KW48: 0 | KX48: 0 | KY48: 0 | KZ48: 0 | LA48: 0 | LB48: 0 | LC48: 0 | LD48: 0 | LE48: 0 | LF48: 0 | LG48: 0 | LH48: 0 | LI48: 0 | LJ48: 0 | LK48: 0 | LL48: 0 | LM48: 0 | LN48: 0 | LO48: 0 | LP48: 0 | LQ48: 0 | LR48: 0 | LS48: 0 | LT48: 0 | LU48: 0 | LV48: 0 | LW48: 0 | LX48: 0 | LY48: 0 | LZ48: 0 | MA48: 0 | MB48: 0 | MC48: 0 | MD48: 0 | ME48: 0 | MF48: 0 | MG48: 0 | MH48: 0 | MI48: 0 | MJ48: 0 | MK48: 0 | ML48: 0 | MM48: 0 | MN48: 0 | MO48: 0 | MP48: 0 | MQ48: 0 | MR48: 0 | MS48: 0 | MT48: 0 | MU48: 0 | MV48: 0 | MW48: 0 | MX48: 0 | MY48: 0 | MZ48: 0 | NA48: 0 | NB48: 0 | NC48: 0 | ND48: 0 | NE48: 0 | NF48: 0 | NG48: 0 | NH48: 0 | NI48: 0 | NJ48: 0 | NK48: 0 | NL48: 0 | NM48: 0 | NN48: 0 | NO48: 0 | NP48: 0 | NQ48: 0 | NR48: 0 | NS48: 0 | NT48: 0 | NU48: 0 | NV48: 0 | NW48: 0 | NX48: 0 | NY48: 0 | NZ48: 0 | OA48: 0 | OB48: 0 | OC48: 0 | OD48: 0 | OE48: 0 | OF48: 0 | OG48: 0 | OH48: 0 | OI48: 0 | OJ48: 0 | OK48: 0 | OL48: 0 | OM48: 0 | ON48: 0 | OO48: 0 | OP48: 0 | OQ48: 0 | OR48: 0 | OS48: 0 | OT48: 0 | OU48: 0 | OV48: 0 | OW48: 0 | OX48: 0 | OY48: 0 | OZ48: 0 | PA48: 0 | PB48: 0 | PC48: 0 | PD48: 0 | PE48: 0 | PF48: 0 | PG48: 0 | PH48: 0 | PI48: 0 | PJ48: 0 | PK48: 0 | PL48: 0 | PM48: 0 | PN48: 0 | PO48: 0 | PP48: 0 | PQ48: 0 | PR48: 0 | PS48: 0 | PT48: 0 | PU48: 0 | PV48: 0 | PW48: 0 | PX48: 0 | PY48: 0 | PZ48: 0 | QA48: 0 | QB48: 0 | QC48: 0 | QD48: 0 | QE48: 0 | QF48: 0 | QG48: 0 | QH48: 0 | QI48: 0 | QJ48: 0 | QK48: 0 | QL48: 0 | QM48: 0 | QN48: 0 | QO48: 0 | QP48: 0 | QQ48: 0 | QR48: 0 | QS48: 0 | QT48: 0 | QU48: 0 | QV48: 0 | QW48: 0 | QX48: 0 | QY48: 0 | QZ48: 0 | RA48: 0 | RB48: 0 | RC48: 0 | RD48: 0 | RE48: 0 | RF48: 0 | RG48: 0 | RH48: 0 | RI48: 0 | RJ48: 0 | RK48: 0 | RL48: 0 | RM48: 0 | RN48: 0 | RO48: 0 | RP48: 0 | RQ48: 0 | RR48: 0 | RS48: 0 | RT48: 0 | RU48: 0 | RV48: 0 | RW48: 0 | RX48: 0 | RY48: 0 | RZ48: 0 | SA48: 0 | SB48: 0 | SC48: 0 | SD48: 0 | SE48: 0 | SF48: 0 | SG48: 0 | SH48: 0 | SI48: 0 | SJ48: 0 | SK48: 0 | SL48: 0 | SM48: 0 | SN48: 0 | SO48: 0 | SP48: 0 | SQ48: 0 | SR48: 0 | SS48: 0 | ST48: 0 | SU48: 0 | SV48: 0 | SW48: 0 | SX48: 0 | SY48: 0 | SZ48: 0 | TA48: 0 | TB48: 0 | TC48: 0 | TD48: 0 | TE48: 0 | TF48: 0 | TG48: 0 | TH48: 0 | TI48: 0 | TJ48: 0 | TK48: 0 | TL48: 0 | TM48: 0 | TN48: 0 | TO48: 0 | TP48: 0 | TQ48: 0 | TR48: 0 | TS48: 0 | TT48: 0 | TU48: 0 | TV48: 0 | TW48: 0 | TX48: 0 | TY48: 0 | TZ48: 0 | UA48: 0 | UB48: 0 | UC48: 0 | UD48: 0 | UE48: 2 | UF48: 0 | UG48: 0 | UH48: 0 | UI48: 3 | UJ48: 0 | UK48: 0 | UL48: 0 | UM48: 0 | UN48: 0 | UO48: 0
A49: =HYPERLINK("https://meshb.nlm.nih.gov/record/ui?ui=" & B49,C49) -> Theophylline | B49: D013806 | C49: Theophylline | D49: 58-55-9 | E49: =HYPERLINK("https://comptox.epa.gov/dashboard/dsstoxdb/results?utf8=%E2%9C%93&search=" & F49,F49) -> DTXSID5021336 | F49: DTXSID5021336 | G49: =SUM(H49:UO49) -> 225 | H49: 113 | I49: 13 | J49: 0 | K49: 6 | L49: 1 | M49: 0 | N49: 0 | O49: 3 | P49: 0 | Q49: 13 | R49: 1 | S49: 4 | T49: 0 | U49: 1 | V49: 0 | W49: 0 | X49: 0 | Y49: 0 | Z49: 9 | AA49: 0 | AB49: 0 | AC49: 1 | AD49: 12 | AE49: 4 | AF49: 0 | AG49: 8 | AH49: 1 | AI49: 0 | AJ49: 0 | AK49: 0 | AL49: 1 | AM49: 0 | AN49: 1 | AO49: 0 | AP49: 0 | AQ49: 0 | AR49: 1 | AS49: 0 | AT49: 3 | AU49: 1 | AV49: 0 | AW49: 1 | AX49: 0 | AY49: 0 | AZ49: 0 | BA49: 0 | BB49: 0 | BC49: 0 | BD49: 4 | BE49: 1 | BF49: 0 | BG49: 0 | BH49: 0 | BI49: 0 | BJ49: 1 | BK49: 0 | BL49: 0 | BM49: 0 | BN49: 1 | BO49: 0 | BP49: 0 | BQ49: 0 | BR49: 0 | BS49: 2 | BT49: 0 | BU49: 0 | BV49: 0 | BW49: 0 | BX49: 0 | BY49: 1 | BZ49: 0 | CA49: 0 | CB49: 0 | CC49: 0 | CD49: 0 | CE49: 0 | CF49: 0 | CG49: 2 | CH49: 0 | CI49: 0 | CJ49: 0 | CK49: 0 | CL49: 0 | CM49: 0 | CN49: 0 | CO49: 0 | CP49: 0 | CQ49: 0 | CR49: 0 | CS49: 0 | CT49: 0 | CU49: 0 | CV49: 0 | CW49: 0 | CX49: 0 | CY49: 0 | CZ49: 0 | DA49: 0 | DB49: 0 | DC49: 0 | DD49: 0 | DE49: 0 | DF49: 0 | DG49: 0 | DH49: 0 | DI49: 0 | DJ49: 0 | DK49: 0 | DL49: 0 | DM49: 0 | DN49: 0 | DO49: 0 | DP49: 0 | DQ49: 1 | DR49: 0 | DS49: 0 | DT49: 0 | DU49: 0 | DV49: 0 | DW49: 1 | DX49: 0 | DY49: 0 | DZ49: 0 | EA49: 0 | EB49: 0 | EC49: 0 | ED49: 0 | EE49: 0 | EF49: 0 | EG49: 0 | EH49: 0 | EI49: 0 | EJ49: 0 | EK49: 0 | EL49: 0 | EM49: 1 | EN49: 0 | EO49: 0 | EP49: 0 | EQ49: 0 | ER49: 0 | ES49: 0 | ET49: 0 | EU49: 0 | EV49: 0 | EW49: 0 | EX49: 0 | EY49: 0 | EZ49: 0 | FA49: 1 | FB49: 0 | FC49: 0 | FD49: 0 | FE49: 0 | FF49: 0 | FG49: 0 | FH49: 0 | FI49: 0 | FJ49: 4 | FK49: 0 | FL49: 0 | FM49: 0 | FN49: 0 | FO49: 0 | FP49: 0 | FQ49: 0 | FR49: 0 | FS49: 0 | FT49: 0 | FU49: 0 | FV49: 0 | FW49: 1 | FX49: 0 | FY49: 0 | FZ49: 0 | GA49: 0 | GB49: 0 | GC49: 0 | GD49: 0 | GE49: 0 | GF49: 0 | GG49: 0 | GH49: 0 | GI49: 0 | GJ49: 0 | GK49: 0 | GL49: 0 | GM49: 0 | GN49: 0 | GO49: 0 | GP49: 0 | GQ49: 0 | GR49: 0 | GS49: 0 | GT49: 0 | GU49: 0 | GV49: 0 | GW49: 0 | GX49: 0 | GY49: 0 | GZ49: 0 | HA49: 0 | HB49: 0 | HC49: 0 | HD49: 0 | HE49: 0 | HF49: 0 | HG49: 0 | HH49: 0 | HI49: 0 | HJ49: 0 | HK49: 0 | HL49: 0 | HM49: 0 | HN49: 0 | HO49: 0 | HP49: 0 | HQ49: 0 | HR49: 0 | HS49: 0 | HT49: 0 | HU49: 0 | HV49: 0 | HW49: 0 | HX49: 0 | HY49: 0 | HZ49: 0 | IA49: 0 | IB49: 0 | IC49: 0 | ID49: 0 | IE49: 0 | IF49: 0 | IG49: 0 | IH49: 0 | II49: 0 | IJ49: 0 | IK49: 0 | IL49: 0 | IM49: 0 | IN49: 0 | IO49: 0 | IP49: 0 | IQ49: 0 | IR49: 0 | IS49: 0 | IT49: 2 | IU49: 0 | IV49: 0 | IW49: 0 | IX49: 0 | IY49: 0 | IZ49: 0 | JA49: 0 | JB49: 0 | JC49: 0 | JD49: 0 | JE49: 0 | JF49: 0 | JG49: 0 | JH49: 0 | JI49: 0 | JJ49: 0 | JK49: 0 | JL49: 0 | JM49: 0 | JN49: 0 | JO49: 0 | JP49: 0 | JQ49: 2 | JR49: 0 | JS49: 0 | JT49: 0 | JU49: 0 | JV49: 0 | JW49: 0 | JX49: 0 | JY49: 0 | JZ49: 0 | KA49: 0 | KB49: 0 | KC49: 0 | KD49: 0 | KE49: 0 | KF49: 0 | KG49: 0 | KH49: 0 | KI49: 0 | KJ49: 0 | KK49: 0 | KL49: 0 | KM49: 0 | KN49: 0 | KO49: 0 | KP49: 0 | KQ49: 0 | KR49: 0 | KS49: 0 | KT49: 0 | KU49: 0 | KV49: 0 | KW49: 0 | KX49: 0 | KY49: 0 | KZ49: 0 | LA49: 0 | LB49: 0 | LC49: 0 | LD49: 0 | LE49: 0 | LF49: 0 | LG49: 0 | LH49: 0 | LI49: 0 | LJ49: 0 | LK49: 0 | LL49: 0 | LM49: 0 | LN49: 0 | LO49: 0 | LP49: 0 | LQ49: 0 | LR49: 0 | LS49: 0 | LT49: 0 | LU49: 0 | LV49: 0 | LW49: 0 | LX49: 0 | LY49: 0 | LZ49: 0 | MA49: 0 | MB49: 0 | MC49: 0 | MD49: 0 | ME49: 0 | MF49: 0 | MG49: 0 | MH49: 0 | MI49: 0 | MJ49: 0 | MK49: 0 | ML49: 0 | MM49: 0 | MN49: 0 | MO49: 0 | MP49: 0 | MQ49: 0 | MR49: 0 | MS49: 0 | MT49: 0 | MU49: 0 | MV49: 0 | MW49: 0 | MX49: 0 | MY49: 0 | MZ49: 0 | NA49: 0 | NB49: 0 | NC49: 0 | ND49: 0 | NE49: 0 | NF49: 0 | NG49: 0 | NH49: 0 | NI49: 0 | NJ49: 0 | NK49: 0 | NL49: 0 | NM49: 0 | NN49: 0 | NO49: 0 | NP49: 0 | NQ49: 0 | NR49: 0 | NS49: 0 | NT49: 0 | NU49: 0 | NV49: 0 | NW49: 0 | NX49: 0 | NY49: 0 | NZ49: 0 | OA49: 0 | OB49: 0 | OC49: 0 | OD49: 0 | OE49: 0 | OF49: 0 | OG49: 0 | OH49: 0 | OI49: 0 | OJ49: 0 | OK49: 0 | OL49: 0 | OM49: 0 | ON49: 0 | OO49: 0 | OP49: 0 | OQ49: 0 | OR49: 0 | OS49: 0 | OT49: 0 | OU49: 0 | OV49: 0 | OW49: 0 | OX49: 0 | OY49: 0 | OZ49: 0 | PA49: 0 | PB49: 0 | PC49: 0 | PD49: 0 | PE49: 0 | PF49: 0 | PG49: 0 | PH49: 0 | PI49: 0 | PJ49: 0 | PK49: 0 | PL49: 0 | PM49: 0 | PN49: 0 | PO49: 0 | PP49: 0 | PQ49: 0 | PR49: 0 | PS49: 0 | PT49: 0 | PU49: 0 | PV49: 0 | PW49: 0 | PX49: 0 | PY49: 0 | PZ49: 0 | QA49: 0 | QB49: 0 | QC49: 0 | QD49: 0 | QE49: 0 | QF49: 0 | QG49: 0 | QH49: 0 | QI49: 0 | QJ49: 0 | QK49: 0 | QL49: 0 | QM49: 0 | QN49: 0 | QO49: 0 | QP49: 0 | QQ49: 0 | QR49: 0 | QS49: 0 | QT49: 0 | QU49: 0 | QV49: 0 | QW49: 0 | QX49: 0 | QY49: 0 | QZ49: 0 | RA49: 0 | RB49: 0 | RC49: 0 | RD49: 0 | RE49: 0 | RF49: 0 | RG49: 0 | RH49: 0 | RI49: 0 | RJ49: 0 | RK49: 0 | RL49: 0 | RM49: 0 | RN49: 0 | RO49: 0 | RP49: 0 | RQ49: 0 | RR49: 0 | RS49: 0 | RT49: 0 | RU49: 0 | RV49: 0 | RW49: 0 | RX49: 0 | RY49: 0 | RZ49: 0 | SA49: 0 | SB49: 0 | SC49: 0 | SD49: 0 | SE49: 0 | SF49: 0 | SG49: 0 | SH49: 0 | SI49: 0 | SJ49: 0 | SK49: 0 | SL49: 0 | SM49: 0 | SN49: 0 | SO49: 0 | SP49: 0 | SQ49: 0 | SR49: 0 | SS49: 0 | ST49: 0 | SU49: 0 | SV49: 0 | SW49: 0 | SX49: 0 | SY49: 0 | SZ49: 0 | TA49: 0 | TB49: 0 | TC49: 0 | TD49: 0 | TE49: 0 | TF49: 0 | TG49: 0 | TH49: 0 | TI49: 0 | TJ49: 0 | TK49: 0 | TL49: 0 | TM49: 0 | TN49: 0 | TO49: 0 | TP49: 0 | TQ49: 0 | TR49: 0 | TS49: 0 | TT49: 0 | TU49: 0 | TV49: 0 | TW49: 0 | TX49: 0 | TY49: 0 | TZ49: 0 | UA49: 0 | UB49: 0 | UC49: 0 | UD49: 0 | UE49: 2 | UF49: 0 | UG49: 0 | UH49: 0 | UI49: 0 | UJ49: 0 | UK49: 0 | UL49: 0 | UM49: 0 | UN49: 0 | UO49: 0
A50: =HYPERLINK("https://meshb.nlm.nih.gov/record/ui?ui=" & B50,C50) -> Pentylenetetrazole | B50: D010433 | C50: Pentylenetetrazole | D50: 54-95-5 | E50: =HYPERLINK("https://comptox.epa.gov/dashboard/dsstoxdb/results?utf8=%E2%9C%93&search=" & F50,F50) -> DTXSID7041091 | F50: DTXSID7041091 | G50: =SUM(H50:UO50) -> 222 | H50: 163 | I50: 0 | J50: 0 | K50: 0 | L50: 0 | M50: 0 | N50: 0 | O50: 0 | P50: 0 | Q50: 0 | R50: 0 | S50: 0 | T50: 0 | U50: 0 | V50: 0 | W50: 0 | X50: 2 | Y50: 0 | Z50: 32 | AA50: 0 | AB50: 0 | AC50: 0 | AD50: 5 | AE50: 0 | AF50: 0 | AG50: 2 | AH50: 0 | AI50: 0 | AJ50: 0 | AK50: 0 | AL50: 0 | AM50: 0 | AN50: 0 | AO50: 1 | AP50: 0 | AQ50: 0 | AR50: 0 | AS50: 0 | AT50: 0 | AU50: 0 | AV50: 0 | AW50: 1 | AX50: 0 | AY50: 0 | AZ50: 0 | BA50: 0 | BB50: 0 | BC50: 1 | BD50: 1 | BE50: 0 | BF50: 0 | BG50: 0 | BH50: 0 | BI50: 0 | BJ50: 0 | BK50: 0 | BL50: 0 | BM50: 0 | BN50: 0 | BO50: 0 | BP50: 0 | BQ50: 0 | BR50: 0 | BS50: 0 | BT50: 0 | BU50: 0 | BV50: 1 | BW50: 0 | BX50: 0 | BY50: 0 | BZ50: 0 | CA50: 0 | CB50: 0 | CC50: 0 | CD50: 0 | CE50: 0 | CF50: 0 | CG50: 0 | CH50: 0 | CI50: 0 | CJ50: 0 | CK50: 0 | CL50: 0 | CM50: 0 | CN50: 0 | CO50: 0 | CP50: 0 | CQ50: 0 | CR50: 0 | CS50: 0 | CT50: 0 | CU50: 0 | CV50: 0 | CW50: 0 | CX50: 0 | CY50: 0 | CZ50: 0 | DA50: 0 | DB50: 0 | DC50: 2 | DD50: 0 | DE50: 0 | DF50: 0 | DG50: 0 | DH50: 0 | DI50: 0 | DJ50: 1 | DK50: 0 | DL50: 0 | DM50: 0 | DN50: 0 | DO50: 0 | DP50: 0 | DQ50: 1 | DR50: 1 | DS50: 0 | DT50: 0 | DU50: 0 | DV50: 0 | DW50: 0 | DX50: 0 | DY50: 0 | DZ50: 0 | EA50: 0 | EB50: 0 | EC50: 0 | ED50: 0 | EE50: 0 | EF50: 0 | EG50: 0 | EH50: 0 | EI50: 0 | EJ50: 1 | EK50: 0 | EL50: 0 | EM50: 3 | EN50: 0 | EO50: 0 | EP50: 0 | EQ50: 0 | ER50: 0 | ES50: 0 | ET50: 0 | EU50: 0 | EV50: 0 | EW50: 0 | EX50: 0 | EY50: 0 | EZ50: 0 | FA50: 0 | FB50: 0 | FC50: 0 | FD50: 0 | FE50: 0 | FF50: 0 | FG50: 0 | FH50: 0 | FI50: 0 | FJ50: 0 | FK50: 0 | FL50: 0 | FM50: 0 | FN50: 0 | FO50: 0 | FP50: 0 | FQ50: 0 | FR50: 0 | FS50: 0 | FT50: 0 | FU50: 0 | FV50: 0 | FW50: 0 | FX50: 0 | FY50: 0 | FZ50: 0 | GA50: 0 | GB50: 0 | GC50: 0 | GD50: 0 | GE50: 0 | GF50: 0 | GG50: 1 | GH50: 0 | GI50: 0 | GJ50: 0 | GK50: 0 | GL50: 0 | GM50: 0 | GN50: 0 | GO50: 0 | GP50: 0 | GQ50: 0 | GR50: 0 | GS50: 0 | GT50: 0 | GU50: 0 | GV50: 0 | GW50: 0 | GX50: 0 | GY50: 0 | GZ50: 0 | HA50: 0 | HB50: 0 | HC50: 0 | HD50: 0 | HE50: 0 | HF50: 0 | HG50: 0 | HH50: 0 | HI50: 0 | HJ50: 0 | HK50: 0 | HL50: 0 | HM50: 0 | HN50: 0 | HO50: 0 | HP50: 0 | HQ50: 0 | HR50: 0 | HS50: 0 | HT50: 0 | HU50: 0 | HV50: 0 | HW50: 0 | HX50: 0 | HY50: 0 | HZ50: 0 | IA50: 0 | IB50: 0 | IC50: 0 | ID50: 0 | IE50: 0 | IF50: 0 | IG50: 0 | IH50: 0 | II50: 0 | IJ50: 0 | IK50: 0 | IL50: 0 | IM50: 0 | IN50: 0 | IO50: 0 | IP50: 0 | IQ50: 0 | IR50: 0 | IS50: 0 | IT50: 2 | IU50: 0 | IV50: 0 | IW50: 0 | IX50: 0 | IY50: 0 | IZ50: 0 | JA50: 0 | JB50: 0 | JC50: 0 | JD50: 0 | JE50: 0 | JF50: 0 | JG50: 0 | JH50: 0 | JI50: 0 | JJ50: 0 | JK50: 0 | JL50: 0 | JM50: 0 | JN50: 0 | JO50: 0 | JP50: 0 | JQ50: 0 | JR50: 0 | JS50: 0 | JT50: 0 | JU50: 0 | JV50: 0 | JW50: 0 | JX50: 0 | JY50: 0 | JZ50: 0 | KA50: 0 | KB50: 0 | KC50: 0 | KD50: 0 | KE50: 0 | KF50: 0 | KG50: 0 | KH50: 0 | KI50: 0 | KJ50: 0 | KK50: 0 | KL50: 0 | KM50: 0 | KN50: 0 | KO50: 0 | KP50: 0 | KQ50: 0 | KR50: 0 | KS50: 0 | KT50: 0 | KU50: 0 | KV50: 0 | KW50: 0 | KX50: 0 | KY50: 0 | KZ50: 0 | LA50: 0 | LB50: 0 | LC50: 0 | LD50: 0 | LE50: 0 | LF50: 0 | LG50: 0 | LH50: 0 | LI50: 0 | LJ50: 0 | LK50: 0 | LL50: 0 | LM50: 0 | LN50: 0 | LO50: 0 | LP50: 0 | LQ50: 0 | LR50: 0 | LS50: 0 | LT50: 0 | LU50: 0 | LV50: 0 | LW50: 0 | LX50: 0 | LY50: 0 | LZ50: 0 | MA50: 0 | MB50: 0 | MC50: 0 | MD50: 0 | ME50: 0 | MF50: 0 | MG50: 0 | MH50: 0 | MI50: 0 | MJ50: 0 | MK50: 0 | ML50: 0 | MM50: 0 | MN50: 0 | MO50: 0 | MP50: 0 | MQ50: 0 | MR50: 0 | MS50: 0 | MT50: 0 | MU50: 0 | MV50: 0 | MW50: 0 | MX50: 0 | MY50: 0 | MZ50: 0 | NA50: 0 | NB50: 0 | NC50: 0 | ND50: 0 | NE50: 0 | NF50: 0 | NG50: 0 | NH50: 0 | NI50: 0 | NJ50: 0 | NK50: 0 | NL50: 0 | NM50: 0 | NN50: 0 | NO50: 0 | NP50: 0 | NQ50: 0 | NR50: 0 | NS50: 0 | NT50: 0 | NU50: 0 | NV50: 0 | NW50: 0 | NX50: 0 | NY50: 0 | NZ50: 0 | OA50: 0 | OB50: 0 | OC50: 0 | OD50: 0 | OE50: 0 | OF50: 0 | OG50: 0 | OH50: 0 | OI50: 0 | OJ50: 0 | OK50: 0 | OL50: 0 | OM50: 0 | ON50: 0 | OO50: 0 | OP50: 0 | OQ50: 0 | OR50: 0 | OS50: 0 | OT50: 0 | OU50: 0 | OV50: 0 | OW50: 0 | OX50: 0 | OY50: 0 | OZ50: 0 | PA50: 0 | PB50: 0 | PC50: 0 | PD50: 0 | PE50: 0 | PF50: 0 | PG50: 0 | PH50: 0 | PI50: 0 | PJ50: 0 | PK50: 0 | PL50: 0 | PM50: 0 | PN50: 0 | PO50: 0 | PP50: 0 | PQ50: 0 | PR50: 0 | PS50: 0 | PT50: 0 | PU50: 0 | PV50: 0 | PW50: 0 | PX50: 0 | PY50: 0 | PZ50: 0 | QA50: 0 | QB50: 0 | QC50: 0 | QD50: 0 | QE50: 0 | QF50: 0 | QG50: 0 | QH50: 0 | QI50: 0 | QJ50: 0 | QK50: 0 | QL50: 0 | QM50: 0 | QN50: 0 | QO50: 0 | QP50: 0 | QQ50: 0 | QR50: 0 | QS50: 0 | QT50: 0 | QU50: 0 | QV50: 0 | QW50: 0 | QX50: 0 | QY50: 0 | QZ50: 0 | RA50: 0 | RB50: 0 | RC50: 0 | RD50: 0 | RE50: 0 | RF50: 0 | RG50: 0 | RH50: 0 | RI50: 0 | RJ50: 0 | RK50: 0 | RL50: 0 | RM50: 0 | RN50: 0 | RO50: 0 | RP50: 0 | RQ50: 0 | RR50: 0 | RS50: 0 | RT50: 0 | RU50: 0 | RV50: 0 | RW50: 0 | RX50: 0 | RY50: 0 | RZ50: 0 | SA50: 0 | SB50: 0 | SC50: 0 | SD50: 0 | SE50: 0 | SF50: 0 | SG50: 0 | SH50: 0 | SI50: 0 | SJ50: 0 | SK50: 0 | SL50: 0 | SM50: 0 | SN50: 0 | SO50: 0 | SP50: 0 | SQ50: 0 | SR50: 0 | SS50: 0 | ST50: 0 | SU50: 0 | SV50: 0 | SW50: 0 | SX50: 0 | SY50: 0 | SZ50: 0 | TA50: 0 | TB50: 0 | TC50: 0 | TD50: 0 | TE50: 0 | TF50: 0 | TG50: 0 | TH50: 0 | TI50: 0 | TJ50: 0 | TK50: 0 | TL50: 0 | TM50: 0 | TN50: 0 | TO50: 0 | TP50: 0 | TQ50: 0 | TR50: 0 | TS50: 0 | TT50: 0 | TU50: 0 | TV50: 0 | TW50: 0 | TX50: 0 | TY50: 0 | TZ50: 0 | UA50: 0 | UB50: 0 | UC50: 0 | UD50: 0 | UE50: 1 | UF50: 0 | UG50: 0 | UH50: 0 | UI50: 0 | UJ50: 0 | UK50: 0 | UL50: 0 | UM50: 0 | UN50: 0 | UO50: 0
A51: =HYPERLINK("https://meshb.nlm.nih.gov/record/ui?ui=" & B51,C51) -> Bismuth | B51: D001729 | C51: Bismuth | D51: 7440-69-9 | E51: =HYPERLINK("https://comptox.epa.gov/dashboard/dsstoxdb/results?utf8=%E2%9C%93&search=" & F51,F51) -> DTXSID3052484 | F51: DTXSID3052484 | G51: =SUM(H51:UO51) -> 220 | H51: 5 | I51: 3 | J51: 0 | K51: 84 | L51: 0 | M51: 0 | N51: 0 | O51: 1 | P51: 6 | Q51: 7 | R51: 5 | S51: 1 | T51: 4 | U51: 0 | V51: 2 | W51: 0 | X51: 50 | Y51: 4 | Z51: 3 | AA51: 0 | AB51: 0 | AC51: 11 | AD51: 0 | AE51: 0 | AF51: 0 | AG51: 0 | AH51: 2 | AI51: 2 | AJ51: 0 | AK51: 0 | AL51: 0 | AM51: 0 | AN51: 5 | AO51: 0 | AP51: 0 | AQ51: 1 | AR51: 0 | AS51: 0 | AT51: 0 | AU51: 0 | AV51: 0 | AW51: 0 | AX51: 0 | AY51: 1 | AZ51: 0 | BA51: 0 | BB51: 0 | BC51: 0 | BD51: 0 | BE51: 0 | BF51: 0 | BG51: 0 | BH51: 0 | BI51: 0 | BJ51: 0 | BK51: 1 | BL51: 0 | BM51: 0 | BN51: 0 | BO51: 0 | BP51: 1 | BQ51: 0 | BR51: 0 | BS51: 0 | BT51: 0 | BU51: 0 | BV51: 0 | BW51: 0 | BX51: 1 | BY51: 0 | BZ51: 2 | CA51: 0 | CB51: 1 | CC51: 0 | CD51: 0 | CE51: 0 | CF51: 0 | CG51: 0 | CH51: 0 | CI51: 0 | CJ51: 2 | CK51: 0 | CL51: 3 | CM51: 0 | CN51: 0 | CO51: 0 | CP51: 0 | CQ51: 0 | CR51: 0 | CS51: 0 | CT51: 0 | CU51: 0 | CV51: 0 | CW51: 1 | CX51: 0 | CY51: 1 | CZ51: 0 | DA51: 0 | DB51: 0 | DC51: 1 | DD51: 0 | DE51: 0 | DF51: 0 | DG51: 0 | DH51: 1 | DI51: 0 | DJ51: 1 | DK51: 0 | DL51: 0 | DM51: 0 | DN51: 0 | DO51: 0 | DP51: 0 | DQ51: 0 | DR51: 0 | DS51: 0 | DT51: 0 | DU51: 0 | DV51: 1 | DW51: 0 | DX51: 0 | DY51: 0 | DZ51: 0 | EA51: 1 | EB51: 0 | EC51: 0 | ED51: 0 | EE51: 0 | EF51: 0 | EG51: 0 | EH51: 0 | EI51: 0 | EJ51: 0 | EK51: 0 | EL51: 0 | EM51: 0 | EN51: 0 | EO51: 0 | EP51: 0 | EQ51: 0 | ER51: 0 | ES51: 0 | ET51: 0 | EU51: 0 | EV51: 0 | EW51: 0 | EX51: 0 | EY51: 0 | EZ51: 0 | FA51: 0 | FB51: 0 | FC51: 0 | FD51: 0 | FE51: 0 | FF51: 0 | FG51: 0 | FH51: 0 | FI51: 0 | FJ51: 0 | FK51: 0 | FL51: 0 | FM51: 0 | FN51: 0 | FO51: 0 | FP51: 0 | FQ51: 0 | FR51: 0 | FS51: 0 | FT51: 0 | FU51: 0 | FV51: 0 | FW51: 0 | FX51: 0 | FY51: 0 | FZ51: 0 | GA51: 0 | GB51: 0 | GC51: 0 | GD51: 0 | GE51: 0 | GF51: 0 | GG51: 0 | GH51: 0 | GI51: 0 | GJ51: 0 | GK51: 0 | GL51: 0 | GM51: 0 | GN51: 0 | GO51: 0 | GP51: 0 | GQ51: 0 | GR51: 0 | GS51: 0 | GT51: 0 | GU51: 0 | GV51: 0 | GW51: 0 | GX51: 0 | GY51: 0 | GZ51: 0 | HA51: 0 | HB51: 0 | HC51: 0 | HD51: 0 | HE51: 0 | HF51: 0 | HG51: 0 | HH51: 0 | HI51: 0 | HJ51: 0 | HK51: 0 | HL51: 0 | HM51: 0 | HN51: 0 | HO51: 1 | HP51: 0 | HQ51: 0 | HR51: 0 | HS51: 0 | HT51: 0 | HU51: 0 | HV51: 0 | HW51: 0 | HX51: 0 | HY51: 0 | HZ51: 0 | IA51: 0 | IB51: 0 | IC51: 0 | ID51: 0 | IE51: 0 | IF51: 0 | IG51: 0 | IH51: 0 | II51: 0 | IJ51: 0 | IK51: 0 | IL51: 0 | IM51: 0 | IN51: 0 | IO51: 0 | IP51: 0 | IQ51: 0 | IR51: 0 | IS51: 0 | IT51: 0 | IU51: 0 | IV51: 0 | IW51: 0 | IX51: 0 | IY51: 0 | IZ51: 0 | JA51: 0 | JB51: 0 | JC51: 0 | JD51: 0 | JE51: 0 | JF51: 0 | JG51: 0 | JH51: 0 | JI51: 0 | JJ51: 0 | JK51: 0 | JL51: 0 | JM51: 0 | JN51: 0 | JO51: 0 | JP51: 0 | JQ51: 1 | JR51: 0 | JS51: 0 | JT51: 0 | JU51: 0 | JV51: 0 | JW51: 0 | JX51: 0 | JY51: 0 | JZ51: 0 | KA51: 0 | KB51: 0 | KC51: 0 | KD51: 0 | KE51: 0 | KF51: 0 | KG51: 0 | KH51: 0 | KI51: 0 | KJ51: 0 | KK51: 0 | KL51: 0 | KM51: 0 | KN51: 0 | KO51: 0 | KP51: 0 | KQ51: 0 | KR51: 0 | KS51: 0 | KT51: 0 | KU51: 0 | KV51: 0 | KW51: 0 | KX51: 0 | KY51: 0 | KZ51: 0 | LA51: 0 | LB51: 0 | LC51: 0 | LD51: 0 | LE51: 0 | LF51: 0 | LG51: 0 | LH51: 0 | LI51: 0 | LJ51: 0 | LK51: 0 | LL51: 0 | LM51: 0 | LN51: 0 | LO51: 0 | LP51: 0 | LQ51: 0 | LR51: 0 | LS51: 0 | LT51: 0 | LU51: 0 | LV51: 0 | LW51: 0 | LX51: 0 | LY51: 0 | LZ51: 0 | MA51: 0 | MB51: 0 | MC51: 0 | MD51: 0 | ME51: 0 | MF51: 0 | MG51: 0 | MH51: 0 | MI51: 0 | MJ51: 0 | MK51: 0 | ML51: 0 | MM51: 0 | MN51: 0 | MO51: 0 | MP51: 0 | MQ51: 0 | MR51: 0 | MS51: 0 | MT51: 0 | MU51: 0 | MV51: 0 | MW51: 0 | MX51: 0 | MY51: 0 | MZ51: 0 | NA51: 0 | NB51: 0 | NC51: 0 | ND51: 0 | NE51: 0 | NF51: 0 | NG51: 0 | NH51: 0 | NI51: 0 | NJ51: 0 | NK51: 0 | NL51: 0 | NM51: 0 | NN51: 0 | NO51: 0 | NP51: 0 | NQ51: 0 | NR51: 0 | NS51: 0 | NT51: 0 | NU51: 0 | NV51: 0 | NW51: 0 | NX51: 0 | NY51: 0 | NZ51: 0 | OA51: 0 | OB51: 0 | OC51: 0 | OD51: 0 | OE51: 0 | OF51: 0 | OG51: 0 | OH51: 0 | OI51: 0 | OJ51: 0 | OK51: 0 | OL51: 0 | OM51: 0 | ON51: 0 | OO51: 0 | OP51: 0 | OQ51: 0 | OR51: 0 | OS51: 0 | OT51: 0 | OU51: 0 | OV51: 0 | OW51: 0 | OX51: 0 | OY51: 0 | OZ51: 0 | PA51: 0 | PB51: 0 | PC51: 0 | PD51: 0 | PE51: 0 | PF51: 0 | PG51: 0 | PH51: 0 | PI51: 0 | PJ51: 0 | PK51: 0 | PL51: 0 | PM51: 0 | PN51: 0 | PO51: 0 | PP51: 0 | PQ51: 0 | PR51: 0 | PS51: 0 | PT51: 0 | PU51: 0 | PV51: 0 | PW51: 0 | PX51: 0 | PY51: 0 | PZ51: 0 | QA51: 0 | QB51: 0 | QC51: 0 | QD51: 0 | QE51: 0 | QF51: 0 | QG51: 0 | QH51: 0 | QI51: 0 | QJ51: 0 | QK51: 0 | QL51: 0 | QM51: 0 | QN51: 0 | QO51: 0 | QP51: 0 | QQ51: 0 | QR51: 0 | QS51: 0 | QT51: 0 | QU51: 0 | QV51: 0 | QW51: 0 | QX51: 0 | QY51: 0 | QZ51: 0 | RA51: 0 | RB51: 0 | RC51: 0 | RD51: 0 | RE51: 0 | RF51: 0 | RG51: 0 | RH51: 0 | RI51: 0 | RJ51: 0 | RK51: 0 | RL51: 0 | RM51: 0 | RN51: 0 | RO51: 0 | RP51: 0 | RQ51: 0 | RR51: 0 | RS51: 0 | RT51: 0 | RU51: 0 | RV51: 0 | RW51: 0 | RX51: 0 | RY51: 0 | RZ51: 0 | SA51: 0 | SB51: 0 | SC51: 0 | SD51: 0 | SE51: 0 | SF51: 0 | SG51: 0 | SH51: 0 | SI51: 0 | SJ51: 0 | SK51: 0 | SL51: 0 | SM51: 0 | SN51: 0 | SO51: 0 | SP51: 0 | SQ51: 0 | SR51: 0 | SS51: 0 | ST51: 0 | SU51: 0 | SV51: 0 | SW51: 0 | SX51: 0 | SY51: 0 | SZ51: 0 | TA51: 0 | TB51: 0 | TC51: 0 | TD51: 0 | TE51: 0 | TF51: 0 | TG51: 0 | TH51: 0 | TI51: 0 | TJ51: 0 | TK51: 0 | TL51: 0 | TM51: 0 | TN51: 0 | TO51: 0 | TP51: 0 | TQ51: 0 | TR51: 0 | TS51: 0 | TT51: 0 | TU51: 0 | TV51: 0 | TW51: 0 | TX51: 0 | TY51: 0 | TZ51: 0 | UA51: 0 | UB51: 0 | UC51: 0 | UD51: 0 | UE51: 1 | UF51: 0 | UG51: 0 | UH51: 0 | UI51: 2 | UJ51: 0 | UK51: 0 | UL51: 0 | UM51: 0 | UN51: 0 | UO51: 0
A52: =HYPERLINK("https://meshb.nlm.nih.gov/record/ui?ui=" & B52,C52) -> Metrizamide | B52: D008793 | C52: Metrizamide | D52: 31112-62-6 | E52: =HYPERLINK("https://comptox.epa.gov/dashboard/dsstoxdb/results?utf8=%E2%9C%93&search=" & F52,F52) -> DTXSID1023310 | F52: DTXSID1023310 | G52: =SUM(H52:UO52) -> 218 | H52: 37 | I52: 5 | J52: 0 | K52: 14 | L52: 0 | M52: 1 | N52: 0 | O52: 2 | P52: 1 | Q52: 0 | R52: 1 | S52: 5 | T52: 3 | U52: 1 | V52: 2 | W52: 0 | X52: 3 | Y52: 0 | Z52: 10 | AA52: 0 | AB52: 5 | AC52: 8 | AD52: 6 | AE52: 0 | AF52: 0 | AG52: 6 | AH52: 0 | AI52: 0 | AJ52: 0 | AK52: 0 | AL52: 1 | AM52: 0 | AN52: 8 | AO52: 0 | AP52: 0 | AQ52: 1 | AR52: 0 | AS52: 0 | AT52: 1 | AU52: 0 | AV52: 0 | AW52: 0 | AX52: 1 | AY52: 0 | AZ52: 0 | BA52: 0 | BB52: 0 | BC52: 1 | BD52: 0 | BE52: 0 | BF52: 0 | BG52: 1 | BH52: 1 | BI52: 0 | BJ52: 0 | BK52: 1 | BL52: 0 | BM52: 0 | BN52: 0 | BO52: 0 | BP52: 0 | BQ52: 0 | BR52: 0 | BS52: 0 | BT52: 0 | BU52: 0 | BV52: 0 | BW52: 4 | BX52: 0 | BY52: 0 | BZ52: 2 | CA52: 0 | CB52: 0 | CC52: 0 | CD52: 0 | CE52: 0 | CF52: 0 | CG52: 0 | CH52: 0 | CI52: 0 | CJ52: 1 | CK52: 0 | CL52: 0 | CM52: 0 | CN52: 0 | CO52: 15 | CP52: 1 | CQ52: 0 | CR52: 0 | CS52: 2 | CT52: 0 | CU52: 0 | CV52: 0 | CW52: 3 | CX52: 1 | CY52: 3 | CZ52: 0 | DA52: 1 | DB52: 0 | DC52: 2 | DD52: 0 | DE52: 0 | DF52: 0 | DG52: 1 | DH52: 1 | DI52: 0 | DJ52: 0 | DK52: 18 | DL52: 0 | DM52: 0 | DN52: 0 | DO52: 1 | DP52: 1 | DQ52: 1 | DR52: 0 | DS52: 0 | DT52: 1 | DU52: 0 | DV52: 0 | DW52: 5 | DX52: 0 | DY52: 0 | DZ52: 2 | EA52: 0 | EB52: 0 | EC52: 0 | ED52: 0 | EE52: 0 | EF52: 0 | EG52: 0 | EH52: 0 | EI52: 0 | EJ52: 2 | EK52: 0 | EL52: 0 | EM52: 0 | EN52: 0 | EO52: 1 | EP52: 8 | EQ52: 0 | ER52: 0 | ES52: 1 | ET52: 0 | EU52: 0 | EV52: 1 | EW52: 0 | EX52: 0 | EY52: 0 | EZ52: 0 | FA52: 2 | FB52: 0 | FC52: 0 | FD52: 0 | FE52: 0 | FF52: 0 | FG52: 0 | FH52: 0 | FI52: 0 | FJ52: 2 | FK52: 0 | FL52: 0 | FM52: 0 | FN52: 0 | FO52: 0 | FP52: 0 | FQ52: 0 | FR52: 0 | FS52: 0 | FT52: 0 | FU52: 0 | FV52: 0 | FW52: 0 | FX52: 0 | FY52: 0 | FZ52: 0 | GA52: 0 | GB52: 0 | GC52: 0 | GD52: 0 | GE52: 0 | GF52: 0 | GG52: 0 | GH52: 0 | GI52: 0 | GJ52: 0 | GK52: 0 | GL52: 0 | GM52: 0 | GN52: 0 | GO52: 0 | GP52: 0 | GQ52: 0 | GR52: 0 | GS52: 0 | GT52: 0 | GU52: 1 | GV52: 0 | GW52: 0 | GX52: 0 | GY52: 0 | GZ52: 0 | HA52: 0 | HB52: 0 | HC52: 0 | HD52: 0 | HE52: 0 | HF52: 0 | HG52: 0 | HH52: 0 | HI52: 0 | HJ52: 0 | HK52: 0 | HL52: 0 | HM52: 0 | HN52: 0 | HO52: 0 | HP52: 1 | HQ52: 0 | HR52: 1 | HS52: 0 | HT52: 0 | HU52: 0 | HV52: 0 | HW52: 0 | HX52: 0 | HY52: 0 | HZ52: 0 | IA52: 0 | IB52: 0 | IC52: 0 | ID52: 0 | IE52: 0 | IF52: 0 | IG52: 0 | IH52: 0 | II52: 0 | IJ52: 0 | IK52: 0 | IL52: 0 | IM52: 0 | IN52: 0 | IO52: 0 | IP52: 0 | IQ52: 0 | IR52: 0 | IS52: 0 | IT52: 0 | IU52: 0 | IV52: 0 | IW52: 0 | IX52: 0 | IY52: 0 | IZ52: 0 | JA52: 0 | JB52: 0 | JC52: 0 | JD52: 0 | JE52: 0 | JF52: 3 | JG52: 0 | JH52: 0 | JI52: 0 | JJ52: 0 | JK52: 0 | JL52: 0 | JM52: 0 | JN52: 0 | JO52: 0 | JP52: 0 | JQ52: 0 | JR52: 0 | JS52: 0 | JT52: 0 | JU52: 0 | JV52: 0 | JW52: 0 | JX52: 0 | JY52: 0 | JZ52: 0 | KA52: 0 | KB52: 1 | KC52: 0 | KD52: 0 | KE52: 0 | KF52: 0 | KG52: 0 | KH52: 0 | KI52: 0 | KJ52: 0 | KK52: 0 | KL52: 0 | KM52: 0 | KN52: 0 | KO52: 0 | KP52: 0 | KQ52: 0 | KR52: 0 | KS52: 0 | KT52: 0 | KU52: 0 | KV52: 0 | KW52: 0 | KX52: 0 | KY52: 0 | KZ52: 0 | LA52: 0 | LB52: 0 | LC52: 0 | LD52: 0 | LE52: 0 | LF52: 0 | LG52: 0 | LH52: 0 | LI52: 0 | LJ52: 0 | LK52: 0 | LL52: 0 | LM52: 0 | LN52: 0 | LO52: 0 | LP52: 0 | LQ52: 0 | LR52: 0 | LS52: 0 | LT52: 0 | LU52: 0 | LV52: 0 | LW52: 0 | LX52: 0 | LY52: 0 | LZ52: 0 | MA52: 0 | MB52: 0 | MC52: 0 | MD52: 0 | ME52: 0 | MF52: 0 | MG52: 0 | MH52: 0 | MI52: 0 | MJ52: 0 | MK52: 0 | ML52: 0 | MM52: 0 | MN52: 0 | MO52: 0 | MP52: 0 | MQ52: 0 | MR52: 0 | MS52: 0 | MT52: 0 | MU52: 0 | MV52: 0 | MW52: 0 | MX52: 0 | MY52: 0 | MZ52: 0 | NA52: 0 | NB52: 0 | NC52: 0 | ND52: 0 | NE52: 0 | NF52: 0 | NG52: 0 | NH52: 0 | NI52: 0 | NJ52: 0 | NK52: 0 | NL52: 0 | NM52: 0 | NN52: 0 | NO52: 0 | NP52: 0 | NQ52: 0 | NR52: 0 | NS52: 0 | NT52: 0 | NU52: 0 | NV52: 0 | NW52: 0 | NX52: 0 | NY52: 0 | NZ52: 0 | OA52: 0 | OB52: 0 | OC52: 0 | OD52: 0 | OE52: 0 | OF52: 0 | OG52: 0 | OH52: 0 | OI52: 0 | OJ52: 0 | OK52: 0 | OL52: 0 | OM52: 0 | ON52: 0 | OO52: 0 | OP52: 0 | OQ52: 0 | OR52: 0 | OS52: 0 | OT52: 0 | OU52: 0 | OV52: 0 | OW52: 0 | OX52: 0 | OY52: 0 | OZ52: 0 | PA52: 0 | PB52: 0 | PC52: 0 | PD52: 0 | PE52: 0 | PF52: 0 | PG52: 0 | PH52: 0 | PI52: 0 | PJ52: 0 | PK52: 0 | PL52: 0 | PM52: 0 | PN52: 0 | PO52: 0 | PP52: 0 | PQ52: 0 | PR52: 0 | PS52: 0 | PT52: 0 | PU52: 0 | PV52: 0 | PW52: 0 | PX52: 0 | PY52: 0 | PZ52: 0 | QA52: 0 | QB52: 0 | QC52: 0 | QD52: 0 | QE52: 0 | QF52: 0 | QG52: 0 | QH52: 0 | QI52: 0 | QJ52: 0 | QK52: 0 | QL52: 0 | QM52: 0 | QN52: 0 | QO52: 0 | QP52: 0 | QQ52: 0 | QR52: 0 | QS52: 0 | QT52: 0 | QU52: 0 | QV52: 0 | QW52: 0 | QX52: 0 | QY52: 0 | QZ52: 0 | RA52: 0 | RB52: 0 | RC52: 0 | RD52: 0 | RE52: 0 | RF52: 0 | RG52: 0 | RH52: 0 | RI52: 0 | RJ52: 0 | RK52: 0 | RL52: 0 | RM52: 0 | RN52: 0 | RO52: 0 | RP52: 0 | RQ52: 0 | RR52: 0 | RS52: 0 | RT52: 0 | RU52: 0 | RV52: 0 | RW52: 0 | RX52: 0 | RY52: 0 | RZ52: 0 | SA52: 0 | SB52: 0 | SC52: 0 | SD52: 0 | SE52: 0 | SF52: 0 | SG52: 0 | SH52: 0 | SI52: 0 | SJ52: 0 | SK52: 0 | SL52: 0 | SM52: 0 | SN52: 0 | SO52: 0 | SP52: 0 | SQ52: 0 | SR52: 0 | SS52: 0 | ST52: 0 | SU52: 0 | SV52: 0 | SW52: 0 | SX52: 0 | SY52: 0 | SZ52: 0 | TA52: 0 | TB52: 0 | TC52: 0 | TD52: 0 | TE52: 0 | TF52: 0 | TG52: 0 | TH52: 0 | TI52: 0 | TJ52: 0 | TK52: 0 | TL52: 0 | TM52: 0 | TN52: 0 | TO52: 0 | TP52: 0 | TQ52: 0 | TR52: 0 | TS52: 0 | TT52: 0 | TU52: 0 | TV52: 0 | TW52: 0 | TX52: 0 | TY52: 0 | TZ52: 0 | UA52: 0 | UB52: 0 | UC52: 0 | UD52: 0 | UE52: 2 | UF52: 0 | UG52: 0 | UH52: 0 | UI52: 0 | UJ52: 0 | UK52: 0 | UL52: 0 | UM52: 0 | UN52: 0 | UO52: 0
